Workbook

Sheet README
B3: FRAME Report: 2021/22 ACTUAL
B5: All pages of the FRAME report containing the tables of financial and statistical data are included in this file.
B7: In most cases, formulas have been left intact to show how statistics such as percentages and average costs per pupil are derived.
B10: Each worksheet tab is numbered to match the corresponding page found in the published document so for example to see page 15, click the worksheet tab - 15 - .
B13: This file is unprotected for data analysis by the user. Data can also be copied to other files or additional data copied to this one. In cases of dispute however, the published FRAME reports and the corresponding files located on the Manitoba Govenment web site remain the final authority.
B20: http://www.edu.gov.mb.ca/k12/finance/frame_report/index.html

Sheet 2021 2022 (hidden)
B1: DRAFT - SUBJECT TO FINAL RECONCILIATION WITH FRAME REPORT
A3: PROVINCIAL CONTRIBUTION TO PUBLIC EDUCATION
G6: Tot Exp | H6: Prov Govt
G7: =C31 -> 2625995962 | H7: =D31 -> 1562527278
G8: Net Trans to Cap | H8: TIG
G9: ='- 46 -'!$F$48 -> 56985155 | H9: 37392729
G10: TRUE
C12: 2021/2022 ($ millions)
C14: Total Expenditure | D14: Provincial | E14: Provincial
C15: on Public Education | D15: Contribution | E15: Contribution as % | G15: Principal | H15: 86613.99293 | I15: 21/22 School year | J15: Prior Year | K15: Change
G16: Interest | H16: 48056.90237 | I16: 21/22 School year
A17: 1 | B17: FRAME Operating Fund | C17: =G7/1000000 -> 2625.995962 | D17: =+H7/1000000 -> 1562.527278 | E17: =D17/C17 -> 0.5950227268 | G17: Note Interest | H17: 0 | I17: < ESL financing - PSFB Dissolved | J17: 1512.230171 | K17: =D17-J17 -> 50.297107
A18: 2 | B18: School division capital (net transfers to capital fund) | C18: =G9/1000000 -> 56.985155 | D18: 0 | E18: 0 | G18: PSFB admin | H18: 0 | I18: Dissolved Nov 6, 2020 | J18: 0 | K18: =D18-J18 -> 0
A19: 3 | B19: Provincial Capital Grant Funding and Other | C19: =H19/1000 -> 134.6708953 | D19: =C19 -> 134.6708953 | E19: =D19/C19 -> 1 | H19: =SUM(H15:H18) -> 134670.8953 | J19: 126.6272208 | K19: 8.04367447
A20: 4 | B20: Manitoba Education Property Tax Credit and School Tax Rebate (1) | C20: n/a | D20: =(G20-H20)/1000000 -> 79.102553 | E20: 1 | G20: =D80*1000 -> 224316000 | H20: ='- 41 -'!$C$48+'- 41 -'!$C$50*0 -> 145213447 | J20: 145.8247 | K20: -66.722147
A21: 5 | B21: Farmland School Tax Rebate | C21: n/a | D21: =G27/1000 -> 31.395 | E21: 1 | G21: (Total EPTC | H21: (EPTC from | J21: 47 | K21: -15.605
A22: 6 | B22: Pensioners' School Tax Assistance | C22: n/a | D22: =G28/1000 -> 0.213 | E22: 1 | G22: from Annual Rpt) | H22: FRAME) | J22: 0.5 | K22: -0.287
A23: 7 | B23: Teachers' Retirement Allowances Fund | C23: =D23 -> 322.706 | D23: =G29/1000 -> 322.706 | E23: =D23/C23 -> 1 | J23: 317.416 | K23: 5.29 | L23: =SUM(K17:K23) -> -18.98336553
A24: 8 | B24: Education Property Tax Rebate | C24: n/a | D24: =D46 -> 310.5 | E24: 1 | K24: 310.5
B25: Adjusted Total | C25: =SUM(C17:C24) -> 3140.358012 | D25: =SUM(D17:D24) -> 2441.114726 | E25: =D25/C25 -> 0.7773364428 | J25: 2149.598092 | K25: 291.5166345
G26: =G20 -> 224316000 | H26: EPTC | J26: 0.699
G27: =D33 -> 31395 | H27: Farmland
G28: =D39 -> 213 | H28: School Tax Assistance for Tenants and Homeowners
G29: =D42 -> 322706 | H29: Teachers’ Retirement Allowances Fund
A31: 1 | B31: FRAME Operating Fund | C31: ='- 3 -'!$B$48+('- 3 -'!$B$50+'- 3 -'!$B$51)*0 -> 2625995962 | D31: ='- 41 -'!$H$48+('- 41 -'!$H$50+'- 41 -'!$H$51)*0 -> 1562527278
A33: 5 | B33: Farmland School Tax Rebate | D33: 31395
B34: MASC - Publications | D34: MASC Annual Report 2021 to 2022
A36: 4 | B36: Manitoba Education Property Tax Credit and School Tax Rebate (1) | D36: 75623
B37: OPC email: Chen Wang and Glady's Genetiano-Si (22-23 annual report?)
H38: 22.8 | I38: PTOG
A39: 6 | B39: Pensioners' School Tax Assistance | D39: 213 | I39: Page 13 - 2021-22 Education Annual Report
B40: OPC email: Chen Wang and Glady's Genetiano-Si (22-23 annual report?) | H40: 179784 | I40: Education Support Levy
I41: Page 41 - 2021-22 Education Annual Report
A42: 7 | B42: Teachers' Retirement Allowances Fund | D42: 322706 | H42: 36.7 | I42: GSG
B43: W:\Edusfb\Frame\REPORTS\Provincial Contribution\TRAF Pension Projections xxx | D43: TRAF Pension Projections 22-23 Budget and 2021-22 Actual | I43: Page 63 - 2021-22 Education Annual Report
B44: Updates from Michel.St.Amant@gov.mb.ca | H44: 250 | I44: Education Property tax rebate
I45: Page 16 - 2021-22 Finance Annual report
A46: 8 | B46: Education Property Tax Rebate | D46: 310.5 | I46: Agrees to calculated total EPTC
B47: OPC email: Chen Wang and Glady's Genetiano-Si (22-23 annual report?) | D47: 2022
B48: Page 31 - 2021-22 Education Annual Report | H48: =D36+D39 -> 75836
H52: 75623 | I52: Education Property Tax Credit
H53: 213 | I53: School Tax Assisitance (pensioers)
H54: 148480 | I54: Homeowners Education Property tax Rebate
H55: 310515 | I55: School tax rebate
B59: TOTAL EDUCATION PROPERTY TAX CREDIT
B60: Education Property tax Credit | C60: 148480
B61: Manitoba Education Property Tax Credit & School Tax Rebate | C61: =D36 -> 75623
B62: School Tax Assistance (Seniors) | C62: 213
C63: =SUM(C60:C62) -> 224316
A66: 4 | B66: Manitoba Education Property Tax Credit and School Tax Rebate- DETAILS
D68: Actual | E68: Actual
D69: 2021/22 | E69: 2020/21
D71: 213 | E71: 500 | G71: Teams call from Carlos Matias - not to include School Tax Rebate - Mar21/22
D72: 148480 | E72: 182761 | G72: Education Property Tax Credit
D73: 75623 | E73: 145800 | G73: HomeOwners Education Property Tax Rebaate
D74: =SUM(D71:D73) -> 224316 | E74: =SUM(E71:E73) -> 329061
D78: =D71+D73+D72-D79 -> 79102.553 | E78: =E71+E73+E72-E79 -> 146300.507 | G78: Income tax
D79: =('- 41 -'!C48+('- 41 -'!C50)*0)/1000 -> 145213.447 | E79: =(182760493)/1000 -> 182760.493 | G79: EPTCA (w/o XW) | H79: estimated by our Branch
D80: =SUM(D77:D79) -> 224316 | E80: =SUM(E77:E79) -> 329061 | G80: Total per estimate
D81: =+E25 -> 0.7773364428 | E81: =J26 -> 0.699

Sheet i
A1: PROVINCIAL CONTRIBUTION TO PUBLIC EDUCATION
A3: The total cost of public education in Manitoba includes direct expenses for the operation of schools (e. g. educator and administrator salaries, teaching supplies, pupil transportation, utilities, building maintenance) and capital expenses for school building construction and major building repairs and renovations. Also included are provincial expenses for pensions for retired teachers and the provincial education tax credit programs for homeowners, tenants and farmers which result in reduced property tax bills. The total provincial contribution to public education accounts for 77.7% of the total of these expenses.
C11: 2021/2022 ($ millions)
C13: Total Expense on Public Education | D13: Provincial Contribution | E13: Provincial Contribution as %
A16: 1 | B16: FRAME Operating Fund | C16: 2625.995962 | D16: 1562.527278 | E16: 0.5950227268 | F16: (2)
A17: 2 | B17: School Division Capital (transfers to capital fund) | C17: 56.985155 | D17: 0 | E17: 0
A18: 3 | B18: Provincial Capital Grant Funding and Other | C18: 134.6708953 | D18: 134.6708953 | E18: 1
A19: 4 | B19: Manitoba Education Property Tax Credit (1) | C19: n/a | D19: 79.102553 | E19: 1
A20: 5 | B20: Farmland School Tax Rebate | C20: n/a | D20: 31.395 | E20: 1
A21: 6 | B21: School Tax Assistance for Tenants and Homeowners (55+) (1) | C21: n/a | D21: 0.213 | E21: 1
A22: 7 | B22: Teachers' Retirement Allowances Fund | C22: 322.706 | D22: 322.706 | E22: 1
A23: 8 | B23: Education Property Tax Rebate | C23: n/a | D23: 310.5 | E23: 1
B25: Adjusted Total | C25: 3140.358012 | D25: 2441.114726 | E25: 0.7773364428 | F25: (3)
A27: (1) | B27: ="The portion of the Education Property Tax Credit (EPTC) delivered through the income tax system directly to homeowners and renters. Total EPTC from all sources is $224.3 million including amounts paid to divisions of $"&ROUND('- 41 -'!C48/1000000,1)&" million. See page 41 for more information." -> The portion of the Education Property Tax Credit (EPTC) delivered through the income tax system directly to homeowners and renters. Total EPTC from all sources is $224.3 million including amounts paid to divisions of $145.2 million. See page 41 for more information.
A29: (2) | B29: Total expense on public education is based on school divisions' education expenses as reported in their 2021/22 financial statements. The total provincial contribution towards these expenses is 59.5%. The 1.1% increase due to increased revenues from other provincial funding such as one-time wage support and special needs funding, and from other provincial departments.
A31: (3) | B31: The provincial contribution to public education which, in addition to operating grants, accounts for government funding for capital, teachers' pensions and relevant tax credit programs is at 77.7%, 7.8% more compared to 2020/21 mainly due to the inclusion of the Education Property Tax Rebate, introduced in 2021/22.
A36: Source:
A38: 1 | B38: ="FRAME "&Data!B$5&" Actual page 3, page 41" -> FRAME 2021/22 Actual page 3, page 41
A39: 2 | B39: ="FRAME "&Data!B$5&" Actual page 46" -> FRAME 2021/22 Actual page 46
A40: 3 | B40: Manitoba Education and Early Childhood Learning
A41: 4 | B41: ="Manitoba Education and Early Childhood Learning Annual Report "&VALUE('- 66 -'!F9+1)&"-"&VALUE('- 66 -'!F9+2) -> Manitoba Education and Early Childhood Learning Annual Report 2021-2022
A42: 5 | B42: ="Manitoba Agriculture Annual Report "&VALUE('- 66 -'!F9+1)&"-"&VALUE('- 66 -'!F9+2) -> Manitoba Agriculture Annual Report 2021-2022
A43: 6 | B43: ="Manitoba Education and Early Childhood Learning Annual Report "&VALUE('- 66 -'!F9+1)&"-"&VALUE('- 66 -'!F9+2) -> Manitoba Education and Early Childhood Learning Annual Report 2021-2022
A44: 7 | B44: ="Manitoba Finance " -> Manitoba Finance

Sheet - 1 - (hidden)
X3: YEAR | Z3: 2007 | AA3: =+Z3+1 -> 2008 | AB3: 2009 | AC3: 2010 | AD3: =+AC3+1 -> 2011 | AE3: 2012 | AF3: 2013 | AG3: 2014 | AH3: 2015 | AI3: 2016 | AJ3: 2017 | AK3: 2018 | AL3: =+AK3+1 -> 2019 | AM3: =+AL3+1 -> 2020 | AN3: =+AM3+1 -> 2021
X4: ENROLMENT | Z4: 181.227 | AA4: 179.892 | AB4: 179.593 | AC4: 179.784 | AD4: 181.147 | AE4: 181.561 | AF4: 181.278 | AG4: 181.901 | AH4: 183.13 | AI4: 185.225 | AJ4: 186.872 | AK4: 188.54 | AL4: 189.9 | AM4: 180.9 | AN4: 184.1
X6: PY | Z6: 1968 | AA6: 1969 | AB6: 1970 | AC6: 1971 | AD6: 1972 | AE6: 1973 | AF6: 1974 | AG6: 1975 | AH6: 1976 | AI6: 1977 | AJ6: 1978 | AK6: 1979 | AL6: 1980 | AM6: 1981 | AN6: 1982 | AO6: 1983 | AP6: 1984 | AQ6: 1985 | AR6: 1986 | AS6: 1987 | AT6: 1988 | AU6: 1989 | AV6: 1990 | AW6: 1991 | AX6: 1992 | AY6: 1993 | AZ6: 1994 | BA6: 1995 | BB6: 1996 | BC6: 1997 | BD6: 1998 | BE6: 1999 | BF6: 2000 | BG6: 2001 | BH6: 2002 | BI6: 2003 | BJ6: 2004 | BK6: 2005 | BL6: 2006
X7: Enrol | Z7: 232.2 | AA7: 245.5 | AB7: 247.5 | AC7: 245.6 | AD7: 239.7 | AE7: 231.4 | AF7: 227.5 | AG7: 225.6 | AH7: 223.2 | AI7: 219.2 | AJ7: 213.4 | AK7: 206.7 | AL7: 202.4 | AM7: 199.1 | AN7: 199 | AO7: 198.2 | AP7: 198 | AQ7: 197.6 | AR7: 197.7 | AS7: 198.3 | AT7: 197.7 | AU7: 196.7 | AV7: 196.4 | AW7: 195.9 | AX7: 195.6 | AY7: 195.2 | AZ7: 194.2 | BA7: 194.7 | BB7: 194.7 | BC7: 194.3 | BD7: 194.7 | BE7: 191.8 | BF7: 191.9 | BG7: 190.7 | BH7: 188.8 | BI7: 188.1 | BJ7: 186.3 | BK7: 184.3 | BL7: 181.9

Sheet - 2 - (hidden)
S24: - 2 -
C61: TOTAL | D61: CPI | F61: Actual | G61: Adjusted
C62: EXPENSES | D62: 2002 = 100 | E62: CPI ADJUSTED | F62: $millions | G62: $millions
A64: * | B64: 95/96 | C64: 1107558414 | D64: 87.59890552 | E64: =C64*(100/D64) -> 1264351886 | F64: =C64/1000000 -> 1107.558414 | G64: =E64/1000000 -> 1264.351886
A65: * | B65: 96/97 | C65: 1114015680 | D65: 89.90343796 | E65: 1239124672 | F65: 1114.01568 | G65: 1239.124672
A66: * | B66: 97/98 | C66: 1135289883 | D66: 90.98461575 | E66: 1247782247 | F66: 1135.289883 | G66: 1247.782247
A67: * | B67: 98/99 | C67: 1173479619 | D67: 92.55347956 | E67: 1267893573 | F67: 1173.479619 | G67: 1267.893573
A68: * | B68: 99/00 | C68: 1217264871 | D68: 94.70620092 | E68: 1285306410 | F68: 1217.264871 | G68: 1285.30641
A69: * | B69: 00/01 | C69: 1267547075 | D69: 97.48849174 | E69: 1300201749 | F69: 1267.547075 | G69: 1300.201749
A70: * | B70: 01/02 | C70: 1319051433 | D70: 98.85594368 | E70: 1334316768 | F70: 1319.051433 | G70: 1334.316768
A71: * | B71: 02/03 | C71: 1368981369 | D71: 101.2997563 | E71: 1351416251 | F71: 1368.981369 | G71: 1351.416251
A72: * | B72: 03/04 | C72: 1428062065 | D72: 102.3558083 | E72: 1395193970 | F72: 1428.062065 | G72: 1395.19397
A73: * | B73: 04/05 | C73: 1467949861 | D73: 105.2703967 | E73: 1394456473 | F73: 1467.949861 | G73: 1394.456473
A74: * | B74: 05/06 | C74: 1536007876 | D74: 107.7583333 | E74: =C74*(100/D74) -> 1425419110 | F74: 1536.007876 | G74: 1425.41911
A75: * | B75: 06/07 | C75: 1603516300 | D75: 109.8333333 | E75: 1459954143 | F75: 1603.5163 | G75: 1459.954143
A76: * | B76: 07/08 | C76: 1677944959 | D76: 111.85 | E76: 1500174304 | F76: 1677.944959 | G76: 1500.174304
A77: * | B77: 08/09 | C77: 1752304867 | D77: 114 | E77: 1537109532 | F77: =C77/1000000 -> 1752.304867 | G77: =E77/1000000 -> 1537.109532
A78: * | B78: 09/10 | C78: 1818421619 | D78: 114.6333333 | E78: 1586293939 | F78: 1818.421619 | G78: 1586.293939
A79: * | B79: 10/11 | C79: 1875139076 | D79: 116.6583333 | E79: 1607376878 | F79: 1875.139076 | G79: 1607.376878
A80: * | B80: 11/12 | C80: 1945942424 | D80: 119.4166667 | E80: =C80*(100/D80) -> 1629540062 | F80: 1945.942424 | G80: 1629.540062
A81: * | B81: 12/13 | C81: 2017420276 | D81: 121.4833333 | E81: 1660656010 | F81: 2017.420276 | G81: 1660.65601
A82: * | B82: 13/14 | C82: 2086402489 | D82: 124.4 | E82: 1677172419 | F82: 2086.402489 | G82: 1677.172419
A83: * | B83: 14/15 | C83: 2156918416 | D83: 125.7833333 | E83: 1714788723 | F83: =C83/1000000 -> 2156.918416 | G83: =E83/1000000 -> 1714.788723
A84: * | B84: 15/16 | C84: 2235012397 | D84: 127.725 | E84: 1749862906 | F84: 2235.012397 | G84: 1749.862906
A85: * | B85: 16/17 | C85: 2313048846 | D85: 129.325 | E85: 1788555071 | F85: 2313.048846 | G85: 1788.555071
A86: * | B86: 17/18 | C86: 2377682744 | D86: 132.1333333 | E86: 1799457173 | F86: 2377.682744 | G86: 1799.457173
A87: * | B87: 18/19 | C87: 2418150519 | D87: 135.2916667 | E87: 1787361024 | F87: 2418.150519 | G87: 1846.268768
A88: * | B88: 19/20 | C88: 2431876352 | D88: 137.4 | E88: 1769924565 | F88: 2431.876352 | G88: 1769.924565
A89: * | B89: 20/21 | C89: 2590841680 | D89: 138.9 | E89: 1865256789 | F89: 2590.84168 | G89: 1865.256789 | H89: File CPI sheet ANNUAL AVGS 2002 BASE
B90: 21/22 | C90: ='- 3 -'!B48 -> 2625995962 | D90: 147.2083333 | E90: =C89*(100/D89) -> 1865256789 | F90: =C90/1000000 -> 2625.995962 | G90: =E90/1000000 -> 1865.256789 | H90: 'W:\Edusfb\CPI\[CPI.xlsx]ANNUAL AVGS 2002 BASE'!$F$49

Sheet - 3 -
A2: RECONCILIATION OF EXPENSES
A3: ="OPERATING FUND "&FALLYR&"/"&SPRINGYR&" ACTUAL" -> OPERATING FUND 2021/2022 ACTUAL
C6: LESS OPERATING FUND TRANSFERS (2) | D6: EXPENSES NET OF TRANFERS (3) | E6: LESS NON K-12 EDUCATION & SERVICES (4) | F6: TOTAL EXPENSES FOR PER PUPIL COSTS (5)
B8: TOTAL EXPENSES (1)
A9: DIVISION / DISTRICT
A11: BEAUTIFUL PLAINS | B11: 24173257 | C11: =-Data!K11 -> -99319 | D11: =B11+C11 -> 24073938 | E11: =-'- 15 -'!H11-'- 16 -'!B11 -> -21894 | F11: =D11+E11 -> 24052044
A12: BORDER LAND | B12: 36040928 | C12: =-Data!K12 -> -554996 | D12: =B12+C12 -> 35485932 | E12: =-'- 15 -'!H12-'- 16 -'!B12 -> -471460 | F12: =D12+E12 -> 35014472
A13: BRANDON | B13: 112707461 | C13: =-Data!K13 -> -85800 | D13: 112621661 | E13: =-'- 15 -'!H13-'- 16 -'!B13 -> -308982 | F13: 112312679
A14: DSFM | B14: 100491885 | C14: =-Data!K14 -> -819634 | D14: 99672251 | E14: =-'- 15 -'!H14-'- 16 -'!B14 -> -1412836 | F14: 98259415
A15: EVERGREEN | B15: 21886565 | C15: =-Data!K15 -> -54500 | D15: 21832065 | E15: =-'- 15 -'!H15-'- 16 -'!B15 -> -81597 | F15: 21750468
A16: FLIN FLON | B16: 16090948 | C16: =-Data!K16 -> -3900 | D16: 16087048 | E16: =-'- 15 -'!H16-'- 16 -'!B16 -> -119035 | F16: 15968013
A17: FORT LA BOSSE | B17: 20559501 | C17: =-Data!K17 -> -133078 | D17: 20426423 | E17: =-'- 15 -'!H17-'- 16 -'!B17 -> -223714 | F17: 20202709
A18: FRONTIER | B18: 149227628 | C18: =-Data!K18 -> -2962473 | D18: 146265155 | E18: =-'- 15 -'!H18-'- 16 -'!B18 -> -4901959 | F18: 141363196
A19: GARDEN VALLEY | B19: 53679429 | C19: =-Data!K19 -> -502474 | D19: 53176955 | E19: =-'- 15 -'!H19-'- 16 -'!B19 -> -79604 | F19: 53097351
A20: HANOVER | B20: 101686162 | C20: =-Data!K20 -> -2559548 | D20: 99126614 | E20: =-'- 15 -'!H20-'- 16 -'!B20 -> -73997 | F20: 99052617
A21: INTERLAKE | B21: 41194142 | C21: =-Data!K21 -> -241813 | D21: 40952329 | E21: =-'- 15 -'!H21-'- 16 -'!B21 -> 0 | F21: 40952329
A22: KELSEY | B22: 21208745 | C22: =-Data!K22 -> -2246 | D22: 21206499 | E22: =-'- 15 -'!H22-'- 16 -'!B22 -> -725628 | F22: 20480871
A23: LAKESHORE | B23: 16467489 | C23: =-Data!K23 -> -77347 | D23: 16390142 | E23: =-'- 15 -'!H23-'- 16 -'!B23 -> -446030 | F23: 15944112
A24: LORD SELKIRK | B24: 62574746 | C24: =-Data!K24 -> -194556 | D24: 62380190 | E24: =-'- 15 -'!H24-'- 16 -'!B24 -> -632521 | F24: 61747669
A25: LOUIS RIEL | B25: 209197161 | C25: =-Data!K25 -> -937899 | D25: 208259262 | E25: =-'- 15 -'!H25-'- 16 -'!B25 -> -3081951 | F25: 205177311
A26: MOUNTAIN VIEW | B26: 44434450 | C26: =-Data!K26 -> -4420 | D26: 44430030 | E26: =-'- 15 -'!H26-'- 16 -'!B26 -> -94784 | F26: 44335246
A27: MYSTERY LAKE | B27: 44428393 | C27: =-Data!K27 -> -12100 | D27: 44416293 | E27: =-'- 15 -'!H27-'- 16 -'!B27 -> -63098 | F27: 44353195
A28: PARK WEST | B28: 30686162 | C28: =-Data!K28 -> -110837 | D28: 30575325 | E28: =-'- 15 -'!H28-'- 16 -'!B28 -> -172517 | F28: 30402808
A29: PEMBINA TRAILS | B29: 187401602 | C29: =-Data!K29 -> -2301118 | D29: 185100484 | E29: =-'- 15 -'!H29-'- 16 -'!B29 -> -227966 | F29: 184872518
A30: PINE CREEK | B30: 16836768 | C30: =-Data!K30 -> -40055 | D30: 16796713 | E30: =-'- 15 -'!H30-'- 16 -'!B30 -> -8856 | F30: 16787857
A31: PORTAGE LA PRAIRIE | B31: 43460577 | C31: =-Data!K31 -> -38350 | D31: 43422227 | E31: =-'- 15 -'!H31-'- 16 -'!B31 -> -56019 | F31: 43366208
A32: PRAIRIE ROSE | B32: 33778329 | C32: =-Data!K32 -> -171666 | D32: 33606663 | E32: =-'- 15 -'!H32-'- 16 -'!B32 -> -337474 | F32: 33269189
A33: PRAIRIE SPIRIT | B33: 29987145 | C33: =-Data!K33 -> -74566 | D33: 29912579 | E33: =-'- 15 -'!H33-'- 16 -'!B33 -> -37426 | F33: 29875153
A34: RED RIVER VALLEY | B34: 34237409 | C34: =-Data!K34 -> -384392 | D34: 33853017 | E34: =-'- 15 -'!H34-'- 16 -'!B34 -> -27758 | F34: 33825259
A35: RIVER EAST TRANSCONA | B35: 214246606 | C35: =-Data!K35 -> -610061 | D35: 213636545 | E35: =-'- 15 -'!H35-'- 16 -'!B35 -> -2626447 | F35: 211010098
A36: ROLLING RIVER | B36: 26333807 | C36: =-Data!K36 -> -338241 | D36: 25995566 | E36: =-'- 15 -'!H36-'- 16 -'!B36 -> -163556 | F36: 25832010
A37: SEINE RIVER | B37: 58920446 | C37: =-Data!K37 -> -576928 | D37: 58343518 | E37: =-'- 15 -'!H37-'- 16 -'!B37 -> -917524 | F37: 57425994
A38: SEVEN OAKS | B38: 163516667 | C38: =-Data!K38 -> -1093561 | D38: 162423106 | E38: =-'- 15 -'!H38-'- 16 -'!B38 -> -5432763 | F38: 156990343
A39: SOUTHWEST HORIZON | B39: 24350391 | C39: =-Data!K39 -> -250025 | D39: 24100366 | E39: =-'- 15 -'!H39-'- 16 -'!B39 -> -166963 | F39: 23933403
A40: ST. JAMES-ASSINIBOIA | B40: 116976513 | C40: =-Data!K40 -> -375712 | D40: 116600801 | E40: =-'- 15 -'!H40-'- 16 -'!B40 -> -875137 | F40: 115725664
A41: SUNRISE | B41: 72681026 | C41: =-Data!K41 -> -437428 | D41: 72243598 | E41: =-'- 15 -'!H41-'- 16 -'!B41 -> -1067573 | F41: 71176025
A42: SWAN VALLEY | B42: 21941169 | C42: =-Data!K42 -> -60000 | D42: 21881169 | E42: =-'- 15 -'!H42-'- 16 -'!B42 -> -71165 | F42: 21810004
A43: TURTLE MOUNTAIN | B43: 14431464 | C43: =-Data!K43 -> -27990 | D43: 14403474 | E43: =-'- 15 -'!H43-'- 16 -'!B43 -> -211524 | F43: 14191950
A44: TURTLE RIVER | B44: 12134067 | C44: =-Data!K44 -> -142073 | D44: 11991994 | E44: =-'- 15 -'!H44-'- 16 -'!B44 -> -27179 | F44: 11964815
A45: WESTERN | B45: 24112405 | C45: =-Data!K45 -> -79661 | D45: 24032744 | E45: =-'- 15 -'!H45-'- 16 -'!B45 -> -441814 | F45: 23590930
A46: WINNIPEG | B46: 423914519 | C46: =-Data!K46 -> -2169069 | D46: 421745450 | E46: =-'- 15 -'!H46-'- 16 -'!B46 -> -8147408 | F46: 413598042
A48: PROVINCE | B48: =SUM(B11:B46) -> 2625995962 | C48: =SUM(C11:C46) -> -18527836 | D48: =SUM(D11:D46) -> 2607468126 | E48: =SUM(E11:E46) -> -33756159 | F48: =SUM(F11:F46) -> 2573711967
A50: WHITESHELL | B50: 3574394 | C50: =-Data!K50 -> -61353 | D50: =B50+C50 -> 3513041 | E50: =-'- 15 -'!H50-'- 16 -'!B50 -> -82206 | F50: =D50+E50 -> 3430835
A51: MITT | B51: 35789306 | C51: =-Data!K51 -> -216515 | D51: =B51+C51 -> 35572791 | E51: =-'- 15 -'!H51-'- 16 -'!B51 -> -14799585 | F51: =D51+E51 -> 20773206
A53: (1) Total operating expenses as reported on the Schedule of Revenue, Expenses and Accumulated Surplus by each school division.
A54: (2) Operating fund transfers are payments to other school divisions, organizations and individuals. These are removed to provide more accurate per pupil costs.
A56: (3) As reported on pages 10 and 13 (on a provincial basis).
A57: (4) Expenses for Adult Learning Centres and Community Education and Services (Functions 300 and 400).
A58: (5) As reported on page 4.

Sheet - 4 -
B2: OPERATING FUND COST PER PUPIL
B7: =PrevY&" ACTUAL" -> 2020/21 ACTUAL | D7: =CurrY&" ACTUAL" -> 2021/22 ACTUAL
A9: DIVISION / DISTRICT | B9: EXPENSES (1)X | C9: PER PUPIL | D9: EXPENSES (1)X | E9: PER PUPIL
A11: BEAUTIFUL PLAINS | B11: 22496021 | C11: 11828 | D11: ='- 3 -'!F11 -> 24052044 | E11: =ROUND(D11/'- 7 -'!E11,0) -> 12679
A12: BORDER LAND | B12: 33828093 | C12: 17207 | D12: ='- 3 -'!F12 -> 35014472 | E12: =ROUND(D12/'- 7 -'!E12,0) -> 18101
A13: BRANDON | B13: 112355515 | C13: 13216 | D13: ='- 3 -'!F13 -> 112312679 | E13: =ROUND(D13/'- 7 -'!E13,0) -> 12939
A14: DSFM | B14: 101104726 | C14: 17059 | D14: ='- 3 -'!F14 -> 98259415 | E14: =ROUND(D14/'- 7 -'!E14,0) -> 16926
A15: EVERGREEN | B15: 20950837 | C15: 15105 | D15: ='- 3 -'!F15 -> 21750468 | E15: =ROUND(D15/'- 7 -'!E15,0) -> 15125
A16: FLIN FLON | B16: 15742449 | C16: 16916 | D16: ='- 3 -'!F16 -> 15968013 | E16: =ROUND(D16/'- 7 -'!E16,0) -> 16888
A17: FORT LA BOSSE | B17: 18648789 | C17: 12830 | D17: ='- 3 -'!F17 -> 20202709 | E17: =ROUND(D17/'- 7 -'!E17,0) -> 14148
A18: FRONTIER | B18: 138018253 | C18: 23457 | D18: ='- 3 -'!F18 -> 141363196 | E18: =ROUND(D18/'- 7 -'!E18,0) -> 22908
A19: GARDEN VALLEY | B19: 52951037 | C19: 12117 | D19: ='- 3 -'!F19 -> 53097351 | E19: =ROUND(D19/'- 7 -'!E19,0) -> 14103
A20: HANOVER | B20: 96365100 | C20: 12473 | D20: ='- 3 -'!F20 -> 99052617 | E20: =ROUND(D20/'- 7 -'!E20,0) -> 12774
A21: INTERLAKE | B21: 41278896 | C21: 14669 | D21: ='- 3 -'!F21 -> 40952329 | E21: =ROUND(D21/'- 7 -'!E21,0) -> 14027
A22: KELSEY | B22: 20267055 | C22: 14446 | D22: ='- 3 -'!F22 -> 20480871 | E22: =ROUND(D22/'- 7 -'!E22,0) -> 14134
A23: LAKESHORE | B23: 15678324 | C23: 17305 | D23: ='- 3 -'!F23 -> 15944112 | E23: =ROUND(D23/'- 7 -'!E23,0) -> 17284
A24: LORD SELKIRK | B24: 60146536 | C24: 16605 | D24: ='- 3 -'!F24 -> 61747669 | E24: =ROUND(D24/'- 7 -'!E24,0) -> 16816
A25: LOUIS RIEL | B25: 197599776 | C25: 13037 | D25: ='- 3 -'!F25 -> 205177311 | E25: =ROUND(D25/'- 7 -'!E25,0) -> 13732
A26: MOUNTAIN VIEW | B26: 42713404 | C26: 14433 | D26: ='- 3 -'!F26 -> 44335246 | E26: =ROUND(D26/'- 7 -'!E26,0) -> 14778
A27: MYSTERY LAKE | B27: 43290661 | C27: 14350 | D27: ='- 3 -'!F27 -> 44353195 | E27: =ROUND(D27/'- 7 -'!E27,0) -> 16067
A28: PARK WEST | B28: 29144459 | C28: 15093 | D28: ='- 3 -'!F28 -> 30402808 | E28: =ROUND(D28/'- 7 -'!E28,0) -> 15092
A29: PEMBINA TRAILS | B29: 180775415 | C29: 12267 | D29: ='- 3 -'!F29 -> 184872518 | E29: =ROUND(D29/'- 7 -'!E29,0) -> 12577
A30: PINE CREEK | B30: 16555891 | C30: 15843 | D30: ='- 3 -'!F30 -> 16787857 | E30: =ROUND(D30/'- 7 -'!E30,0) -> 15193
A31: PORTAGE LA PRAIRIE | B31: 43994562 | C31: 13231 | D31: ='- 3 -'!F31 -> 43366208 | E31: =ROUND(D31/'- 7 -'!E31,0) -> 13254
A32: PRAIRIE ROSE | B32: 33100294 | C32: 14249 | D32: ='- 3 -'!F32 -> 33269189 | E32: =ROUND(D32/'- 7 -'!E32,0) -> 14803
A33: PRAIRIE SPIRIT | B33: 29810989 | C33: 14854 | D33: ='- 3 -'!F33 -> 29875153 | E33: =ROUND(D33/'- 7 -'!E33,0) -> 14659
A34: RED RIVER VALLEY | B34: 32722242 | C34: 15085 | D34: ='- 3 -'!F34 -> 33825259 | E34: =ROUND(D34/'- 7 -'!E34,0) -> 15431
A35: RIVER EAST TRANSCONA | B35: 209313095 | C35: 13010 | D35: ='- 3 -'!F35 -> 211010098 | E35: =ROUND(D35/'- 7 -'!E35,0) -> 12874
A36: ROLLING RIVER | B36: 25044832 | C36: 14646 | D36: ='- 3 -'!F36 -> 25832010 | E36: =ROUND(D36/'- 7 -'!E36,0) -> 14753
A37: SEINE RIVER | B37: 54948773 | C37: 12744 | D37: ='- 3 -'!F37 -> 57425994 | E37: =ROUND(D37/'- 7 -'!E37,0) -> 12957
A38: SEVEN OAKS | B38: 151435021 | C38: 13565 | D38: ='- 3 -'!F38 -> 156990343 | E38: =ROUND(D38/'- 7 -'!E38,0) -> 13829
A39: SOUTHWEST HORIZON | B39: 23281309 | C39: 15477 | D39: ='- 3 -'!F39 -> 23933403 | E39: =ROUND(D39/'- 7 -'!E39,0) -> 16342
A40: ST. JAMES-ASSINIBOIA | B40: 112484284 | C40: 14127 | D40: ='- 3 -'!F40 -> 115725664 | E40: =ROUND(D40/'- 7 -'!E40,0) -> 14517
A41: SUNRISE | B41: 68367949 | C41: 15777 | D41: ='- 3 -'!F41 -> 71176025 | E41: =ROUND(D41/'- 7 -'!E41,0) -> 15826
A42: SWAN VALLEY | B42: 21744943 | C42: 16740 | D42: ='- 3 -'!F42 -> 21810004 | E42: =ROUND(D42/'- 7 -'!E42,0) -> 16483
A43: TURTLE MOUNTAIN | B43: 13634454 | C43: 13433 | D43: ='- 3 -'!F43 -> 14191950 | E43: =ROUND(D43/'- 7 -'!E43,0) -> 13826
A44: TURTLE RIVER | B44: 11293929 | C44: 17429 | D44: ='- 3 -'!F44 -> 11964815 | E44: =ROUND(D44/'- 7 -'!E44,0) -> 18550
A45: WESTERN | B45: 22371978 | C45: 12443 | D45: ='- 3 -'!F45 -> 23590930 | E45: =ROUND(D45/'- 7 -'!E45,0) -> 13124
A46: WINNIPEG | B46: 422506742 | C46: 14457 | D46: ='- 3 -'!F46 -> 413598042 | E46: =ROUND(D46/'- 7 -'!E46,0) -> 15127
A48: PROVINCE | B48: =SUM(B11:B46) -> 2535966633 | C48: 14205 | D48: =SUM(D11:D46) -> 2573711967 | E48: =ROUND(D48/'- 7 -'!E48,0) -> 14537
A50: WHITESHELL | B50: 3312541 | C50: 18003 | D50: ='- 3 -'!F50 -> 3430835 | E50: =ROUND(D50/'- 7 -'!E50,0) -> 17415
A51: MITT | B51: 18405024 | C51: 10374 | D51: ='- 3 -'!F51 -> 20773206 | E51: =ROUND(D51/'- 7 -'!E51,0) -> 9694
A53: (1) As calculated on page 3. Operating fund transfers (i.e. payments to other school divisions, organizations and individuals) are excluded to provide more accurate per pupil costs. Also excluded are expenditures on educational services not provided to K-12 pupils: Function 300 (Adult Learning Centres) and Function 400 (Community Education and Services).

Sheet - 5 -
S25: - 5 -

Sheet - 6 -
B2: FRAME STUDENT STATISTICS | H2: PAGE 1 OF 2
B3: ="ACTUAL SEPTEMBER 30, "&FALLYR -> ACTUAL SEPTEMBER 30, 2021
B6: REGULAR INSTRUCTION
B7: SINGLE TRACK (1) | E7: DUAL TRACK (2)
B8: ENGLISH LANGUAGE | D8: FRENCH IMMERSION | E8: ENGLISH LANGUAGE | G8: FRENCH IMMERSION | H8: OTHER BILINGUAL
A9: DIVISION / DISTRICT | C9: FRANÇAIS | F9: FRANÇAIS
A11: BEAUTIFUL PLAINS | B11: 1897 | C11: 0 | D11: 0 | E11: 0 | F11: 0 | G11: 0 | H11: 0
A12: BORDER LAND | B12: 1220.32 | C12: 0 | D12: 0 | E12: 408.5 | F12: 0 | G12: 158.5 | H12: 0
A13: BRANDON | B13: 6766 | C13: 0 | D13: 321 | E13: 641 | F13: 0 | G13: 564 | H13: 0
A14: DSFM | B14: 0 | C14: 5783 | D14: 0 | E14: 0 | F14: 0 | G14: 0 | H14: 0
A15: EVERGREEN | B15: 1418 | C15: 0 | D15: 0 | E15: 0 | F15: 0 | G15: 0 | H15: 0
A16: FLIN FLON | B16: 605.5 | C16: 0 | D16: 0 | E16: 232 | F16: 0 | G16: 108 | H16: 0
A17: FORT LA BOSSE | B17: 1400 | C17: 0 | D17: 0 | E17: 0 | F17: 0 | G17: 0 | H17: 0
A18: FRONTIER | B18: 6113 | C18: 0 | D18: 0 | E18: 0 | F18: 0 | G18: 0 | H18: 0
A19: GARDEN VALLEY | B19: 3663 | C19: 0 | D19: 0 | E19: 0 | F19: 0 | G19: 0 | H19: 0
A20: HANOVER | B20: 7241 | C20: 0 | D20: 0 | E20: 0 | F20: 0 | G20: 0 | H20: 0
A21: INTERLAKE | B21: 1626 | C21: 0 | D21: 0 | E21: 909.5 | F21: 0 | G21: 384 | H21: 0
A22: KELSEY | B22: 773 | C22: 0 | D22: 0 | E22: 509 | F22: 0 | G22: 120 | H22: 0
A23: LAKESHORE | B23: 908.5 | C23: 0 | D23: 0 | E23: 0 | F23: 0 | G23: 0 | H23: 0
A24: LORD SELKIRK | B24: 2550.5 | C24: 0 | D24: 223.5 | E24: 538 | F24: 0 | G24: 85 | H24: 81
A25: LOUIS RIEL | B25: 9482 | C25: 0 | D25: 4731 | E25: 251 | F25: 0 | G25: 385 | H25: 0
A26: MOUNTAIN VIEW | B26: 2194.79 | C26: 0 | D26: 133.5 | E26: 382 | F26: 0 | G26: 70 | H26: 65
A27: MYSTERY LAKE | B27: 2336.9 | C27: 0 | D27: 0 | E27: 136.5 | F27: 0 | G27: 199.5 | H27: 0
A28: PARK WEST | B28: 2014.5 | C28: 0 | D28: 0 | E28: 0 | F28: 0 | G28: 0 | H28: 0
A29: PEMBINA TRAILS | B29: 8653.1 | C29: 0 | D29: 1385.5 | E29: 2632.6 | F29: 0 | G29: 2027.5 | H29: 0
A30: PINE CREEK | B30: 1063 | C30: 0 | D30: 0 | E30: 0 | F30: 0 | G30: 0 | H30: 0
A31: PORTAGE LA PRAIRIE | B31: 2336 | C31: 0 | D31: 0 | E31: 485 | F31: 360 | G31: 0 | H31: 0
A32: PRAIRIE ROSE | B32: 1657.5 | C32: 0 | D32: 122.5 | E32: 341.5 | F32: 0 | G32: 126 | H32: 0
A33: PRAIRIE SPIRIT | B33: 1577 | C33: 0 | D33: 0 | E33: 250.5 | F33: 104.5 | G33: 106 | H33: 0
A34: RED RIVER VALLEY | B34: 1629.5 | C34: 0 | D34: 312.5 | E34: 84 | F34: 144.5 | G34: 0 | H34: 0
A35: RIVER EAST TRANSCONA | B35: 8098.5 | C35: 0 | D35: 1447.5 | E35: 3691 | F35: 0 | G35: 1955.5 | H35: 516
A36: ROLLING RIVER | B36: 1741.9 | C36: 0 | D36: 0 | E36: 0 | F36: 0 | G36: 0 | H36: 0
A37: SEINE RIVER | B37: 2201 | C37: 0 | D37: 856 | E37: 738 | F37: 0 | G37: 637 | H37: 0
A38: SEVEN OAKS | B38: 6772.1 | C38: 0 | D38: 1054 | E38: 1833 | F38: 0 | G38: 1230.5 | H38: 266.5
A39: SOUTHWEST HORIZON | B39: 1464.5 | C39: 0 | D39: 0 | E39: 0 | F39: 0 | G39: 0 | H39: 0
A40: ST. JAMES-ASSINIBOIA | B40: 5401.5 | C40: 0 | D40: 1417 | E40: 602.3 | F40: 0 | G40: 0 | H40: 364
A41: SUNRISE | B41: 2042 | C41: 0 | D41: 0 | E41: 1619 | F41: 0 | G41: 762.5 | H41: 74
A42: SWAN VALLEY | B42: 924.6 | C42: 0 | D42: 0 | E42: 188.3 | F42: 0 | G42: 51.7 | H42: 0
A43: TURTLE MOUNTAIN | B43: 997.1 | C43: 0 | D43: 0 | E43: 0 | F43: 0 | G43: 0 | H43: 0
A44: TURTLE RIVER | B44: 608 | C44: 0 | D44: 37 | E44: 0 | F44: 0 | G44: 0 | H44: 0
A45: WESTERN | B45: 749 | C45: 0 | D45: 0 | E45: 531 | F45: 0 | G45: 487.5 | H45: 0
A46: WINNIPEG | B46: 17176.5 | C46: 0 | D46: 1406 | E46: 4900 | F46: 0 | G46: 2720 | H46: 441
A48: PROVINCE | B48: =SUM(B11:B46) -> 117302.81 | C48: 5783 | D48: 13447 | E48: 21903.7 | F48: 609 | G48: 12178.2 | H48: 1807.5
A50: WHITESHELL | B50: 197 | C50: 0 | D50: 0 | E50: 0 | F50: 0 | G50: 0 | H50: 0
A51: MITT | B51: 207 | C51: 0 | D51: 0 | E51: 0 | F51: 0 | G51: 0 | H51: 0
A53: (1) 90% or more of Regular Instruction enrolment is in one language program.
A54: (2) No one language program comprises 90% or more of Regular Instruction enrolment.

Sheet - 7 -
B2: FRAME STUDENT STATISTICS | G2: PAGE 2 OF 2
B3: =STATDATE -> ACTUAL SEPTEMBER 30, 2021
B7: REGULAR INSTRUCTION (1) | E7: TOTAL
B8: SENIOR YEARS TECHNOLOGY | E8: K-12 F.T.E. ENROLMENT
A9: DIVISION / DISTRICT | C9: TOTAL
A11: BEAUTIFUL PLAINS | B11: 0 | C11: =SUM('- 6 -'!B11:H11,B11) -> 1897 | E11: =C11 -> 1897
A12: BORDER LAND | B12: 147.04 | C12: =SUM('- 6 -'!B12:H12,B12) -> 1934.36 | E12: =C12 -> 1934.36
A13: BRANDON | B13: 388 | C13: =SUM('- 6 -'!B13:H13,B13) -> 8680 | E13: 8680
A14: DSFM | B14: 22.29 | C14: =SUM('- 6 -'!B14:H14,B14) -> 5805.29 | E14: 5805.29
A15: EVERGREEN | B15: 20 | C15: =SUM('- 6 -'!B15:H15,B15) -> 1438 | E15: 1438
A16: FLIN FLON | B16: 0 | C16: =SUM('- 6 -'!B16:H16,B16) -> 945.5 | E16: 945.5
A17: FORT LA BOSSE | B17: 28 | C17: =SUM('- 6 -'!B17:H17,B17) -> 1428 | E17: 1428
A18: FRONTIER | B18: 58 | C18: =SUM('- 6 -'!B18:H18,B18) -> 6171 | E18: 6171
A19: GARDEN VALLEY | B19: 102 | C19: =SUM('- 6 -'!B19:H19,B19) -> 3765 | E19: 3765
A20: HANOVER | B20: 513 | C20: =SUM('- 6 -'!B20:H20,B20) -> 7754 | E20: 7754
A21: INTERLAKE | B21: 0 | C21: =SUM('- 6 -'!B21:H21,B21) -> 2919.5 | E21: 2919.5
A22: KELSEY | B22: 47 | C22: =SUM('- 6 -'!B22:H22,B22) -> 1449 | E22: 1449
A23: LAKESHORE | B23: 14 | C23: =SUM('- 6 -'!B23:H23,B23) -> 922.5 | E23: 922.5
A24: LORD SELKIRK | B24: 194 | C24: =SUM('- 6 -'!B24:H24,B24) -> 3672 | E24: 3672
A25: LOUIS RIEL | B25: 93 | C25: =SUM('- 6 -'!B25:H25,B25) -> 14942 | E25: 14942
A26: MOUNTAIN VIEW | B26: 154.7 | C26: =SUM('- 6 -'!B26:H26,B26) -> 2999.99 | E26: 2999.99
A27: MYSTERY LAKE | B27: 87.6 | C27: =SUM('- 6 -'!B27:H27,B27) -> 2760.5 | E27: 2760.5
A28: PARK WEST | B28: 0 | C28: =SUM('- 6 -'!B28:H28,B28) -> 2014.5 | E28: 2014.5
A29: PEMBINA TRAILS | B29: 0 | C29: =SUM('- 6 -'!B29:H29,B29) -> 14698.7 | E29: 14698.7
A30: PINE CREEK | B30: 42 | C30: =SUM('- 6 -'!B30:H30,B30) -> 1105 | E30: 1105
A31: PORTAGE LA PRAIRIE | B31: 91 | C31: =SUM('- 6 -'!B31:H31,B31) -> 3272 | E31: 3272
A32: PRAIRIE ROSE | B32: 0 | C32: =SUM('- 6 -'!B32:H32,B32) -> 2247.5 | E32: 2247.5
A33: PRAIRIE SPIRIT | B33: 0 | C33: =SUM('- 6 -'!B33:H33,B33) -> 2038 | E33: 2038
A34: RED RIVER VALLEY | B34: 21.5 | C34: =SUM('- 6 -'!B34:H34,B34) -> 2192 | E34: 2192
A35: RIVER EAST TRANSCONA | B35: 682 | C35: =SUM('- 6 -'!B35:H35,B35) -> 16390.5 | E35: 16390.5
A36: ROLLING RIVER | B36: 9.1 | C36: =SUM('- 6 -'!B36:H36,B36) -> 1751 | E36: 1751
A37: SEINE RIVER | B37: 0 | C37: =SUM('- 6 -'!B37:H37,B37) -> 4432 | E37: 4432
A38: SEVEN OAKS | B38: 196.5 | C38: =SUM('- 6 -'!B38:H38,B38) -> 11352.6 | E38: 11352.6
A39: SOUTHWEST HORIZON | B39: 0 | C39: =SUM('- 6 -'!B39:H39,B39) -> 1464.5 | E39: 1464.5
A40: ST. JAMES-ASSINIBOIA | B40: 186.7 | C40: =SUM('- 6 -'!B40:H40,B40) -> 7971.5 | E40: 7971.5
A41: SUNRISE | B41: 0 | C41: =SUM('- 6 -'!B41:H41,B41) -> 4497.5 | E41: 4497.5
A42: SWAN VALLEY | B42: 158.6 | C42: =SUM('- 6 -'!B42:H42,B42) -> 1323.2 | E42: 1323.2
A43: TURTLE MOUNTAIN | B43: 29.4 | C43: =SUM('- 6 -'!B43:H43,B43) -> 1026.5 | E43: 1026.5
A44: TURTLE RIVER | B44: 0 | C44: =SUM('- 6 -'!B44:H44,B44) -> 645 | E44: 645
A45: WESTERN | B45: 30 | C45: =SUM('- 6 -'!B45:H45,B45) -> 1797.5 | E45: 1797.5
A46: WINNIPEG | B46: 698 | C46: =SUM('- 6 -'!B46:H46,B46) -> 27341.5 | E46: 27341.5
A48: PROVINCE | B48: =SUM(B11:B46) -> 4013.43 | C48: =SUM(C11:C46) -> 177044.64 | E48: =SUM(E11:E46) -> 177044.64
A50: WHITESHELL | B50: 0 | C50: =SUM('- 6 -'!B50:H50,B50) -> 197 | E50: =C50 -> 197
A51: MITT | B51: 1936 | C51: =SUM('- 6 -'!B51:H51,B51) -> 2143 | E51: =C51 -> 2143
A53: (1) Special Placement students are no longer reported separately. They are included in Regular Instruction Enrolment. As a result, total enrolment in Regular Instruction is equal to Total K-12 F.T.E. enrolment.

Sheet - 8 -
B2: ENROLMENTS - HEADCOUNT, FRAME AND ELIGIBLE
B3: ACTUAL
B6: HEADCOUNT (1) | E6: FRAME (2) | F6: ELIGIBLE (3) | G6: ELIGIBLE (3)
B7: ="SEPT.30, "&FALLYR -> SEPT.30, 2021 | E7: =B7 -> SEPT.30, 2021 | F7: ="SEPT.30, "&FALLYR-1 -> SEPT.30, 2020 | G7: ="SEPT.30, "&FALLYR-2 -> SEPT.30, 2019
B8: N-12 ENROLMENT | C8: NURSERY ENROLMENT | D8: K-12 ENROLMENT | E8: K-12 F.T.E. ENROLMENT | F8: K-12 ENROLMENT | G8: K-12 ENROLMENT
A9: DIVISION / DISTRICT
A11: BEAUTIFUL PLAINS | B11: 1975 | C11: 0 | D11: 1975 | E11: ='- 7 -'!E11 -> 1897 | F11: 1902 | G11: 1957.3
A12: BORDER LAND | B12: 2051 | C12: 0 | D12: 2051 | E12: ='- 7 -'!E12 -> 1934.36 | F12: 1965.99 | G12: 2093.7
A13: BRANDON | B13: 8800 | C13: 0 | D13: 8800 | E13: ='- 7 -'!E13 -> 8680 | F13: 8501.5 | G13: 8620.8
A14: DSFM | B14: 5834 | C14: 33 | D14: 5801 | E14: ='- 7 -'!E14 -> 5805.29 | F14: 5926.92 | G14: 5512.2
A15: EVERGREEN | B15: 1386 | C15: 0 | D15: 1386 | E15: ='- 7 -'!E15 -> 1438 | F15: 1387 | G15: 1400.8
A16: FLIN FLON | B16: 905 | C16: 0 | D16: 905 | E16: ='- 7 -'!E16 -> 945.5 | F16: 930.6 | G16: 910.1
A17: FORT LA BOSSE | B17: 1437 | C17: 0 | D17: 1437 | E17: ='- 7 -'!E17 -> 1428 | F17: 1453.5 | G17: 1348.7
A18: FRONTIER | B18: 6020 | C18: 0 | D18: 6020 | E18: ='- 7 -'!E18 -> 6171 | F18: 5884 | G18: 2113.5
A19: GARDEN VALLEY | B19: 4100 | C19: 0 | D19: 4100 | E19: ='- 7 -'!E19 -> 3765 | F19: 4370 | G19: 4362.9
A20: HANOVER | B20: 7760 | C20: 0 | D20: 7760 | E20: ='- 7 -'!E20 -> 7754 | F20: 7726 | G20: 8017.5
A21: INTERLAKE | B21: 2921 | C21: 0 | D21: 2921 | E21: ='- 7 -'!E21 -> 2919.5 | F21: 2814 | G21: 2824
A22: KELSEY | B22: 1462 | C22: 0 | D22: 1462 | E22: ='- 7 -'!E22 -> 1449 | F22: 1403 | G22: 1464.5
A23: LAKESHORE | B23: 933 | C23: 0 | D23: 933 | E23: ='- 7 -'!E23 -> 922.5 | F23: 906 | G23: 914.8
A24: LORD SELKIRK | B24: 3757 | C24: 0 | D24: 3757 | E24: ='- 7 -'!E24 -> 3672 | F24: 3622.3 | G24: 3680.8
A25: LOUIS RIEL | B25: 15198 | C25: 0 | D25: 15198 | E25: ='- 7 -'!E25 -> 14942 | F25: 15156.5 | G25: 14713.9
A26: MOUNTAIN VIEW | B26: 3003 | C26: 0 | D26: 3003 | E26: ='- 7 -'!E26 -> 2999.99 | F26: 2959.5 | G26: 2962
A27: MYSTERY LAKE | B27: 2958 | C27: 0 | D27: 2958 | E27: ='- 7 -'!E27 -> 2760.5 | F27: 3016.8 | G27: 2961.7
A28: PARK WEST | B28: 2032 | C28: 25 | D28: 2007 | E28: ='- 7 -'!E28 -> 2014.5 | F28: 1931 | G28: 1487.2
A29: PEMBINA TRAILS | B29: 14740 | C29: 0 | D29: 14740 | E29: ='- 7 -'!E29 -> 14698.7 | F29: 14736.4 | G29: 14142.8
A30: PINE CREEK | B30: 1043 | C30: 0 | D30: 1043 | E30: ='- 7 -'!E30 -> 1105 | F30: 1045 | G30: 1025.5
A31: PORTAGE LA PRAIRIE | B31: 3306 | C31: 0 | D31: 3306 | E31: ='- 7 -'!E31 -> 3272 | F31: 3325 | G31: 3017.1
A32: PRAIRIE ROSE | B32: 2304 | C32: 0 | D32: 2304 | E32: ='- 7 -'!E32 -> 2247.5 | F32: 2323 | G32: 2275.4
A33: PRAIRIE SPIRIT | B33: 2085 | C33: 0 | D33: 2085 | E33: ='- 7 -'!E33 -> 2038 | F33: 2007 | G33: 2010.2
A34: RED RIVER VALLEY | B34: 2242 | C34: 0 | D34: 2242 | E34: ='- 7 -'!E34 -> 2192 | F34: 2169.22 | G34: 2222
A35: RIVER EAST TRANSCONA | B35: 16399 | C35: 0 | D35: 16399 | E35: ='- 7 -'!E35 -> 16390.5 | F35: 16089 | G35: 16052.3
A36: ROLLING RIVER | B36: 1763 | C36: 0 | D36: 1763 | E36: ='- 7 -'!E36 -> 1751 | F36: 1710 | G36: 1621.5
A37: SEINE RIVER | B37: 4258 | C37: 0 | D37: 4258 | E37: ='- 7 -'!E37 -> 4432 | F37: 4311.7 | G37: 4275.4
A38: SEVEN OAKS | B38: 11473 | C38: 0 | D38: 11473 | E38: ='- 7 -'!E38 -> 11352.6 | F38: 11163.9 | G38: 11265.7
A39: SOUTHWEST HORIZON | B39: 1521 | C39: 0 | D39: 1521 | E39: ='- 7 -'!E39 -> 1464.5 | F39: 1504.3 | G39: 1485.7
A40: ST. JAMES-ASSINIBOIA | B40: 8234 | C40: 0 | D40: 8234 | E40: ='- 7 -'!E40 -> 7971.5 | F40: 7962.64 | G40: 8017
A41: SUNRISE | B41: 4497 | C41: 0 | D41: 4497 | E41: ='- 7 -'!E41 -> 4497.5 | F41: 4333.5 | G41: 4474.9
A42: SWAN VALLEY | B42: 1343 | C42: 0 | D42: 1343 | E42: ='- 7 -'!E42 -> 1323.2 | F42: 1299 | G42: 1332.6
A43: TURTLE MOUNTAIN | B43: 1002 | C43: 0 | D43: 1002 | E43: ='- 7 -'!E43 -> 1026.5 | F43: 1015 | G43: 1002.5
A44: TURTLE RIVER | B44: 671 | C44: 2 | D44: 669 | E44: ='- 7 -'!E44 -> 645 | F44: 648 | G44: 688.2
A45: WESTERN | B45: 1870 | C45: 0 | D45: 1870 | E45: ='- 7 -'!E45 -> 1797.5 | F45: 1798 | G45: 1918.4
A46: WINNIPEG | B46: 29595 | C46: 1134 | D46: 28461 | E46: ='- 7 -'!E46 -> 27341.5 | F46: 29225.2 | G46: 29272.1
A48: PROVINCE | B48: =SUM(B11:B46) -> 180878 | C48: 1194 | D48: 179684 | E48: 177044.64 | F48: 178522.47 | G48: 173445.7
A50: WHITESHELL | B50: 200 | C50: 8 | D50: =+B50-C50 -> 192 | E50: ='- 7 -'!E50 -> 197 | F50: 184 | G50: 184
A51: MITT | D51: =+B51-C51 -> 0 | E51: ='- 7 -'!E51 -> 2143 | F51: 1774.1 | G51: 0
A53: (1) Pupils taught in schools, whether or not they are counted for grant purposes.
A54: (2) The total number of pupils enrolled in schools adjusted for full time equivalence (F.T.E.). Full time equivalent means pupils are counted on the basis of time attending school - eg. Kindergarten as 1/2. This total is the same as reported on page 7.
A55: (3) Provincially supported pupils (actual September 30, 2020 for 2021/22 and actual September 30, 2019 for 2020/21). The Whiteshell Special Revenue District includes out-of-district pupils.

Sheet - 9 -
B2: PUPIL / TEACHER RATIOS
B3: =STATDATE -> ACTUAL SEPTEMBER 30, 2021
B7: PUPIL / TEACHER RATIOS
B8: REGULAR INSTRUCTION (1)
A9: DIVISION / DISTRICT | C9: EDUCATOR (2)
A11: BEAUTIFUL PLAINS | B11: 15.87713425 | C11: 13.64944596
A12: BORDER LAND | B12: 11.85425776 | C12: 9.688585474
A13: BRANDON | B13: 16.3776675 | C13: 12.55623544
A14: DSFM | B14: 14.23702668 | C14: 11.41111373
A15: EVERGREEN | B15: 17.04801423 | C15: 13.66920152
A16: FLIN FLON | B16: 14.99603489 | C16: 11.96835443
A17: FORT LA BOSSE | B17: 14.0509692 | C17: 12.16976308
A18: FRONTIER | B18: 13.35049651 | C18: 10.67776374
A19: GARDEN VALLEY | B19: 17.43055556 | C19: 13.8622975
A20: HANOVER | B20: 16.33641985 | C20: 13.26002753
A21: INTERLAKE | B21: 16.04120879 | C21: 12.09654029
A22: KELSEY | B22: 16.11970186 | C22: 12.39839138
A23: LAKESHORE | B23: 14.59651899 | C23: 11.35384615
A24: LORD SELKIRK | B24: 13.92227488 | C24: 11.21221374
A25: LOUIS RIEL | B25: 17.82267972 | C25: 13.79609625
A26: MOUNTAIN VIEW | B26: 16.17943048 | C26: 12.65124615
A27: MYSTERY LAKE | B27: 14.80160858 | C27: 11.79700855
A28: PARK WEST | B28: 14.31006926 | C28: 11.78759508
A29: PEMBINA TRAILS | B29: 18.81240961 | C29: 14.49704609
A30: PINE CREEK | B30: 12.35188911 | C30: 10.49980996
A31: PORTAGE LA PRAIRIE | B31: 15.75652509 | C31: 12.4151015
A32: PRAIRIE ROSE | B32: 14.14678668 | C32: 11.499693
A33: PRAIRIE SPIRIT | B33: 15.04580925 | C33: 12.32969533
A34: RED RIVER VALLEY | B34: 14.93188011 | C34: 11.89107085
A35: RIVER EAST TRANSCONA | B35: 17.12373848 | C35: 13.49367735
A36: ROLLING RIVER | B36: 15.64091112 | C36: 12.93205318
A37: SEINE RIVER | B37: 13.12718441 | C37: 12.39997762
A38: SEVEN OAKS | B38: 16.01551809 | C38: 13.18919547
A39: SOUTHWEST HORIZON | B39: 12.65117484 | C39: 10.88119474
A40: ST. JAMES-ASSINIBOIA | B40: 17.1058561 | C40: 13.0040783
A41: SUNRISE | B41: 15.5278967 | C41: 11.94713773
A42: SWAN VALLEY | B42: 14.66962306 | C42: 11.81850661
A43: TURTLE MOUNTAIN | B43: 15.34838517 | C43: 12.77297331
A44: TURTLE RIVER | B44: 12.50242295 | C44: 10.67704023
A45: WESTERN | B45: 14.52525253 | C45: 12.17406028
A46: WINNIPEG | B46: 15.53485492 | C46: 12.14724281
A48: PROVINCE | B48: 15.84826525 | C48: 12.61195245
A50: WHITESHELL | B50: 11.93939394 | C50: 10.43985162
A51: MITT | B51: 59.03581267 | C51: 50.51862329
A53: (1) Based on object code 330 Instructional-Teaching personnel and F.T.E. students in Function 100. Included are teachers in physical education, music, EAL, etc. in addition to regular classroom teachers. School-based administrative personnel and teachers in Student Support Services (Function 200) are excluded.
A55: (2) Based on total instructional-teaching (excluding Community Education and Adult Learning Centres) as well as school-based administrative staff. eg. department heads, coordinators, principals and vice-principals - and K-12 F.T.E. enrolment. Division administrators (Function 500) are excluded.

Sheet - 10 -
C2: =OPYEAR -> OPERATING FUND 2021/2022 ACTUAL
C5: EXPENSE BY FUNCTION AND OBJECT
C8: OBJECT
D10: EMPLOYEE BENEFITS | F10: SUPPLIES AND MATERIALS | G10: DEBT SERVICES | H10: BAD DEBT EXPENSE
A11: FUNCTION | C11: SALARIES | E11: SERVICES | I11: TRANSFERS | K11: TOTALS
A13: 100 | B13: REGULAR INSTRUCTION | C13: ='- 12 -'!B21 -> 1263962400 | D13: ='- 12 -'!B22 -> 83142606 | E13: ='- 12 -'!B39 -> 31514925 | F13: ='- 12 -'!B45 -> 98339619 | K13: =SUM(C13:F13) -> 1476959550
A14: 200 | B14: STUDENT SUPPORT SERVICES | C14: ='- 12 -'!D21 -> 425950799 | D14: ='- 12 -'!D22 -> 44527456 | E14: ='- 12 -'!D39 -> 10935245 | F14: ='- 12 -'!D45 -> 5205347 | K14: =SUM(C14:F14) -> 486618847
A15: 300 | B15: ADULT LEARNING CENTRES | C15: ='- 12 -'!F21 -> 9927445 | D15: ='- 12 -'!F22 -> 720223 | E15: ='- 12 -'!F39 -> 1144937 | F15: ='- 12 -'!F45 -> 540427 | I15: ='- 12 -'!F47 -> 66650 | J15: (1) | K15: =SUM(C15:F15,I15) -> 12399682
A16: 400 | B16: COMMUNITY EDUCATION & SERVICES | C16: ='- 12 -'!H21 -> 16289439 | D16: ='- 12 -'!H22 -> 1692235 | E16: ='- 12 -'!H39 -> 1990620 | F16: ='- 12 -'!H45 -> 1350298 | I16: ='- 12 -'!H47 -> 33885 | J16: (1) | K16: =SUM(C16:F16,I16) -> 21356477
A17: 500 | B17: DIVISIONAL ADMINISTRATION | C17: ='- 12 -'!J21 -> 52457639 | D17: ='- 12 -'!J22 -> 7532344 | E17: ='- 12 -'!J39 -> 16425670 | F17: ='- 12 -'!J45 -> 2734983 | I17: ='- 12 -'!J47 -> -100535 | J17: (1) | K17: =SUM(C17:F17,I17) -> 79050101
A19: 600 | B19: INSTRUCTIONAL AND OTHER SUPPORT SERVICES | C19: ='- 13 -'!B21 -> 50182405 | D19: ='- 13 -'!B22 -> 5505545 | E19: ='- 13 -'!B39 -> 11263532 | F19: ='- 13 -'!B45 -> 7927948 | K19: =SUM(C19:F19) -> 74879430
A20: 700 | B20: TRANSPORTATION OF PUPILS | C20: ='- 13 -'!D21 -> 50128777 | D20: ='- 13 -'!D22 -> 7802538 | E20: ='- 13 -'!D39 -> 29192484 | F20: ='- 13 -'!D45 -> 22622479 | K20: =SUM(C20:F20) -> 109746278 | L20: - 10 -
A21: 800 | B21: OPERATIONS AND MAINTENANCE | C21: ='- 13 -'!F21 -> 128990121 | D21: ='- 13 -'!F22 -> 22647027 | E21: ='- 13 -'!F39 -> 118194216 | F21: ='- 13 -'!F45 -> 31835647 | I21: ='- 13 -'!F47 -> 0 | K21: =SUM(C21:F21,I21) -> 301667011
A22: 900 | B22: FISCAL | G22: 1863072 | H22: 285973 | I22: 42641705 | J22: (2) | K22: =SUM(G22:I22) -> 44790750
B25: TOTALS | C25: =SUM(C13:C22) -> 1997889025 | D25: =SUM(D13:D22) -> 173569974 | E25: =SUM(E13:E22) -> 220661629 | F25: =SUM(F13:F22) -> 170556748 | G25: =G22 -> 1863072 | H25: =H22 -> 285973 | I25: =SUM(I13:I22) -> 42641705 | K25: =SUM(K13:K22) -> 2607468126 | M25: =K25-'- 3 -'!D48 -> 0
A27: (1) | B27: Reallocation of administration costs associated with Adult Learning Centre operations from Function 500 to Function 300.
A28: (2) | B28: Health and Post Secondary Education Levy

Sheet - 11 -
U29: - 11 -

Sheet - 12 -
D2: =OPYEAR -> OPERATING FUND 2021/2022 ACTUAL | K2: PAGE 1 OF 2
B4: EXPENSE BY 2ND LEVEL OBJECT
B5: AS A PERCENTAGE OF TOTAL OPERATING FUND EXPENSES
B7: FUNCTION
B8: REGULAR INSTRUCTION | D8: STUDENT SUPPORT SERVICES | F8: ADULT LEARNING CENTRES | H8: COMMUNITY EDUCATION | J8: DIVISIONAL ADMINISTRATION
A10: OBJECT | B10: AMOUNT | C10: % | D10: AMOUNT | E10: % | F10: AMOUNT | G10: % | H10: AMOUNT | I10: % | J10: AMOUNT | K10: %
A12: SALARIES
A13: TRUSTEES REMUNERATION | J13: 3905179
A14: EXECUTIVE, MANAGERIAL & SUPERVISORY | B14: 106637163 | C14: =B14/'- 13 -'!$J$53*100 -> 4.089682322 | D14: 7646561 | E14: =D14/'- 13 -'!$J$53*100 -> 0.2932561639 | F14: 1107653 | G14: =F14/'- 13 -'!$J$53*100 -> 0.04248002071 | H14: 621336 | I14: =H14/'- 13 -'!$J$53*100 -> 0.02382909282 | J14: 22596278 | K14: =J14/'- 13 -'!$J$53*100 -> 0.866598436
A15: INSTRUCTIONAL - TEACHING | B15: 1070455248 | C15: =B15/'- 13 -'!$J$53*100 -> 41.0534356 | D15: 179107318 | E15: =D15/'- 13 -'!$J$53*100 -> 6.869012749 | F15: 7671460 | G15: =F15/'- 13 -'!$J$53*100 -> 0.2942110749 | H15: 7660729 | I15: =H15/'- 13 -'!$J$53*100 -> 0.2937995262 | K15: =J15/'- 13 -'!$J$53*100 -> 0
A16: INSTRUCTIONAL - OTHER | B16: 25523646 | C16: =B16/'- 13 -'!$J$53*100 -> 0.9788670375 | D16: 182419022 | E16: =D16/'- 13 -'!$J$53*100 -> 6.996021166 | F16: 383498 | G16: =F16/'- 13 -'!$J$53*100 -> 0.01470767739 | H16: 4802052 | I16: =H16/'- 13 -'!$J$53*100 -> 0.1841653193 | K16: =J16/'- 13 -'!$J$53*100 -> 0
A17: TECHNICAL, SPECIALIZED AND SERVICE | B17: 6977278 | C17: =B17/'- 13 -'!$J$53*100 -> 0.2675882374 | D17: 4874032 | E17: =D17/'- 13 -'!$J$53*100 -> 0.1869258516 | F17: 139389 | G17: =F17/'- 13 -'!$J$53*100 -> 0.005345760457 | H17: 2101329 | I17: =H17/'- 13 -'!$J$53*100 -> 0.08058886623 | J17: 8023525 | K17: =J17/'- 13 -'!$J$53*100 -> 0.3077132533
A18: SECRETARIAL, CLERICAL AND OTHER | B18: 39913006 | C18: =B18/'- 13 -'!$J$53*100 -> 1.530718846 | D18: 2508015 | E18: =D18/'- 13 -'!$J$53*100 -> 0.09618583541 | F18: 625445 | G18: =F18/'- 13 -'!$J$53*100 -> 0.02398667864 | H18: 557580 | I18: =H18/'- 13 -'!$J$53*100 -> 0.02138396226 | J18: 15948708 | K18: =J18/'- 13 -'!$J$53*100 -> 0.6116549553
A19: CLINICIAN | D19: 49248070 | E19: =D19/'- 13 -'!$J$53*100 -> 1.888731429 | H19: 547193
A20: INFORMATION TECHNOLOGY | B20: 14456059 | C20: =B20/'- 13 -'!$J$53*100 -> 0.5544098068 | D20: 147781 | E20: =D20/'- 13 -'!$J$53*100 -> 0.005667605235 | F20: 0 | G20: =F20/'- 13 -'!$J$53*100 -> 0 | H20: -780 | I20: =H20/'- 13 -'!$J$53*100 -> -2.991407612e-05 | J20: 1983949 | K20: =J20/'- 13 -'!$J$53*100 -> 0.07608718129
A21: TOTAL SALARIES | B21: =SUM(B13:B20) -> 1263962400 | C21: =B21/'- 13 -'!$J$53*100 -> 48.47470185 | D21: =SUM(D13:D20) -> 425950799 | E21: =D21/'- 13 -'!$J$53*100 -> 16.3358008 | F21: =SUM(F13:F20) -> 9927445 | G21: =F21/'- 13 -'!$J$53*100 -> 0.3807312121 | H21: =SUM(H13:H20) -> 16289439 | I21: =H21/'- 13 -'!$J$53*100 -> 0.6247224592 | J21: =SUM(J13:J20) -> 52457639 | K21: =J21/'- 13 -'!$J$53*100 -> 2.011822828
A22: EMPLOYEE BENEFITS AND ALLOWANCES | B22: 83142606 | C22: =B22/'- 13 -'!$J$53*100 -> 3.188633647 | D22: 44527456 | E22: =D22/'- 13 -'!$J$53*100 -> 1.707689369 | F22: 720223 | G22: =F22/'- 13 -'!$J$53*100 -> 0.0276215457 | H22: 1692235 | I22: =H22/'- 13 -'!$J$53*100 -> 0.06489954693 | J22: 7532344 | K22: =J22/'- 13 -'!$J$53*100 -> 0.2888757843
A23: SERVICES
A24: PROFESSIONAL, TECHNICAL & SPECIALIZED | B24: 4806581 | C24: =B24/'- 13 -'!$J$53*100 -> 0.1843390127 | D24: 7406633 | E24: =D24/'- 13 -'!$J$53*100 -> 0.284054594 | F24: 47245 | G24: =F24/'- 13 -'!$J$53*100 -> 0.001811910931 | H24: 1016165 | I24: =H24/'- 13 -'!$J$53*100 -> 0.03897132969 | J24: 4465183 | K24: =J24/'- 13 -'!$J$53*100 -> 0.1712459284
A25: COMMUNICATIONS | B25: 3882272 | C25: =B25/'- 13 -'!$J$53*100 -> 0.1488904873 | D25: 266922 | E25: =D25/'- 13 -'!$J$53*100 -> 0.01023682696 | F25: 54437 | G25: =F25/'- 13 -'!$J$53*100 -> 0.002087734053 | H25: 31728 | I25: =H25/'- 13 -'!$J$53*100 -> 0.001216812573 | J25: 887765 | K25: =J25/'- 13 -'!$J$53*100 -> 0.03404701255
A26: UTILITY SERVICES | C26: =B26/'- 13 -'!$J$53*100 -> 0 | E26: =D26/'- 13 -'!$J$53*100 -> 0 | F26: 74489 | G26: =F26/'- 13 -'!$J$53*100 -> 0.002856755918 | I26: =H26/'- 13 -'!$J$53*100 -> 0 | K26: =J26/'- 13 -'!$J$53*100 -> 0
A27: TRAVEL AND MEETINGS | B27: 2017095 | C27: =B27/'- 13 -'!$J$53*100 -> 0.07735837612 | D27: 1563765 | E27: =D27/'- 13 -'!$J$53*100 -> 0.05997254518 | F27: 61451 | G27: =F27/'- 13 -'!$J$53*100 -> 0.00235673063 | H27: 88861 | I27: =H27/'- 13 -'!$J$53*100 -> 0.003407941946 | J27: 1241462 | K27: =J27/'- 13 -'!$J$53*100 -> 0.04761178047 | L27: - 12 -
A28: TRANSPORTATION OF PUPILS | C28: =B28/'- 13 -'!$J$53*100 -> 0 | E28: =D28/'- 13 -'!$J$53*100 -> 0 | G28: =F28/'- 13 -'!$J$53*100 -> 0 | I28: =H28/'- 13 -'!$J$53*100 -> 0 | K28: =J28/'- 13 -'!$J$53*100 -> 0
A29: TUITION | B29: 1123896 | C29: =B29/'- 13 -'!$J$53*100 -> 0.04310296217 | D29: 725620 | E29: =D29/'- 13 -'!$J$53*100 -> 0.02782852809 | F29: 0 | G29: =F29/'- 13 -'!$J$53*100 -> 0 | I29: =H29/'- 13 -'!$J$53*100 -> 0 | K29: =J29/'- 13 -'!$J$53*100 -> 0
A30: PRINTING AND BINDING | B30: 199939 | C30: =B30/'- 13 -'!$J$53*100 -> 0.007667936494 | D30: 18886 | E30: =D30/'- 13 -'!$J$53*100 -> 0.0007243041559 | F30: 5410 | G30: =F30/'- 13 -'!$J$53*100 -> 0.0002074809639 | H30: 3057 | I30: =H30/'- 13 -'!$J$53*100 -> 0.0001172401676 | J30: 58953 | K30: =J30/'- 13 -'!$J$53*100 -> 0.002260928884
A31: INSURANCE AND BOND PREMIUMS | B31: 235438 | C31: =B31/'- 13 -'!$J$53*100 -> 0.00902937212 | D31: 17913 | E31: =D31/'- 13 -'!$J$53*100 -> 0.0006869882635 | F31: 2032 | G31: =F31/'- 13 -'!$J$53*100 -> 7.793000343e-05 | H31: 709 | I31: =H31/'- 13 -'!$J$53*100 -> 2.719112816e-05 | J31: 2553203 | K31: =J31/'- 13 -'!$J$53*100 -> 0.09791885755
A32: MAINTENANCE AND REPAIR SERVICES | B32: 2598500 | C32: =B32/'- 13 -'!$J$53*100 -> 0.09965606 | D32: 64697 | E32: =D32/'- 13 -'!$J$53*100 -> 0.002481219209 | F32: 40864 | G32: =F32/'- 13 -'!$J$53*100 -> 0.001567190778 | H32: 10446 | I32: =H32/'- 13 -'!$J$53*100 -> 0.0004006185117 | J32: 134090 | K32: =J32/'- 13 -'!$J$53*100 -> 0.005142536496
A33: RENTALS | B33: 2919995 | C33: =B33/'- 13 -'!$J$53*100 -> 0.1119858368 | D33: 208588 | E33: =D33/'- 13 -'!$J$53*100 -> 0.007999637576 | F33: 804114 | G33: =F33/'- 13 -'!$J$53*100 -> 0.03083888129 | H33: 798183 | I33: =H33/'- 13 -'!$J$53*100 -> 0.03061141926 | J33: 289911 | K33: =J33/'- 13 -'!$J$53*100 -> 0.01111848682
A34: PROPERTY TAXES | C34: =B34/'- 13 -'!$J$53*100 -> 0 | E34: =D34/'- 13 -'!$J$53*100 -> 0 | F34: 3162 | G34: =F34/'- 13 -'!$J$53*100 -> 0.0001212670624 | I34: =H34/'- 13 -'!$J$53*100 -> 0 | K34: =J34/'- 13 -'!$J$53*100 -> 0
A35: ADVERTISING | B35: 306801 | C35: =B35/'- 13 -'!$J$53*100 -> 0.01176624162 | D35: 18452 | E35: =D35/'- 13 -'!$J$53*100 -> 0.0007076596571 | F35: 18207 | G35: =F35/'- 13 -'!$J$53*100 -> 0.0006982635691 | H35: 15877 | I35: =H35/'- 13 -'!$J$53*100 -> 0.0006089048545 | J35: 455879 | K35: =J35/'- 13 -'!$J$53*100 -> 0.0174835886
A36: DUES AND FEES | B36: 1197675 | C36: =B36/'- 13 -'!$J$53*100 -> 0.04593248861 | D36: 106102 | E36: =D36/'- 13 -'!$J$53*100 -> 0.004069158083 | F36: 295 | G36: =F36/'- 13 -'!$J$53*100 -> 1.131365699e-05 | H36: 4625 | I36: =H36/'- 13 -'!$J$53*100 -> 0.0001773751308 | J36: 2981696 | K36: =J36/'- 13 -'!$J$53*100 -> 0.1143521553
A37: PROFESSIONAL AND STAFF DEVELOPMENT | B37: 250117 | C37: =B37/'- 13 -'!$J$53*100 -> 0.009592332021 | D37: 301972 | E37: =D37/'- 13 -'!$J$53*100 -> 0.01158104281 | F37: 17648 | G37: =F37/'- 13 -'!$J$53*100 -> 0.0006768251479 | H37: 17858 | I37: =H37/'- 13 -'!$J$53*100 -> 0.0006848789376 | J37: 372279 | K37: =J37/'- 13 -'!$J$53*100 -> 0.01427741326
A38: INFORMATION TECHNOLOGY SERVICES | B38: 11976616 | C38: =B38/'- 13 -'!$J$53*100 -> 0.459319747 | D38: 235695 | E38: =D38/'- 13 -'!$J$53*100 -> 0.009039228424 | F38: 15583 | G38: =F38/'- 13 -'!$J$53*100 -> 0.0005976295489 | H38: 3111 | I38: =H38/'- 13 -'!$J$53*100 -> 0.0001193111421 | J38: 2985249 | K38: =J38/'- 13 -'!$J$53*100 -> 0.1144884177
A39: TOTAL SERVICES | B39: =SUM(B24:B38) -> 31514925 | C39: =B39/'- 13 -'!$J$53*100 -> 1.208640853 | D39: =SUM(D24:D38) -> 10935245 | E39: =D39/'- 13 -'!$J$53*100 -> 0.4193817325 | F39: =SUM(F24:F38) -> 1144937 | G39: =F39/'- 13 -'!$J$53*100 -> 0.04390991355 | H39: =SUM(H24:H38) -> 1990620 | I39: =H39/'- 13 -'!$J$53*100 -> 0.07634302334 | J39: =SUM(J24:J38) -> 16425670 | K39: =J39/'- 13 -'!$J$53*100 -> 0.629947106
A40: SUPPLIES AND EQUIPMENT
A41: SUPPLIES | B41: 51831196 | C41: =B41/'- 13 -'!$J$53*100 -> 1.987797875 | D41: 3244966 | E41: =D41/'- 13 -'!$J$53*100 -> 0.124448923 | F41: 276812 | G41: =F41/'- 13 -'!$J$53*100 -> 0.0106161221 | H41: 1078812 | I41: =H41/'- 13 -'!$J$53*100 -> 0.04137392857 | J41: 1323727 | K41: =J41/'- 13 -'!$J$53*100 -> 0.05076675672
A42: CURRICULAR AND MEDIA MATERIALS | B42: 9134747 | C42: =B42/'- 13 -'!$J$53*100 -> 0.3503301501 | D42: 647608 | E42: =D42/'- 13 -'!$J$53*100 -> 0.02483666027 | F42: 67684 | G42: =F42/'- 13 -'!$J$53*100 -> 0.00259577478 | H42: 84673 | I42: =H42/'- 13 -'!$J$53*100 -> 0.003247326368 | J42: 59576 | K42: =J42/'- 13 -'!$J$53*100 -> 0.002284821793
A43: MINOR EQUIPMENT | B43: 12540345 | C43: =B43/'- 13 -'!$J$53*100 -> 0.4809395319 | D43: 597803 | E43: =D43/'- 13 -'!$J$53*100 -> 0.0229265698 | F43: 50206 | G43: =F43/'- 13 -'!$J$53*100 -> 0.001925469366 | H43: 113095 | I43: =H43/'- 13 -'!$J$53*100 -> 0.00433734928 | J43: 106436 | K43: =J43/'- 13 -'!$J$53*100 -> 0.004081967443
A44: INFORMATION TECHNOLOGY EQUIPMENT | B44: 24833331 | C44: =B44/'- 13 -'!$J$53*100 -> 0.9523925049 | D44: 714970 | E44: =D44/'- 13 -'!$J$53*100 -> 0.0274200859 | F44: 145725 | G44: =F44/'- 13 -'!$J$53*100 -> 0.005588754798 | H44: 73718 | I44: =H44/'- 13 -'!$J$53*100 -> 0.002827187004 | J44: 1245244 | K44: =J44/'- 13 -'!$J$53*100 -> 0.04775682539
A45: TOTAL SUPPLIES AND EQUIPMENT | B45: =SUM(B41:B44) -> 98339619 | C45: =B45/'- 13 -'!$J$53*100 -> 3.771460062 | D45: =SUM(D41:D44) -> 5205347 | E45: =D45/'- 13 -'!$J$53*100 -> 0.199632239 | F45: =SUM(F41:F44) -> 540427 | G45: =F45/'- 13 -'!$J$53*100 -> 0.02072612104 | H45: =SUM(H41:H44) -> 1350298 | I45: =H45/'- 13 -'!$J$53*100 -> 0.05178579123 | J45: =SUM(J41:J44) -> 2734983 | K45: =J45/'- 13 -'!$J$53*100 -> 0.1048903713
A46: TRANSFERS
A47: RECHARGE (1) | F47: 66650 | H47: 33885 | J47: -100535
A48: TOTAL TRANSFERS | F48: =F47 -> 66650 | H48: =H47 -> 33885 | J48: =J47 -> -100535
A50: PROVINCE | B50: =SUM(B48,B45,B39,B22,B21) -> 1476959550 | C50: =B50/'- 13 -'!$J$53*100 -> 56.64343642 | D50: =SUM(D48,D45,D39,D22,D21) -> 486618847 | E50: =D50/'- 13 -'!$J$53*100 -> 18.66250414 | F50: =SUM(F48,F45,F39,F22,F21) -> 12399682 | G50: =F50/'- 13 -'!$J$53*100 -> 0.4755449118 | H50: =SUM(H48,H45,H39,H22,H21) -> 21356477 | I50: =H50/'- 13 -'!$J$53*100 -> 0.8190503572 | J50: =SUM(J48,J45,J39,J22,J21) -> 79050101 | K50: =J50/'- 13 -'!$J$53*100 -> 3.031680434
A51: (1) Reallocation of administration costs associated with Adult Learning Centres and Community Education.
B52: =+B50-'- 15 -'!B48 -> 0 | D52: =+D50-'- 15 -'!E48 -> 0 | F52: =+F50-'- 15 -'!H48 -> 0 | H52: =H50-'- 16 -'!B48 -> 0 | J52: =+J50-'- 16 -'!D48 -> 0
F54: =+F50-'- 15 -'!H48 -> 0 | J54: =+J50-'- 16 -'!D48 -> 0

Sheet - 13 -
C2: =OPYEAR -> OPERATING FUND 2021/2022 ACTUAL | K2: PAGE 2 OF 2
B4: EXPENSE BY 2ND LEVEL OBJECT
B5: AS A PERCENTAGE OF TOTAL OPERATING FUND EXPENSES
B7: FUNCTION
B8: INSTRUCTIONAL & OTHER SUPPORT SERVICES | D8: TRANSPORTATION OF PUPILS | F8: OPERATIONS AND MAINTENANCE
H9: FISCAL | J9: TOTAL
A10: OBJECT | B10: AMOUNT | C10: % | D10: AMOUNT | E10: % | F10: AMOUNT | G10: % | H10: AMOUNT | I10: % | J10: AMOUNT | K10: %
A12: SALARIES | M12: SALARIES | N12: =K21/100 -> 0.7662180048
A13: TRUSTEES REMUNERATION | J13: =SUM(F13,D13,B13,'- 12 -'!J13,'- 12 -'!H13,'- 12 -'!F13,'- 12 -'!D13,'- 12 -'!B13) -> 3905179 | K13: =J13/$J$53*100 -> 0.1497690024 | M13: EMPLOYEE BENEFITS | N13: =K22/100 -> 0.06656647967
A14: EXECUTIVE, MANAGERIAL & SUPERVISORY | B14: 4541445 | C14: =B14/$J$53*100 -> 0.1741706813 | D14: 3590659 | E14: =D14/$J$53*100 -> 0.1377067265 | F14: 5685918 | G14: =F14/$J$53*100 -> 0.2180627998 | J14: =SUM(F14,D14,B14,'- 12 -'!J14,'- 12 -'!H14,'- 12 -'!F14,'- 12 -'!D14,'- 12 -'!B14) -> 152427013 | K14: 5.845786243 | M14: SERVICES | N14: =K39/100 -> 0.08462677906
A15: INSTRUCTIONAL - TEACHING | B15: 22843629 | C15: =B15/$J$53*100 -> 0.8760846881 | E15: =D15/$J$53*100 -> 0 | G15: =F15/$J$53*100 -> 0 | J15: =SUM(F15,D15,B15,'- 12 -'!J15,'- 12 -'!H15,'- 12 -'!F15,'- 12 -'!D15,'- 12 -'!B15) -> 1287738384 | K15: 49.38654364 | M15: SUPPLIES & MATERIALS | N15: =K45/100 -> 0.06541086593
A16: INSTRUCTIONAL - OTHER | B16: 15367342 | C16: =B16/$J$53*100 -> 0.5893587671 | D16: 641761 | E16: =D16/$J$53*100 -> 0.02461241975 | G16: =F16/$J$53*100 -> 0 | J16: =SUM(F16,D16,B16,'- 12 -'!J16,'- 12 -'!H16,'- 12 -'!F16,'- 12 -'!D16,'- 12 -'!B16) -> 229137321 | K16: 8.787732387 | M16: DEBT SERVICES | N16: =K48/100 -> 0.0007145138157
A17: TECHNICAL, SPECIALIZED AND SERVICE | B17: 4956619 | C17: =B17/$J$53*100 -> 0.190093177 | D17: 43625937 | E17: =D17/$J$53*100 -> 1.673114872 | F17: 121342951 | G17: =F17/$J$53*100 -> 4.65366958 | J17: =SUM(F17,D17,B17,'- 12 -'!J17,'- 12 -'!H17,'- 12 -'!F17,'- 12 -'!D17,'- 12 -'!B17) -> 192041060 | K17: 7.365039599 | M17: TRANSFERS | N17: =K51/100-N16 -> 0.01646335676
A18: SECRETARIAL, CLERICAL AND OTHER | B18: 2240260 | C18: =B18/$J$53*100 -> 0.08591706175 | D18: 2270420 | E18: =D18/$J$53*100 -> 0.08707373936 | F18: 1961252 | G18: =F18/$J$53*100 -> 0.07521672002 | J18: =SUM(F18,D18,B18,'- 12 -'!J18,'- 12 -'!H18,'- 12 -'!F18,'- 12 -'!D18,'- 12 -'!B18) -> 66024686 | K18: 2.532137798
A19: CLINICIAN | J19: =SUM(F19,D19,B19,'- 12 -'!J19,'- 12 -'!H19,'- 12 -'!F19,'- 12 -'!D19,'- 12 -'!B19) -> 49795263 | K19: 1.909717036 | N19: =SUM(N12:N17) -> 1
A20: INFORMATION TECHNOLOGY | B20: 233110 | C20: =B20/'- 13 -'!$J$53*100 -> 0.008940090108 | D20: 0 | E20: =D20/'- 13 -'!$J$53*100 -> 0 | F20: 0 | G20: =F20/'- 13 -'!$J$53*100 -> 0 | J20: =SUM(F20,D20,B20,'- 12 -'!J20,'- 12 -'!H20,'- 12 -'!F20,'- 12 -'!D20,'- 12 -'!B20) -> 16820119 | K20: 0.6450747694
A21: TOTAL SALARIES | B21: =SUM(B13:B20) -> 50182405 | C21: =B21/$J$53*100 -> 1.924564465 | D21: =SUM(D13:D20) -> 50128777 | E21: =D21/$J$53*100 -> 1.922507758 | F21: =SUM(F13:F20) -> 128990121 | G21: =F21/$J$53*100 -> 4.9469491 | J21: =SUM(F21,D21,B21,'- 12 -'!J21,'- 12 -'!H21,'- 12 -'!F21,'- 12 -'!D21,'- 12 -'!B21) -> 1997889025 | K21: 76.62180048
A22: EMPLOYEE BENEFITS AND ALLOWANCES | B22: 5505545 | C22: =B22/$J$53*100 -> 0.2111452464 | D22: 7802538 | E22: =D22/$J$53*100 -> 0.299238097 | F22: 22647027 | G22: =F22/$J$53*100 -> 0.8685447302 | J22: =SUM(F22,D22,B22,'- 12 -'!J22,'- 12 -'!H22,'- 12 -'!F22,'- 12 -'!D22,'- 12 -'!B22) -> 173569974 | K22: 6.656647967
A23: SERVICES | M23: REGULAR INSTRUCTION | N23: ='- 12 -'!C50/100 -> 0.5664343642 | O23: REGULAR INSTRUCTION
A24: PROFESSIONAL, TECHNICAL & SPECIALIZED | B24: 2498566 | C24: =B24/$J$53*100 -> 0.09582345322 | D24: 435220 | E24: =D24/$J$53*100 -> 0.01669128745 | F24: 6743369 | G24: =F24/$J$53*100 -> 0.2586175046 | J24: =SUM(F24,D24,B24,'- 12 -'!J24,'- 12 -'!H24,'- 12 -'!F24,'- 12 -'!D24,'- 12 -'!B24) -> 27418962 | K24: =J24/$J$53*100 -> 1.051555021 | M24: EXCEPTIONAL | N24: ='- 12 -'!E50/100 -> 0.1866250414 | O24: STUDENT SUPPORT SERVICES
A25: COMMUNICATIONS | B25: 105291 | C25: 0.004038055114 | D25: 321326 | E25: 0.01232329541 | F25: 594869 | G25: 0.02281404686 | J25: =SUM(F25,D25,B25,'- 12 -'!J25,'- 12 -'!H25,'- 12 -'!F25,'- 12 -'!D25,'- 12 -'!B25) -> 6144610 | K25: 0.2356542709 | M25: ADULT LEARNING CENTRES | N25: ='- 12 -'!G50/100 -> 0.004755449118 | O25: ADULT LEARNING CENTRES
A26: UTILITY SERVICES | C26: 0 | E26: 0 | F26: 54302043 | G26: 2.082558266 | J26: =SUM(F26,D26,B26,'- 12 -'!J26,'- 12 -'!H26,'- 12 -'!F26,'- 12 -'!D26,'- 12 -'!B26) -> 54376532 | K26: 2.085415022 | L26: - 13 - | M26: COMMUNITY EDUCATION | N26: ='- 12 -'!I50/100 -> 0.008190503572 | O26: COMMUNITY EDUCATION
A27: TRAVEL AND MEETINGS | B27: 894254 | C27: 0.03429587465 | D27: 886166 | E27: 0.03398568869 | F27: 782227 | G27: 0.02999948464 | J27: =SUM(F27,D27,B27,'- 12 -'!J27,'- 12 -'!H27,'- 12 -'!F27,'- 12 -'!D27,'- 12 -'!B27) -> 7535281 | K27: 0.2889884223 | M27: DIVISIONAL ADMINISTRATION | N27: ='- 12 -'!K50/100 -> 0.03031680434 | O27: DIVISIONAL ADMINISTRATION
A28: TRANSPORTATION OF PUPILS | C28: 0 | D28: 20907897 | E28: 0.8018466953 | G28: 0 | J28: =SUM(F28,D28,B28,'- 12 -'!J28,'- 12 -'!H28,'- 12 -'!F28,'- 12 -'!D28,'- 12 -'!B28) -> 20907897 | K28: 0.8018466953 | M28: INSTRUCTIONAL & PUPIL SUPPORT SERVICES | N28: =C53/100 -> 0.02871729447 | O28: INSTRUCTIONAL & PUPIL SUPPORT SERVICES
A29: TUITION | B29: 16980 | C29: 0.0006512064263 | E29: 0 | G29: 0 | J29: =SUM(F29,D29,B29,'- 12 -'!J29,'- 12 -'!H29,'- 12 -'!F29,'- 12 -'!D29,'- 12 -'!B29) -> 1866496 | K29: 0.07158269669 | M29: TRANSPORTATION OF PUPILS | N29: =E53/100 -> 0.04208921172 | O29: TRANSPORTATION OF PUPILS
A30: PRINTING AND BINDING | B30: 188728 | C30: 0.007237979177 | D30: 7315 | E30: 0.0002805403421 | F30: 3749 | G30: 0.0001437793223 | J30: =SUM(F30,D30,B30,'- 12 -'!J30,'- 12 -'!H30,'- 12 -'!F30,'- 12 -'!D30,'- 12 -'!B30) -> 486037 | K30: 0.01864018951 | M30: OPERATIONS & MAINTENANCE | N30: =G53/100 -> 0.1156934606 | O30: OPERATIONS & MAINTENANCE
A31: INSURANCE AND BOND PREMIUMS | B31: 118720 | C31: 0.004553075791 | D31: 935229 | E31: 0.03586732243 | F31: 11057503 | G31: 0.4240704954 | J31: =SUM(F31,D31,B31,'- 12 -'!J31,'- 12 -'!H31,'- 12 -'!F31,'- 12 -'!D31,'- 12 -'!B31) -> 14920747 | K31: 0.5722312327 | M31: FISCAL | N31: =I53/100 -> 0.01717787058 | O31: FISCAL
A32: MAINTENANCE AND REPAIR SERVICES | B32: 38411 | C32: 0.001473114843 | D32: 3707536 | E32: 0.1421891207 | F32: 35195878 | G32: 1.349810479 | J32: =SUM(F32,D32,B32,'- 12 -'!J32,'- 12 -'!H32,'- 12 -'!F32,'- 12 -'!D32,'- 12 -'!B32) -> 41790422 | K32: 1.602720339
A33: RENTALS | B33: 256434 | C33: 0.009834597687 | D33: 1182790 | E33: 0.04536162832 | F33: 3593525 | G33: 0.1378166415 | J33: =SUM(F33,D33,B33,'- 12 -'!J33,'- 12 -'!H33,'- 12 -'!F33,'- 12 -'!D33,'- 12 -'!B33) -> 10053540 | K33: 0.3855671293 | N33: =SUM(N23:N31) -> 1
A34: PROPERTY TAXES | C34: 0 | E34: 0 | F34: 5175223 | G34: 0.198476942 | J34: =SUM(F34,D34,B34,'- 12 -'!J34,'- 12 -'!H34,'- 12 -'!F34,'- 12 -'!D34,'- 12 -'!B34) -> 5178385 | K34: 0.1985982091
A35: ADVERTISING | B35: 11370 | C35: =B35/J53 -> 4.360551865e-06 | D35: 32631 | E35: =D35/J53 -> 1.251443869e-05 | F35: 31876 | G35: =F35/J53 -> 1.222488577e-05 | J35: =SUM(F35,D35,B35,'- 12 -'!J35,'- 12 -'!H35,'- 12 -'!F35,'- 12 -'!D35,'- 12 -'!B35) -> 891093 | K35: 0.03417464594
A36: DUES AND FEES | B36: 162509 | C36: =B36/$J$53*100 -> 0.006232444354 | D36: 57154 | E36: =D36/$J$53*100 -> 0.002191934752 | F36: 102537 | G36: =F36/$J$53*100 -> 0.003932435414 | J36: =SUM(F36,D36,B36,'- 12 -'!J36,'- 12 -'!H36,'- 12 -'!F36,'- 12 -'!D36,'- 12 -'!B36) -> 4612593 | K36: 0.1768993053
A37: PROFESSIONAL AND STAFF DEVELOPMENT | B37: 6342446 | C37: =B37/'- 13 -'!$J$53*100 -> 0.2432415544 | D37: 135506 | E37: =D37/'- 13 -'!$J$53*100 -> 0.00519684205 | F37: 101547 | G37: =F37/'- 13 -'!$J$53*100 -> 0.003894467548 | J37: =SUM(F37,D37,B37,'- 12 -'!J37,'- 12 -'!H37,'- 12 -'!F37,'- 12 -'!D37,'- 12 -'!B37) -> 7539373 | K37: 0.2891453562
A38: INFORMATION TECHNOLOGY SERVICES | B38: 629823 | C38: =B38/$J$53*100 -> 0.02415458098 | D38: 583714 | E38: =D38/$J$53*100 -> 0.02238623722 | F38: 509870 | G38: =F38/$J$53*100 -> 0.01955421794 | J38: =SUM(F38,D38,B38,'- 12 -'!J38,'- 12 -'!H38,'- 12 -'!F38,'- 12 -'!D38,'- 12 -'!B38) -> 16939661 | K38: 0.64965937
A39: TOTAL SERVICES | B39: =SUM(B24:B38) -> 11263532 | C39: =B39/$J$53*100 -> 0.4319719918 | D39: =SUM(D24:D38) -> 29192484 | E39: =D39/$J$53*100 -> 1.119572037 | F39: =SUM(F24:F38) -> 118194216 | G39: =F39/$J$53*100 -> 4.532911249 | J39: =SUM(F39,D39,B39,'- 12 -'!J39,'- 12 -'!H39,'- 12 -'!F39,'- 12 -'!D39,'- 12 -'!B39) -> 220661629 | K39: 8.462677906
A40: SUPPLIES AND EQUIPMENT
A41: SUPPLIES | B41: 4005744 | C41: =B41/$J$53*100 -> 0.1536258089 | D41: 21606797 | E41: =D41/$J$53*100 -> 0.8286504746 | F41: 27651556 | G41: =F41/$J$53*100 -> 1.060475322 | J41: =SUM(F41,D41,B41,'- 12 -'!J41,'- 12 -'!H41,'- 12 -'!F41,'- 12 -'!D41,'- 12 -'!B41) -> 111019610 | K41: =J41/$J$53*100 -> 4.257755211
A42: CURRICULAR AND MEDIA MATERIALS | B42: 2932218 | C42: =B42/$J$53*100 -> 0.1124546057 | D42: 11646 | E42: =D42/$J$53*100 -> 0.0004466401673 | F42: 133317 | G42: =F42/$J$53*100 -> 0.005112890879 | J42: =SUM(F42,D42,B42,'- 12 -'!J42,'- 12 -'!H42,'- 12 -'!F42,'- 12 -'!D42,'- 12 -'!B42) -> 13071469 | K42: =J42/$J$53*100 -> 0.5013088701
A43: MINOR EQUIPMENT | B43: 395493 | C43: =B43/$J$53*100 -> 0.01516770219 | D43: 694981 | E43: =D43/$J$53*100 -> 0.02665348017 | F43: 3944248 | G43: =F43/$J$53*100 -> 0.1512673524 | J43: =SUM(F43,D43,B43,'- 12 -'!J43,'- 12 -'!H43,'- 12 -'!F43,'- 12 -'!D43,'- 12 -'!B43) -> 18442607 | K43: =J43/$J$53*100 -> 0.7072994226
A44: INFORMATION TECHNOLOGY EQUIPMENT | B44: 594493 | C44: =B44/$J$53*100 -> 0.02279962674 | D44: 309055 | E44: =D44/$J$53*100 -> 0.01185268563 | F44: 106526 | G44: =F44/$J$53*100 -> 0.004085419068 | J44: =SUM(F44,D44,B44,'- 12 -'!J44,'- 12 -'!H44,'- 12 -'!F44,'- 12 -'!D44,'- 12 -'!B44) -> 28023062 | K44: =J44/$J$53*100 -> 1.074723089
A45: TOTAL SUPPLIES AND EQUIPMENT | B45: =SUM(B41:B44) -> 7927948 | C45: =B45/$J$53*100 -> 0.3040477435 | D45: =SUM(D41:D44) -> 22622479 | E45: =D45/$J$53*100 -> 0.8676032805 | F45: =SUM(F41:F44) -> 31835647 | G45: =F45/$J$53*100 -> 1.220940984 | J45: =SUM(F45,D45,B45,'- 12 -'!J45,'- 12 -'!H45,'- 12 -'!F45,'- 12 -'!D45,'- 12 -'!B45) -> 170556748 | K45: =J45/$J$53*100 -> 6.541086593
A46: TRANSFERS
A47: RECHARGE (1) | D47: 0 | F47: 0 | H47: ='- 10 -'!G21 -> 0
A48: DEBT SERVICES | H48: ='- 10 -'!G22 -> 1863072 | I48: =H48/$J$53*100 -> 0.07145138157 | J48: =H48 -> 1863072 | K48: =J48/$J$53*100 -> 0.07145138157
A49: BAD DEBT EXPENSE | H49: ='- 10 -'!H22 -> 285973 | I49: =H49/$J$53*100 -> 0.01096745909 | J49: =H49 -> 285973 | K49: =J49/$J$53*100 -> 0.01096745909
A50: OTHER GOVERNMENT AUTHORITIES | H50: ='- 10 -'!I22 -> 42641705 | I50: =H50/$J$53*100 -> 1.635368217 | J50: =H50 -> 42641705 | K50: =J50/$J$53*100 -> 1.635368217
A51: TOTAL TRANSFERS | F51: =SUM(F47:F50) -> 0 | H51: =SUM(H48:H50) -> 44790750 | I51: =H51/$J$53*100 -> 1.717787058 | J51: =SUM(J47:J50) -> 44790750 | K51: =J51/$J$53*100 -> 1.717787058
A53: PROVINCE | B53: =SUM(B51,B45,B39,B22,B21) -> 74879430 | C53: =B53/$J$53*100 -> 2.871729447 | D53: =SUM(D51,D45,D39,D22,D21) -> 109746278 | E53: =D53/$J$53*100 -> 4.208921172 | F53: =SUM(F51,F45,F39,F22,F21) -> 301667011 | G53: =F53/$J$53*100 -> 11.56934606 | H53: =SUM(H51,H45,H39,H22,H21) -> 44790750 | I53: =H53/$J$53*100 -> 1.717787058 | J53: =SUM(J51,J45,J39,J22,J21) -> 2607468126 | K53: =J53/$J$53*100 -> 100
B54: =+B53-'- 16 -'!G48 -> 0 | D54: =+D53-'- 17 -'!B48 -> 0 | F54: =+F53-'- 17 -'!E48 -> 0 | H54: =+H53-'- 17 -'!H48 -> 0 | J54: =+J53-'- 3 -'!D48 -> 0

Sheet - 14 -
U23: - 14 -

Sheet - 15 -
B2: ANALYSIS OF EXPENSE BY FUNCTION | I2: PAGE 1 OF 3
B3: =OPYEAR -> OPERATING FUND 2021/2022 ACTUAL
E6: STUDENT SUPPORT SERVICES | H6: ADULT LEARNING CENTRES
B7: REGULAR INSTRUCTION
D8: PER PUPIL | G8: PER PUPIL
A9: DIVISION / DISTRICT | B9: AMOUNT | C9: % | E9: AMOUNT | F9: % | H9: AMOUNT | I9: %
A11: BEAUTIFUL PLAINS | B11: =SUM('- 18 -'!B11,'- 18 -'!E11,'- 19 -'!B11,'- 19 -'!E11,'- 19 -'!H11,'- 20 -'!B11) -> 15752972 | C11: =B11/'- 3 -'!D11*100 -> 65.43579202 | D11: =B11/'- 7 -'!C11 -> 8304.14971 | E11: =SUM('- 21 -'!B11,'- 21 -'!E11,'- 21 -'!H11,'- 22 -'!B11,'- 22 -'!E11,'- 22 -'!H11) -> 3048531 | F11: =E11/'- 3 -'!D11*100 -> 12.66320035 | G11: =E11/'- 7 -'!E11 -> 1607.027412 | H11: =SUM('- 23 -'!D11,'- 23 -'!B11) -> 0 | I11: =H11/'- 3 -'!D11*100 -> 0
A12: BORDER LAND | B12: =SUM('- 18 -'!B12,'- 18 -'!E12,'- 19 -'!B12,'- 19 -'!E12,'- 19 -'!H12,'- 20 -'!B12) -> 21059451 | C12: =B12/'- 3 -'!D12*100 -> 59.34591488 | D12: =B12/'- 7 -'!C12 -> 10887.03809 | E12: =SUM('- 21 -'!B12,'- 21 -'!E12,'- 21 -'!H12,'- 22 -'!B12,'- 22 -'!E12,'- 22 -'!H12) -> 5506813 | F12: =E12/'- 3 -'!D12*100 -> 15.51829891 | G12: =E12/'- 7 -'!E12 -> 2846.839782 | H12: =SUM('- 23 -'!D12,'- 23 -'!B12) -> 428550 | I12: =H12/'- 3 -'!D12*100 -> 1.207661673
A13: BRANDON | B13: =SUM('- 18 -'!B13,'- 18 -'!E13,'- 19 -'!B13,'- 19 -'!E13,'- 19 -'!H13,'- 20 -'!B13) -> 69171691 | C13: =B13/'- 3 -'!D13*100 -> 61.41952657 | D13: =B13/'- 7 -'!C13 -> 7969.088825 | E13: =SUM('- 21 -'!B13,'- 21 -'!E13,'- 21 -'!H13,'- 22 -'!B13,'- 22 -'!E13,'- 22 -'!H13) -> 23840951 | F13: =E13/'- 3 -'!D13*100 -> 21.16906356 | G13: =E13/'- 7 -'!E13 -> 2746.653341 | H13: =SUM('- 23 -'!D13,'- 23 -'!B13) -> 0 | I13: =H13/'- 3 -'!D13*100 -> 0
A14: DSFM | B14: =SUM('- 18 -'!B14,'- 18 -'!E14,'- 19 -'!B14,'- 19 -'!E14,'- 19 -'!H14,'- 20 -'!B14) -> 54825675 | C14: =B14/'- 3 -'!D14*100 -> 55.00595647 | D14: =B14/'- 7 -'!C14 -> 9444.088926 | E14: =SUM('- 21 -'!B14,'- 21 -'!E14,'- 21 -'!H14,'- 22 -'!B14,'- 22 -'!E14,'- 22 -'!H14) -> 12929150 | F14: =E14/'- 3 -'!D14*100 -> 12.9716645 | G14: =E14/'- 7 -'!E14 -> 2227.132495 | H14: =SUM('- 23 -'!D14,'- 23 -'!B14) -> 272711 | I14: =H14/'- 3 -'!D14*100 -> 0.2736077467
A15: EVERGREEN | B15: =SUM('- 18 -'!B15,'- 18 -'!E15,'- 19 -'!B15,'- 19 -'!E15,'- 19 -'!H15,'- 20 -'!B15) -> 11631140 | C15: =B15/'- 3 -'!D15*100 -> 53.27549181 | D15: =B15/'- 7 -'!C15 -> 8088.414465 | E15: =SUM('- 21 -'!B15,'- 21 -'!E15,'- 21 -'!H15,'- 22 -'!B15,'- 22 -'!E15,'- 22 -'!H15) -> 3330011 | F15: =E15/'- 3 -'!D15*100 -> 15.25284484 | G15: =E15/'- 7 -'!E15 -> 2315.723922 | H15: =SUM('- 23 -'!D15,'- 23 -'!B15) -> 0 | I15: =H15/'- 3 -'!D15*100 -> 0
A16: FLIN FLON | B16: =SUM('- 18 -'!B16,'- 18 -'!E16,'- 19 -'!B16,'- 19 -'!E16,'- 19 -'!H16,'- 20 -'!B16) -> 9272605 | C16: =B16/'- 3 -'!D16*100 -> 57.6401898 | D16: =B16/'- 7 -'!C16 -> 9807.091486 | E16: =SUM('- 21 -'!B16,'- 21 -'!E16,'- 21 -'!H16,'- 22 -'!B16,'- 22 -'!E16,'- 22 -'!H16) -> 2501252 | F16: =E16/'- 3 -'!D16*100 -> 15.54823483 | G16: =E16/'- 7 -'!E16 -> 2645.427816 | H16: =SUM('- 23 -'!D16,'- 23 -'!B16) -> 98345 | I16: =H16/'- 3 -'!D16*100 -> 0.6113303075
A17: FORT LA BOSSE | B17: =SUM('- 18 -'!B17,'- 18 -'!E17,'- 19 -'!B17,'- 19 -'!E17,'- 19 -'!H17,'- 20 -'!B17) -> 12293133 | C17: =B17/'- 3 -'!D17*100 -> 60.18250479 | D17: =B17/'- 7 -'!C17 -> 8608.636555 | E17: =SUM('- 21 -'!B17,'- 21 -'!E17,'- 21 -'!H17,'- 22 -'!B17,'- 22 -'!E17,'- 22 -'!H17) -> 2480145 | F17: =E17/'- 3 -'!D17*100 -> 12.14184686 | G17: =E17/'- 7 -'!E17 -> 1736.796218 | H17: =SUM('- 23 -'!D17,'- 23 -'!B17) -> 0 | I17: =H17/'- 3 -'!D17*100 -> 0
A18: FRONTIER | B18: =SUM('- 18 -'!B18,'- 18 -'!E18,'- 19 -'!B18,'- 19 -'!E18,'- 19 -'!H18,'- 20 -'!B18) -> 62722001 | C18: =B18/'- 3 -'!D18*100 -> 42.88239465 | D18: =B18/'- 7 -'!C18 -> 10163.99303 | E18: =SUM('- 21 -'!B18,'- 21 -'!E18,'- 21 -'!H18,'- 22 -'!B18,'- 22 -'!E18,'- 22 -'!H18) -> 21466751 | F18: =E18/'- 3 -'!D18*100 -> 14.67659949 | G18: =E18/'- 7 -'!E18 -> 3478.6503 | H18: =SUM('- 23 -'!D18,'- 23 -'!B18) -> 2286269 | I18: =H18/'- 3 -'!D18*100 -> 1.56309888
A19: GARDEN VALLEY | B19: =SUM('- 18 -'!B19,'- 18 -'!E19,'- 19 -'!B19,'- 19 -'!E19,'- 19 -'!H19,'- 20 -'!B19) -> 31709441 | C19: =B19/'- 3 -'!D19*100 -> 59.63004275 | D19: =B19/'- 7 -'!C19 -> 8422.162284 | E19: =SUM('- 21 -'!B19,'- 21 -'!E19,'- 21 -'!H19,'- 22 -'!B19,'- 22 -'!E19,'- 22 -'!H19) -> 9837321 | F19: =E19/'- 3 -'!D19*100 -> 18.49921832 | G19: =E19/'- 7 -'!E19 -> 2612.834263 | H19: =SUM('- 23 -'!D19,'- 23 -'!B19) -> 0 | I19: =H19/'- 3 -'!D19*100 -> 0
A20: HANOVER | B20: =SUM('- 18 -'!B20,'- 18 -'!E20,'- 19 -'!B20,'- 19 -'!E20,'- 19 -'!H20,'- 20 -'!B20) -> 61503565 | C20: =B20/'- 3 -'!D20*100 -> 62.04546137 | D20: =B20/'- 7 -'!C20 -> 7931.850013 | E20: =SUM('- 21 -'!B20,'- 21 -'!E20,'- 21 -'!H20,'- 22 -'!B20,'- 22 -'!E20,'- 22 -'!H20) -> 17035535 | F20: =E20/'- 3 -'!D20*100 -> 17.1856319 | G20: =E20/'- 7 -'!E20 -> 2196.999613 | H20: =SUM('- 23 -'!D20,'- 23 -'!B20) -> 0 | I20: =H20/'- 3 -'!D20*100 -> 0
A21: INTERLAKE | B21: =SUM('- 18 -'!B21,'- 18 -'!E21,'- 19 -'!B21,'- 19 -'!E21,'- 19 -'!H21,'- 20 -'!B21) -> 23559659 | C21: =B21/'- 3 -'!D21*100 -> 57.52947287 | D21: =B21/'- 7 -'!C21 -> 8069.758178 | E21: =SUM('- 21 -'!B21,'- 21 -'!E21,'- 21 -'!H21,'- 22 -'!B21,'- 22 -'!E21,'- 22 -'!H21) -> 7816710 | F21: =E21/'- 3 -'!D21*100 -> 19.08733933 | G21: =E21/'- 7 -'!E21 -> 2677.413941 | H21: =SUM('- 23 -'!D21,'- 23 -'!B21) -> 0 | I21: =H21/'- 3 -'!D21*100 -> 0
A22: KELSEY | B22: =SUM('- 18 -'!B22,'- 18 -'!E22,'- 19 -'!B22,'- 19 -'!E22,'- 19 -'!H22,'- 20 -'!B22) -> 11521424 | C22: =B22/'- 3 -'!D22*100 -> 54.3296845 | D22: =B22/'- 7 -'!C22 -> 7951.293306 | E22: =SUM('- 21 -'!B22,'- 21 -'!E22,'- 21 -'!H22,'- 22 -'!B22,'- 22 -'!E22,'- 22 -'!H22) -> 4249843 | F22: =E22/'- 3 -'!D22*100 -> 20.04028576 | G22: =E22/'- 7 -'!E22 -> 2932.94893 | H22: =SUM('- 23 -'!D22,'- 23 -'!B22) -> 675485 | I22: =H22/'- 3 -'!D22*100 -> 3.185273533
A23: LAKESHORE | B23: =SUM('- 18 -'!B23,'- 18 -'!E23,'- 19 -'!B23,'- 19 -'!E23,'- 19 -'!H23,'- 20 -'!B23) -> 8743753 | C23: =B23/'- 3 -'!D23*100 -> 53.34763421 | D23: =B23/'- 7 -'!C23 -> 9478.323035 | E23: =SUM('- 21 -'!B23,'- 21 -'!E23,'- 21 -'!H23,'- 22 -'!B23,'- 22 -'!E23,'- 22 -'!H23) -> 2737866 | F23: =E23/'- 3 -'!D23*100 -> 16.70434582 | G23: =E23/'- 7 -'!E23 -> 2967.876423 | H23: =SUM('- 23 -'!D23,'- 23 -'!B23) -> 262528 | I23: =H23/'- 3 -'!D23*100 -> 1.601743292
A24: LORD SELKIRK | B24: =SUM('- 18 -'!B24,'- 18 -'!E24,'- 19 -'!B24,'- 19 -'!E24,'- 19 -'!H24,'- 20 -'!B24) -> 37770524 | C24: =B24/'- 3 -'!D24*100 -> 60.54890824 | D24: =B24/'- 7 -'!C24 -> 10286.09041 | E24: =SUM('- 21 -'!B24,'- 21 -'!E24,'- 21 -'!H24,'- 22 -'!B24,'- 22 -'!E24,'- 22 -'!H24) -> 10586947 | F24: =E24/'- 3 -'!D24*100 -> 16.97164917 | G24: =E24/'- 7 -'!E24 -> 2883.155501 | H24: =SUM('- 23 -'!D24,'- 23 -'!B24) -> 397784 | I24: =H24/'- 3 -'!D24*100 -> 0.6376768009
A25: LOUIS RIEL | B25: =SUM('- 18 -'!B25,'- 18 -'!E25,'- 19 -'!B25,'- 19 -'!E25,'- 19 -'!H25,'- 20 -'!B25) -> 115567813 | C25: =B25/'- 3 -'!D25*100 -> 55.4922801 | D25: =B25/'- 7 -'!C25 -> 7734.427319 | E25: =SUM('- 21 -'!B25,'- 21 -'!E25,'- 21 -'!H25,'- 22 -'!B25,'- 22 -'!E25,'- 22 -'!H25) -> 41395540 | F25: =E25/'- 3 -'!D25*100 -> 19.87692629 | G25: =E25/'- 7 -'!E25 -> 2770.414938 | H25: =SUM('- 23 -'!D25,'- 23 -'!B25) -> 890576 | I25: =H25/'- 3 -'!D25*100 -> 0.4276285201
A26: MOUNTAIN VIEW | B26: =SUM('- 18 -'!B26,'- 18 -'!E26,'- 19 -'!B26,'- 19 -'!E26,'- 19 -'!H26,'- 20 -'!B26) -> 25409139 | C26: =B26/'- 3 -'!D26*100 -> 57.18911061 | D26: =B26/'- 7 -'!C26 -> 8469.741232 | E26: =SUM('- 21 -'!B26,'- 21 -'!E26,'- 21 -'!H26,'- 22 -'!B26,'- 22 -'!E26,'- 22 -'!H26) -> 6487405 | F26: =E26/'- 3 -'!D26*100 -> 14.60139685 | G26: =E26/'- 7 -'!E26 -> 2162.475542 | H26: =SUM('- 23 -'!D26,'- 23 -'!B26) -> 0 | I26: =H26/'- 3 -'!D26*100 -> 0
A27: MYSTERY LAKE | B27: =SUM('- 18 -'!B27,'- 18 -'!E27,'- 19 -'!B27,'- 19 -'!E27,'- 19 -'!H27,'- 20 -'!B27) -> 25271307 | C27: =B27/'- 3 -'!D27*100 -> 56.89647941 | D27: =B27/'- 7 -'!C27 -> 9154.612208 | E27: =SUM('- 21 -'!B27,'- 21 -'!E27,'- 21 -'!H27,'- 22 -'!B27,'- 22 -'!E27,'- 22 -'!H27) -> 9076854 | F27: =E27/'- 3 -'!D27*100 -> 20.43586573 | G27: =E27/'- 7 -'!E27 -> 3288.119544 | H27: =SUM('- 23 -'!D27,'- 23 -'!B27) -> 0 | I27: =H27/'- 3 -'!D27*100 -> 0
A28: PARK WEST | B28: =SUM('- 18 -'!B28,'- 18 -'!E28,'- 19 -'!B28,'- 19 -'!E28,'- 19 -'!H28,'- 20 -'!B28) -> 18861887 | C28: =B28/'- 3 -'!D28*100 -> 61.68989864 | D28: =B28/'- 7 -'!C28 -> 9363.061306 | E28: =SUM('- 21 -'!B28,'- 21 -'!E28,'- 21 -'!H28,'- 22 -'!B28,'- 22 -'!E28,'- 22 -'!H28) -> 3695144 | F28: =E28/'- 3 -'!D28*100 -> 12.08537931 | G28: =E28/'- 7 -'!E28 -> 1834.273517 | H28: =SUM('- 23 -'!D28,'- 23 -'!B28) -> 60836 | I28: =H28/'- 3 -'!D28*100 -> 0.1989709022
A29: PEMBINA TRAILS | B29: =SUM('- 18 -'!B29,'- 18 -'!E29,'- 19 -'!B29,'- 19 -'!E29,'- 19 -'!H29,'- 20 -'!B29) -> 104779444 | C29: =B29/'- 3 -'!D29*100 -> 56.60679094 | D29: =B29/'- 7 -'!C29 -> 7128.483743 | E29: =SUM('- 21 -'!B29,'- 21 -'!E29,'- 21 -'!H29,'- 22 -'!B29,'- 22 -'!E29,'- 22 -'!H29) -> 39656798 | F29: =E29/'- 3 -'!D29*100 -> 21.42447018 | G29: =E29/'- 7 -'!E29 -> 2697.979957 | H29: =SUM('- 23 -'!D29,'- 23 -'!B29) -> 0 | I29: =H29/'- 3 -'!D29*100 -> 0
A30: PINE CREEK | B30: =SUM('- 18 -'!B30,'- 18 -'!E30,'- 19 -'!B30,'- 19 -'!E30,'- 19 -'!H30,'- 20 -'!B30) -> 10913205 | C30: =B30/'- 3 -'!D30*100 -> 64.9722657 | D30: =B30/'- 7 -'!C30 -> 9876.20362 | E30: =SUM('- 21 -'!B30,'- 21 -'!E30,'- 21 -'!H30,'- 22 -'!B30,'- 22 -'!E30,'- 22 -'!H30) -> 1482182 | F30: =E30/'- 3 -'!D30*100 -> 8.824238409 | G30: =E30/'- 7 -'!E30 -> 1341.341176 | H30: =SUM('- 23 -'!D30,'- 23 -'!B30) -> 0 | I30: =H30/'- 3 -'!D30*100 -> 0
A31: PORTAGE LA PRAIRIE | B31: =SUM('- 18 -'!B31,'- 18 -'!E31,'- 19 -'!B31,'- 19 -'!E31,'- 19 -'!H31,'- 20 -'!B31) -> 26295812 | C31: =B31/'- 3 -'!D31*100 -> 60.55841401 | D31: =B31/'- 7 -'!C31 -> 8036.617359 | E31: =SUM('- 21 -'!B31,'- 21 -'!E31,'- 21 -'!H31,'- 22 -'!B31,'- 22 -'!E31,'- 22 -'!H31) -> 8013400 | F31: =E31/'- 3 -'!D31*100 -> 18.45460391 | G31: =E31/'- 7 -'!E31 -> 2449.08313 | H31: =SUM('- 23 -'!D31,'- 23 -'!B31) -> 0 | I31: =H31/'- 3 -'!D31*100 -> 0
A32: PRAIRIE ROSE | B32: =SUM('- 18 -'!B32,'- 18 -'!E32,'- 19 -'!B32,'- 19 -'!E32,'- 19 -'!H32,'- 20 -'!B32) -> 20313403 | C32: =B32/'- 3 -'!D32*100 -> 60.44457017 | D32: =B32/'- 7 -'!C32 -> 9038.22158 | E32: =SUM('- 21 -'!B32,'- 21 -'!E32,'- 21 -'!H32,'- 22 -'!B32,'- 22 -'!E32,'- 22 -'!H32) -> 4861861 | F32: =E32/'- 3 -'!D32*100 -> 14.46695556 | G32: =E32/'- 7 -'!E32 -> 2163.230701 | H32: =SUM('- 23 -'!D32,'- 23 -'!B32) -> 301459 | I32: =H32/'- 3 -'!D32*100 -> 0.8970215222
A33: PRAIRIE SPIRIT | B33: =SUM('- 18 -'!B33,'- 18 -'!E33,'- 19 -'!B33,'- 19 -'!E33,'- 19 -'!H33,'- 20 -'!B33) -> 17647476 | C33: =B33/'- 3 -'!D33*100 -> 58.99683875 | D33: =B33/'- 7 -'!C33 -> 8659.212954 | E33: =SUM('- 21 -'!B33,'- 21 -'!E33,'- 21 -'!H33,'- 22 -'!B33,'- 22 -'!E33,'- 22 -'!H33) -> 4217107 | F33: =E33/'- 3 -'!D33*100 -> 14.09810568 | G33: =E33/'- 7 -'!E33 -> 2069.237978 | H33: =SUM('- 23 -'!D33,'- 23 -'!B33) -> 0 | I33: =H33/'- 3 -'!D33*100 -> 0
A34: RED RIVER VALLEY | B34: =SUM('- 18 -'!B34,'- 18 -'!E34,'- 19 -'!B34,'- 19 -'!E34,'- 19 -'!H34,'- 20 -'!B34) -> 19263519 | C34: =B34/'- 3 -'!D34*100 -> 56.90340391 | D34: =B34/'- 7 -'!C34 -> 8788.101734 | E34: =SUM('- 21 -'!B34,'- 21 -'!E34,'- 21 -'!H34,'- 22 -'!B34,'- 22 -'!E34,'- 22 -'!H34) -> 6007002 | F34: =E34/'- 3 -'!D34*100 -> 17.74436234 | G34: =E34/'- 7 -'!E34 -> 2740.42062 | H34: =SUM('- 23 -'!D34,'- 23 -'!B34) -> 0 | I34: =H34/'- 3 -'!D34*100 -> 0
A35: RIVER EAST TRANSCONA | B35: =SUM('- 18 -'!B35,'- 18 -'!E35,'- 19 -'!B35,'- 19 -'!E35,'- 19 -'!H35,'- 20 -'!B35) -> 121606566 | C35: =B35/'- 3 -'!D35*100 -> 56.92217406 | D35: =B35/'- 7 -'!C35 -> 7419.332296 | E35: =SUM('- 21 -'!B35,'- 21 -'!E35,'- 21 -'!H35,'- 22 -'!B35,'- 22 -'!E35,'- 22 -'!H35) -> 42666241 | F35: =E35/'- 3 -'!D35*100 -> 19.971415 | G35: =E35/'- 7 -'!E35 -> 2603.107959 | H35: =SUM('- 23 -'!D35,'- 23 -'!B35) -> 1514014 | I35: =H35/'- 3 -'!D35*100 -> 0.7086868026
A36: ROLLING RIVER | B36: =SUM('- 18 -'!B36,'- 18 -'!E36,'- 19 -'!B36,'- 19 -'!E36,'- 19 -'!H36,'- 20 -'!B36) -> 15505171 | C36: =B36/'- 3 -'!D36*100 -> 59.64544492 | D36: =B36/'- 7 -'!C36 -> 8855.037693 | E36: =SUM('- 21 -'!B36,'- 21 -'!E36,'- 21 -'!H36,'- 22 -'!B36,'- 22 -'!E36,'- 22 -'!H36) -> 3380795 | F36: =E36/'- 3 -'!D36*100 -> 13.00527559 | G36: =E36/'- 7 -'!E36 -> 1930.779555 | H36: =SUM('- 23 -'!D36,'- 23 -'!B36) -> 129814 | I36: =H36/'- 3 -'!D36*100 -> 0.4993697771
A37: SEINE RIVER | B37: =SUM('- 18 -'!B37,'- 18 -'!E37,'- 19 -'!B37,'- 19 -'!E37,'- 19 -'!H37,'- 20 -'!B37) -> 33155751 | C37: =B37/'- 3 -'!D37*100 -> 56.82850835 | D37: =B37/'- 7 -'!C37 -> 7480.990749 | E37: =SUM('- 21 -'!B37,'- 21 -'!E37,'- 21 -'!H37,'- 22 -'!B37,'- 22 -'!E37,'- 22 -'!H37) -> 10783083 | F37: =E37/'- 3 -'!D37*100 -> 18.48205828 | G37: =E37/'- 7 -'!E37 -> 2433.006092 | H37: =SUM('- 23 -'!D37,'- 23 -'!B37) -> 306551 | I37: =H37/'- 3 -'!D37*100 -> 0.5254242639
A38: SEVEN OAKS | B38: =SUM('- 18 -'!B38,'- 18 -'!E38,'- 19 -'!B38,'- 19 -'!E38,'- 19 -'!H38,'- 20 -'!B38) -> 96856659 | C38: =B38/'- 3 -'!D38*100 -> 59.63231549 | D38: =B38/'- 7 -'!C38 -> 8531.671952 | E38: =SUM('- 21 -'!B38,'- 21 -'!E38,'- 21 -'!H38,'- 22 -'!B38,'- 22 -'!E38,'- 22 -'!H38) -> 28542268 | F38: =E38/'- 3 -'!D38*100 -> 17.57278795 | G38: =E38/'- 7 -'!E38 -> 2514.161337 | H38: =SUM('- 23 -'!D38,'- 23 -'!B38) -> 2382557 | I38: =H38/'- 3 -'!D38*100 -> 1.466883043
A39: SOUTHWEST HORIZON | B39: =SUM('- 18 -'!B39,'- 18 -'!E39,'- 19 -'!B39,'- 19 -'!E39,'- 19 -'!H39,'- 20 -'!B39) -> 14191924 | C39: =B39/'- 3 -'!D39*100 -> 58.88675716 | D39: =B39/'- 7 -'!C39 -> 9690.627518 | E39: =SUM('- 21 -'!B39,'- 21 -'!E39,'- 21 -'!H39,'- 22 -'!B39,'- 22 -'!E39,'- 22 -'!H39) -> 3509404 | F39: =E39/'- 3 -'!D39*100 -> 14.56162118 | G39: =E39/'- 7 -'!E39 -> 2396.315466 | H39: =SUM('- 23 -'!D39,'- 23 -'!B39) -> 0 | I39: =H39/'- 3 -'!D39*100 -> 0
A40: ST. JAMES-ASSINIBOIA | B40: =SUM('- 18 -'!B40,'- 18 -'!E40,'- 19 -'!B40,'- 19 -'!E40,'- 19 -'!H40,'- 20 -'!B40) -> 65525657 | C40: =B40/'- 3 -'!D40*100 -> 56.19657536 | D40: =B40/'- 7 -'!C40 -> 8219.990842 | E40: =SUM('- 21 -'!B40,'- 21 -'!E40,'- 21 -'!H40,'- 22 -'!B40,'- 22 -'!E40,'- 22 -'!H40) -> 26442441 | F40: =E40/'- 3 -'!D40*100 -> 22.67775245 | G40: =E40/'- 7 -'!E40 -> 3317.122373 | H40: =SUM('- 23 -'!D40,'- 23 -'!B40) -> 0 | I40: =H40/'- 3 -'!D40*100 -> 0
A41: SUNRISE | B41: =SUM('- 18 -'!B41,'- 18 -'!E41,'- 19 -'!B41,'- 19 -'!E41,'- 19 -'!H41,'- 20 -'!B41) -> 38878273 | C41: =B41/'- 3 -'!D41*100 -> 53.81552702 | D41: =B41/'- 7 -'!C41 -> 8644.418677 | E41: =SUM('- 21 -'!B41,'- 21 -'!E41,'- 21 -'!H41,'- 22 -'!B41,'- 22 -'!E41,'- 22 -'!H41) -> 14755098 | F41: =E41/'- 3 -'!D41*100 -> 20.42409073 | G41: =E41/'- 7 -'!E41 -> 3280.733296 | H41: =SUM('- 23 -'!D41,'- 23 -'!B41) -> 997977 | I41: =H41/'- 3 -'!D41*100 -> 1.38140545
A42: SWAN VALLEY | B42: =SUM('- 18 -'!B42,'- 18 -'!E42,'- 19 -'!B42,'- 19 -'!E42,'- 19 -'!H42,'- 20 -'!B42) -> 12012975 | C42: =B42/'- 3 -'!D42*100 -> 54.90097444 | D42: =B42/'- 7 -'!C42 -> 9078.729595 | E42: =SUM('- 21 -'!B42,'- 21 -'!E42,'- 21 -'!H42,'- 22 -'!B42,'- 22 -'!E42,'- 22 -'!H42) -> 4419742 | F42: =E42/'- 3 -'!D42*100 -> 20.19883855 | G42: =E42/'- 7 -'!E42 -> 3340.191959 | H42: =SUM('- 23 -'!D42,'- 23 -'!B42) -> 0 | I42: =H42/'- 3 -'!D42*100 -> 0
A43: TURTLE MOUNTAIN | B43: =SUM('- 18 -'!B43,'- 18 -'!E43,'- 19 -'!B43,'- 19 -'!E43,'- 19 -'!H43,'- 20 -'!B43) -> 8240698 | C43: =B43/'- 3 -'!D43*100 -> 57.21326674 | D43: =B43/'- 7 -'!C43 -> 8027.957136 | E43: =SUM('- 21 -'!B43,'- 21 -'!E43,'- 21 -'!H43,'- 22 -'!B43,'- 22 -'!E43,'- 22 -'!H43) -> 2576620 | F43: =E43/'- 3 -'!D43*100 -> 17.88887875 | G43: =E43/'- 7 -'!E43 -> 2510.102289 | H43: =SUM('- 23 -'!D43,'- 23 -'!B43) -> 210284 | I43: =H43/'- 3 -'!D43*100 -> 1.459953342
A44: TURTLE RIVER | B44: =SUM('- 18 -'!B44,'- 18 -'!E44,'- 19 -'!B44,'- 19 -'!E44,'- 19 -'!H44,'- 20 -'!B44) -> 7295395 | C44: =B44/'- 3 -'!D44*100 -> 60.83554578 | D44: =B44/'- 7 -'!C44 -> 11310.68992 | E44: =SUM('- 21 -'!B44,'- 21 -'!E44,'- 21 -'!H44,'- 22 -'!B44,'- 22 -'!E44,'- 22 -'!H44) -> 1364224 | F44: =E44/'- 3 -'!D44*100 -> 11.3761231 | G44: =E44/'- 7 -'!E44 -> 2115.075969 | H44: =SUM('- 23 -'!D44,'- 23 -'!B44) -> 0 | I44: =H44/'- 3 -'!D44*100 -> 0
A45: WESTERN | B45: =SUM('- 18 -'!B45,'- 18 -'!E45,'- 19 -'!B45,'- 19 -'!E45,'- 19 -'!H45,'- 20 -'!B45) -> 15516249 | C45: =B45/'- 3 -'!D45*100 -> 64.56295211 | D45: =B45/'- 7 -'!C45 -> 8632.127399 | E45: =SUM('- 21 -'!B45,'- 21 -'!E45,'- 21 -'!H45,'- 22 -'!B45,'- 22 -'!E45,'- 22 -'!H45) -> 3234562 | F45: =E45/'- 3 -'!D45*100 -> 13.45897913 | G45: =E45/'- 7 -'!E45 -> 1799.478164 | H45: =SUM('- 23 -'!D45,'- 23 -'!B45) -> 396918 | I45: =H45/'- 3 -'!D45*100 -> 1.651571706
A46: WINNIPEG | B46: =SUM('- 18 -'!B46,'- 18 -'!E46,'- 19 -'!B46,'- 19 -'!E46,'- 19 -'!H46,'- 20 -'!B46) -> 232314193 | C46: =B46/'- 3 -'!D46*100 -> 55.08398324 | D46: =B46/'- 7 -'!C46 -> 8496.761077 | E46: =SUM('- 21 -'!B46,'- 21 -'!E46,'- 21 -'!H46,'- 22 -'!B46,'- 22 -'!E46,'- 22 -'!H46) -> 92683250 | F46: =E46/'- 3 -'!D46*100 -> 21.97611142 | G46: =E46/'- 7 -'!E46 -> 3389.837792 | H46: =SUM('- 23 -'!D46,'- 23 -'!B46) -> 787024 | I46: =H46/'- 3 -'!D46*100 -> 0.1866111419
A48: PROVINCE | B48: =SUM(B11:B46) -> 1476959550 | C48: =B48/'- 3 -'!D48*100 -> 56.64343642 | D48: =B48/'- 7 -'!C48 -> 8342.300281 | E48: =SUM(E11:E46) -> 486618847 | F48: =E48/'- 3 -'!D48*100 -> 18.66250414 | G48: =E48/'- 7 -'!E48 -> 2748.565825 | H48: =SUM(H11:H46) -> 12399682 | I48: =H48/'- 3 -'!D48*100 -> 0.4755449118
A50: WHITESHELL | B50: =SUM('- 18 -'!B50,'- 18 -'!E50,'- 19 -'!B50,'- 19 -'!E50,'- 19 -'!H50,'- 20 -'!B50) -> 2064334 | C50: =B50/'- 3 -'!D50*100 -> 58.76202413 | D50: =B50/'- 7 -'!C50 -> 10478.85279 | E50: =SUM('- 21 -'!B50,'- 21 -'!E50,'- 21 -'!H50,'- 22 -'!B50,'- 22 -'!E50,'- 22 -'!H50) -> 436510 | F50: =E50/'- 3 -'!D50*100 -> 12.42541718 | G50: =E50/'- 7 -'!E50 -> 2215.786802 | H50: =SUM('- 23 -'!D50,'- 23 -'!B50) -> 0 | I50: =H50/'- 3 -'!D50*100 -> 0
A51: MITT | B51: =SUM('- 18 -'!B51,'- 18 -'!E51,'- 19 -'!B51,'- 19 -'!E51,'- 19 -'!H51,'- 20 -'!B51) -> 6358987 | C51: =B51/'- 3 -'!D51*100 -> 17.87598561 | D51: =B51/'- 7 -'!C51 -> 2967.329445 | E51: =SUM('- 21 -'!B51,'- 21 -'!E51,'- 21 -'!H51,'- 22 -'!B51,'- 22 -'!E51,'- 22 -'!H51) -> 1121594 | F51: =E51/'- 3 -'!D51*100 -> 3.15295474 | G51: =E51/'- 7 -'!E51 -> 523.3756416 | H51: =SUM('- 23 -'!D51,'- 23 -'!B51) -> 2673965 | I51: =H51/'- 3 -'!D51*100 -> 7.516882777

Sheet - 16 -
B2: ANALYSIS OF EXPENSE BY FUNCTION | I2: PAGE 2 OF 3
B3: =OPYEAR -> OPERATING FUND 2021/2022 ACTUAL
B6: COMMUNITY EDUCATION AND SERVICES | D6: DIVISIONAL ADMINISTRATION | G6: INSTRUCTIONAL & OTHER SUPPORT SERVICES
F8: PER PUPIL | I8: PER PUPIL
A9: DIVISION / DISTRICT | B9: AMOUNT | C9: % | D9: AMOUNT | E9: % | G9: AMOUNT | H9: %
A11: BEAUTIFUL PLAINS | B11: =SUM('- 24 -'!H11,'- 24 -'!F11,'- 24 -'!D11,'- 24 -'!B11) -> 21894 | C11: =B11/'- 3 -'!D11*100 -> 0.09094482174 | D11: =SUM('- 25 -'!B11,'- 25 -'!E11,'- 25 -'!H11,'- 26 -'!B11) -> 679404 | E11: =D11/'- 3 -'!D11*100 -> 2.822155644 | F11: =D11/'- 7 -'!E11 -> 358.1465472 | G11: =SUM('- 27 -'!B11,'- 27 -'!E11,'- 27 -'!H11,'- 28 -'!B11,'- 28 -'!E11) -> 482408 | H11: =G11/'- 3 -'!D11*100 -> 2.003859942 | I11: =G11/'- 7 -'!E11 -> 254.3004744
A12: BORDER LAND | B12: =SUM('- 24 -'!H12,'- 24 -'!F12,'- 24 -'!D12,'- 24 -'!B12) -> 42910 | C12: =B12/'- 3 -'!D12*100 -> 0.1209211583 | D12: =SUM('- 25 -'!B12,'- 25 -'!E12,'- 25 -'!H12,'- 26 -'!B12) -> 1045391 | E12: =D12/'- 3 -'!D12*100 -> 2.945930799 | F12: =D12/'- 7 -'!E12 -> 540.4324945 | G12: =SUM('- 27 -'!B12,'- 27 -'!E12,'- 27 -'!H12,'- 28 -'!B12,'- 28 -'!E12) -> 698656 | H12: =G12/'- 3 -'!D12*100 -> 1.96882528 | I12: =G12/'- 7 -'!E12 -> 361.181993
A13: BRANDON | B13: =SUM('- 24 -'!H13,'- 24 -'!F13,'- 24 -'!D13,'- 24 -'!B13) -> 308982 | C13: =B13/'- 3 -'!D13*100 -> 0.2743539717 | D13: =SUM('- 25 -'!B13,'- 25 -'!E13,'- 25 -'!H13,'- 26 -'!B13) -> 2816545 | E13: =D13/'- 3 -'!D13*100 -> 2.500891014 | F13: =D13/'- 7 -'!E13 -> 324.4867512 | G13: =SUM('- 27 -'!B13,'- 27 -'!E13,'- 27 -'!H13,'- 28 -'!B13,'- 28 -'!E13) -> 2171420 | H13: =G13/'- 3 -'!D13*100 -> 1.928066041 | I13: =G13/'- 7 -'!E13 -> 250.1635945
A14: DSFM | B14: =SUM('- 24 -'!H14,'- 24 -'!F14,'- 24 -'!D14,'- 24 -'!B14) -> 1140125 | C14: =B14/'- 3 -'!D14*100 -> 1.143874036 | D14: =SUM('- 25 -'!B14,'- 25 -'!E14,'- 25 -'!H14,'- 26 -'!B14) -> 3114945 | E14: =D14/'- 3 -'!D14*100 -> 3.125187772 | F14: =D14/'- 7 -'!E14 -> 536.5700938 | G14: =SUM('- 27 -'!B14,'- 27 -'!E14,'- 27 -'!H14,'- 28 -'!B14,'- 28 -'!E14) -> 3329945 | H14: =G14/'- 3 -'!D14*100 -> 3.340894749 | I14: =G14/'- 7 -'!E14 -> 573.6052807
A15: EVERGREEN | B15: =SUM('- 24 -'!H15,'- 24 -'!F15,'- 24 -'!D15,'- 24 -'!B15) -> 81597 | C15: =B15/'- 3 -'!D15*100 -> 0.3737484292 | D15: =SUM('- 25 -'!B15,'- 25 -'!E15,'- 25 -'!H15,'- 26 -'!B15) -> 966970 | E15: =D15/'- 3 -'!D15*100 -> 4.429127524 | F15: =D15/'- 7 -'!E15 -> 672.4408901 | G15: =SUM('- 27 -'!B15,'- 27 -'!E15,'- 27 -'!H15,'- 28 -'!B15,'- 28 -'!E15) -> 455797 | H15: =G15/'- 3 -'!D15*100 -> 2.087741128 | I15: =G15/'- 7 -'!E15 -> 316.9659249
A16: FLIN FLON | B16: =SUM('- 24 -'!H16,'- 24 -'!F16,'- 24 -'!D16,'- 24 -'!B16) -> 20690 | C16: =B16/'- 3 -'!D16*100 -> 0.1286127822 | D16: =SUM('- 25 -'!B16,'- 25 -'!E16,'- 25 -'!H16,'- 26 -'!B16) -> 624112 | E16: =D16/'- 3 -'!D16*100 -> 3.879593074 | F16: =D16/'- 7 -'!E16 -> 660.0867266 | G16: =SUM('- 27 -'!B16,'- 27 -'!E16,'- 27 -'!H16,'- 28 -'!B16,'- 28 -'!E16) -> 195101 | H16: =G16/'- 3 -'!D16*100 -> 1.212783104 | I16: =G16/'- 7 -'!E16 -> 206.3469064
A17: FORT LA BOSSE | B17: =SUM('- 24 -'!H17,'- 24 -'!F17,'- 24 -'!D17,'- 24 -'!B17) -> 223714 | C17: =B17/'- 3 -'!D17*100 -> 1.095218678 | D17: =SUM('- 25 -'!B17,'- 25 -'!E17,'- 25 -'!H17,'- 26 -'!B17) -> 770753 | E17: =D17/'- 3 -'!D17*100 -> 3.773313614 | F17: =D17/'- 7 -'!E17 -> 539.7429972 | G17: =SUM('- 27 -'!B17,'- 27 -'!E17,'- 27 -'!H17,'- 28 -'!B17,'- 28 -'!E17) -> 374132 | H17: =G17/'- 3 -'!D17*100 -> 1.831608011 | I17: =G17/'- 7 -'!E17 -> 261.9971989
A18: FRONTIER | B18: =SUM('- 24 -'!H18,'- 24 -'!F18,'- 24 -'!D18,'- 24 -'!B18) -> 2615690 | C18: =B18/'- 3 -'!D18*100 -> 1.78832067 | D18: =SUM('- 25 -'!B18,'- 25 -'!E18,'- 25 -'!H18,'- 26 -'!B18) -> 7630386 | E18: =D18/'- 3 -'!D18*100 -> 5.216817362 | F18: =D18/'- 7 -'!E18 -> 1236.491006 | G18: =SUM('- 27 -'!B18,'- 27 -'!E18,'- 27 -'!H18,'- 28 -'!B18,'- 28 -'!E18) -> 8086304 | H18: =G18/'- 3 -'!D18*100 -> 5.528523865 | I18: =G18/'- 7 -'!E18 -> 1310.371739
A19: GARDEN VALLEY | B19: =SUM('- 24 -'!H19,'- 24 -'!F19,'- 24 -'!D19,'- 24 -'!B19) -> 79604 | C19: =B19/'- 3 -'!D19*100 -> 0.1496964239 | D19: =SUM('- 25 -'!B19,'- 25 -'!E19,'- 25 -'!H19,'- 26 -'!B19) -> 1182600 | E19: =D19/'- 3 -'!D19*100 -> 2.223895671 | F19: =D19/'- 7 -'!E19 -> 314.1035857 | G19: =SUM('- 27 -'!B19,'- 27 -'!E19,'- 27 -'!H19,'- 28 -'!B19,'- 28 -'!E19) -> 1621914 | H19: =G19/'- 3 -'!D19*100 -> 3.050031729 | I19: =G19/'- 7 -'!E19 -> 430.787251
A20: HANOVER | B20: =SUM('- 24 -'!H20,'- 24 -'!F20,'- 24 -'!D20,'- 24 -'!B20) -> 73997 | C20: =B20/'- 3 -'!D20*100 -> 0.07464897369 | D20: =SUM('- 25 -'!B20,'- 25 -'!E20,'- 25 -'!H20,'- 26 -'!B20) -> 2372120 | E20: =D20/'- 3 -'!D20*100 -> 2.393020304 | F20: =D20/'- 7 -'!E20 -> 305.9221047 | G20: =SUM('- 27 -'!B20,'- 27 -'!E20,'- 27 -'!H20,'- 28 -'!B20,'- 28 -'!E20) -> 1672368 | H20: =G20/'- 3 -'!D20*100 -> 1.687102921 | I20: =G20/'- 7 -'!E20 -> 215.6781016
A21: INTERLAKE | B21: =SUM('- 24 -'!H21,'- 24 -'!F21,'- 24 -'!D21,'- 24 -'!B21) -> 0 | C21: =B21/'- 3 -'!D21*100 -> 0 | D21: =SUM('- 25 -'!B21,'- 25 -'!E21,'- 25 -'!H21,'- 26 -'!B21) -> 1342972 | E21: =D21/'- 3 -'!D21*100 -> 3.279354393 | F21: =D21/'- 7 -'!E21 -> 460.000685 | G21: =SUM('- 27 -'!B21,'- 27 -'!E21,'- 27 -'!H21,'- 28 -'!B21,'- 28 -'!E21) -> 991423 | H21: =G21/'- 3 -'!D21*100 -> 2.420919699 | I21: =G21/'- 7 -'!E21 -> 339.586573
A22: KELSEY | B22: =SUM('- 24 -'!H22,'- 24 -'!F22,'- 24 -'!D22,'- 24 -'!B22) -> 50143 | C22: =B22/'- 3 -'!D22*100 -> 0.2364510993 | D22: =SUM('- 25 -'!B22,'- 25 -'!E22,'- 25 -'!H22,'- 26 -'!B22) -> 817354 | E22: =D22/'- 3 -'!D22*100 -> 3.854261847 | F22: =D22/'- 7 -'!E22 -> 564.0814355 | G22: =SUM('- 27 -'!B22,'- 27 -'!E22,'- 27 -'!H22,'- 28 -'!B22,'- 28 -'!E22) -> 334708 | H22: =G22/'- 3 -'!D22*100 -> 1.578327474 | I22: =G22/'- 7 -'!E22 -> 230.9924086
A23: LAKESHORE | B23: =SUM('- 24 -'!H23,'- 24 -'!F23,'- 24 -'!D23,'- 24 -'!B23) -> 183502 | C23: =B23/'- 3 -'!D23*100 -> 1.119587616 | D23: =SUM('- 25 -'!B23,'- 25 -'!E23,'- 25 -'!H23,'- 26 -'!B23) -> 576591 | E23: =D23/'- 3 -'!D23*100 -> 3.51791339 | F23: =D23/'- 7 -'!E23 -> 625.0308943 | G23: =SUM('- 27 -'!B23,'- 27 -'!E23,'- 27 -'!H23,'- 28 -'!B23,'- 28 -'!E23) -> 328375 | H23: =G23/'- 3 -'!D23*100 -> 2.003490879 | I23: =G23/'- 7 -'!E23 -> 355.9620596
A24: LORD SELKIRK | B24: =SUM('- 24 -'!H24,'- 24 -'!F24,'- 24 -'!D24,'- 24 -'!B24) -> 234737 | C24: =B24/'- 3 -'!D24*100 -> 0.3763005531 | D24: =SUM('- 25 -'!B24,'- 25 -'!E24,'- 25 -'!H24,'- 26 -'!B24) -> 1900145 | E24: =D24/'- 3 -'!D24*100 -> 3.046071197 | F24: =D24/'- 7 -'!E24 -> 517.4686819 | G24: =SUM('- 27 -'!B24,'- 27 -'!E24,'- 27 -'!H24,'- 28 -'!B24,'- 28 -'!E24) -> 874323 | H24: =G24/'- 3 -'!D24*100 -> 1.401603618 | I24: =G24/'- 7 -'!E24 -> 238.1053922
A25: LOUIS RIEL | B25: =SUM('- 24 -'!H25,'- 24 -'!F25,'- 24 -'!D25,'- 24 -'!B25) -> 2191375 | C25: =B25/'- 3 -'!D25*100 -> 1.052234114 | D25: =SUM('- 25 -'!B25,'- 25 -'!E25,'- 25 -'!H25,'- 26 -'!B25) -> 6661876 | E25: =D25/'- 3 -'!D25*100 -> 3.198837802 | F25: =D25/'- 7 -'!E25 -> 445.8490162 | G25: =SUM('- 27 -'!B25,'- 27 -'!E25,'- 27 -'!H25,'- 28 -'!B25,'- 28 -'!E25) -> 8742172 | H25: =G25/'- 3 -'!D25*100 -> 4.197735033 | I25: =G25/'- 7 -'!E25 -> 585.0737518
A26: MOUNTAIN VIEW | B26: =SUM('- 24 -'!H26,'- 24 -'!F26,'- 24 -'!D26,'- 24 -'!B26) -> 94784 | C26: =B26/'- 3 -'!D26*100 -> 0.2133331893 | D26: =SUM('- 25 -'!B26,'- 25 -'!E26,'- 25 -'!H26,'- 26 -'!B26) -> 1322681 | E26: =D26/'- 3 -'!D26*100 -> 2.976997765 | F26: =D26/'- 7 -'!E26 -> 440.8951363 | G26: =SUM('- 27 -'!B26,'- 27 -'!E26,'- 27 -'!H26,'- 28 -'!B26,'- 28 -'!E26) -> 1385780 | H26: =G26/'- 3 -'!D26*100 -> 3.119016575 | I26: =G26/'- 7 -'!E26 -> 461.9282064
A27: MYSTERY LAKE | B27: =SUM('- 24 -'!H27,'- 24 -'!F27,'- 24 -'!D27,'- 24 -'!B27) -> 63098 | C27: =B27/'- 3 -'!D27*100 -> 0.1420604822 | D27: =SUM('- 25 -'!B27,'- 25 -'!E27,'- 25 -'!H27,'- 26 -'!B27) -> 1699061 | E27: =D27/'- 3 -'!D27*100 -> 3.82531023 | F27: =D27/'- 7 -'!E27 -> 615.4903097 | G27: =SUM('- 27 -'!B27,'- 27 -'!E27,'- 27 -'!H27,'- 28 -'!B27,'- 28 -'!E27) -> 1612780 | H27: =G27/'- 3 -'!D27*100 -> 3.631054937 | I27: =G27/'- 7 -'!E27 -> 584.2347401
A28: PARK WEST | B28: =SUM('- 24 -'!H28,'- 24 -'!F28,'- 24 -'!D28,'- 24 -'!B28) -> 111681 | C28: =B28/'- 3 -'!D28*100 -> 0.365265128 | D28: =SUM('- 25 -'!B28,'- 25 -'!E28,'- 25 -'!H28,'- 26 -'!B28) -> 997105 | E28: =D28/'- 3 -'!D28*100 -> 3.261142768 | F28: =D28/'- 7 -'!E28 -> 494.9640109 | G28: =SUM('- 27 -'!B28,'- 27 -'!E28,'- 27 -'!H28,'- 28 -'!B28,'- 28 -'!E28) -> 608422 | H28: =G28/'- 3 -'!D28*100 -> 1.9899118 | I28: =G28/'- 7 -'!E28 -> 302.0213452
A29: PEMBINA TRAILS | B29: =SUM('- 24 -'!H29,'- 24 -'!F29,'- 24 -'!D29,'- 24 -'!B29) -> 227966 | C29: =B29/'- 3 -'!D29*100 -> 0.1231579708 | D29: =SUM('- 25 -'!B29,'- 25 -'!E29,'- 25 -'!H29,'- 26 -'!B29) -> 5552939 | E29: =D29/'- 3 -'!D29*100 -> 2.999959201 | F29: =D29/'- 7 -'!E29 -> 377.7843619 | G29: =SUM('- 27 -'!B29,'- 27 -'!E29,'- 27 -'!H29,'- 28 -'!B29,'- 28 -'!E29) -> 6255454 | H29: =G29/'- 3 -'!D29*100 -> 3.379490893 | I29: =G29/'- 7 -'!E29 -> 425.5787246
A30: PINE CREEK | B30: =SUM('- 24 -'!H30,'- 24 -'!F30,'- 24 -'!D30,'- 24 -'!B30) -> 8856 | C30: =B30/'- 3 -'!D30*100 -> 0.05272460153 | D30: =SUM('- 25 -'!B30,'- 25 -'!E30,'- 25 -'!H30,'- 26 -'!B30) -> 582173 | E30: =D30/'- 3 -'!D30*100 -> 3.465993614 | F30: =D30/'- 7 -'!E30 -> 526.8533937 | G30: =SUM('- 27 -'!B30,'- 27 -'!E30,'- 27 -'!H30,'- 28 -'!B30,'- 28 -'!E30) -> 347766 | H30: =G30/'- 3 -'!D30*100 -> 2.070440806 | I30: =G30/'- 7 -'!E30 -> 314.720362
A31: PORTAGE LA PRAIRIE | B31: =SUM('- 24 -'!H31,'- 24 -'!F31,'- 24 -'!D31,'- 24 -'!B31) -> 56019 | C31: =B31/'- 3 -'!D31*100 -> 0.1290099653 | D31: =SUM('- 25 -'!B31,'- 25 -'!E31,'- 25 -'!H31,'- 26 -'!B31) -> 1093280 | E31: =D31/'- 3 -'!D31*100 -> 2.517788873 | F31: =D31/'- 7 -'!E31 -> 334.1320293 | G31: =SUM('- 27 -'!B31,'- 27 -'!E31,'- 27 -'!H31,'- 28 -'!B31,'- 28 -'!E31) -> 1758139 | H31: =G31/'- 3 -'!D31*100 -> 4.048937886 | I31: =G31/'- 7 -'!E31 -> 537.3285452
A32: PRAIRIE ROSE | B32: =SUM('- 24 -'!H32,'- 24 -'!F32,'- 24 -'!D32,'- 24 -'!B32) -> 36015 | C32: =B32/'- 3 -'!D32*100 -> 0.1071662486 | D32: =SUM('- 25 -'!B32,'- 25 -'!E32,'- 25 -'!H32,'- 26 -'!B32) -> 1001053 | E32: =D32/'- 3 -'!D32*100 -> 2.978733711 | F32: =D32/'- 7 -'!E32 -> 445.4073415 | G32: =SUM('- 27 -'!B32,'- 27 -'!E32,'- 27 -'!H32,'- 28 -'!B32,'- 28 -'!E32) -> 690126 | H32: =G32/'- 3 -'!D32*100 -> 2.053539204 | I32: =G32/'- 7 -'!E32 -> 307.0638487
A33: PRAIRIE SPIRIT | B33: =SUM('- 24 -'!H33,'- 24 -'!F33,'- 24 -'!D33,'- 24 -'!B33) -> 37426 | C33: =B33/'- 3 -'!D33*100 -> 0.1251179312 | D33: =SUM('- 25 -'!B33,'- 25 -'!E33,'- 25 -'!H33,'- 26 -'!B33) -> 826876 | E33: =D33/'- 3 -'!D33*100 -> 2.764308621 | F33: =D33/'- 7 -'!E33 -> 405.7291462 | G33: =SUM('- 27 -'!B33,'- 27 -'!E33,'- 27 -'!H33,'- 28 -'!B33,'- 28 -'!E33) -> 619096 | H33: =G33/'- 3 -'!D33*100 -> 2.069684463 | I33: =G33/'- 7 -'!E33 -> 303.7762512
A34: RED RIVER VALLEY | B34: =SUM('- 24 -'!H34,'- 24 -'!F34,'- 24 -'!D34,'- 24 -'!B34) -> 27758 | C34: =B34/'- 3 -'!D34*100 -> 0.08199564606 | D34: =SUM('- 25 -'!B34,'- 25 -'!E34,'- 25 -'!H34,'- 26 -'!B34) -> 1136806 | E34: =D34/'- 3 -'!D34*100 -> 3.358064069 | F34: =D34/'- 7 -'!E34 -> 518.6158759 | G34: =SUM('- 27 -'!B34,'- 27 -'!E34,'- 27 -'!H34,'- 28 -'!B34,'- 28 -'!E34) -> 605490 | H34: =G34/'- 3 -'!D34*100 -> 1.788585047 | I34: =G34/'- 7 -'!E34 -> 276.2271898
A35: RIVER EAST TRANSCONA | B35: =SUM('- 24 -'!H35,'- 24 -'!F35,'- 24 -'!D35,'- 24 -'!B35) -> 1112433 | C35: =B35/'- 3 -'!D35*100 -> 0.5207128771 | D35: =SUM('- 25 -'!B35,'- 25 -'!E35,'- 25 -'!H35,'- 26 -'!B35) -> 6454266 | E35: =D35/'- 3 -'!D35*100 -> 3.021143222 | F35: =D35/'- 7 -'!E35 -> 393.7809097 | G35: =SUM('- 27 -'!B35,'- 27 -'!E35,'- 27 -'!H35,'- 28 -'!B35,'- 28 -'!E35) -> 8207131 | H35: =G35/'- 3 -'!D35*100 -> 3.841632526 | I35: =G35/'- 7 -'!E35 -> 500.7248711
A36: ROLLING RIVER | B36: =SUM('- 24 -'!H36,'- 24 -'!F36,'- 24 -'!D36,'- 24 -'!B36) -> 33742 | C36: =B36/'- 3 -'!D36*100 -> 0.1297990588 | D36: =SUM('- 25 -'!B36,'- 25 -'!E36,'- 25 -'!H36,'- 26 -'!B36) -> 958373 | E36: =D36/'- 3 -'!D36*100 -> 3.686678721 | F36: =D36/'- 7 -'!E36 -> 547.3289549 | G36: =SUM('- 27 -'!B36,'- 27 -'!E36,'- 27 -'!H36,'- 28 -'!B36,'- 28 -'!E36) -> 438165 | H36: =G36/'- 3 -'!D36*100 -> 1.685537449 | I36: =G36/'- 7 -'!E36 -> 250.2370074
A37: SEINE RIVER | B37: =SUM('- 24 -'!H37,'- 24 -'!F37,'- 24 -'!D37,'- 24 -'!B37) -> 610973 | C37: =B37/'- 3 -'!D37*100 -> 1.047199451 | D37: =SUM('- 25 -'!B37,'- 25 -'!E37,'- 25 -'!H37,'- 26 -'!B37) -> 1697530 | E37: =D37/'- 3 -'!D37*100 -> 2.909543439 | F37: =D37/'- 7 -'!E37 -> 383.0166968 | G37: =SUM('- 27 -'!B37,'- 27 -'!E37,'- 27 -'!H37,'- 28 -'!B37,'- 28 -'!E37) -> 1570630 | H37: =G37/'- 3 -'!D37*100 -> 2.692038557 | I37: =G37/'- 7 -'!E37 -> 354.3840253
A38: SEVEN OAKS | B38: =SUM('- 24 -'!H38,'- 24 -'!F38,'- 24 -'!D38,'- 24 -'!B38) -> 3050206 | C38: =B38/'- 3 -'!D38*100 -> 1.877938475 | D38: =SUM('- 25 -'!B38,'- 25 -'!E38,'- 25 -'!H38,'- 26 -'!B38) -> 4290509 | E38: =D38/'- 3 -'!D38*100 -> 2.641563202 | F38: =D38/'- 7 -'!E38 -> 377.9318394 | G38: =SUM('- 27 -'!B38,'- 27 -'!E38,'- 27 -'!H38,'- 28 -'!B38,'- 28 -'!E38) -> 4841716 | H38: =G38/'- 3 -'!D38*100 -> 2.980928095 | I38: =G38/'- 7 -'!E38 -> 426.4852104
A39: SOUTHWEST HORIZON | B39: =SUM('- 24 -'!H39,'- 24 -'!F39,'- 24 -'!D39,'- 24 -'!B39) -> 166963 | C39: =B39/'- 3 -'!D39*100 -> 0.69278201 | D39: =SUM('- 25 -'!B39,'- 25 -'!E39,'- 25 -'!H39,'- 26 -'!B39) -> 798625 | E39: =D39/'- 3 -'!D39*100 -> 3.313746356 | F39: =D39/'- 7 -'!E39 -> 545.3226357 | G39: =SUM('- 27 -'!B39,'- 27 -'!E39,'- 27 -'!H39,'- 28 -'!B39,'- 28 -'!E39) -> 424590 | H39: =G39/'- 3 -'!D39*100 -> 1.761757477 | I39: =G39/'- 7 -'!E39 -> 289.9214749
A40: ST. JAMES-ASSINIBOIA | B40: =SUM('- 24 -'!H40,'- 24 -'!F40,'- 24 -'!D40,'- 24 -'!B40) -> 875137 | C40: =B40/'- 3 -'!D40*100 -> 0.7505411562 | D40: =SUM('- 25 -'!B40,'- 25 -'!E40,'- 25 -'!H40,'- 26 -'!B40) -> 3288039 | E40: =D40/'- 3 -'!D40*100 -> 2.81991116 | F40: =D40/'- 7 -'!E40 -> 412.4743147 | G40: =SUM('- 27 -'!B40,'- 27 -'!E40,'- 27 -'!H40,'- 28 -'!B40,'- 28 -'!E40) -> 3839452 | H40: =G40/'- 3 -'!D40*100 -> 3.29281786 | I40: =G40/'- 7 -'!E40 -> 481.6473688
A41: SUNRISE | B41: =SUM('- 24 -'!H41,'- 24 -'!F41,'- 24 -'!D41,'- 24 -'!B41) -> 69596 | C41: =B41/'- 3 -'!D41*100 -> 0.09633517976 | D41: =SUM('- 25 -'!B41,'- 25 -'!E41,'- 25 -'!H41,'- 26 -'!B41) -> 2086338 | E41: =D41/'- 3 -'!D41*100 -> 2.887920948 | F41: =D41/'- 7 -'!E41 -> 463.8883824 | G41: =SUM('- 27 -'!B41,'- 27 -'!E41,'- 27 -'!H41,'- 28 -'!B41,'- 28 -'!E41) -> 1530788 | H41: =G41/'- 3 -'!D41*100 -> 2.118925472 | I41: =G41/'- 7 -'!E41 -> 340.3642023
A42: SWAN VALLEY | B42: =SUM('- 24 -'!H42,'- 24 -'!F42,'- 24 -'!D42,'- 24 -'!B42) -> 71165 | C42: =B42/'- 3 -'!D42*100 -> 0.3252339946 | D42: =SUM('- 25 -'!B42,'- 25 -'!E42,'- 25 -'!H42,'- 26 -'!B42) -> 673690 | E42: =D42/'- 3 -'!D42*100 -> 3.078857441 | F42: =D42/'- 7 -'!E42 -> 509.1369407 | G42: =SUM('- 27 -'!B42,'- 27 -'!E42,'- 27 -'!H42,'- 28 -'!B42,'- 28 -'!E42) -> 316791 | H42: =G42/'- 3 -'!D42*100 -> 1.447779138 | I42: =G42/'- 7 -'!E42 -> 239.4127872
A43: TURTLE MOUNTAIN | B43: =SUM('- 24 -'!H43,'- 24 -'!F43,'- 24 -'!D43,'- 24 -'!B43) -> 1240 | C43: =B43/'- 3 -'!D43*100 -> 0.008609034182 | D43: =SUM('- 25 -'!B43,'- 25 -'!E43,'- 25 -'!H43,'- 26 -'!B43) -> 485877 | E43: =D43/'- 3 -'!D43*100 -> 3.373332017 | F43: =D43/'- 7 -'!E43 -> 473.3336581 | G43: =SUM('- 27 -'!B43,'- 27 -'!E43,'- 27 -'!H43,'- 28 -'!B43,'- 28 -'!E43) -> 287536 | H43: =G43/'- 3 -'!D43*100 -> 1.996296171 | I43: =G43/'- 7 -'!E43 -> 280.1130054
A44: TURTLE RIVER | B44: =SUM('- 24 -'!H44,'- 24 -'!F44,'- 24 -'!D44,'- 24 -'!B44) -> 27179 | C44: =B44/'- 3 -'!D44*100 -> 0.2266428752 | D44: =SUM('- 25 -'!B44,'- 25 -'!E44,'- 25 -'!H44,'- 26 -'!B44) -> 389759 | E44: =D44/'- 3 -'!D44*100 -> 3.250160065 | F44: =D44/'- 7 -'!E44 -> 604.2775194 | G44: =SUM('- 27 -'!B44,'- 27 -'!E44,'- 27 -'!H44,'- 28 -'!B44,'- 28 -'!E44) -> 204450 | H44: =G44/'- 3 -'!D44*100 -> 1.704887444 | I44: =G44/'- 7 -'!E44 -> 316.9767442
A45: WESTERN | B45: =SUM('- 24 -'!H45,'- 24 -'!F45,'- 24 -'!D45,'- 24 -'!B45) -> 44896 | C45: =B45/'- 3 -'!D45*100 -> 0.1868117931 | D45: =SUM('- 25 -'!B45,'- 25 -'!E45,'- 25 -'!H45,'- 26 -'!B45) -> 824703 | E45: =D45/'- 3 -'!D45*100 -> 3.43158068 | F45: =D45/'- 7 -'!E45 -> 458.8055633 | G45: =SUM('- 27 -'!B45,'- 27 -'!E45,'- 27 -'!H45,'- 28 -'!B45,'- 28 -'!E45) -> 323227 | H45: =G45/'- 3 -'!D45*100 -> 1.344944214 | I45: =G45/'- 7 -'!E45 -> 179.820306
A46: WINNIPEG | B46: =SUM('- 24 -'!H46,'- 24 -'!F46,'- 24 -'!D46,'- 24 -'!B46) -> 7360384 | C46: =B46/'- 3 -'!D46*100 -> 1.745219539 | D46: =SUM('- 25 -'!B46,'- 25 -'!E46,'- 25 -'!H46,'- 26 -'!B46) -> 10388254 | E46: =D46/'- 3 -'!D46*100 -> 2.463157338 | F46: =D46/'- 7 -'!E46 -> 379.9445532 | G46: =SUM('- 27 -'!B46,'- 27 -'!E46,'- 27 -'!H46,'- 28 -'!B46,'- 28 -'!E46) -> 8652855 | H46: =G46/'- 3 -'!D46*100 -> 2.051677143 | I46: =G46/'- 7 -'!E46 -> 316.4733098
A48: PROVINCE | B48: =SUM(B11:B46) -> 21356477 | C48: =B48/'- 3 -'!D48*100 -> 0.8190503572 | D48: =SUM(D11:D46) -> 79050101 | E48: =D48/'- 3 -'!D48*100 -> 3.031680434 | F48: =D48/'- 7 -'!E48 -> 446.4981318 | G48: =SUM(G11:G46) -> 74879430 | H48: =G48/'- 3 -'!D48*100 -> 2.871729447 | I48: =G48/'- 7 -'!E48 -> 422.94096
A50: WHITESHELL | B50: =SUM('- 24 -'!H50,'- 24 -'!F50,'- 24 -'!D50,'- 24 -'!B50) -> 82206 | C50: =B50/'- 3 -'!D50*100 -> 2.340023928 | D50: =SUM('- 25 -'!B50,'- 25 -'!E50,'- 25 -'!H50,'- 26 -'!B50) -> 156296 | E50: =D50/'- 3 -'!D50*100 -> 4.449022941 | F50: =D50/'- 7 -'!E50 -> 793.3807107 | G50: =SUM('- 27 -'!B50,'- 27 -'!E50,'- 27 -'!H50,'- 28 -'!B50,'- 28 -'!E50) -> 102110 | H50: =G50/'- 3 -'!D50*100 -> 2.906598585 | I50: =G50/'- 7 -'!E50 -> 518.3248731
A51: MITT | B51: =SUM('- 24 -'!H51,'- 24 -'!F51,'- 24 -'!D51,'- 24 -'!B51) -> 12125620 | C51: =B51/'- 3 -'!D51*100 -> 34.08678279 | D51: =SUM('- 25 -'!B51,'- 25 -'!E51,'- 25 -'!H51,'- 26 -'!B51) -> 7736052 | E51: =D51/'- 3 -'!D51*100 -> 21.74710441 | F51: =D51/'- 7 -'!E51 -> 3609.916939 | G51: =SUM('- 27 -'!B51,'- 27 -'!E51,'- 27 -'!H51,'- 28 -'!B51,'- 28 -'!E51) -> 472123 | H51: =G51/'- 3 -'!D51*100 -> 1.32720258 | I51: =G51/'- 7 -'!E51 -> 220.3093794

Sheet - 17 -
B2: ANALYSIS OF EXPENSE BY FUNCTION | J2: PAGE 3 OF 3
B3: =OPYEAR -> OPERATING FUND 2021/2022 ACTUAL
B6: TRANSPORTATION OF PUPILS | E6: OPERATIONS AND MAINTENANCE
H7: FISCAL
D8: PER PUPIL | G8: PER PUPIL | J8: PER PUPIL
A9: DIVISION / DISTRICT | B9: AMOUNT | C9: % | E9: AMOUNT | F9: % | H9: AMOUNT | I9: %
A11: BEAUTIFUL PLAINS | B11: =SUM('- 30 -'!D11,'- 30 -'!B11,'- 29 -'!F11,'- 29 -'!D11,'- 29 -'!B11) -> 1360662 | C11: =B11/'- 3 -'!D11*100 -> 5.652012562 | D11: =B11/'- 7 -'!E11 -> 717.270427 | E11: =SUM('- 32 -'!D11,'- 32 -'!B11,'- 31 -'!F11,'- 31 -'!D11,'- 31 -'!B11) -> 2325786 | F11: =E11/'- 3 -'!D11*100 -> 9.661011838 | G11: =E11/'- 7 -'!E11 -> 1226.033737 | H11: =SUM('- 33 -'!B11,'- 33 -'!D11,'- 33 -'!F11) -> 402281 | I11: =H11/'- 3 -'!D11*100 -> 1.67102283 | J11: =H11/'- 7 -'!E11 -> 212.0616763
A12: BORDER LAND | B12: =SUM('- 30 -'!D12,'- 30 -'!B12,'- 29 -'!F12,'- 29 -'!D12,'- 29 -'!B12) -> 2374299 | C12: =B12/'- 3 -'!D12*100 -> 6.690817646 | D12: =B12/'- 7 -'!E12 -> 1227.43388 | E12: =SUM('- 32 -'!D12,'- 32 -'!B12,'- 31 -'!F12,'- 31 -'!D12,'- 31 -'!B12) -> 3725957 | F12: =E12/'- 3 -'!D12*100 -> 10.49981441 | G12: =E12/'- 7 -'!E12 -> 1926.196261 | H12: =SUM('- 33 -'!B12,'- 33 -'!D12,'- 33 -'!F12) -> 603905 | I12: =H12/'- 3 -'!D12*100 -> 1.701815243 | J12: =H12/'- 7 -'!E12 -> 312.1988668
A13: BRANDON | B13: =SUM('- 30 -'!D13,'- 30 -'!B13,'- 29 -'!F13,'- 29 -'!D13,'- 29 -'!B13) -> 2449717 | C13: =B13/'- 3 -'!D13*100 -> 2.175173921 | D13: =B13/'- 7 -'!E13 -> 282.2254608 | E13: =SUM('- 32 -'!D13,'- 32 -'!B13,'- 31 -'!F13,'- 31 -'!D13,'- 31 -'!B13) -> 9934660 | F13: =E13/'- 3 -'!D13*100 -> 8.821269294 | G13: =E13/'- 7 -'!E13 -> 1144.546083 | H13: =SUM('- 33 -'!B13,'- 33 -'!D13,'- 33 -'!F13) -> 1927695 | I13: =H13/'- 3 -'!D13*100 -> 1.711655629 | J13: =H13/'- 7 -'!E13 -> 222.0846774
A14: DSFM | B14: =SUM('- 30 -'!D14,'- 30 -'!B14,'- 29 -'!F14,'- 29 -'!D14,'- 29 -'!B14) -> 10490484 | C14: =B14/'- 3 -'!D14*100 -> 10.52497952 | D14: =B14/'- 7 -'!E14 -> 1807.055978 | E14: =SUM('- 32 -'!D14,'- 32 -'!B14,'- 31 -'!F14,'- 31 -'!D14,'- 31 -'!B14) -> 12062903 | F14: =E14/'- 3 -'!D14*100 -> 12.10256905 | G14: =E14/'- 7 -'!E14 -> 2077.91566 | H14: =SUM('- 33 -'!B14,'- 33 -'!D14,'- 33 -'!F14) -> 1506313 | I14: =H14/'- 3 -'!D14*100 -> 1.51126616 | J14: =H14/'- 7 -'!E14 -> 259.4724811
A15: EVERGREEN | B15: =SUM('- 30 -'!D15,'- 30 -'!B15,'- 29 -'!F15,'- 29 -'!D15,'- 29 -'!B15) -> 1674804 | C15: =B15/'- 3 -'!D15*100 -> 7.671303654 | D15: =B15/'- 7 -'!E15 -> 1164.675939 | E15: =SUM('- 32 -'!D15,'- 32 -'!B15,'- 31 -'!F15,'- 31 -'!D15,'- 31 -'!B15) -> 3071520 | F15: =E15/'- 3 -'!D15*100 -> 14.06884782 | G15: =E15/'- 7 -'!E15 -> 2135.96662 | H15: =SUM('- 33 -'!B15,'- 33 -'!D15,'- 33 -'!F15) -> 620226 | I15: =H15/'- 3 -'!D15*100 -> 2.840894803 | J15: =H15/'- 7 -'!E15 -> 431.3115438
A16: FLIN FLON | B16: =SUM('- 30 -'!D16,'- 30 -'!B16,'- 29 -'!F16,'- 29 -'!D16,'- 29 -'!B16) -> 455640 | C16: =B16/'- 3 -'!D16*100 -> 2.832340651 | D16: =B16/'- 7 -'!E16 -> 481.9037546 | E16: =SUM('- 32 -'!D16,'- 32 -'!B16,'- 31 -'!F16,'- 31 -'!D16,'- 31 -'!B16) -> 2654785 | F16: =E16/'- 3 -'!D16*100 -> 16.50262373 | G16: =E16/'- 7 -'!E16 -> 2807.810682 | H16: =SUM('- 33 -'!B16,'- 33 -'!D16,'- 33 -'!F16) -> 264518 | I16: =H16/'- 3 -'!D16*100 -> 1.644291731 | J16: =H16/'- 7 -'!E16 -> 279.7652036
A17: FORT LA BOSSE | B17: =SUM('- 30 -'!D17,'- 30 -'!B17,'- 29 -'!F17,'- 29 -'!D17,'- 29 -'!B17) -> 1792594 | C17: =B17/'- 3 -'!D17*100 -> 8.775858602 | D17: =B17/'- 7 -'!E17 -> 1255.317927 | E17: =SUM('- 32 -'!D17,'- 32 -'!B17,'- 31 -'!F17,'- 31 -'!D17,'- 31 -'!B17) -> 2108802 | F17: =E17/'- 3 -'!D17*100 -> 10.32389273 | G17: =E17/'- 7 -'!E17 -> 1476.752101 | H17: =SUM('- 33 -'!B17,'- 33 -'!D17,'- 33 -'!F17) -> 383150 | I17: =H17/'- 3 -'!D17*100 -> 1.87575671 | J17: =H17/'- 7 -'!E17 -> 268.3123249
A18: FRONTIER | B18: =SUM('- 30 -'!D18,'- 30 -'!B18,'- 29 -'!F18,'- 29 -'!D18,'- 29 -'!B18) -> 11754594 | C18: =B18/'- 3 -'!D18*100 -> 8.036496457 | D18: =B18/'- 7 -'!E18 -> 1904.811862 | E18: =SUM('- 32 -'!D18,'- 32 -'!B18,'- 31 -'!F18,'- 31 -'!D18,'- 31 -'!B18) -> 28184700 | F18: =E18/'- 3 -'!D18*100 -> 19.26959295 | G18: =E18/'- 7 -'!E18 -> 4567.28245 | H18: =SUM('- 33 -'!B18,'- 33 -'!D18,'- 33 -'!F18) -> 1518460 | I18: =H18/'- 3 -'!D18*100 -> 1.03815567 | J18: =H18/'- 7 -'!E18 -> 246.063847
A19: GARDEN VALLEY | B19: =SUM('- 30 -'!D19,'- 30 -'!B19,'- 29 -'!F19,'- 29 -'!D19,'- 29 -'!B19) -> 2716869 | C19: =B19/'- 3 -'!D19*100 -> 5.109109764 | D19: =B19/'- 7 -'!E19 -> 721.6119522 | E19: =SUM('- 32 -'!D19,'- 32 -'!B19,'- 31 -'!F19,'- 31 -'!D19,'- 31 -'!B19) -> 5137250 | F19: =E19/'- 3 -'!D19*100 -> 9.660669739 | G19: =E19/'- 7 -'!E19 -> 1364.475432 | H19: =SUM('- 33 -'!B19,'- 33 -'!D19,'- 33 -'!F19) -> 891956 | I19: =H19/'- 3 -'!D19*100 -> 1.677335605 | J19: =H19/'- 7 -'!E19 -> 236.9073041
A20: HANOVER | B20: =SUM('- 30 -'!D20,'- 30 -'!B20,'- 29 -'!F20,'- 29 -'!D20,'- 29 -'!B20) -> 4090543 | C20: =B20/'- 3 -'!D20*100 -> 4.126584007 | D20: =B20/'- 7 -'!E20 -> 527.5397214 | E20: =SUM('- 32 -'!D20,'- 32 -'!B20,'- 31 -'!F20,'- 31 -'!D20,'- 31 -'!B20) -> 10648110 | F20: =E20/'- 3 -'!D20*100 -> 10.7419285 | G20: =E20/'- 7 -'!E20 -> 1373.240908 | H20: =SUM('- 33 -'!B20,'- 33 -'!D20,'- 33 -'!F20) -> 1730376 | I20: =H20/'- 3 -'!D20*100 -> 1.745622018 | J20: =H20/'- 7 -'!E20 -> 223.1591437
A21: INTERLAKE | B21: =SUM('- 30 -'!D21,'- 30 -'!B21,'- 29 -'!F21,'- 29 -'!D21,'- 29 -'!B21) -> 2465683 | C21: =B21/'- 3 -'!D21*100 -> 6.020861475 | D21: =B21/'- 7 -'!E21 -> 844.5566022 | E21: =SUM('- 32 -'!D21,'- 32 -'!B21,'- 31 -'!F21,'- 31 -'!D21,'- 31 -'!B21) -> 4067774 | F21: =E21/'- 3 -'!D21*100 -> 9.932949113 | G21: =E21/'- 7 -'!E21 -> 1393.311868 | H21: =SUM('- 33 -'!B21,'- 33 -'!D21,'- 33 -'!F21) -> 708108 | I21: =H21/'- 3 -'!D21*100 -> 1.729103124 | J21: =H21/'- 7 -'!E21 -> 242.5442713
A22: KELSEY | B22: =SUM('- 30 -'!D22,'- 30 -'!B22,'- 29 -'!F22,'- 29 -'!D22,'- 29 -'!B22) -> 528058 | C22: =B22/'- 3 -'!D22*100 -> 2.490076273 | D22: =B22/'- 7 -'!E22 -> 364.4292616 | E22: =SUM('- 32 -'!D22,'- 32 -'!B22,'- 31 -'!F22,'- 31 -'!D22,'- 31 -'!B22) -> 2649725 | F22: =E22/'- 3 -'!D22*100 -> 12.49487244 | G22: =E22/'- 7 -'!E22 -> 1828.657695 | H22: =SUM('- 33 -'!B22,'- 33 -'!D22,'- 33 -'!F22) -> 379759 | I22: =H22/'- 3 -'!D22*100 -> 1.790767066 | J22: =H22/'- 7 -'!E22 -> 262.0835059
A23: LAKESHORE | B23: =SUM('- 30 -'!D23,'- 30 -'!B23,'- 29 -'!F23,'- 29 -'!D23,'- 29 -'!B23) -> 1636159 | C23: =B23/'- 3 -'!D23*100 -> 9.982579773 | D23: =B23/'- 7 -'!E23 -> 1773.614092 | E23: =SUM('- 32 -'!D23,'- 32 -'!B23,'- 31 -'!F23,'- 31 -'!D23,'- 31 -'!B23) -> 1661683 | F23: =E23/'- 3 -'!D23*100 -> 10.13830753 | G23: =E23/'- 7 -'!E23 -> 1801.282385 | H23: =SUM('- 33 -'!B23,'- 33 -'!D23,'- 33 -'!F23) -> 259685 | I23: =H23/'- 3 -'!D23*100 -> 1.584397499 | J23: =H23/'- 7 -'!E23 -> 281.501355
A24: LORD SELKIRK | B24: =SUM('- 30 -'!D24,'- 30 -'!B24,'- 29 -'!F24,'- 29 -'!D24,'- 29 -'!B24) -> 2736264 | C24: =B24/'- 3 -'!D24*100 -> 4.386431013 | D24: =B24/'- 7 -'!E24 -> 745.1699346 | E24: =SUM('- 32 -'!D24,'- 32 -'!B24,'- 31 -'!F24,'- 31 -'!D24,'- 31 -'!B24) -> 6788812 | F24: =E24/'- 3 -'!D24*100 -> 10.8829614 | G24: =E24/'- 7 -'!E24 -> 1848.805011 | H24: =SUM('- 33 -'!B24,'- 33 -'!D24,'- 33 -'!F24) -> 1090654 | I24: =H24/'- 3 -'!D24*100 -> 1.748398009 | J24: =H24/'- 7 -'!E24 -> 297.0190632
A25: LOUIS RIEL | B25: =SUM('- 30 -'!D25,'- 30 -'!B25,'- 29 -'!F25,'- 29 -'!D25,'- 29 -'!B25) -> 5270071 | C25: =B25/'- 3 -'!D25*100 -> 2.530533792 | D25: =B25/'- 7 -'!E25 -> 352.7018471 | E25: =SUM('- 32 -'!D25,'- 32 -'!B25,'- 31 -'!F25,'- 31 -'!D25,'- 31 -'!B25) -> 23912955 | F25: =E25/'- 3 -'!D25*100 -> 11.48230084 | G25: =E25/'- 7 -'!E25 -> 1600.385156 | H25: =SUM('- 33 -'!B25,'- 33 -'!D25,'- 33 -'!F25) -> 3626884 | I25: =H25/'- 3 -'!D25*100 -> 1.741523505 | J25: =H25/'- 7 -'!E25 -> 242.7308259
A26: MOUNTAIN VIEW | B26: =SUM('- 30 -'!D26,'- 30 -'!B26,'- 29 -'!F26,'- 29 -'!D26,'- 29 -'!B26) -> 2945550 | C26: =B26/'- 3 -'!D26*100 -> 6.629637657 | D26: =B26/'- 7 -'!E26 -> 981.8532728 | E26: =SUM('- 32 -'!D26,'- 32 -'!B26,'- 31 -'!F26,'- 31 -'!D26,'- 31 -'!B26) -> 6015212 | F26: =E26/'- 3 -'!D26*100 -> 13.53861791 | G26: =E26/'- 7 -'!E26 -> 2005.07735 | H26: =SUM('- 33 -'!B26,'- 33 -'!D26,'- 33 -'!F26) -> 769479 | I26: =H26/'- 3 -'!D26*100 -> 1.731889445 | J26: =H26/'- 7 -'!E26 -> 256.493855
A27: MYSTERY LAKE | B27: =SUM('- 30 -'!D27,'- 30 -'!B27,'- 29 -'!F27,'- 29 -'!D27,'- 29 -'!B27) -> 307454 | C27: =B27/'- 3 -'!D27*100 -> 0.692209951 | D27: =B27/'- 7 -'!E27 -> 111.3762 | E27: =SUM('- 32 -'!D27,'- 32 -'!B27,'- 31 -'!F27,'- 31 -'!D27,'- 31 -'!B27) -> 5618277 | F27: =E27/'- 3 -'!D27*100 -> 12.64913531 | G27: =E27/'- 7 -'!E27 -> 2035.238906 | H27: =SUM('- 33 -'!B27,'- 33 -'!D27,'- 33 -'!F27) -> 767462 | I27: =H27/'- 3 -'!D27*100 -> 1.727883955 | J27: =H27/'- 7 -'!E27 -> 278.0155769
A28: PARK WEST | B28: =SUM('- 30 -'!D28,'- 30 -'!B28,'- 29 -'!F28,'- 29 -'!D28,'- 29 -'!B28) -> 1915407 | C28: =B28/'- 3 -'!D28*100 -> 6.264551562 | D28: =B28/'- 7 -'!E28 -> 950.8101266 | E28: =SUM('- 32 -'!D28,'- 32 -'!B28,'- 31 -'!F28,'- 31 -'!D28,'- 31 -'!B28) -> 3841365 | F28: =E28/'- 3 -'!D28*100 -> 12.56361134 | G28: =E28/'- 7 -'!E28 -> 1906.857781 | H28: =SUM('- 33 -'!B28,'- 33 -'!D28,'- 33 -'!F28) -> 483478 | I28: =H28/'- 3 -'!D28*100 -> 1.581268556 | J28: =H28/'- 7 -'!E28 -> 239.9990072
A29: PEMBINA TRAILS | B29: =SUM('- 30 -'!D29,'- 30 -'!B29,'- 29 -'!F29,'- 29 -'!D29,'- 29 -'!B29) -> 3651989 | C29: =B29/'- 3 -'!D29*100 -> 1.972976473 | D29: =B29/'- 7 -'!E29 -> 248.4565982 | E29: =SUM('- 32 -'!D29,'- 32 -'!B29,'- 31 -'!F29,'- 31 -'!D29,'- 31 -'!B29) -> 21560793 | F29: =E29/'- 3 -'!D29*100 -> 11.64815593 | G29: =E29/'- 7 -'!E29 -> 1466.850334 | H29: =SUM('- 33 -'!B29,'- 33 -'!D29,'- 33 -'!F29) -> 3415101 | I29: =H29/'- 3 -'!D29*100 -> 1.844998417 | J29: =H29/'- 7 -'!E29 -> 232.340343
A30: PINE CREEK | B30: =SUM('- 30 -'!D30,'- 30 -'!B30,'- 29 -'!F30,'- 29 -'!D30,'- 29 -'!B30) -> 1430419 | C30: =B30/'- 3 -'!D30*100 -> 8.516065018 | D30: =B30/'- 7 -'!E30 -> 1294.496833 | E30: =SUM('- 32 -'!D30,'- 32 -'!B30,'- 31 -'!F30,'- 31 -'!D30,'- 31 -'!B30) -> 1738938 | F30: =E30/'- 3 -'!D30*100 -> 10.35284701 | G30: =E30/'- 7 -'!E30 -> 1573.699548 | H30: =SUM('- 33 -'!B30,'- 33 -'!D30,'- 33 -'!F30) -> 293174 | I30: =H30/'- 3 -'!D30*100 -> 1.745424834 | J30: =H30/'- 7 -'!E30 -> 265.3158371
A31: PORTAGE LA PRAIRIE | B31: =SUM('- 30 -'!D31,'- 30 -'!B31,'- 29 -'!F31,'- 29 -'!D31,'- 29 -'!B31) -> 1218516 | C31: =B31/'- 3 -'!D31*100 -> 2.806203376 | D31: =B31/'- 7 -'!E31 -> 372.4070905 | E31: =SUM('- 32 -'!D31,'- 32 -'!B31,'- 31 -'!F31,'- 31 -'!D31,'- 31 -'!B31) -> 4235349 | F31: =E31/'- 3 -'!D31*100 -> 9.753873287 | G31: =E31/'- 7 -'!E31 -> 1294.422066 | H31: =SUM('- 33 -'!B31,'- 33 -'!D31,'- 33 -'!F31) -> 751712 | I31: =H31/'- 3 -'!D31*100 -> 1.731168694 | J31: =H31/'- 7 -'!E31 -> 229.7408313
A32: PRAIRIE ROSE | B32: =SUM('- 30 -'!D32,'- 30 -'!B32,'- 29 -'!F32,'- 29 -'!D32,'- 29 -'!B32) -> 2378759 | C32: =B32/'- 3 -'!D32*100 -> 7.078236241 | D32: =B32/'- 7 -'!E32 -> 1058.402225 | E32: =SUM('- 32 -'!D32,'- 32 -'!B32,'- 31 -'!F32,'- 31 -'!D32,'- 31 -'!B32) -> 3419658 | F32: =E32/'- 3 -'!D32*100 -> 10.17553573 | G32: =E32/'- 7 -'!E32 -> 1521.538598 | H32: =SUM('- 33 -'!B32,'- 33 -'!D32,'- 33 -'!F32) -> 604329 | I32: =H32/'- 3 -'!D32*100 -> 1.798241617 | J32: =H32/'- 7 -'!E32 -> 268.8894327
A33: PRAIRIE SPIRIT | B33: =SUM('- 30 -'!D33,'- 30 -'!B33,'- 29 -'!F33,'- 29 -'!D33,'- 29 -'!B33) -> 2595246 | C33: =B33/'- 3 -'!D33*100 -> 8.676102452 | D33: =B33/'- 7 -'!E33 -> 1273.42787 | E33: =SUM('- 32 -'!D33,'- 32 -'!B33,'- 31 -'!F33,'- 31 -'!D33,'- 31 -'!B33) -> 3457567 | F33: =E33/'- 3 -'!D33*100 -> 11.55890637 | G33: =E33/'- 7 -'!E33 -> 1696.549068 | H33: =SUM('- 33 -'!B33,'- 33 -'!D33,'- 33 -'!F33) -> 511785 | I33: =H33/'- 3 -'!D33*100 -> 1.710935724 | J33: =H33/'- 7 -'!E33 -> 251.1211973
A34: RED RIVER VALLEY | B34: =SUM('- 30 -'!D34,'- 30 -'!B34,'- 29 -'!F34,'- 29 -'!D34,'- 29 -'!B34) -> 2947366 | C34: =B34/'- 3 -'!D34*100 -> 8.706361386 | D34: =B34/'- 7 -'!E34 -> 1344.601277 | E34: =SUM('- 32 -'!D34,'- 32 -'!B34,'- 31 -'!F34,'- 31 -'!D34,'- 31 -'!B34) -> 3233661 | F34: =E34/'- 3 -'!D34*100 -> 9.55206149 | G34: =E34/'- 7 -'!E34 -> 1475.21031 | H34: =SUM('- 33 -'!B34,'- 33 -'!D34,'- 33 -'!F34) -> 631415 | I34: =H34/'- 3 -'!D34*100 -> 1.865166109 | J34: =H34/'- 7 -'!E34 -> 288.0542883
A35: RIVER EAST TRANSCONA | B35: =SUM('- 30 -'!D35,'- 30 -'!B35,'- 29 -'!F35,'- 29 -'!D35,'- 29 -'!B35) -> 5065454 | C35: =B35/'- 3 -'!D35*100 -> 2.371061562 | D35: =B35/'- 7 -'!E35 -> 309.0481681 | E35: =SUM('- 32 -'!D35,'- 32 -'!B35,'- 31 -'!F35,'- 31 -'!D35,'- 31 -'!B35) -> 23266109 | F35: =E35/'- 3 -'!D35*100 -> 10.89050986 | G35: =E35/'- 7 -'!E35 -> 1419.487447 | H35: =SUM('- 33 -'!B35,'- 33 -'!D35,'- 33 -'!F35) -> 3744331 | I35: =H35/'- 3 -'!D35*100 -> 1.752664087 | J35: =H35/'- 7 -'!E35 -> 228.4451969
A36: ROLLING RIVER | B36: =SUM('- 30 -'!D36,'- 30 -'!B36,'- 29 -'!F36,'- 29 -'!D36,'- 29 -'!B36) -> 1822953 | C36: =B36/'- 3 -'!D36*100 -> 7.012553602 | D36: =B36/'- 7 -'!E36 -> 1041.092519 | E36: =SUM('- 32 -'!D36,'- 32 -'!B36,'- 31 -'!F36,'- 31 -'!D36,'- 31 -'!B36) -> 3264140 | F36: =E36/'- 3 -'!D36*100 -> 12.55652599 | G36: =E36/'- 7 -'!E36 -> 1864.157624 | H36: =SUM('- 33 -'!B36,'- 33 -'!D36,'- 33 -'!F36) -> 462413 | I36: =H36/'- 3 -'!D36*100 -> 1.778814895 | J36: =H36/'- 7 -'!E36 -> 264.0850942
A37: SEINE RIVER | B37: =SUM('- 30 -'!D37,'- 30 -'!B37,'- 29 -'!F37,'- 29 -'!D37,'- 29 -'!B37) -> 3925174 | C37: =B37/'- 3 -'!D37*100 -> 6.727695097 | D37: =B37/'- 7 -'!E37 -> 885.6439531 | E37: =SUM('- 32 -'!D37,'- 32 -'!B37,'- 31 -'!F37,'- 31 -'!D37,'- 31 -'!B37) -> 5600130 | F37: =E37/'- 3 -'!D37*100 -> 9.598547006 | G37: =E37/'- 7 -'!E37 -> 1263.567238 | H37: =SUM('- 33 -'!B37,'- 33 -'!D37,'- 33 -'!F37) -> 693696 | I37: =H37/'- 3 -'!D37*100 -> 1.188985553 | J37: =H37/'- 7 -'!E37 -> 156.5198556
A38: SEVEN OAKS | B38: =SUM('- 30 -'!D38,'- 30 -'!B38,'- 29 -'!F38,'- 29 -'!D38,'- 29 -'!B38) -> 4528903 | C38: =B38/'- 3 -'!D38*100 -> 2.788336655 | D38: =B38/'- 7 -'!E38 -> 398.9309057 | E38: =SUM('- 32 -'!D38,'- 32 -'!B38,'- 31 -'!F38,'- 31 -'!D38,'- 31 -'!B38) -> 15082329 | F38: =E38/'- 3 -'!D38*100 -> 9.285827227 | G38: =E38/'- 7 -'!E38 -> 1328.535225 | H38: =SUM('- 33 -'!B38,'- 33 -'!D38,'- 33 -'!F38) -> 2847959 | I38: =H38/'- 3 -'!D38*100 -> 1.753419861 | J38: =H38/'- 7 -'!E38 -> 250.8640311
A39: SOUTHWEST HORIZON | B39: =SUM('- 30 -'!D39,'- 30 -'!B39,'- 29 -'!F39,'- 29 -'!D39,'- 29 -'!B39) -> 2137902 | C39: =B39/'- 3 -'!D39*100 -> 8.870827937 | D39: =B39/'- 7 -'!E39 -> 1459.817002 | E39: =SUM('- 32 -'!D39,'- 32 -'!B39,'- 31 -'!F39,'- 31 -'!D39,'- 31 -'!B39) -> 2477370 | F39: =E39/'- 3 -'!D39*100 -> 10.27938746 | G39: =E39/'- 7 -'!E39 -> 1691.614886 | H39: =SUM('- 33 -'!B39,'- 33 -'!D39,'- 33 -'!F39) -> 393588 | I39: =H39/'- 3 -'!D39*100 -> 1.633120426 | J39: =H39/'- 7 -'!E39 -> 268.7524752
A40: ST. JAMES-ASSINIBOIA | B40: =SUM('- 30 -'!D40,'- 30 -'!B40,'- 29 -'!F40,'- 29 -'!D40,'- 29 -'!B40) -> 2897094 | C40: =B40/'- 3 -'!D40*100 -> 2.484626156 | D40: =B40/'- 7 -'!E40 -> 363.4314746 | E40: =SUM('- 32 -'!D40,'- 32 -'!B40,'- 31 -'!F40,'- 31 -'!D40,'- 31 -'!B40) -> 11202182 | F40: =E40/'- 3 -'!D40*100 -> 9.607294207 | G40: =E40/'- 7 -'!E40 -> 1405.279057 | H40: =SUM('- 33 -'!B40,'- 33 -'!D40,'- 33 -'!F40) -> 2530799 | I40: =H40/'- 3 -'!D40*100 -> 2.170481659 | J40: =H40/'- 7 -'!E40 -> 317.4809007
A41: SUNRISE | B41: =SUM('- 30 -'!D41,'- 30 -'!B41,'- 29 -'!F41,'- 29 -'!D41,'- 29 -'!B41) -> 5457107 | C41: =B41/'- 3 -'!D41*100 -> 7.553758604 | D41: =B41/'- 7 -'!E41 -> 1213.364536 | E41: =SUM('- 32 -'!D41,'- 32 -'!B41,'- 31 -'!F41,'- 31 -'!D41,'- 31 -'!B41) -> 7111485 | F41: =E41/'- 3 -'!D41*100 -> 9.843758059 | G41: =E41/'- 7 -'!E41 -> 1581.208449 | H41: =SUM('- 33 -'!B41,'- 33 -'!D41,'- 33 -'!F41) -> 1356936 | I41: =H41/'- 3 -'!D41*100 -> 1.878278543 | J41: =H41/'- 7 -'!E41 -> 301.7089494
A42: SWAN VALLEY | B42: =SUM('- 30 -'!D42,'- 30 -'!B42,'- 29 -'!F42,'- 29 -'!D42,'- 29 -'!B42) -> 1711994 | C42: =B42/'- 3 -'!D42*100 -> 7.824051814 | D42: =B42/'- 7 -'!E42 -> 1293.828597 | E42: =SUM('- 32 -'!D42,'- 32 -'!B42,'- 31 -'!F42,'- 31 -'!D42,'- 31 -'!B42) -> 2320665 | F42: =E42/'- 3 -'!D42*100 -> 10.60576334 | G42: =E42/'- 7 -'!E42 -> 1753.827842 | H42: =SUM('- 33 -'!B42,'- 33 -'!D42,'- 33 -'!F42) -> 354147 | I42: =H42/'- 3 -'!D42*100 -> 1.618501278 | J42: =H42/'- 7 -'!E42 -> 267.644347
A43: TURTLE MOUNTAIN | B43: =SUM('- 30 -'!D43,'- 30 -'!B43,'- 29 -'!F43,'- 29 -'!D43,'- 29 -'!B43) -> 1184317 | C43: =B43/'- 3 -'!D43*100 -> 8.222439947 | D43: =B43/'- 7 -'!E43 -> 1153.742815 | E43: =SUM('- 32 -'!D43,'- 32 -'!B43,'- 31 -'!F43,'- 31 -'!D43,'- 31 -'!B43) -> 1156435 | F43: =E43/'- 3 -'!D43*100 -> 8.028861648 | G43: =E43/'- 7 -'!E43 -> 1126.580614 | H43: =SUM('- 33 -'!B43,'- 33 -'!D43,'- 33 -'!F43) -> 260467 | I43: =H43/'- 3 -'!D43*100 -> 1.808362344 | J43: =H43/'- 7 -'!E43 -> 253.7428154
A44: TURTLE RIVER | B44: =SUM('- 30 -'!D44,'- 30 -'!B44,'- 29 -'!F44,'- 29 -'!D44,'- 29 -'!B44) -> 1208195 | C44: =B44/'- 3 -'!D44*100 -> 10.07501338 | D44: =B44/'- 7 -'!E44 -> 1873.170543 | E44: =SUM('- 32 -'!D44,'- 32 -'!B44,'- 31 -'!F44,'- 31 -'!D44,'- 31 -'!B44) -> 1316163 | F44: =E44/'- 3 -'!D44*100 -> 10.97534739 | G44: =E44/'- 7 -'!E44 -> 2040.562791 | H44: =SUM('- 33 -'!B44,'- 33 -'!D44,'- 33 -'!F44) -> 186629 | I44: =H44/'- 3 -'!D44*100 -> 1.556279965 | J44: =H44/'- 7 -'!E44 -> 289.3472868
A45: WESTERN | B45: =SUM('- 30 -'!D45,'- 30 -'!B45,'- 29 -'!F45,'- 29 -'!D45,'- 29 -'!B45) -> 940580 | C45: =B45/'- 3 -'!D45*100 -> 3.913743682 | D45: =B45/'- 7 -'!E45 -> 523.27121 | E45: =SUM('- 32 -'!D45,'- 32 -'!B45,'- 31 -'!F45,'- 31 -'!D45,'- 31 -'!B45) -> 2312385 | F45: =E45/'- 3 -'!D45*100 -> 9.621810144 | G45: =E45/'- 7 -'!E45 -> 1286.445063 | H45: =SUM('- 33 -'!B45,'- 33 -'!D45,'- 33 -'!F45) -> 439224 | I45: =H45/'- 3 -'!D45*100 -> 1.827606535 | J45: =H45/'- 7 -'!E45 -> 244.3527121
A46: WINNIPEG | B46: =SUM('- 30 -'!D46,'- 30 -'!B46,'- 29 -'!F46,'- 29 -'!D46,'- 29 -'!B46) -> 7679458 | C46: =B46/'- 3 -'!D46*100 -> 1.820875127 | D46: =B46/'- 7 -'!E46 -> 280.8718615 | E46: =SUM('- 32 -'!D46,'- 32 -'!B46,'- 31 -'!F46,'- 31 -'!D46,'- 31 -'!B46) -> 54501376 | F46: =E46/'- 3 -'!D46*100 -> 12.92281304 | G46: =E46/'- 7 -'!E46 -> 1993.357204 | H46: =SUM('- 33 -'!B46,'- 33 -'!D46,'- 33 -'!F46) -> 7378656 | I46: =H46/'- 3 -'!D46*100 -> 1.749552011 | J46: =H46/'- 7 -'!E46 -> 269.8701973
A48: PROVINCE | B48: =SUM(B11:B46) -> 109746278 | C48: =B48/'- 3 -'!D48*100 -> 4.208921172 | D48: =B48/'- 7 -'!E48 -> 619.8791333 | E48: =SUM(E11:E46) -> 301667011 | F48: =E48/'- 3 -'!D48*100 -> 11.56934606 | G48: =E48/'- 7 -'!E48 -> 1703.903665 | H48: =SUM(H11:H46) -> 44790750 | I48: =H48/'- 3 -'!D48*100 -> 1.717787058 | J48: =H48/'- 7 -'!E48 -> 252.9912795
A50: WHITESHELL | B50: =SUM('- 30 -'!D50,'- 30 -'!B50,'- 29 -'!F50,'- 29 -'!D50,'- 29 -'!B50) -> 66387 | C50: =B50/'- 3 -'!D50*100 -> 1.889730293 | D50: =B50/'- 7 -'!E50 -> 336.9898477 | E50: =SUM('- 32 -'!D50,'- 32 -'!B50,'- 31 -'!F50,'- 31 -'!D50,'- 31 -'!B50) -> 560713 | F50: =E50/'- 3 -'!D50*100 -> 15.96090111 | G50: =E50/'- 7 -'!E50 -> 2846.258883 | H50: =SUM('- 33 -'!B50,'- 33 -'!D50,'- 33 -'!F50) -> 44485 | I50: =H50/'- 3 -'!D50*100 -> 1.266281834 | J50: =H50/'- 7 -'!E50 -> 225.8121827
A51: MITT | B51: =SUM('- 30 -'!D51,'- 30 -'!B51,'- 29 -'!F51,'- 29 -'!D51,'- 29 -'!B51) -> 0 | C51: =B51/'- 3 -'!D51*100 -> 0 | D51: =B51/'- 7 -'!E51 -> 0 | E51: =SUM('- 32 -'!D51,'- 32 -'!B51,'- 31 -'!F51,'- 31 -'!D51,'- 31 -'!B51) -> 4442280 | F51: =E51/'- 3 -'!D51*100 -> 12.48785905 | G51: =E51/'- 7 -'!E51 -> 2072.925805 | H51: =SUM('- 33 -'!B51,'- 33 -'!D51,'- 33 -'!F51) -> 642170 | I51: =H51/'- 3 -'!D51*100 -> 1.805228046 | J51: =H51/'- 7 -'!E51 -> 299.659356

Sheet - 18 -
B2: ANALYSIS OF EXPENSE BY PROGRAM | G2: PAGE 1 OF 16
B3: =OPYEAR -> OPERATING FUND 2021/2022 ACTUAL
B5: FUNCTION 100: REGULAR INSTRUCTION
E6: SENIOR YEARS TECHNOLOGY EDUCATION
B7: ADMINISTRATION
D8: PER PUPIL | G8: PER PUPIL
A9: DIVISION / DISTRICT | B9: AMOUNT | C9: % | E9: AMOUNT | F9: %
A11: BEAUTIFUL PLAINS | B11: 1705709 | C11: =B11/'- 3 -'!D11*100 -> 7.085292817 | D11: =B11/'- 7 -'!C11 -> 899.1613073 | E11: 0 | F11: =E11/'- 3 -'!D11*100 -> 0 | G11: =IF('- 7 -'!B11=0,"",E11/'- 7 -'!B11) -> 
A12: BORDER LAND | B12: 2714731 | C12: =B12/'- 3 -'!D12*100 -> 7.650161196 | D12: =B12/'- 7 -'!C12 -> 1403.425939 | E12: 1067257 | F12: =E12/'- 3 -'!D12*100 -> 3.007549583 | G12: =IF('- 7 -'!B12=0,"",E12/'- 7 -'!B12) -> 7258.276659
A13: BRANDON | B13: 8216230 | C13: =B13/'- 3 -'!D13*100 -> 7.295426055 | D13: =B13/'- 7 -'!C13 -> 946.5702765 | E13: 3790166 | F13: =E13/'- 3 -'!D13*100 -> 3.365396999 | G13: =IF('- 7 -'!B13=0,"",E13/'- 7 -'!B13) -> 9768.469072
A14: DSFM | B14: 7495853 | C14: =B14/'- 3 -'!D14*100 -> 7.520501368 | D14: =B14/'- 7 -'!C14 -> 1291.210775 | E14: 185609 | F14: =E14/'- 3 -'!D14*100 -> 0.186219332 | G14: =IF('- 7 -'!B14=0,"",E14/'- 7 -'!B14) -> 8327.007627
A15: EVERGREEN | B15: 1816682 | C15: =B15/'- 3 -'!D15*100 -> 8.321164306 | D15: =B15/'- 7 -'!C15 -> 1263.33936 | E15: 33706 | F15: =E15/'- 3 -'!D15*100 -> 0.1543875946 | G15: =IF('- 7 -'!B15=0,"",E15/'- 7 -'!B15) -> 1685.3
A16: FLIN FLON | B16: 1383115 | C16: =B16/'- 3 -'!D16*100 -> 8.597693001 | D16: =B16/'- 7 -'!C16 -> 1462.839767 | E16: 0 | F16: =E16/'- 3 -'!D16*100 -> 0 | G16: =IF('- 7 -'!B16=0,"",E16/'- 7 -'!B16) -> 
A17: FORT LA BOSSE | B17: 1423076 | C17: =B17/'- 3 -'!D17*100 -> 6.966838981 | D17: =B17/'- 7 -'!C17 -> 996.5518207 | E17: 213889 | F17: =E17/'- 3 -'!D17*100 -> 1.047119214 | G17: =IF('- 7 -'!B17=0,"",E17/'- 7 -'!B17) -> 7638.892857
A18: FRONTIER | B18: 7966690 | C18: =B18/'- 3 -'!D18*100 -> 5.446744989 | D18: =B18/'- 7 -'!C18 -> 1290.988495 | E18: 719186 | F18: =E18/'- 3 -'!D18*100 -> 0.4917001592 | G18: =IF('- 7 -'!B18=0,"",E18/'- 7 -'!B18) -> 12399.75862
A19: GARDEN VALLEY | B19: 3767704 | C19: =B19/'- 3 -'!D19*100 -> 7.085219528 | D19: =B19/'- 7 -'!C19 -> 1000.718194 | E19: 1221573 | F19: =E19/'- 3 -'!D19*100 -> 2.297184937 | G19: =IF('- 7 -'!B19=0,"",E19/'- 7 -'!B19) -> 11976.20588
A20: HANOVER | B20: 7006034 | C20: =B20/'- 3 -'!D20*100 -> 7.067762851 | D20: =B20/'- 7 -'!C20 -> 903.5380449 | E20: 3130244 | F20: =E20/'- 3 -'!D20*100 -> 3.157823993 | G20: =IF('- 7 -'!B20=0,"",E20/'- 7 -'!B20) -> 6101.840156
A21: INTERLAKE | B21: 3339893 | C21: =B21/'- 3 -'!D21*100 -> 8.155563021 | D21: =B21/'- 7 -'!C21 -> 1143.994862 | E21: 0 | F21: =E21/'- 3 -'!D21*100 -> 0 | G21: =IF('- 7 -'!B21=0,"",E21/'- 7 -'!B21) -> 
A22: KELSEY | B22: 1545080 | C22: =B22/'- 3 -'!D22*100 -> 7.285879673 | D22: =B22/'- 7 -'!C22 -> 1066.307798 | E22: 23107 | F22: =E22/'- 3 -'!D22*100 -> 0.10896188 | G22: =IF('- 7 -'!B22=0,"",E22/'- 7 -'!B22) -> 491.6382979
A23: LAKESHORE | B23: 1074410 | C23: =B23/'- 3 -'!D23*100 -> 6.555220815 | D23: =B23/'- 7 -'!C23 -> 1164.672087 | E23: 150192 | F23: =E23/'- 3 -'!D23*100 -> 0.9163556972 | G23: =IF('- 7 -'!B23=0,"",E23/'- 7 -'!B23) -> 10728
A24: LORD SELKIRK | B24: 5430458 | C24: =B24/'- 3 -'!D24*100 -> 8.705420743 | D24: =B24/'- 7 -'!C24 -> 1478.882898 | E24: 2026731 | F24: =E24/'- 3 -'!D24*100 -> 3.248997799 | G24: =IF('- 7 -'!B24=0,"",E24/'- 7 -'!B24) -> 10447.06701
A25: LOUIS RIEL | B25: 15962707 | C25: =B25/'- 3 -'!D25*100 -> 7.66482453 | D25: =B25/'- 7 -'!C25 -> 1068.31127 | E25: 1705130 | F25: =E25/'- 3 -'!D25*100 -> 0.8187535016 | G25: =IF('- 7 -'!B25=0,"",E25/'- 7 -'!B25) -> 18334.73118
A26: MOUNTAIN VIEW | B26: 3737315 | C26: =B26/'- 3 -'!D26*100 -> 8.41168687 | D26: =B26/'- 7 -'!C26 -> 1245.775819 | E26: 1130650 | F26: =E26/'- 3 -'!D26*100 -> 2.544787838 | G26: =IF('- 7 -'!B26=0,"",E26/'- 7 -'!B26) -> 7308.661926
A27: MYSTERY LAKE | B27: 2881904 | C27: =B27/'- 3 -'!D27*100 -> 6.488393797 | D27: =B27/'- 7 -'!C27 -> 1043.978989 | E27: 1202504 | F27: =E27/'- 3 -'!D27*100 -> 2.707348855 | G27: =IF('- 7 -'!B27=0,"",E27/'- 7 -'!B27) -> 13727.21461
A28: PARK WEST | B28: 2530866 | C28: =B28/'- 3 -'!D28*100 -> 8.277478653 | D28: =B28/'- 7 -'!C28 -> 1256.324646 | E28: 0 | F28: =E28/'- 3 -'!D28*100 -> 0 | G28: =IF('- 7 -'!B28=0,"",E28/'- 7 -'!B28) -> 
A29: PEMBINA TRAILS | B29: 14424620 | C29: =B29/'- 3 -'!D29*100 -> 7.792859148 | D29: =B29/'- 7 -'!C29 -> 981.353453 | E29: 0 | F29: =E29/'- 3 -'!D29*100 -> 0 | G29: =IF('- 7 -'!B29=0,"",E29/'- 7 -'!B29) -> 
A30: PINE CREEK | B30: 1281089 | C30: =B30/'- 3 -'!D30*100 -> 7.627022025 | D30: =B30/'- 7 -'!C30 -> 1159.356561 | E30: 125931 | F30: =E30/'- 3 -'!D30*100 -> 0.7497359751 | G30: =IF('- 7 -'!B30=0,"",E30/'- 7 -'!B30) -> 2998.357143
A31: PORTAGE LA PRAIRIE | B31: 3489950 | C31: =B31/'- 3 -'!D31*100 -> 8.03724323 | D31: =B31/'- 7 -'!C31 -> 1066.610636 | E31: 750710 | F31: =E31/'- 3 -'!D31*100 -> 1.72886112 | G31: =IF('- 7 -'!B31=0,"",E31/'- 7 -'!B31) -> 8249.56044
A32: PRAIRIE ROSE | B32: 2756263 | C32: =B32/'- 3 -'!D32*100 -> 8.201537296 | D32: =B32/'- 7 -'!C32 -> 1226.368409 | E32: 0 | F32: =E32/'- 3 -'!D32*100 -> 0 | G32: =IF('- 7 -'!B32=0,"",E32/'- 7 -'!B32) -> 
A33: PRAIRIE SPIRIT | B33: 2989450 | C33: =B33/'- 3 -'!D33*100 -> 9.993956054 | D33: =B33/'- 7 -'!C33 -> 1466.85476 | E33: 0 | F33: =E33/'- 3 -'!D33*100 -> 0 | G33: =IF('- 7 -'!B33=0,"",E33/'- 7 -'!B33) -> 
A34: RED RIVER VALLEY | B34: 2768241 | C34: =B34/'- 3 -'!D34*100 -> 8.177235725 | D34: =B34/'- 7 -'!C34 -> 1262.883668 | E34: 361221 | F34: =E34/'- 3 -'!D34*100 -> 1.067027497 | G34: =IF('- 7 -'!B34=0,"",E34/'- 7 -'!B34) -> 16800.97674
A35: RIVER EAST TRANSCONA | B35: 15594693 | C35: =B35/'- 3 -'!D35*100 -> 7.299637335 | D35: =B35/'- 7 -'!C35 -> 951.4470577 | E35: 4001361 | F35: =E35/'- 3 -'!D35*100 -> 1.872975899 | G35: =IF('- 7 -'!B35=0,"",E35/'- 7 -'!B35) -> 5867.09824
A36: ROLLING RIVER | B36: 2081000 | C36: =B36/'- 3 -'!D36*100 -> 8.00521135 | D36: =B36/'- 7 -'!C36 -> 1188.463735 | E36: 140397 | F36: =E36/'- 3 -'!D36*100 -> 0.540080566 | G36: =IF('- 7 -'!B36=0,"",E36/'- 7 -'!B36) -> 15428.24176
A37: SEINE RIVER | B37: 5229444 | C37: =B37/'- 3 -'!D37*100 -> 8.96319622 | D37: =B37/'- 7 -'!C37 -> 1179.9287 | E37: 0 | F37: =E37/'- 3 -'!D37*100 -> 0 | G37: =IF('- 7 -'!B37=0,"",E37/'- 7 -'!B37) -> 
A38: SEVEN OAKS | B38: 12588088 | C38: =B38/'- 3 -'!D38*100 -> 7.750183031 | D38: =B38/'- 7 -'!C38 -> 1108.828638 | E38: 1595136 | F38: =E38/'- 3 -'!D38*100 -> 0.9820868713 | G38: =IF('- 7 -'!B38=0,"",E38/'- 7 -'!B38) -> 8117.740458
A39: SOUTHWEST HORIZON | B39: 1505629 | C39: =B39/'- 3 -'!D39*100 -> 6.24732836 | D39: =B39/'- 7 -'!C39 -> 1028.083988 | E39: 0 | F39: =E39/'- 3 -'!D39*100 -> 0 | G39: =IF('- 7 -'!B39=0,"",E39/'- 7 -'!B39) -> 
A40: ST. JAMES-ASSINIBOIA | B40: 9552615 | C40: =B40/'- 3 -'!D40*100 -> 8.192580941 | D40: =B40/'- 7 -'!C40 -> 1198.345983 | E40: 1849791 | F40: =E40/'- 3 -'!D40*100 -> 1.586430783 | G40: =IF('- 7 -'!B40=0,"",E40/'- 7 -'!B40) -> 9907.825388
A41: SUNRISE | B41: 4766128 | C41: =B41/'- 3 -'!D41*100 -> 6.597301535 | D41: =B41/'- 7 -'!C41 -> 1059.728293 | E41: 0 | F41: =E41/'- 3 -'!D41*100 -> 0 | G41: =IF('- 7 -'!B41=0,"",E41/'- 7 -'!B41) -> 
A42: SWAN VALLEY | B42: 1815161 | C42: =B42/'- 3 -'!D42*100 -> 8.29553942 | D42: =B42/'- 7 -'!C42 -> 1371.796403 | E42: 1273757 | F42: =E42/'- 3 -'!D42*100 -> 5.821247485 | G42: =IF('- 7 -'!B42=0,"",E42/'- 7 -'!B42) -> 8031.254729
A43: TURTLE MOUNTAIN | B43: 831407 | C43: =B43/'- 3 -'!D43*100 -> 5.772267163 | D43: =B43/'- 7 -'!C43 -> 809.9434973 | E43: 88080 | F43: =E43/'- 3 -'!D43*100 -> 0.6115191377 | G43: =IF('- 7 -'!B43=0,"",E43/'- 7 -'!B43) -> 2995.918367
A44: TURTLE RIVER | B44: 672319 | C44: =B44/'- 3 -'!D44*100 -> 5.606398736 | D44: =B44/'- 7 -'!C44 -> 1042.355039 | E44: 0 | F44: =E44/'- 3 -'!D44*100 -> 0 | G44: =IF('- 7 -'!B44=0,"",E44/'- 7 -'!B44) -> 
A45: WESTERN | B45: 1688513 | C45: =B45/'- 3 -'!D45*100 -> 7.025885184 | D45: =B45/'- 7 -'!C45 -> 939.3674548 | E45: 349343 | F45: =E45/'- 3 -'!D45*100 -> 1.453612621 | G45: =IF('- 7 -'!B45=0,"",E45/'- 7 -'!B45) -> 11644.76667
A46: WINNIPEG | B46: 28458611 | C46: =B46/'- 3 -'!D46*100 -> 6.747816959 | D46: =B46/'- 7 -'!C46 -> 1040.857707 | E46: 5108333 | F46: =E46/'- 3 -'!D46*100 -> 1.211236067 | G46: =IF('- 7 -'!B46=0,"",E46/'- 7 -'!B46) -> 7318.528653
A48: PROVINCE | B48: =SUM(B11:B46) -> 192491678 | C48: =B48/'- 3 -'!D48*100 -> 7.382321421 | D48: =B48/'- 7 -'!C48 -> 1087.249397 | E48: =SUM(E11:E46) -> 32244004 | F48: =E48/'- 3 -'!D48*100 -> 1.236602039 | G48: =E48/'- 7 -'!B48 -> 8034.026755
A50: WHITESHELL | B50: 250888 | C50: =B50/'- 3 -'!D50*100 -> 7.141618899 | D50: =B50/'- 7 -'!C50 -> 1273.543147 | E50: 0 | F50: =E50/'- 3 -'!D50*100 -> 0 | G50: =IF('- 7 -'!B50=0,"",E50/'- 7 -'!B50) -> 
A51: MITT | B51: 2125219 | C51: =B51/'- 3 -'!D51*100 -> 5.974282423 | D51: =B51/'- 7 -'!C51 -> 991.7027531 | E51: 3698064 | F51: =E51/'- 3 -'!D51*100 -> 10.39576569 | G51: =IF('- 7 -'!B51=0,"",E51/'- 7 -'!B51) -> 1910.157025

Sheet - 19 -
B2: ANALYSIS OF EXPENSE BY PROGRAM | J2: PAGE 2 OF 16
B3: =OPYEAR -> OPERATING FUND 2021/2022 ACTUAL
B5: FUNCTION 100: REGULAR INSTRUCTION
B6: SINGLE TRACK SCHOOLS (1)
B7: ENGLISH LANGUAGE | E7: FRANÇAIS | H7: FRENCH IMMERSION
D8: PER PUPIL | G8: PER PUPIL | J8: PER PUPIL
A9: DIVISION / DISTRICT | B9: AMOUNT | C9: % | E9: AMOUNT | F9: % | H9: AMOUNT | I9: %
A11: BEAUTIFUL PLAINS | B11: 14047263 | C11: =B11/'- 3 -'!D11*100 -> 58.3504992 | D11: =B11/'- 6 -'!B11 -> 7404.988403 | E11: 0 | F11: =E11/'- 3 -'!D11*100 -> 0 | G11: =IF('- 6 -'!C11=0,"",E11/'- 6 -'!C11) ->  | H11: 0 | I11: =H11/'- 3 -'!D11*100 -> 0 | J11: =IF('- 6 -'!D11=0,"",H11/'- 6 -'!D11) -> 
A12: BORDER LAND | B12: 12780004 | C12: =B12/'- 3 -'!D12*100 -> 36.01428307 | D12: =B12/'- 6 -'!B12 -> 10472.66619 | E12: 0 | F12: =E12/'- 3 -'!D12*100 -> 0 | G12: =IF('- 6 -'!C12=0,"",E12/'- 6 -'!C12) ->  | H12: 0 | I12: =H12/'- 3 -'!D12*100 -> 0 | J12: =IF('- 6 -'!D12=0,"",H12/'- 6 -'!D12) -> 
A13: BRANDON | B13: 47641481 | C13: =B13/'- 3 -'!D13*100 -> 42.30223616 | D13: =B13/'- 6 -'!B13 -> 7041.30668 | E13: 0 | F13: =E13/'- 3 -'!D13*100 -> 0 | G13: =IF('- 6 -'!C13=0,"",E13/'- 6 -'!C13) ->  | H13: 2190294 | I13: =H13/'- 3 -'!D13*100 -> 1.944824806 | J13: =IF('- 6 -'!D13=0,"",H13/'- 6 -'!D13) -> 6823.345794
A14: DSFM | B14: 0 | C14: =B14/'- 3 -'!D14*100 -> 0 | E14: 47144213 | F14: =E14/'- 3 -'!D14*100 -> 47.29923577 | G14: =IF('- 6 -'!C14=0,"",E14/'- 6 -'!C14) -> 8152.206986 | H14: 0 | I14: =H14/'- 3 -'!D14*100 -> 0 | J14: =IF('- 6 -'!D14=0,"",H14/'- 6 -'!D14) -> 
A15: EVERGREEN | B15: 9780752 | C15: =B15/'- 3 -'!D15*100 -> 44.7999399 | D15: =B15/'- 6 -'!B15 -> 6897.568406 | E15: 0 | F15: =E15/'- 3 -'!D15*100 -> 0 | G15: =IF('- 6 -'!C15=0,"",E15/'- 6 -'!C15) ->  | H15: 0 | I15: =H15/'- 3 -'!D15*100 -> 0 | J15: =IF('- 6 -'!D15=0,"",H15/'- 6 -'!D15) -> 
A16: FLIN FLON | B16: 5131970 | C16: =B16/'- 3 -'!D16*100 -> 31.90125373 | D16: =B16/'- 6 -'!B16 -> 8475.590421 | E16: 0 | F16: =E16/'- 3 -'!D16*100 -> 0 | G16: =IF('- 6 -'!C16=0,"",E16/'- 6 -'!C16) ->  | H16: 0 | I16: =H16/'- 3 -'!D16*100 -> 0 | J16: =IF('- 6 -'!D16=0,"",H16/'- 6 -'!D16) -> 
A17: FORT LA BOSSE | B17: 10656168 | C17: =B17/'- 3 -'!D17*100 -> 52.16854659 | D17: =B17/'- 6 -'!B17 -> 7611.548571 | E17: 0 | F17: =E17/'- 3 -'!D17*100 -> 0 | G17: =IF('- 6 -'!C17=0,"",E17/'- 6 -'!C17) ->  | H17: 0 | I17: =H17/'- 3 -'!D17*100 -> 0 | J17: =IF('- 6 -'!D17=0,"",H17/'- 6 -'!D17) -> 
A18: FRONTIER | B18: 54036125 | C18: =B18/'- 3 -'!D18*100 -> 36.9439495 | D18: =B18/'- 6 -'!B18 -> 8839.542778 | E18: 0 | F18: =E18/'- 3 -'!D18*100 -> 0 | G18: =IF('- 6 -'!C18=0,"",E18/'- 6 -'!C18) ->  | H18: 0 | I18: =H18/'- 3 -'!D18*100 -> 0 | J18: =IF('- 6 -'!D18=0,"",H18/'- 6 -'!D18) -> 
A19: GARDEN VALLEY | B19: 26720164 | C19: =B19/'- 3 -'!D19*100 -> 50.24763829 | D19: =B19/'- 6 -'!B19 -> 7294.612067 | E19: 0 | F19: =E19/'- 3 -'!D19*100 -> 0 | G19: =IF('- 6 -'!C19=0,"",E19/'- 6 -'!C19) ->  | H19: 0 | I19: =H19/'- 3 -'!D19*100 -> 0 | J19: =IF('- 6 -'!D19=0,"",H19/'- 6 -'!D19) -> 
A20: HANOVER | B20: 51367287 | C20: =B20/'- 3 -'!D20*100 -> 51.81987453 | D20: =B20/'- 6 -'!B20 -> 7093.949316 | E20: 0 | F20: =E20/'- 3 -'!D20*100 -> 0 | G20: =IF('- 6 -'!C20=0,"",E20/'- 6 -'!C20) ->  | H20: 0 | I20: =H20/'- 3 -'!D20*100 -> 0 | J20: =IF('- 6 -'!D20=0,"",H20/'- 6 -'!D20) -> 
A21: INTERLAKE | B21: 12600712 | C21: =B21/'- 3 -'!D21*100 -> 30.7692195 | D21: =B21/'- 6 -'!B21 -> 7749.515375 | E21: 0 | F21: =E21/'- 3 -'!D21*100 -> 0 | G21: =IF('- 6 -'!C21=0,"",E21/'- 6 -'!C21) ->  | H21: 0 | I21: =H21/'- 3 -'!D21*100 -> 0 | J21: =IF('- 6 -'!D21=0,"",H21/'- 6 -'!D21) -> 
A22: KELSEY | B22: 5348125 | C22: =B22/'- 3 -'!D22*100 -> 25.21927358 | D22: =B22/'- 6 -'!B22 -> 6918.661061 | E22: 0 | F22: =E22/'- 3 -'!D22*100 -> 0 | G22: =IF('- 6 -'!C22=0,"",E22/'- 6 -'!C22) ->  | H22: 0 | I22: =H22/'- 3 -'!D22*100 -> 0 | J22: =IF('- 6 -'!D22=0,"",H22/'- 6 -'!D22) -> 
A23: LAKESHORE | B23: 7519151 | C23: =B23/'- 3 -'!D23*100 -> 45.87605769 | D23: =B23/'- 6 -'!B23 -> 8276.44579 | E23: 0 | F23: =E23/'- 3 -'!D23*100 -> 0 | G23: =IF('- 6 -'!C23=0,"",E23/'- 6 -'!C23) ->  | H23: 0 | I23: =H23/'- 3 -'!D23*100 -> 0 | J23: =IF('- 6 -'!D23=0,"",H23/'- 6 -'!D23) -> 
A24: LORD SELKIRK | B24: 22988698 | C24: =B24/'- 3 -'!D24*100 -> 36.85256169 | D24: =B24/'- 6 -'!B24 -> 9013.408351 | E24: 0 | F24: =E24/'- 3 -'!D24*100 -> 0 | G24: =IF('- 6 -'!C24=0,"",E24/'- 6 -'!C24) ->  | H24: 1771441 | I24: =H24/'- 3 -'!D24*100 -> 2.839749286 | J24: =IF('- 6 -'!D24=0,"",H24/'- 6 -'!D24) -> 7925.910515
A25: LOUIS RIEL | B25: 63893235 | C25: =B25/'- 3 -'!D25*100 -> 30.67966072 | D25: =B25/'- 6 -'!B25 -> 6738.371124 | E25: 0 | F25: =E25/'- 3 -'!D25*100 -> 0 | G25: =IF('- 6 -'!C25=0,"",E25/'- 6 -'!C25) ->  | H25: 29889538 | I25: =H25/'- 3 -'!D25*100 -> 14.35208101 | J25: =IF('- 6 -'!D25=0,"",H25/'- 6 -'!D25) -> 6317.805538
A26: MOUNTAIN VIEW | B26: 16868414 | C26: =B26/'- 3 -'!D26*100 -> 37.9662449 | D26: =B26/'- 6 -'!B26 -> 7685.661954 | E26: 0 | F26: =E26/'- 3 -'!D26*100 -> 0 | G26: =IF('- 6 -'!C26=0,"",E26/'- 6 -'!C26) ->  | H26: 846124 | I26: =H26/'- 3 -'!D26*100 -> 1.904396643 | J26: =IF('- 6 -'!D26=0,"",H26/'- 6 -'!D26) -> 6338.007491
A27: MYSTERY LAKE | B27: 18592874 | C27: =B27/'- 3 -'!D27*100 -> 41.86048124 | D27: =B27/'- 6 -'!B27 -> 7956.212932 | E27: 0 | F27: =E27/'- 3 -'!D27*100 -> 0 | G27: =IF('- 6 -'!C27=0,"",E27/'- 6 -'!C27) ->  | H27: 0 | I27: =H27/'- 3 -'!D27*100 -> 0 | J27: =IF('- 6 -'!D27=0,"",H27/'- 6 -'!D27) -> 
A28: PARK WEST | B28: 16331021 | C28: =B28/'- 3 -'!D28*100 -> 53.41241998 | D28: =B28/'- 6 -'!B28 -> 8106.736659 | E28: 0 | F28: =E28/'- 3 -'!D28*100 -> 0 | G28: =IF('- 6 -'!C28=0,"",E28/'- 6 -'!C28) ->  | H28: 0 | I28: =H28/'- 3 -'!D28*100 -> 0 | J28: =IF('- 6 -'!D28=0,"",H28/'- 6 -'!D28) -> 
A29: PEMBINA TRAILS | B29: 54469752 | C29: =B29/'- 3 -'!D29*100 -> 29.42712565 | D29: =B29/'- 6 -'!B29 -> 6294.825207 | E29: 0 | F29: =E29/'- 3 -'!D29*100 -> 0 | G29: =IF('- 6 -'!C29=0,"",E29/'- 6 -'!C29) ->  | H29: 8588195 | I29: =H29/'- 3 -'!D29*100 -> 4.639747457 | J29: =IF('- 6 -'!D29=0,"",H29/'- 6 -'!D29) -> 6198.625045
A30: PINE CREEK | B30: 9506185 | C30: =B30/'- 3 -'!D30*100 -> 56.5955077 | D30: =B30/'- 6 -'!B30 -> 8942.789276 | E30: 0 | F30: =E30/'- 3 -'!D30*100 -> 0 | G30: =IF('- 6 -'!C30=0,"",E30/'- 6 -'!C30) ->  | H30: 0 | I30: =H30/'- 3 -'!D30*100 -> 0 | J30: =IF('- 6 -'!D30=0,"",H30/'- 6 -'!D30) -> 
A31: PORTAGE LA PRAIRIE | B31: 17667711 | C31: =B31/'- 3 -'!D31*100 -> 40.68817336 | D31: =B31/'- 6 -'!B31 -> 7563.232449 | E31: 0 | F31: =E31/'- 3 -'!D31*100 -> 0 | G31: =IF('- 6 -'!C31=0,"",E31/'- 6 -'!C31) ->  | H31: 0 | I31: =H31/'- 3 -'!D31*100 -> 0 | J31: =IF('- 6 -'!D31=0,"",H31/'- 6 -'!D31) -> 
A32: PRAIRIE ROSE | B32: 13475260 | C32: =B32/'- 3 -'!D32*100 -> 40.0969891 | D32: =B32/'- 6 -'!B32 -> 8129.870287 | E32: 0 | F32: =E32/'- 3 -'!D32*100 -> 0 | G32: =IF('- 6 -'!C32=0,"",E32/'- 6 -'!C32) ->  | H32: 823095 | I32: =H32/'- 3 -'!D32*100 -> 2.449201815 | J32: =IF('- 6 -'!D32=0,"",H32/'- 6 -'!D32) -> 6719.142857
A33: PRAIRIE SPIRIT | B33: 11642825 | C33: =B33/'- 3 -'!D33*100 -> 38.92283912 | D33: =B33/'- 6 -'!B33 -> 7382.894737 | E33: 0 | F33: =E33/'- 3 -'!D33*100 -> 0 | G33: =IF('- 6 -'!C33=0,"",E33/'- 6 -'!C33) ->  | H33: 0 | I33: =H33/'- 3 -'!D33*100 -> 0 | J33: =IF('- 6 -'!D33=0,"",H33/'- 6 -'!D33) -> 
A34: RED RIVER VALLEY | B34: 11952817 | C34: =B34/'- 3 -'!D34*100 -> 35.30798156 | D34: =B34/'- 6 -'!B34 -> 7335.266646 | E34: 0 | F34: =E34/'- 3 -'!D34*100 -> 0 | G34: =IF('- 6 -'!C34=0,"",E34/'- 6 -'!C34) ->  | H34: 2408677 | I34: =H34/'- 3 -'!D34*100 -> 7.115102917 | J34: =IF('- 6 -'!D34=0,"",H34/'- 6 -'!D34) -> 7707.7664
A35: RIVER EAST TRANSCONA | B35: 63136803 | C35: =B35/'- 3 -'!D35*100 -> 29.55337206 | D35: =B35/'- 6 -'!B35 -> 7796.110761 | E35: 0 | F35: =E35/'- 3 -'!D35*100 -> 0 | G35: =IF('- 6 -'!C35=0,"",E35/'- 6 -'!C35) ->  | H35: 8271209 | I35: =H35/'- 3 -'!D35*100 -> 3.871626458 | J35: =IF('- 6 -'!D35=0,"",H35/'- 6 -'!D35) -> 5714.134024
A36: ROLLING RIVER | B36: 13283774 | C36: =B36/'- 3 -'!D36*100 -> 51.100153 | D36: =B36/'- 6 -'!B36 -> 7626.025604 | E36: 0 | F36: =E36/'- 3 -'!D36*100 -> 0 | G36: =IF('- 6 -'!C36=0,"",E36/'- 6 -'!C36) ->  | H36: 0 | I36: =H36/'- 3 -'!D36*100 -> 0 | J36: =IF('- 6 -'!D36=0,"",H36/'- 6 -'!D36) -> 
A37: SEINE RIVER | B37: 14101709 | C37: =B37/'- 3 -'!D37*100 -> 24.17013832 | D37: =B37/'- 6 -'!B37 -> 6406.955475 | E37: 0 | F37: =E37/'- 3 -'!D37*100 -> 0 | G37: =IF('- 6 -'!C37=0,"",E37/'- 6 -'!C37) ->  | H37: 5123117 | I37: =H37/'- 3 -'!D37*100 -> 8.780953181 | J37: =IF('- 6 -'!D37=0,"",H37/'- 6 -'!D37) -> 5984.949766
A38: SEVEN OAKS | B38: 52862857 | C38: =B38/'- 3 -'!D38*100 -> 32.54638967 | D38: =B38/'- 6 -'!B38 -> 7805.977023 | E38: 0 | F38: =E38/'- 3 -'!D38*100 -> 0 | G38: =IF('- 6 -'!C38=0,"",E38/'- 6 -'!C38) ->  | H38: 6567460 | I38: =H38/'- 3 -'!D38*100 -> 4.043427171 | J38: =IF('- 6 -'!D38=0,"",H38/'- 6 -'!D38) -> 6230.986717
A39: SOUTHWEST HORIZON | B39: 12686295 | C39: =B39/'- 3 -'!D39*100 -> 52.6394288 | D39: =B39/'- 6 -'!B39 -> 8662.54353 | E39: 0 | F39: =E39/'- 3 -'!D39*100 -> 0 | G39: =IF('- 6 -'!C39=0,"",E39/'- 6 -'!C39) ->  | H39: 0 | I39: =H39/'- 3 -'!D39*100 -> 0 | J39: =IF('- 6 -'!D39=0,"",H39/'- 6 -'!D39) -> 
A40: ST. JAMES-ASSINIBOIA | B40: 40057436 | C40: =B40/'- 3 -'!D40*100 -> 34.35434033 | D40: =B40/'- 6 -'!B40 -> 7415.983708 | E40: 0 | F40: =E40/'- 3 -'!D40*100 -> 0 | G40: =IF('- 6 -'!C40=0,"",E40/'- 6 -'!C40) ->  | H40: 8905479 | I40: =H40/'- 3 -'!D40*100 -> 7.637579608 | J40: =IF('- 6 -'!D40=0,"",H40/'- 6 -'!D40) -> 6284.741708
A41: SUNRISE | B41: 17088711 | C41: =B41/'- 3 -'!D41*100 -> 23.65429114 | D41: =B41/'- 6 -'!B41 -> 8368.614594 | E41: 0 | F41: =E41/'- 3 -'!D41*100 -> 0 | G41: =IF('- 6 -'!C41=0,"",E41/'- 6 -'!C41) ->  | H41: 0 | I41: =H41/'- 3 -'!D41*100 -> 0 | J41: =IF('- 6 -'!D41=0,"",H41/'- 6 -'!D41) -> 
A42: SWAN VALLEY | B42: 7039775 | C42: =B42/'- 3 -'!D42*100 -> 32.17275549 | D42: =B42/'- 6 -'!B42 -> 7613.860048 | E42: 0 | F42: =E42/'- 3 -'!D42*100 -> 0 | G42: =IF('- 6 -'!C42=0,"",E42/'- 6 -'!C42) ->  | H42: 0 | I42: =H42/'- 3 -'!D42*100 -> 0 | J42: =IF('- 6 -'!D42=0,"",H42/'- 6 -'!D42) -> 
A43: TURTLE MOUNTAIN | B43: 7321211 | C43: =B43/'- 3 -'!D43*100 -> 50.82948044 | D43: =B43/'- 6 -'!B43 -> 7342.504262 | E43: 0 | F43: =E43/'- 3 -'!D43*100 -> 0 | G43: =IF('- 6 -'!C43=0,"",E43/'- 6 -'!C43) ->  | H43: 0 | I43: =H43/'- 3 -'!D43*100 -> 0 | J43: =IF('- 6 -'!D43=0,"",H43/'- 6 -'!D43) -> 
A44: TURTLE RIVER | B44: 6224757 | C44: =B44/'- 3 -'!D44*100 -> 51.90760602 | D44: =B44/'- 6 -'!B44 -> 10238.08717 | E44: 0 | F44: =E44/'- 3 -'!D44*100 -> 0 | G44: =IF('- 6 -'!C44=0,"",E44/'- 6 -'!C44) ->  | H44: 398319 | I44: =H44/'- 3 -'!D44*100 -> 3.321541021 | J44: =IF('- 6 -'!D44=0,"",H44/'- 6 -'!D44) -> 10765.37838
A45: WESTERN | B45: 6615278 | C45: =B45/'- 3 -'!D45*100 -> 27.52610355 | D45: =B45/'- 6 -'!B45 -> 8832.146862 | E45: 0 | F45: =E45/'- 3 -'!D45*100 -> 0 | G45: =IF('- 6 -'!C45=0,"",E45/'- 6 -'!C45) ->  | H45: 0 | I45: =H45/'- 3 -'!D45*100 -> 0 | J45: =IF('- 6 -'!D45=0,"",H45/'- 6 -'!D45) -> 
A46: WINNIPEG | B46: 141352929 | C46: =B46/'- 3 -'!D46*100 -> 33.51617166 | D46: =B46/'- 6 -'!B46 -> 8229.437254 | E46: 0 | F46: =E46/'- 3 -'!D46*100 -> 0 | G46: =IF('- 6 -'!C46=0,"",E46/'- 6 -'!C46) ->  | H46: 8698010 | I46: =H46/'- 3 -'!D46*100 -> 2.062383838 | J46: =IF('- 6 -'!D46=0,"",H46/'- 6 -'!D46) -> 6186.351351
A48: PROVINCE | B48: =SUM(B11:B46) -> 896789529 | C48: =B48/'- 3 -'!D48*100 -> 34.39311568 | D48: =B48/'- 6 -'!B48 -> 7645.081384 | E48: =SUM(E11:E46) -> 47144213 | F48: =E48/'- 3 -'!D48*100 -> 1.808045611 | G48: =E48/'- 6 -'!C48 -> 8152.206986 | H48: =SUM(H11:H46) -> 84480958 | I48: =H48/'- 3 -'!D48*100 -> 3.239961293 | J48: =H48/'- 6 -'!D48 -> 6282.513423
A50: WHITESHELL | B50: 1813446 | C50: =B50/'- 3 -'!D50*100 -> 51.62040523 | D50: =B50/'- 6 -'!B50 -> 9205.309645 | E50: 0 | F50: =E50/'- 3 -'!D50*100 -> 0 | G50: =IF('- 6 -'!C50=0,"",E50/'- 6 -'!C50) ->  | H50: 0 | I50: =H50/'- 3 -'!D50*100 -> 0 | J50: =IF('- 6 -'!D50=0,"",H50/'- 6 -'!D50) -> 
A51: MITT | B51: 535704 | C51: =B51/'- 3 -'!D51*100 -> 1.505937502 | D51: =B51/'- 6 -'!B51 -> 2587.942029 | E51: 0 | F51: =E51/'- 3 -'!D51*100 -> 0 | G51: =IF('- 6 -'!C51=0,"",E51/'- 6 -'!C51) ->  | H51: 0 | I51: =H51/'- 3 -'!D51*100 -> 0 | J51: =IF('- 6 -'!D51=0,"",H51/'- 6 -'!D51) -> 
A53: (1) 90% or more of Regular Instruction enrolment is in one language.

Sheet - 20 -
B2: ANALYSIS OF EXPENSE BY PROGRAM | I2: PAGE 3 OF 16
B3: =OPYEAR -> OPERATING FUND 2021/2022 ACTUAL
B5: FUNCTION 100: REGULAR INSTRUCTION
B6: DUAL TRACK SCHOOLS (1)
E7: NO. OF F.T.E. PUPILS | F7: % IN DUAL TRACK SCHOOLS
D8: PER PUPIL | H8: FRENCH IMMERSION
A9: DIVISION / DISTRICT | B9: AMOUNT | C9: % | F9: ENGLISH | G9: FRANÇAIS | I9: OTHER
A11: BEAUTIFUL PLAINS | B11: 0 | C11: =B11/'- 3 -'!D11*100 -> 0 | D11: =IF(E11=0,"",B11/E11) ->  | E11: =SUM('- 6 -'!E11:H11) -> 0 | F11: =IF(E11=0,"",'- 6 -'!E11/E11*100) ->  | G11: =IF(E11=0,"",'- 6 -'!F11/E11*100) ->  | H11: =IF(E11=0,"",'- 6 -'!G11/E11*100) ->  | I11: =IF(E11=0,"",'- 6 -'!H11/E11*100) -> 
A12: BORDER LAND | B12: 4497459 | C12: =B12/'- 3 -'!D12*100 -> 12.67392103 | D12: =IF(E12=0,"",B12/E12) -> 7932.026455 | E12: =SUM('- 6 -'!E12:H12) -> 567 | F12: =IF(E12=0,"",'- 6 -'!E12/E12*100) -> 72.04585538 | G12: =IF(E12=0,"",'- 6 -'!F12/E12*100) -> 0 | H12: =IF(E12=0,"",'- 6 -'!G12/E12*100) -> 27.95414462 | I12: =IF(E12=0,"",'- 6 -'!H12/E12*100) -> 0
A13: BRANDON | B13: 7333520 | C13: =B13/'- 3 -'!D13*100 -> 6.511642552 | D13: 6085.908714 | E13: =SUM('- 6 -'!E13:H13) -> 1205 | F13: =IF(E13=0,"",'- 6 -'!E13/E13*100) -> 53.19502075 | G13: =IF(E13=0,"",'- 6 -'!F13/E13*100) -> 0 | H13: =IF(E13=0,"",'- 6 -'!G13/E13*100) -> 46.80497925 | I13: =IF(E13=0,"",'- 6 -'!H13/E13*100) -> 0
A14: DSFM | B14: 0 | C14: =B14/'- 3 -'!D14*100 -> 0 | E14: =SUM('- 6 -'!E14:H14) -> 0 | F14: =IF(E14=0,"",'- 6 -'!E14/E14*100) ->  | G14: =IF(E14=0,"",'- 6 -'!F14/E14*100) ->  | H14: =IF(E14=0,"",'- 6 -'!G14/E14*100) ->  | I14: =IF(E14=0,"",'- 6 -'!H14/E14*100) -> 
A15: EVERGREEN | B15: 0 | C15: =B15/'- 3 -'!D15*100 -> 0 | E15: =SUM('- 6 -'!E15:H15) -> 0 | F15: =IF(E15=0,"",'- 6 -'!E15/E15*100) ->  | G15: =IF(E15=0,"",'- 6 -'!F15/E15*100) ->  | H15: =IF(E15=0,"",'- 6 -'!G15/E15*100) ->  | I15: =IF(E15=0,"",'- 6 -'!H15/E15*100) -> 
A16: FLIN FLON | B16: 2757520 | C16: =B16/'- 3 -'!D16*100 -> 17.14124307 | D16: 8110.352941 | E16: =SUM('- 6 -'!E16:H16) -> 340 | F16: =IF(E16=0,"",'- 6 -'!E16/E16*100) -> 68.23529412 | G16: =IF(E16=0,"",'- 6 -'!F16/E16*100) -> 0 | H16: =IF(E16=0,"",'- 6 -'!G16/E16*100) -> 31.76470588 | I16: =IF(E16=0,"",'- 6 -'!H16/E16*100) -> 0
A17: FORT LA BOSSE | B17: 0 | C17: =B17/'- 3 -'!D17*100 -> 0 | E17: =SUM('- 6 -'!E17:H17) -> 0 | F17: =IF(E17=0,"",'- 6 -'!E17/E17*100) ->  | G17: =IF(E17=0,"",'- 6 -'!F17/E17*100) ->  | H17: =IF(E17=0,"",'- 6 -'!G17/E17*100) ->  | I17: =IF(E17=0,"",'- 6 -'!H17/E17*100) -> 
A18: FRONTIER | B18: 0 | C18: =B18/'- 3 -'!D18*100 -> 0 | E18: =SUM('- 6 -'!E18:H18) -> 0 | F18: =IF(E18=0,"",'- 6 -'!E18/E18*100) ->  | G18: =IF(E18=0,"",'- 6 -'!F18/E18*100) ->  | H18: =IF(E18=0,"",'- 6 -'!G18/E18*100) ->  | I18: =IF(E18=0,"",'- 6 -'!H18/E18*100) -> 
A19: GARDEN VALLEY | B19: 0 | C19: =B19/'- 3 -'!D19*100 -> 0 | E19: =SUM('- 6 -'!E19:H19) -> 0 | F19: =IF(E19=0,"",'- 6 -'!E19/E19*100) ->  | G19: =IF(E19=0,"",'- 6 -'!F19/E19*100) ->  | H19: =IF(E19=0,"",'- 6 -'!G19/E19*100) ->  | I19: =IF(E19=0,"",'- 6 -'!H19/E19*100) -> 
A20: HANOVER | B20: 0 | C20: =B20/'- 3 -'!D20*100 -> 0 | E20: =SUM('- 6 -'!E20:H20) -> 0 | F20: =IF(E20=0,"",'- 6 -'!E20/E20*100) ->  | G20: =IF(E20=0,"",'- 6 -'!F20/E20*100) ->  | H20: =IF(E20=0,"",'- 6 -'!G20/E20*100) ->  | I20: =IF(E20=0,"",'- 6 -'!H20/E20*100) -> 
A21: INTERLAKE | B21: 7619054 | C21: =B21/'- 3 -'!D21*100 -> 18.60469035 | D21: 5890.26208 | E21: =SUM('- 6 -'!E21:H21) -> 1293.5 | F21: =IF(E21=0,"",'- 6 -'!E21/E21*100) -> 70.31310398 | G21: =IF(E21=0,"",'- 6 -'!F21/E21*100) -> 0 | H21: =IF(E21=0,"",'- 6 -'!G21/E21*100) -> 29.68689602 | I21: =IF(E21=0,"",'- 6 -'!H21/E21*100) -> 0
A22: KELSEY | B22: 4605112 | C22: =B22/'- 3 -'!D22*100 -> 21.71556936 | D22: 7321.322734 | E22: =SUM('- 6 -'!E22:H22) -> 629 | F22: =IF(E22=0,"",'- 6 -'!E22/E22*100) -> 80.92209857 | G22: =IF(E22=0,"",'- 6 -'!F22/E22*100) -> 0 | H22: =IF(E22=0,"",'- 6 -'!G22/E22*100) -> 19.07790143 | I22: =IF(E22=0,"",'- 6 -'!H22/E22*100) -> 0
A23: LAKESHORE | B23: 0 | C23: =B23/'- 3 -'!D23*100 -> 0 | E23: =SUM('- 6 -'!E23:H23) -> 0 | F23: =IF(E23=0,"",'- 6 -'!E23/E23*100) ->  | G23: =IF(E23=0,"",'- 6 -'!F23/E23*100) ->  | H23: =IF(E23=0,"",'- 6 -'!G23/E23*100) ->  | I23: =IF(E23=0,"",'- 6 -'!H23/E23*100) -> 
A24: LORD SELKIRK | B24: 5553196 | C24: =B24/'- 3 -'!D24*100 -> 8.902178721 | D24: 7888.0625 | E24: =SUM('- 6 -'!E24:H24) -> 704 | F24: =IF(E24=0,"",'- 6 -'!E24/E24*100) -> 76.42045455 | G24: =IF(E24=0,"",'- 6 -'!F24/E24*100) -> 0 | H24: =IF(E24=0,"",'- 6 -'!G24/E24*100) -> 12.07386364 | I24: =IF(E24=0,"",'- 6 -'!H24/E24*100) -> 11.50568182
A25: LOUIS RIEL | B25: 4117203 | C25: =B25/'- 3 -'!D25*100 -> 1.976960333 | D25: 6473.589623 | E25: =SUM('- 6 -'!E25:H25) -> 636 | F25: =IF(E25=0,"",'- 6 -'!E25/E25*100) -> 39.46540881 | G25: =IF(E25=0,"",'- 6 -'!F25/E25*100) -> 0 | H25: =IF(E25=0,"",'- 6 -'!G25/E25*100) -> 60.53459119 | I25: =IF(E25=0,"",'- 6 -'!H25/E25*100) -> 0
A26: MOUNTAIN VIEW | B26: 2826636 | C26: =B26/'- 3 -'!D26*100 -> 6.361994354 | D26: 5467.381044 | E26: =SUM('- 6 -'!E26:H26) -> 517 | F26: =IF(E26=0,"",'- 6 -'!E26/E26*100) -> 73.88781431 | G26: =IF(E26=0,"",'- 6 -'!F26/E26*100) -> 0 | H26: =IF(E26=0,"",'- 6 -'!G26/E26*100) -> 13.53965184 | I26: =IF(E26=0,"",'- 6 -'!H26/E26*100) -> 12.57253385
A27: MYSTERY LAKE | B27: 2594025 | C27: =B27/'- 3 -'!D27*100 -> 5.840255512 | D27: 7720.3125 | E27: =SUM('- 6 -'!E27:H27) -> 336 | F27: =IF(E27=0,"",'- 6 -'!E27/E27*100) -> 40.625 | G27: =IF(E27=0,"",'- 6 -'!F27/E27*100) -> 0 | H27: =IF(E27=0,"",'- 6 -'!G27/E27*100) -> 59.375 | I27: =IF(E27=0,"",'- 6 -'!H27/E27*100) -> 0
A28: PARK WEST | B28: 0 | C28: =B28/'- 3 -'!D28*100 -> 0 | E28: =SUM('- 6 -'!E28:H28) -> 0 | F28: =IF(E28=0,"",'- 6 -'!E28/E28*100) ->  | G28: =IF(E28=0,"",'- 6 -'!F28/E28*100) ->  | H28: =IF(E28=0,"",'- 6 -'!G28/E28*100) ->  | I28: =IF(E28=0,"",'- 6 -'!H28/E28*100) -> 
A29: PEMBINA TRAILS | B29: 27296877 | C29: =B29/'- 3 -'!D29*100 -> 14.74705868 | D29: 5857.573228 | E29: =SUM('- 6 -'!E29:H29) -> 4660.1 | F29: =IF(E29=0,"",'- 6 -'!E29/E29*100) -> 56.49234995 | G29: =IF(E29=0,"",'- 6 -'!F29/E29*100) -> 0 | H29: =IF(E29=0,"",'- 6 -'!G29/E29*100) -> 43.50765005 | I29: =IF(E29=0,"",'- 6 -'!H29/E29*100) -> 0
A30: PINE CREEK | B30: 0 | C30: =B30/'- 3 -'!D30*100 -> 0 | E30: =SUM('- 6 -'!E30:H30) -> 0 | F30: =IF(E30=0,"",'- 6 -'!E30/E30*100) ->  | G30: =IF(E30=0,"",'- 6 -'!F30/E30*100) ->  | H30: =IF(E30=0,"",'- 6 -'!G30/E30*100) ->  | I30: =IF(E30=0,"",'- 6 -'!H30/E30*100) -> 
A31: PORTAGE LA PRAIRIE | B31: 4387441 | C31: =B31/'- 3 -'!D31*100 -> 10.1041363 | D31: 5192.23787 | E31: =SUM('- 6 -'!E31:H31) -> 845 | F31: =IF(E31=0,"",'- 6 -'!E31/E31*100) -> 57.3964497 | G31: =IF(E31=0,"",'- 6 -'!F31/E31*100) -> 42.6035503 | H31: =IF(E31=0,"",'- 6 -'!G31/E31*100) -> 0 | I31: =IF(E31=0,"",'- 6 -'!H31/E31*100) -> 0
A32: PRAIRIE ROSE | B32: 3258785 | C32: =B32/'- 3 -'!D32*100 -> 9.696841963 | D32: 6970.663102 | E32: =SUM('- 6 -'!E32:H32) -> 467.5 | F32: =IF(E32=0,"",'- 6 -'!E32/E32*100) -> 73.04812834 | G32: =IF(E32=0,"",'- 6 -'!F32/E32*100) -> 0 | H32: =IF(E32=0,"",'- 6 -'!G32/E32*100) -> 26.95187166 | I32: =IF(E32=0,"",'- 6 -'!H32/E32*100) -> 0
A33: PRAIRIE SPIRIT | B33: 3015201 | C33: =B33/'- 3 -'!D33*100 -> 10.08004358 | D33: 6540.566161 | E33: =SUM('- 6 -'!E33:H33) -> 461 | F33: =IF(E33=0,"",'- 6 -'!E33/E33*100) -> 54.33839479 | G33: =IF(E33=0,"",'- 6 -'!F33/E33*100) -> 22.6681128 | H33: =IF(E33=0,"",'- 6 -'!G33/E33*100) -> 22.99349241 | I33: =IF(E33=0,"",'- 6 -'!H33/E33*100) -> 0
A34: RED RIVER VALLEY | B34: 1772563 | C34: =B34/'- 3 -'!D34*100 -> 5.236056213 | D34: 7757.387309 | E34: =SUM('- 6 -'!E34:H34) -> 228.5 | F34: =IF(E34=0,"",'- 6 -'!E34/E34*100) -> 36.76148796 | G34: =IF(E34=0,"",'- 6 -'!F34/E34*100) -> 63.23851204 | H34: =IF(E34=0,"",'- 6 -'!G34/E34*100) -> 0 | I34: =IF(E34=0,"",'- 6 -'!H34/E34*100) -> 0
A35: RIVER EAST TRANSCONA | B35: 30602500 | C35: =B35/'- 3 -'!D35*100 -> 14.32456231 | D35: 4965.922921 | E35: =SUM('- 6 -'!E35:H35) -> 6162.5 | F35: =IF(E35=0,"",'- 6 -'!E35/E35*100) -> 59.89452333 | G35: =IF(E35=0,"",'- 6 -'!F35/E35*100) -> 0 | H35: =IF(E35=0,"",'- 6 -'!G35/E35*100) -> 31.73225152 | I35: =IF(E35=0,"",'- 6 -'!H35/E35*100) -> 8.373225152
A36: ROLLING RIVER | B36: 0 | C36: =B36/'- 3 -'!D36*100 -> 0 | E36: =SUM('- 6 -'!E36:H36) -> 0 | F36: =IF(E36=0,"",'- 6 -'!E36/E36*100) ->  | G36: =IF(E36=0,"",'- 6 -'!F36/E36*100) ->  | H36: =IF(E36=0,"",'- 6 -'!G36/E36*100) ->  | I36: =IF(E36=0,"",'- 6 -'!H36/E36*100) -> 
A37: SEINE RIVER | B37: 8701481 | C37: =B37/'- 3 -'!D37*100 -> 14.91422063 | D37: 6328.349818 | E37: =SUM('- 6 -'!E37:H37) -> 1375 | F37: =IF(E37=0,"",'- 6 -'!E37/E37*100) -> 53.67272727 | G37: =IF(E37=0,"",'- 6 -'!F37/E37*100) -> 0 | H37: =IF(E37=0,"",'- 6 -'!G37/E37*100) -> 46.32727273 | I37: =IF(E37=0,"",'- 6 -'!H37/E37*100) -> 0
A38: SEVEN OAKS | B38: 23243118 | C38: =B38/'- 3 -'!D38*100 -> 14.31022874 | D38: 6979.915315 | E38: =SUM('- 6 -'!E38:H38) -> 3330 | F38: =IF(E38=0,"",'- 6 -'!E38/E38*100) -> 55.04504505 | G38: =IF(E38=0,"",'- 6 -'!F38/E38*100) -> 0 | H38: =IF(E38=0,"",'- 6 -'!G38/E38*100) -> 36.95195195 | I38: =IF(E38=0,"",'- 6 -'!H38/E38*100) -> 8.003003003
A39: SOUTHWEST HORIZON | B39: 0 | C39: =B39/'- 3 -'!D39*100 -> 0 | E39: =SUM('- 6 -'!E39:H39) -> 0 | F39: =IF(E39=0,"",'- 6 -'!E39/E39*100) ->  | G39: =IF(E39=0,"",'- 6 -'!F39/E39*100) ->  | H39: =IF(E39=0,"",'- 6 -'!G39/E39*100) ->  | I39: =IF(E39=0,"",'- 6 -'!H39/E39*100) -> 
A40: ST. JAMES-ASSINIBOIA | B40: 5160336 | C40: =B40/'- 3 -'!D40*100 -> 4.425643697 | D40: 5340.304253 | E40: =SUM('- 6 -'!E40:H40) -> 966.3 | F40: =IF(E40=0,"",'- 6 -'!E40/E40*100) -> 62.33053917 | G40: =IF(E40=0,"",'- 6 -'!F40/E40*100) -> 0 | H40: =IF(E40=0,"",'- 6 -'!G40/E40*100) -> 0 | I40: =IF(E40=0,"",'- 6 -'!H40/E40*100) -> 37.66946083
A41: SUNRISE | B41: 17023434 | C41: =B41/'- 3 -'!D41*100 -> 23.56393434 | D41: 6932.777031 | E41: =SUM('- 6 -'!E41:H41) -> 2455.5 | F41: =IF(E41=0,"",'- 6 -'!E41/E41*100) -> 65.93361841 | G41: =IF(E41=0,"",'- 6 -'!F41/E41*100) -> 0 | H41: =IF(E41=0,"",'- 6 -'!G41/E41*100) -> 31.05273875 | I41: =IF(E41=0,"",'- 6 -'!H41/E41*100) -> 3.013642843
A42: SWAN VALLEY | B42: 1884282 | C42: =B42/'- 3 -'!D42*100 -> 8.611432049 | D42: 7851.175 | E42: =SUM('- 6 -'!E42:H42) -> 240 | F42: =IF(E42=0,"",'- 6 -'!E42/E42*100) -> 78.45833333 | G42: =IF(E42=0,"",'- 6 -'!F42/E42*100) -> 0 | H42: =IF(E42=0,"",'- 6 -'!G42/E42*100) -> 21.54166667 | I42: =IF(E42=0,"",'- 6 -'!H42/E42*100) -> 0
A43: TURTLE MOUNTAIN | B43: 0 | C43: =B43/'- 3 -'!D43*100 -> 0 | E43: =SUM('- 6 -'!E43:H43) -> 0 | F43: =IF(E43=0,"",'- 6 -'!E43/E43*100) ->  | G43: =IF(E43=0,"",'- 6 -'!F43/E43*100) ->  | H43: =IF(E43=0,"",'- 6 -'!G43/E43*100) ->  | I43: =IF(E43=0,"",'- 6 -'!H43/E43*100) -> 
A44: TURTLE RIVER | B44: 0 | C44: =B44/'- 3 -'!D44*100 -> 0 | E44: =SUM('- 6 -'!E44:H44) -> 0 | F44: =IF(E44=0,"",'- 6 -'!E44/E44*100) ->  | G44: =IF(E44=0,"",'- 6 -'!F44/E44*100) ->  | H44: =IF(E44=0,"",'- 6 -'!G44/E44*100) ->  | I44: =IF(E44=0,"",'- 6 -'!H44/E44*100) -> 
A45: WESTERN | B45: 6863115 | C45: =B45/'- 3 -'!D45*100 -> 28.55735075 | D45: 6738.453608 | E45: =SUM('- 6 -'!E45:H45) -> 1018.5 | F45: =IF(E45=0,"",'- 6 -'!E45/E45*100) -> 52.13549337 | G45: =IF(E45=0,"",'- 6 -'!F45/E45*100) -> 0 | H45: =IF(E45=0,"",'- 6 -'!G45/E45*100) -> 47.86450663 | I45: =IF(E45=0,"",'- 6 -'!H45/E45*100) -> 0
A46: WINNIPEG | B46: 48696310 | C46: =B46/'- 3 -'!D46*100 -> 11.54637471 | D46: 6040.976306 | E46: =SUM('- 6 -'!E46:H46) -> 8061 | F46: =IF(E46=0,"",'- 6 -'!E46/E46*100) -> 60.78650292 | G46: =IF(E46=0,"",'- 6 -'!F46/E46*100) -> 0 | H46: =IF(E46=0,"",'- 6 -'!G46/E46*100) -> 33.74271182 | I46: =IF(E46=0,"",'- 6 -'!H46/E46*100) -> 5.470785262
A48: PROVINCE | B48: =SUM(B11:B46) -> 223809168 | C48: =B48/'- 3 -'!D48*100 -> 8.583390369 | D48: =B48/E48 -> 6132.026829 | E48: =SUM(E11:E46) -> 36498.4 | F48: =IF(E48=0,"",'- 6 -'!E48/E48*100) -> 60.01276768 | G48: =IF(E48=0,"",'- 6 -'!F48/E48*100) -> 1.668566293 | H48: =IF(E48=0,"",'- 6 -'!G48/E48*100) -> 33.36639414 | I48: =IF(E48=0,"",'- 6 -'!H48/E48*100) -> 4.95227188
A50: WHITESHELL | B50: 0 | C50: =B50/'- 3 -'!D50*100 -> 0 | D50: =IF(E50=0,"",B50/E50) ->  | E50: =SUM('- 6 -'!E50:H50) -> 0 | F50: =IF(E50=0,"",'- 6 -'!E50/E50*100) ->  | G50: =IF(E50=0,"",'- 6 -'!F50/E50*100) ->  | H50: =IF(E50=0,"",'- 6 -'!G50/E50*100) ->  | I50: =IF(E50=0,"",'- 6 -'!H50/E50*100) -> 
A51: MITT | B51: 0 | C51: =B51/'- 3 -'!D51*100 -> 0 | D51: =IF(E51=0,"",B51/E51) ->  | E51: =SUM('- 6 -'!E51:H51) -> 0 | F51: =IF(E51=0,"",'- 6 -'!E51/E51*100) ->  | G51: =IF(E51=0,"",'- 6 -'!F51/E51*100) ->  | H51: =IF(E51=0,"",'- 6 -'!G51/E51*100) ->  | I51: =IF(E51=0,"",'- 6 -'!H51/E51*100) -> 
A53: (1) No one language program comprises 90% or more of Regular Instruction enrolment.

Sheet - 21 -
B2: ANALYSIS OF EXPENSE BY PROGRAM | I2: PAGE 4 OF 16
B3: =OPYEAR -> OPERATING FUND 2021/2022 ACTUAL
B5: FUNCTION 200: STUDENT SUPPORT SERVICES (1)
B6: ADMINISTRATION / COORDINATION | E6: CLINICAL AND RELATED SERVICES | H6: SPECIAL PLACEMENT
D8: PER PUPIL | G8: PER PUPIL
A9: DIVISION / DISTRICT | B9: AMOUNT | C9: % | E9: AMOUNT | F9: % | H9: AMOUNT | I9: %
A11: BEAUTIFUL PLAINS | B11: 166611 | C11: =B11/'- 3 -'!$D11*100 -> 0.6920803734 | D11: =B11/'- 7 -'!$E11 -> 87.82867686 | E11: 234956 | F11: =E11/'- 3 -'!$D11*100 -> 0.9759765934 | G11: =E11/'- 7 -'!$E11 -> 123.8566157 | H11: 257897 | I11: =H11/'- 3 -'!$D11*100 -> 1.071270517
A12: BORDER LAND | B12: 213805 | C12: =B12/'- 3 -'!$D12*100 -> 0.6025063679 | D12: =B12/'- 7 -'!$E12 -> 110.5300978 | E12: 743814 | F12: =E12/'- 3 -'!$D12*100 -> 2.096081343 | G12: =E12/'- 7 -'!$E12 -> 384.5271821 | H12: 0 | I12: =H12/'- 3 -'!$D12*100 -> 0
A13: BRANDON | B13: 201711 | C13: =B13/'- 3 -'!$D13*100 -> 0.179104977 | D13: =B13/'- 7 -'!$E13 -> 23.23859447 | E13: 3530744 | F13: =E13/'- 3 -'!$D13*100 -> 3.135048772 | G13: =E13/'- 7 -'!$E13 -> 406.7677419 | H13: 1060351 | I13: =H13/'- 3 -'!$D13*100 -> 0.9415160375
A14: DSFM | B14: 505491 | C14: =B14/'- 3 -'!$D14*100 -> 0.5071531895 | D14: =B14/'- 7 -'!$E14 -> 87.07420301 | E14: 1230341 | F14: =E14/'- 3 -'!$D14*100 -> 1.23438669 | G14: =E14/'- 7 -'!$E14 -> 211.9344598 | H14: 873522 | I14: =H14/'- 3 -'!$D14*100 -> 0.8763943738
A15: EVERGREEN | B15: 171274 | C15: =B15/'- 3 -'!$D15*100 -> 0.784506642 | D15: =B15/'- 7 -'!$E15 -> 119.1057024 | E15: 329510 | F15: =E15/'- 3 -'!$D15*100 -> 1.509293784 | G15: =E15/'- 7 -'!$E15 -> 229.1446453 | H15: 16785 | I15: =H15/'- 3 -'!$D15*100 -> 0.07688232881
A16: FLIN FLON | B16: 106512 | C16: =B16/'- 3 -'!$D16*100 -> 0.6620978566 | D16: =B16/'- 7 -'!$E16 -> 112.6515071 | E16: 331536 | F16: =E16/'- 3 -'!$D16*100 -> 2.06088774 | G16: =E16/'- 7 -'!$E16 -> 350.6462189 | H16: 106759 | I16: =H16/'- 3 -'!$D16*100 -> 0.6636332533
A17: FORT LA BOSSE | B17: 140849 | C17: =B17/'- 3 -'!$D17*100 -> 0.6895431471 | D17: =B17/'- 7 -'!$E17 -> 98.6337535 | E17: 418278 | F17: =E17/'- 3 -'!$D17*100 -> 2.047730041 | G17: =E17/'- 7 -'!$E17 -> 292.9117647 | H17: 0 | I17: =H17/'- 3 -'!$D17*100 -> 0
A18: FRONTIER | B18: 0 | C18: =B18/'- 3 -'!$D18*100 -> 0 | D18: =B18/'- 7 -'!$E18 -> 0 | E18: 1312638 | F18: =E18/'- 3 -'!$D18*100 -> 0.8974372604 | G18: =E18/'- 7 -'!$E18 -> 212.7107438 | H18: 0 | I18: =H18/'- 3 -'!$D18*100 -> 0
A19: GARDEN VALLEY | B19: 179756 | C19: =B19/'- 3 -'!$D19*100 -> 0.3380336463 | D19: =B19/'- 7 -'!$E19 -> 47.7439575 | E19: 1246281 | F19: =E19/'- 3 -'!$D19*100 -> 2.343648673 | G19: =E19/'- 7 -'!$E19 -> 331.0175299 | H19: 1460959 | I19: =H19/'- 3 -'!$D19*100 -> 2.747353623
A20: HANOVER | B20: 467950 | C20: =B20/'- 3 -'!$D20*100 -> 0.4720730197 | D20: =B20/'- 7 -'!$E20 -> 60.34949703 | E20: 2454524 | F20: =E20/'- 3 -'!$D20*100 -> 2.476150351 | G20: =E20/'- 7 -'!$E20 -> 316.5493939 | H20: 840627 | I20: =H20/'- 3 -'!$D20*100 -> 0.8480336068
A21: INTERLAKE | B21: 181506 | C21: =B21/'- 3 -'!$D21*100 -> 0.4432128878 | D21: =B21/'- 7 -'!$E21 -> 62.17023463 | E21: 776119 | F21: =E21/'- 3 -'!$D21*100 -> 1.895176707 | G21: =E21/'- 7 -'!$E21 -> 265.8396986 | H21: 214147 | I21: =H21/'- 3 -'!$D21*100 -> 0.5229177564
A22: KELSEY | B22: 69382 | C22: =B22/'- 3 -'!$D22*100 -> 0.3271732878 | D22: =B22/'- 7 -'!$E22 -> 47.88267771 | E22: 305435 | F22: =E22/'- 3 -'!$D22*100 -> 1.440289602 | G22: =E22/'- 7 -'!$E22 -> 210.7902001 | H22: 961845 | I22: =H22/'- 3 -'!$D22*100 -> 4.535614294
A23: LAKESHORE | B23: 139785 | C23: =B23/'- 3 -'!$D23*100 -> 0.8528602132 | D23: =B23/'- 7 -'!$E23 -> 151.5284553 | E23: 219110 | F23: =E23/'- 3 -'!$D23*100 -> 1.336840157 | G23: =E23/'- 7 -'!$E23 -> 237.5176152 | H23: 0 | I23: =H23/'- 3 -'!$D23*100 -> 0
A24: LORD SELKIRK | B24: 355432 | C24: =B24/'- 3 -'!$D24*100 -> 0.5697834521 | D24: =B24/'- 7 -'!$E24 -> 96.79520697 | E24: 2105243 | F24: =E24/'- 3 -'!$D24*100 -> 3.374858268 | G24: =E24/'- 7 -'!$E24 -> 573.3232571 | H24: 244251 | I24: =H24/'- 3 -'!$D24*100 -> 0.3915521899
A25: LOUIS RIEL | B25: 1108343 | C25: =B25/'- 3 -'!$D25*100 -> 0.5321938575 | D25: =B25/'- 7 -'!$E25 -> 74.17634855 | E25: 4446184 | F25: =E25/'- 3 -'!$D25*100 -> 2.134927377 | G25: =E25/'- 7 -'!$E25 -> 297.562843 | H25: 10035649 | I25: =H25/'- 3 -'!$D25*100 -> 4.818824817
A26: MOUNTAIN VIEW | B26: 141369 | C26: =B26/'- 3 -'!$D26*100 -> 0.3181834448 | D26: =B26/'- 7 -'!$E26 -> 47.12315708 | E26: 822162 | F26: =E26/'- 3 -'!$D26*100 -> 1.850464652 | G26: =E26/'- 7 -'!$E26 -> 274.0549135 | H26: 4452 | I26: =H26/'- 3 -'!$D26*100 -> 0.01002024982
A27: MYSTERY LAKE | B27: 232461 | C27: =B27/'- 3 -'!$D27*100 -> 0.5233687557 | D27: =B27/'- 7 -'!$E27 -> 84.20974461 | E27: 383088 | F27: =E27/'- 3 -'!$D27*100 -> 0.8624943104 | G27: =E27/'- 7 -'!$E27 -> 138.7748596 | H27: 2719273 | I27: =H27/'- 3 -'!$D27*100 -> 6.122242124
A28: PARK WEST | B28: 123885 | C28: =B28/'- 3 -'!$D28*100 -> 0.4051796669 | D28: =B28/'- 7 -'!$E28 -> 61.49664929 | E28: 386577 | F28: =E28/'- 3 -'!$D28*100 -> 1.264343061 | G28: =E28/'- 7 -'!$E28 -> 191.897245 | H28: 0 | I28: =H28/'- 3 -'!$D28*100 -> 0
A29: PEMBINA TRAILS | B29: 644311 | C29: =B29/'- 3 -'!$D29*100 -> 0.3480871503 | D29: =B29/'- 7 -'!$E29 -> 43.8345568 | E29: 3731405 | F29: =E29/'- 3 -'!$D29*100 -> 2.015880736 | G29: =E29/'- 7 -'!$E29 -> 253.859525 | H29: 664319 | I29: =H29/'- 3 -'!$D29*100 -> 0.3588964143
A30: PINE CREEK | B30: 109332 | C30: =B30/'- 3 -'!$D30*100 -> 0.6509130685 | D30: =B30/'- 7 -'!$E30 -> 98.94298643 | E30: 230582 | F30: =E30/'- 3 -'!$D30*100 -> 1.372780496 | G30: =E30/'- 7 -'!$E30 -> 208.6714932 | H30: 0 | I30: =H30/'- 3 -'!$D30*100 -> 0
A31: PORTAGE LA PRAIRIE | B31: 186737 | C31: =B31/'- 3 -'!$D31*100 -> 0.4300493386 | D31: =B31/'- 7 -'!$E31 -> 57.07121027 | E31: 602623 | F31: =E31/'- 3 -'!$D31*100 -> 1.387821495 | G31: =E31/'- 7 -'!$E31 -> 184.1757335 | H31: 1116967 | I31: =H31/'- 3 -'!$D31*100 -> 2.572339277
A32: PRAIRIE ROSE | B32: 179323 | C32: =B32/'- 3 -'!$D32*100 -> 0.5335935912 | D32: =B32/'- 7 -'!$E32 -> 79.78776418 | E32: 672500 | F32: =E32/'- 3 -'!$D32*100 -> 2.001091272 | G32: =E32/'- 7 -'!$E32 -> 299.2213571 | H32: 0 | I32: =H32/'- 3 -'!$D32*100 -> 0
A33: PRAIRIE SPIRIT | B33: 170341 | C33: =B33/'- 3 -'!$D33*100 -> 0.5694627668 | D33: =B33/'- 7 -'!$E33 -> 83.58243376 | E33: 550764 | F33: =E33/'- 3 -'!$D33*100 -> 1.841245451 | G33: =E33/'- 7 -'!$E33 -> 270.2473013 | H33: 0 | I33: =H33/'- 3 -'!$D33*100 -> 0
A34: RED RIVER VALLEY | B34: 246458 | C34: =B34/'- 3 -'!$D34*100 -> 0.7280237386 | D34: =B34/'- 7 -'!$E34 -> 112.435219 | E34: 617870 | F34: =E34/'- 3 -'!$D34*100 -> 1.825154904 | G34: =E34/'- 7 -'!$E34 -> 281.875 | H34: 676063 | I34: =H34/'- 3 -'!$D34*100 -> 1.997053911
A35: RIVER EAST TRANSCONA | B35: 1040879 | C35: =B35/'- 3 -'!$D35*100 -> 0.4872195438 | D35: =B35/'- 7 -'!$E35 -> 63.50501815 | E35: 3999237 | F35: =E35/'- 3 -'!$D35*100 -> 1.871981687 | G35: =E35/'- 7 -'!$E35 -> 243.9972545 | H35: 937349 | I35: =H35/'- 3 -'!$D35*100 -> 0.4387587339
A36: ROLLING RIVER | B36: 156773 | C36: =B36/'- 3 -'!$D36*100 -> 0.6030759246 | D36: =B36/'- 7 -'!$E36 -> 89.53340948 | E36: 497677 | F36: =E36/'- 3 -'!$D36*100 -> 1.914468798 | G36: =E36/'- 7 -'!$E36 -> 284.2244432 | H36: 0 | I36: =H36/'- 3 -'!$D36*100 -> 0
A37: SEINE RIVER | B37: 181901 | C37: =B37/'- 3 -'!$D37*100 -> 0.3117758514 | D37: =B37/'- 7 -'!$E37 -> 41.0426444 | E37: 1218096 | F37: =E37/'- 3 -'!$D37*100 -> 2.087800053 | G37: =E37/'- 7 -'!$E37 -> 274.8411552 | H37: 0 | I37: =H37/'- 3 -'!$D37*100 -> 0
A38: SEVEN OAKS | B38: 642750 | C38: =B38/'- 3 -'!$D38*100 -> 0.3957257165 | D38: =B38/'- 7 -'!$E38 -> 56.61698642 | E38: 2234024 | F38: =E38/'- 3 -'!$D38*100 -> 1.375434847 | G38: =E38/'- 7 -'!$E38 -> 196.7852298 | H38: 221112 | I38: =H38/'- 3 -'!$D38*100 -> 0.1361333405
A39: SOUTHWEST HORIZON | B39: 212045 | C39: =B39/'- 3 -'!$D39*100 -> 0.8798414099 | D39: =B39/'- 7 -'!$E39 -> 144.7900307 | E39: 289734 | F39: =E39/'- 3 -'!$D39*100 -> 1.20219751 | G39: =E39/'- 7 -'!$E39 -> 197.83817 | H39: 0 | I39: =H39/'- 3 -'!$D39*100 -> 0
A40: ST. JAMES-ASSINIBOIA | B40: 200138 | C40: =B40/'- 3 -'!$D40*100 -> 0.1716437608 | D40: =B40/'- 7 -'!$E40 -> 25.10669259 | E40: 3264680 | F40: =E40/'- 3 -'!$D40*100 -> 2.79987785 | G40: =E40/'- 7 -'!$E40 -> 409.5440005 | H40: 448281 | I40: =H40/'- 3 -'!$D40*100 -> 0.3844579078
A41: SUNRISE | B41: 378071 | C41: =B41/'- 3 -'!$D41*100 -> 0.5233280325 | D41: =B41/'- 7 -'!$E41 -> 84.06247916 | E41: 2291955 | F41: =E41/'- 3 -'!$D41*100 -> 3.172537171 | G41: =E41/'- 7 -'!$E41 -> 509.606448 | H41: 649289 | I41: =H41/'- 3 -'!$D41*100 -> 0.8987495335
A42: SWAN VALLEY | B42: 160618 | C42: =B42/'- 3 -'!$D42*100 -> 0.7340467047 | D42: =B42/'- 7 -'!$E42 -> 121.3860339 | E42: 381332 | F42: =E42/'- 3 -'!$D42*100 -> 1.742740527 | G42: =E42/'- 7 -'!$E42 -> 288.1892382 | H42: 0 | I42: =H42/'- 3 -'!$D42*100 -> 0
A43: TURTLE MOUNTAIN | B43: 112030 | C43: =B43/'- 3 -'!$D43*100 -> 0.7777984672 | D43: =B43/'- 7 -'!$E43 -> 109.1378471 | E43: 317991 | F43: =E43/'- 3 -'!$D43*100 -> 2.207738216 | G43: =E43/'- 7 -'!$E43 -> 309.7817828 | H43: 0 | I43: =H43/'- 3 -'!$D43*100 -> 0
A44: TURTLE RIVER | B44: 100510 | C44: =B44/'- 3 -'!$D44*100 -> 0.8381425141 | D44: =B44/'- 7 -'!$E44 -> 155.8294574 | E44: 167079 | F44: =E44/'- 3 -'!$D44*100 -> 1.393254533 | G44: =E44/'- 7 -'!$E44 -> 259.0372093 | H44: 0 | I44: =H44/'- 3 -'!$D44*100 -> 0
A45: WESTERN | B45: 154284 | C45: =B45/'- 3 -'!$D45*100 -> 0.6419741333 | D45: =B45/'- 7 -'!$E45 -> 85.8325452 | E45: 309024 | F45: =E45/'- 3 -'!$D45*100 -> 1.285845678 | G45: =E45/'- 7 -'!$E45 -> 171.9187761 | H45: 233682 | I45: =H45/'- 3 -'!$D45*100 -> 0.9723483927
A46: WINNIPEG | B46: 723005 | C46: =B46/'- 3 -'!$D46*100 -> 0.1714316064 | D46: =B46/'- 7 -'!$E46 -> 26.44350164 | E46: 14868210 | F46: =E46/'- 3 -'!$D46*100 -> 3.525399029 | G46: =E46/'- 7 -'!$E46 -> 543.7964267 | H46: 28977217 | I46: =H46/'- 3 -'!$D46*100 -> 6.87078355
A48: PROVINCE | B48: =SUM(B11:B46) -> 10105628 | C48: =B48/'- 3 -'!$D48*100 -> 0.3875647759 | D48: =B48/'- 7 -'!$E48 -> 57.07954785 | E48: =SUM(E11:E46) -> 57521323 | F48: =E48/'- 3 -'!$D48*100 -> 2.206022096 | G48: =E48/'- 7 -'!$E48 -> 324.8972858 | H48: =SUM(H11:H46) -> 52720796 | I48: =H48/'- 3 -'!$D48*100 -> 2.021915262
A50: WHITESHELL | B50: 30270 | C50: =B50/'- 3 -'!$D50*100 -> 0.8616466474 | D50: =B50/'- 7 -'!$E50 -> 153.6548223 | E50: 64780 | F50: =E50/'- 3 -'!$D50*100 -> 1.843986449 | G50: =E50/'- 7 -'!$E50 -> 328.8324873 | H50: 0 | I50: =H50/'- 3 -'!$D50*100 -> 0
A51: MITT | B51: 0 | C51: =B51/'- 3 -'!$D51*100 -> 0 | D51: =B51/'- 7 -'!$E51 -> 0 | E51: 0 | F51: =E51/'- 3 -'!$D51*100 -> 0 | G51: =E51/'- 7 -'!$E51 -> 0 | H51: 0 | I51: =H51/'- 3 -'!$D51*100 -> 0
A53: For a more complete description of programming under Function 100 see “Expense Definitions” on page iii.

Sheet - 22 -
C2: ANALYSIS OF EXPENSE BY PROGRAM | J2: PAGE 5 OF 16
C3: =OPYEAR -> OPERATING FUND 2021/2022 ACTUAL
B5: FUNCTION 200: STUDENT SUPPORT SERVICES
B6: REGULAR PLACEMENT (1) | E6: RESOURCE SERVICES | H6: COUNSELLING AND GUIDANCE
D8: PER PUPIL | G8: PER PUPIL | J8: PER PUPIL
A9: DIVISION / DISTRICT | B9: AMOUNT | C9: % | E9: AMOUNT | F9: % | H9: AMOUNT | I9: %
A11: BEAUTIFUL PLAINS | B11: 949462 | C11: =B11/'- 3 -'!$D11*100 -> 3.943941369 | D11: =B11/'- 7 -'!$E11 -> 500.5071165 | E11: 1089512 | F11: =E11/'- 3 -'!$D11*100 -> 4.525690811 | G11: =E11/'- 7 -'!$E11 -> 574.3342119 | H11: 350093 | I11: =H11/'- 3 -'!$D11*100 -> 1.454240681 | J11: =H11/'- 7 -'!$E11 -> 184.5508698
A12: BORDER LAND | B12: 2489113 | C12: =B12/'- 3 -'!$D12*100 -> 7.01436558 | D12: =B12/'- 7 -'!$E12 -> 1286.788912 | E12: 1537508 | F12: =E12/'- 3 -'!$D12*100 -> 4.33272543 | G12: =E12/'- 7 -'!$E12 -> 794.8406708 | H12: 522573 | I12: =H12/'- 3 -'!$D12*100 -> 1.472620192 | J12: =H12/'- 7 -'!$E12 -> 270.1529188
A13: BRANDON | B13: 11555116 | C13: =B13/'- 3 -'!$D13*100 -> 10.26011861 | D13: =B13/'- 7 -'!$E13 -> 1331.234562 | E13: 4413795 | F13: =E13/'- 3 -'!$D13*100 -> 3.919135059 | G13: =E13/'- 7 -'!$E13 -> 508.5017281 | H13: 3079234 | I13: =H13/'- 3 -'!$D13*100 -> 2.734140105 | J13: =H13/'- 7 -'!$E13 -> 354.7504608
A14: DSFM | B14: 4886404 | C14: =B14/'- 3 -'!$D14*100 -> 4.902471802 | D14: =B14/'- 7 -'!$E14 -> 841.7157455 | E14: 3347767 | F14: =E14/'- 3 -'!$D14*100 -> 3.358775353 | G14: =E14/'- 7 -'!$E14 -> 576.6752393 | H14: 2085625 | I14: =H14/'- 3 -'!$D14*100 -> 2.092483092 | J14: =H14/'- 7 -'!$E14 -> 359.2628448
A15: EVERGREEN | B15: 1515078 | C15: =B15/'- 3 -'!$D15*100 -> 6.939691687 | D15: =B15/'- 7 -'!$E15 -> 1053.600834 | E15: 800106 | F15: =E15/'- 3 -'!$D15*100 -> 3.664820529 | G15: =E15/'- 7 -'!$E15 -> 556.4019471 | H15: 497258 | I15: =H15/'- 3 -'!$D15*100 -> 2.27764987 | J15: =H15/'- 7 -'!$E15 -> 345.798331
A16: FLIN FLON | B16: 1178382 | C16: =B16/'- 3 -'!$D16*100 -> 7.325035644 | D16: =B16/'- 7 -'!$E16 -> 1246.305658 | E16: 570630 | F16: =E16/'- 3 -'!$D16*100 -> 3.547139289 | G16: =E16/'- 7 -'!$E16 -> 603.5219461 | H16: 207433 | I16: =H16/'- 3 -'!$D16*100 -> 1.289441046 | J16: =H16/'- 7 -'!$E16 -> 219.3897409
A17: FORT LA BOSSE | B17: 1054250 | C17: =B17/'- 3 -'!$D17*100 -> 5.161207129 | D17: =B17/'- 7 -'!$E17 -> 738.2703081 | E17: 665826 | F17: =E17/'- 3 -'!$D17*100 -> 3.25963092 | G17: =E17/'- 7 -'!$E17 -> 466.2647059 | H17: 200942 | I17: =H17/'- 3 -'!$D17*100 -> 0.9837356252 | J17: =H17/'- 7 -'!$E17 -> 140.7156863
A18: FRONTIER | B18: 10258784 | C18: =B18/'- 3 -'!$D18*100 -> 7.013826362 | D18: =B18/'- 7 -'!$E18 -> 1662.418409 | E18: 4130373 | F18: =E18/'- 3 -'!$D18*100 -> 2.823894044 | G18: =E18/'- 7 -'!$E18 -> 669.3198833 | H18: 5764956 | I18: =H18/'- 3 -'!$D18*100 -> 3.941441829 | J18: =H18/'- 7 -'!$E18 -> 934.201264
A19: GARDEN VALLEY | B19: 3310268 | C19: =B19/'- 3 -'!$D19*100 -> 6.225004798 | D19: =B19/'- 7 -'!$E19 -> 879.2212483 | E19: 2515796 | F19: =E19/'- 3 -'!$D19*100 -> 4.730989204 | G19: =E19/'- 7 -'!$E19 -> 668.2061089 | H19: 1124261 | I19: =H19/'- 3 -'!$D19*100 -> 2.114188374 | J19: =H19/'- 7 -'!$E19 -> 298.6084993
A20: HANOVER | B20: 5631954 | C20: =B20/'- 3 -'!$D20*100 -> 5.68157609 | D20: =B20/'- 7 -'!$E20 -> 726.3288625 | E20: 4842086 | F20: =E20/'- 3 -'!$D20*100 -> 4.884748711 | G20: =E20/'- 7 -'!$E20 -> 624.4629868 | H20: 2798394 | I20: =H20/'- 3 -'!$D20*100 -> 2.823050125 | J20: =H20/'- 7 -'!$E20 -> 360.8968274
A21: INTERLAKE | B21: 2812657 | C21: =B21/'- 3 -'!$D21*100 -> 6.868124643 | D21: =B21/'- 7 -'!$E21 -> 963.403665 | E21: 2496989 | F21: =E21/'- 3 -'!$D21*100 -> 6.097306456 | G21: =E21/'- 7 -'!$E21 -> 855.2796712 | H21: 1335292 | I21: =H21/'- 3 -'!$D21*100 -> 3.260600881 | J21: =H21/'- 7 -'!$E21 -> 457.3700976
A22: KELSEY | B22: 779513 | C22: =B22/'- 3 -'!$D22*100 -> 3.675821266 | D22: =B22/'- 7 -'!$E22 -> 537.9661836 | E22: 1509049 | F22: =E22/'- 3 -'!$D22*100 -> 7.115974211 | G22: =E22/'- 7 -'!$E22 -> 1041.441684 | H22: 624619 | I22: =H22/'- 3 -'!$D22*100 -> 2.945413102 | J22: =H22/'- 7 -'!$E22 -> 431.0690131
A23: LAKESHORE | B23: 1355467 | C23: =B23/'- 3 -'!$D23*100 -> 8.270013768 | D23: =B23/'- 7 -'!$E23 -> 1469.340921 | E23: 651593 | F23: =E23/'- 3 -'!$D23*100 -> 3.975517723 | G23: =E23/'- 7 -'!$E23 -> 706.3338753 | H23: 371911 | I23: =H23/'- 3 -'!$D23*100 -> 2.269113959 | J23: =H23/'- 7 -'!$E23 -> 403.1555556
A24: LORD SELKIRK | B24: 3380071 | C24: =B24/'- 3 -'!$D24*100 -> 5.418500649 | D24: =B24/'- 7 -'!$E24 -> 920.4986383 | E24: 2778553 | F24: =E24/'- 3 -'!$D24*100 -> 4.454223368 | G24: =E24/'- 7 -'!$E24 -> 756.6865468 | H24: 1723397 | I24: =H24/'- 3 -'!$D24*100 -> 2.762731245 | J24: =H24/'- 7 -'!$E24 -> 469.334695
A25: LOUIS RIEL | B25: 12783440 | C25: =B25/'- 3 -'!$D25*100 -> 6.138233602 | D25: =B25/'- 7 -'!$E25 -> 855.5374113 | E25: 9070107 | F25: =E25/'- 3 -'!$D25*100 -> 4.355199818 | G25: =E25/'- 7 -'!$E25 -> 607.0209477 | H25: 3951817 | I25: =H25/'- 3 -'!$D25*100 -> 1.897546818 | J25: =H25/'- 7 -'!$E25 -> 264.4771115
A26: MOUNTAIN VIEW | B26: 1862318 | C26: =B26/'- 3 -'!$D26*100 -> 4.191574933 | D26: =B26/'- 7 -'!$E26 -> 620.7747359 | E26: 2348183 | F26: =E26/'- 3 -'!$D26*100 -> 5.285125848 | G26: =E26/'- 7 -'!$E26 -> 782.7302758 | H26: 1308921 | I26: =H26/'- 3 -'!$D26*100 -> 2.94602772 | J26: =H26/'- 7 -'!$E26 -> 436.3084544
A27: MYSTERY LAKE | B27: 1829677 | C27: =B27/'- 3 -'!$D27*100 -> 4.119382498 | D27: =B27/'- 7 -'!$E27 -> 662.8063757 | E27: 2603579 | F27: =E27/'- 3 -'!$D27*100 -> 5.861765636 | G27: =E27/'- 7 -'!$E27 -> 943.1548632 | H27: 1308776 | I27: =H27/'- 3 -'!$D27*100 -> 2.946612406 | J27: =H27/'- 7 -'!$E27 -> 474.1083137
A28: PARK WEST | B28: 1136475 | C28: =B28/'- 3 -'!$D28*100 -> 3.716967849 | D28: =B28/'- 7 -'!$E28 -> 564.1474311 | E28: 1480853 | F28: =E28/'- 3 -'!$D28*100 -> 4.843294389 | G28: =E28/'- 7 -'!$E28 -> 735.0970464 | H28: 567354 | I28: =H28/'- 3 -'!$D28*100 -> 1.85559434 | J28: =H28/'- 7 -'!$E28 -> 281.6351452
A29: PEMBINA TRAILS | B29: 13858042 | C29: =B29/'- 3 -'!$D29*100 -> 7.486767025 | D29: =B29/'- 7 -'!$E29 -> 942.8073231 | E29: 16806291 | F29: =E29/'- 3 -'!$D29*100 -> 9.079550003 | G29: =E29/'- 7 -'!$E29 -> 1143.386218 | H29: 3952430 | I29: =H29/'- 3 -'!$D29*100 -> 2.135288852 | J29: =H29/'- 7 -'!$E29 -> 268.8965691
A30: PINE CREEK | B30: 344066 | C30: =B30/'- 3 -'!$D30*100 -> 2.048412686 | D30: =B30/'- 7 -'!$E30 -> 311.3719457 | E30: 547665 | F30: =E30/'- 3 -'!$D30*100 -> 3.260548656 | G30: =E30/'- 7 -'!$E30 -> 495.6244344 | H30: 250537 | I30: =H30/'- 3 -'!$D30*100 -> 1.491583502 | J30: =H30/'- 7 -'!$E30 -> 226.7303167
A31: PORTAGE LA PRAIRIE | B31: 2996790 | C31: =B31/'- 3 -'!$D31*100 -> 6.901511523 | D31: =B31/'- 7 -'!$E31 -> 915.8893643 | E31: 1731076 | F31: =E31/'- 3 -'!$D31*100 -> 3.986612663 | G31: =E31/'- 7 -'!$E31 -> 529.0574572 | H31: 1379207 | I31: =H31/'- 3 -'!$D31*100 -> 3.17626961 | J31: =H31/'- 7 -'!$E31 -> 421.5180318
A32: PRAIRIE ROSE | B32: 1302781 | C32: =B32/'- 3 -'!$D32*100 -> 3.87655567 | D32: =B32/'- 7 -'!$E32 -> 579.657842 | E32: 1937362 | F32: =E32/'- 3 -'!$D32*100 -> 5.76481515 | G32: =E32/'- 7 -'!$E32 -> 862.007564 | H32: 769895 | I32: =H32/'- 3 -'!$D32*100 -> 2.290899873 | J32: =H32/'- 7 -'!$E32 -> 342.5561735
A33: PRAIRIE SPIRIT | B33: 1233079 | C33: =B33/'- 3 -'!$D33*100 -> 4.122275782 | D33: =B33/'- 7 -'!$E33 -> 605.0436703 | E33: 1758634 | F33: =E33/'- 3 -'!$D33*100 -> 5.879245651 | G33: =E33/'- 7 -'!$E33 -> 862.9214917 | H33: 504289 | I33: =H33/'- 3 -'!$D33*100 -> 1.685876032 | J33: =H33/'- 7 -'!$E33 -> 247.4430815
A34: RED RIVER VALLEY | B34: 1621531 | C34: =B34/'- 3 -'!$D34*100 -> 4.78991577 | D34: =B34/'- 7 -'!$E34 -> 739.7495438 | E34: 1851004 | F34: =E34/'- 3 -'!$D34*100 -> 5.467766728 | G34: =E34/'- 7 -'!$E34 -> 844.4361314 | H34: 994076 | I34: =H34/'- 3 -'!$D34*100 -> 2.936447289 | J34: =H34/'- 7 -'!$E34 -> 453.5018248
A35: RIVER EAST TRANSCONA | B35: 20959286 | C35: =B35/'- 3 -'!$D35*100 -> 9.810721288 | D35: =B35/'- 7 -'!$E35 -> 1278.745981 | E35: 10889818 | F35: =E35/'- 3 -'!$D35*100 -> 5.09735729 | G35: =E35/'- 7 -'!$E35 -> 664.3981575 | H35: 4839672 | I35: =H35/'- 3 -'!$D35*100 -> 2.26537646 | J35: =H35/'- 7 -'!$E35 -> 295.2729935
A36: ROLLING RIVER | B36: 811292 | C36: =B36/'- 3 -'!$D36*100 -> 3.120886077 | D36: =B36/'- 7 -'!$E36 -> 463.3306682 | E36: 1440444 | F36: =E36/'- 3 -'!$D36*100 -> 5.541114204 | G36: =E36/'- 7 -'!$E36 -> 822.6407767 | H36: 474609 | I36: =H36/'- 3 -'!$D36*100 -> 1.825730588 | J36: =H36/'- 7 -'!$E36 -> 271.050257
A37: SEINE RIVER | B37: 4673122 | C37: =B37/'- 3 -'!$D37*100 -> 8.009667843 | D37: =B37/'- 7 -'!$E37 -> 1054.404783 | E37: 2747780 | F37: =E37/'- 3 -'!$D37*100 -> 4.709657721 | G37: =E37/'- 7 -'!$E37 -> 619.9864621 | H37: 1962184 | I37: =H37/'- 3 -'!$D37*100 -> 3.363156812 | J37: =H37/'- 7 -'!$E37 -> 442.7310469
A38: SEVEN OAKS | B38: 15286431 | C38: =B38/'- 3 -'!$D38*100 -> 9.41148792 | D38: =B38/'- 7 -'!$E38 -> 1346.513662 | E38: 6803624 | F38: =E38/'- 3 -'!$D38*100 -> 4.188827666 | G38: =E38/'- 7 -'!$E38 -> 599.3009531 | H38: 3354327 | I38: =H38/'- 3 -'!$D38*100 -> 2.065178461 | J38: =H38/'- 7 -'!$E38 -> 295.4677343
A39: SOUTHWEST HORIZON | B39: 1690419 | C39: =B39/'- 3 -'!$D39*100 -> 7.014080201 | D39: =B39/'- 7 -'!$E39 -> 1154.263571 | E39: 751510 | F39: =E39/'- 3 -'!$D39*100 -> 3.118251399 | G39: =E39/'- 7 -'!$E39 -> 513.1512462 | H39: 565696 | I39: =H39/'- 3 -'!$D39*100 -> 2.34725066 | J39: =H39/'- 7 -'!$E39 -> 386.2724479
A40: ST. JAMES-ASSINIBOIA | B40: 12847304 | C40: =B40/'- 3 -'!$D40*100 -> 11.01819532 | D40: =B40/'- 7 -'!$E40 -> 1611.654519 | E40: 6316050 | F40: =E40/'- 3 -'!$D40*100 -> 5.416815276 | G40: =E40/'- 7 -'!$E40 -> 792.3289218 | H40: 3365988 | I40: =H40/'- 3 -'!$D40*100 -> 2.88676233 | J40: =H40/'- 7 -'!$E40 -> 422.2527755
A41: SUNRISE | B41: 5265570 | C41: =B41/'- 3 -'!$D41*100 -> 7.288631998 | D41: =B41/'- 7 -'!$E41 -> 1170.777098 | E41: 5176204 | F41: =E41/'- 3 -'!$D41*100 -> 7.164931071 | G41: =E41/'- 7 -'!$E41 -> 1150.906948 | H41: 994009 | I41: =H41/'- 3 -'!$D41*100 -> 1.375912922 | J41: =H41/'- 7 -'!$E41 -> 221.0136743
A42: SWAN VALLEY | B42: 2498340 | C42: =B42/'- 3 -'!$D42*100 -> 11.41776292 | D42: =B42/'- 7 -'!$E42 -> 1888.104595 | E42: 856286 | F42: =E42/'- 3 -'!$D42*100 -> 3.913346677 | G42: =E42/'- 7 -'!$E42 -> 647.1327086 | H42: 523166 | I42: =H42/'- 3 -'!$D42*100 -> 2.390941727 | J42: =H42/'- 7 -'!$E42 -> 395.3793833
A43: TURTLE MOUNTAIN | B43: 228361 | C43: =B43/'- 3 -'!$D43*100 -> 1.585457786 | D43: =B43/'- 7 -'!$E43 -> 222.46566 | E43: 1652000 | F43: =E43/'- 3 -'!$D43*100 -> 11.46945522 | G43: =E43/'- 7 -'!$E43 -> 1609.352168 | H43: 266238 | I43: =H43/'- 3 -'!$D43*100 -> 1.848429066 | J43: =H43/'- 7 -'!$E43 -> 259.364832
A44: TURTLE RIVER | B44: 719807 | C44: =B44/'- 3 -'!$D44*100 -> 6.002396265 | D44: =B44/'- 7 -'!$E44 -> 1115.979845 | E44: 317442 | F44: =E44/'- 3 -'!$D44*100 -> 2.647116068 | G44: =E44/'- 7 -'!$E44 -> 492.1581395 | H44: 59386 | I44: =H44/'- 3 -'!$D44*100 -> 0.4952137234 | J44: =H44/'- 7 -'!$E44 -> 92.07131783
A45: WESTERN | B45: 930585 | C45: =B45/'- 3 -'!$D45*100 -> 3.87215459 | D45: =B45/'- 7 -'!$E45 -> 517.7107093 | E45: 998879 | F45: =E45/'- 3 -'!$D45*100 -> 4.15632522 | G45: =E45/'- 7 -'!$E45 -> 555.7045897 | H45: 608108 | I45: =H45/'- 3 -'!$D45*100 -> 2.530331118 | J45: =H45/'- 7 -'!$E45 -> 338.3076495
A46: WINNIPEG | B46: 22758202 | C46: =B46/'- 3 -'!$D46*100 -> 5.396193842 | D46: =B46/'- 7 -'!$E46 -> 832.3684509 | E46: 18931889 | F46: =E46/'- 3 -'!$D46*100 -> 4.488937344 | G46: =E46/'- 7 -'!$E46 -> 692.4232028 | H46: 6424727 | I46: =H46/'- 3 -'!$D46*100 -> 1.523366049 | J46: =H46/'- 7 -'!$E46 -> 234.9807801
A48: PROVINCE | B48: =SUM(B11:B46) -> 178793437 | C48: =B48/'- 3 -'!$D48*100 -> 6.85697498 | D48: =B48/'- 7 -'!$E48 -> 1009.877718 | E48: =SUM(E11:E46) -> 128366263 | F48: =E48/'- 3 -'!$D48*100 -> 4.923023285 | G48: =E48/'- 7 -'!$E48 -> 725.0502642 | H48: =SUM(H11:H46) -> 59111400 | I48: =H48/'- 3 -'!$D48*100 -> 2.267003742 | J48: =H48/'- 7 -'!$E48 -> 333.8785066
A50: WHITESHELL | B50: 207140 | C50: =B50/'- 3 -'!$D50*100 -> 5.896316041 | D50: =B50/'- 7 -'!$E50 -> 1051.472081 | E50: 67160 | F50: =E50/'- 3 -'!$D50*100 -> 1.911734022 | G50: =E50/'- 7 -'!$E50 -> 340.9137056 | H50: 67160 | I50: =H50/'- 3 -'!$D50*100 -> 1.911734022 | J50: =H50/'- 7 -'!$E50 -> 340.9137056
A51: MITT | B51: 5556 | C51: =B51/'- 3 -'!$D51*100 -> 0.01561867889 | D51: =B51/'- 7 -'!$E51 -> 2.592627158 | E51: 54499 | F51: =E51/'- 3 -'!$D51*100 -> 0.1532041723 | G51: =E51/'- 7 -'!$E51 -> 25.43117126 | H51: 1061539 | I51: =H51/'- 3 -'!$D51*100 -> 2.984131889 | J51: =H51/'- 7 -'!$E51 -> 495.3518432
A53: (1) Expenses shown are extra costs associated with special needs students in regular classes, not the total cost of educating those students.

Sheet - 23 -
B2: ANALYSIS OF EXPENSE BY PROGRAM | F2: PAGE 6 OF 16
B3: =OPYEAR -> OPERATING FUND 2021/2022 ACTUAL
B5: FUNCTION 300: ADULT LEARNING CENTRES
B6: ADMINISTRATION AND OTHER
D7: INSTRUCTION
A9: DIVISION / DISTRICT | B9: AMOUNT | C9: % | D9: AMOUNT | E9: %
A11: BEAUTIFUL PLAINS | B11: 0 | C11: =B11/'- 3 -'!$D11*100 -> 0 | D11: 0 | E11: =D11/'- 3 -'!$D11*100 -> 0
A12: BORDER LAND | B12: 135567 | C12: =B12/'- 3 -'!$D12*100 -> 0.3820302648 | D12: 292983 | E12: =D12/'- 3 -'!$D12*100 -> 0.825631408
A13: BRANDON | B13: 0 | C13: =B13/'- 3 -'!$D13*100 -> 0 | D13: 0 | E13: =D13/'- 3 -'!$D13*100 -> 0
A14: DSFM | B14: 87205 | C14: =B14/'- 3 -'!$D14*100 -> 0.08749175335 | D14: 185506 | E14: =D14/'- 3 -'!$D14*100 -> 0.1861159933
A15: EVERGREEN | B15: 0 | C15: =B15/'- 3 -'!$D15*100 -> 0 | D15: 0 | E15: =D15/'- 3 -'!$D15*100 -> 0
A16: FLIN FLON | B16: 21776 | C16: =B16/'- 3 -'!$D16*100 -> 0.1353635546 | D16: 76569 | E16: =D16/'- 3 -'!$D16*100 -> 0.4759667529
A17: FORT LA BOSSE | B17: 0 | C17: =B17/'- 3 -'!$D17*100 -> 0 | D17: 0 | E17: =D17/'- 3 -'!$D17*100 -> 0
A18: FRONTIER | B18: 234850 | C18: =B18/'- 3 -'!$D18*100 -> 0.1605645583 | D18: 2051419 | E18: =D18/'- 3 -'!$D18*100 -> 1.402534322
A19: GARDEN VALLEY | B19: 0 | C19: =B19/'- 3 -'!$D19*100 -> 0 | D19: 0 | E19: =D19/'- 3 -'!$D19*100 -> 0
A20: HANOVER | B20: 0 | C20: =B20/'- 3 -'!$D20*100 -> 0 | D20: 0 | E20: =D20/'- 3 -'!$D20*100 -> 0
A21: INTERLAKE | B21: 0 | C21: =B21/'- 3 -'!$D21*100 -> 0 | D21: 0 | E21: =D21/'- 3 -'!$D21*100 -> 0
A22: KELSEY | B22: 177572 | C22: =B22/'- 3 -'!$D22*100 -> 0.8373470793 | D22: 497913 | E22: =D22/'- 3 -'!$D22*100 -> 2.347926454
A23: LAKESHORE | B23: 68302 | C23: =B23/'- 3 -'!$D23*100 -> 0.4167261028 | D23: 194226 | E23: =D23/'- 3 -'!$D23*100 -> 1.185017189
A24: LORD SELKIRK | B24: 114400 | C24: =B24/'- 3 -'!$D24*100 -> 0.1833915543 | D24: 283384 | E24: =D24/'- 3 -'!$D24*100 -> 0.4542852466
A25: LOUIS RIEL | B25: 45511 | C25: =B25/'- 3 -'!$D25*100 -> 0.02185304969 | D25: 845065 | E25: =D25/'- 3 -'!$D25*100 -> 0.4057754704
A26: MOUNTAIN VIEW | B26: 0 | C26: =B26/'- 3 -'!$D26*100 -> 0 | D26: 0 | E26: =D26/'- 3 -'!$D26*100 -> 0
A27: MYSTERY LAKE | B27: 0 | C27: =B27/'- 3 -'!$D27*100 -> 0 | D27: 0 | E27: =D27/'- 3 -'!$D27*100 -> 0
A28: PARK WEST | B28: 0 | C28: =B28/'- 3 -'!$D28*100 -> 0 | D28: 60836 | E28: =D28/'- 3 -'!$D28*100 -> 0.1989709022
A29: PEMBINA TRAILS | B29: 0 | C29: =B29/'- 3 -'!$D29*100 -> 0 | D29: 0 | E29: =D29/'- 3 -'!$D29*100 -> 0
A30: PINE CREEK | B30: 0 | C30: =B30/'- 3 -'!$D30*100 -> 0 | D30: 0 | E30: =D30/'- 3 -'!$D30*100 -> 0
A31: PORTAGE LA PRAIRIE | B31: 0 | C31: =B31/'- 3 -'!$D31*100 -> 0 | D31: 0 | E31: =D31/'- 3 -'!$D31*100 -> 0
A32: PRAIRIE ROSE | B32: 72265 | C32: =B32/'- 3 -'!$D32*100 -> 0.2150317632 | D32: 229194 | E32: =D32/'- 3 -'!$D32*100 -> 0.681989759
A33: PRAIRIE SPIRIT | B33: 0 | C33: =B33/'- 3 -'!$D33*100 -> 0 | D33: 0 | E33: =D33/'- 3 -'!$D33*100 -> 0
A34: RED RIVER VALLEY | B34: 0 | C34: =B34/'- 3 -'!$D34*100 -> 0 | D34: 0 | E34: =D34/'- 3 -'!$D34*100 -> 0
A35: RIVER EAST TRANSCONA | B35: 336599 | C35: =B35/'- 3 -'!$D35*100 -> 0.157556845 | D35: 1177415 | E35: =D35/'- 3 -'!$D35*100 -> 0.5511299577
A36: ROLLING RIVER | B36: 33013 | C36: =B36/'- 3 -'!$D36*100 -> 0.1269947344 | D36: 96801 | E36: =D36/'- 3 -'!$D36*100 -> 0.3723750427
A37: SEINE RIVER | B37: 95476 | C37: =B37/'- 3 -'!$D37*100 -> 0.1636445715 | D37: 211075 | E37: =D37/'- 3 -'!$D37*100 -> 0.3617796925
A38: SEVEN OAKS | B38: 844585 | C38: =B38/'- 3 -'!$D38*100 -> 0.5199906718 | D38: 1537972 | E38: =D38/'- 3 -'!$D38*100 -> 0.9468923713
A39: SOUTHWEST HORIZON | B39: 0 | C39: =B39/'- 3 -'!$D39*100 -> 0 | D39: 0 | E39: =D39/'- 3 -'!$D39*100 -> 0
A40: ST. JAMES-ASSINIBOIA | B40: 0 | C40: =B40/'- 3 -'!$D40*100 -> 0 | D40: 0 | E40: =D40/'- 3 -'!$D40*100 -> 0
A41: SUNRISE | B41: 341323 | C41: =B41/'- 3 -'!$D41*100 -> 0.4724612415 | D41: 656654 | E41: =D41/'- 3 -'!$D41*100 -> 0.9089442085
A42: SWAN VALLEY | B42: 0 | C42: =B42/'- 3 -'!$D42*100 -> 0 | D42: 0 | E42: =D42/'- 3 -'!$D42*100 -> 0
A43: TURTLE MOUNTAIN | B43: 0 | C43: =B43/'- 3 -'!$D43*100 -> 0 | D43: 210284 | E43: =D43/'- 3 -'!$D43*100 -> 1.459953342
A44: TURTLE RIVER | B44: 0 | C44: =B44/'- 3 -'!$D44*100 -> 0 | D44: 0 | E44: =D44/'- 3 -'!$D44*100 -> 0
A45: WESTERN | B45: 186156 | C45: =B45/'- 3 -'!$D45*100 -> 0.7745931967 | D45: 210762 | E45: =D45/'- 3 -'!$D45*100 -> 0.876978509
A46: WINNIPEG | B46: 89960 | C46: =B46/'- 3 -'!$D46*100 -> 0.02133040202 | D46: 697064 | E46: =D46/'- 3 -'!$D46*100 -> 0.1652807398
A48: PROVINCE | B48: =SUM(B11:B46) -> 2884560 | C48: =B48/'- 3 -'!$D48*100 -> 0.1106268557 | D48: =SUM(D11:D46) -> 9515122 | E48: =D48/'- 3 -'!$D48*100 -> 0.3649180561
A50: WHITESHELL | B50: 0 | C50: =B50/'- 3 -'!$D50*100 -> 0 | D50: 0 | E50: =D50/'- 3 -'!$D50*100 -> 0
A51: MITT | B51: 1016037 | C51: =B51/'- 3 -'!$D51*100 -> 2.856219519 | D51: 1657928 | E51: =D51/'- 3 -'!$D51*100 -> 4.660663258

Sheet - 24 -
B2: ANALYSIS OF EXPENSE BY PROGRAM | I2: PAGE 7 OF 16
B3: =OPYEAR -> OPERATING FUND 2021/2022 ACTUAL
B5: FUNCTION 400: COMMUNITY EDUCATION AND SERVICES
D6: ENGLISH AS AN ADDITIONAL LANGUAGE FOR ADULTS
B7: CONTINUING EDUCATION | F7: COMMUNITY SERVICES & RECREATION | H7: PRE-KINDERGARTEN EDUCATION
A9: DIVISION / DISTRICT | B9: AMOUNT | C9: % | D9: AMOUNT | E9: % | F9: AMOUNT | G9: % | H9: AMOUNT | I9: %
A11: BEAUTIFUL PLAINS | B11: 0 | C11: =B11/'- 3 -'!$D11*100 -> 0 | D11: 0 | E11: =D11/'- 3 -'!$D11*100 -> 0 | F11: 0 | G11: =F11/'- 3 -'!$D11*100 -> 0 | H11: 21894 | I11: =H11/'- 3 -'!$D11*100 -> 0.09094482174
A12: BORDER LAND | B12: 0 | C12: =B12/'- 3 -'!$D12*100 -> 0 | D12: 0 | E12: =D12/'- 3 -'!$D12*100 -> 0 | F12: 0 | G12: =F12/'- 3 -'!$D12*100 -> 0 | H12: 42910 | I12: =H12/'- 3 -'!$D12*100 -> 0.1209211583
A13: BRANDON | B13: 0 | C13: =B13/'- 3 -'!$D13*100 -> 0 | D13: 0 | E13: =D13/'- 3 -'!$D13*100 -> 0 | F13: 134631 | G13: =F13/'- 3 -'!$D13*100 -> 0.1195427228 | H13: 174351 | I13: =H13/'- 3 -'!$D13*100 -> 0.154811249
A14: DSFM | B14: 0 | C14: =B14/'- 3 -'!$D14*100 -> 0 | D14: 0 | E14: =D14/'- 3 -'!$D14*100 -> 0 | F14: 0 | G14: =F14/'- 3 -'!$D14*100 -> 0 | H14: 1140125 | I14: =H14/'- 3 -'!$D14*100 -> 1.143874036
A15: EVERGREEN | B15: 0 | C15: =B15/'- 3 -'!$D15*100 -> 0 | D15: 0 | E15: =D15/'- 3 -'!$D15*100 -> 0 | F15: 0 | G15: =F15/'- 3 -'!$D15*100 -> 0 | H15: 81597 | I15: =H15/'- 3 -'!$D15*100 -> 0.3737484292
A16: FLIN FLON | B16: 0 | C16: =B16/'- 3 -'!$D16*100 -> 0 | D16: 0 | E16: =D16/'- 3 -'!$D16*100 -> 0 | F16: 0 | G16: =F16/'- 3 -'!$D16*100 -> 0 | H16: 20690 | I16: =H16/'- 3 -'!$D16*100 -> 0.1286127822
A17: FORT LA BOSSE | B17: 0 | C17: =B17/'- 3 -'!$D17*100 -> 0 | D17: 0 | E17: =D17/'- 3 -'!$D17*100 -> 0 | F17: 80260 | G17: =F17/'- 3 -'!$D17*100 -> 0.3929224417 | H17: 143454 | I17: =H17/'- 3 -'!$D17*100 -> 0.7022962366
A18: FRONTIER | B18: 0 | C18: =B18/'- 3 -'!$D18*100 -> 0 | D18: 0 | E18: =D18/'- 3 -'!$D18*100 -> 0 | F18: 1099845 | G18: =F18/'- 3 -'!$D18*100 -> 0.7519528489 | H18: 1515845 | I18: =H18/'- 3 -'!$D18*100 -> 1.036367821
A19: GARDEN VALLEY | B19: 0 | C19: =B19/'- 3 -'!$D19*100 -> 0 | D19: 0 | E19: =D19/'- 3 -'!$D19*100 -> 0 | F19: 0 | G19: =F19/'- 3 -'!$D19*100 -> 0 | H19: 79604 | I19: =H19/'- 3 -'!$D19*100 -> 0.1496964239
A20: HANOVER | B20: 0 | C20: =B20/'- 3 -'!$D20*100 -> 0 | D20: 0 | E20: =D20/'- 3 -'!$D20*100 -> 0 | F20: 0 | G20: =F20/'- 3 -'!$D20*100 -> 0 | H20: 73997 | I20: =H20/'- 3 -'!$D20*100 -> 0.07464897369
A21: INTERLAKE | B21: 0 | C21: =B21/'- 3 -'!$D21*100 -> 0 | D21: 0 | E21: =D21/'- 3 -'!$D21*100 -> 0 | F21: 0 | G21: =F21/'- 3 -'!$D21*100 -> 0 | H21: 0 | I21: =H21/'- 3 -'!$D21*100 -> 0
A22: KELSEY | B22: 0 | C22: =B22/'- 3 -'!$D22*100 -> 0 | D22: 0 | E22: =D22/'- 3 -'!$D22*100 -> 0 | F22: 50143 | G22: =F22/'- 3 -'!$D22*100 -> 0.2364510993 | H22: 0 | I22: =H22/'- 3 -'!$D22*100 -> 0
A23: LAKESHORE | B23: 159005 | C23: =B23/'- 3 -'!$D23*100 -> 0.9701258232 | D23: 0 | E23: =D23/'- 3 -'!$D23*100 -> 0 | F23: 0 | G23: =F23/'- 3 -'!$D23*100 -> 0 | H23: 24497 | I23: =H23/'- 3 -'!$D23*100 -> 0.1494617923
A24: LORD SELKIRK | B24: 118847 | C24: =B24/'- 3 -'!$D24*100 -> 0.19052042 | D24: 0 | E24: =D24/'- 3 -'!$D24*100 -> 0 | F24: 115890 | G24: =F24/'- 3 -'!$D24*100 -> 0.1857801331 | H24: 0 | I24: =H24/'- 3 -'!$D24*100 -> 0
A25: LOUIS RIEL | B25: 30891 | C25: =B25/'- 3 -'!$D25*100 -> 0.01483295374 | D25: 211537 | E25: =D25/'- 3 -'!$D25*100 -> 0.1015738738 | F25: 932350 | G25: =F25/'- 3 -'!$D25*100 -> 0.4476871718 | H25: 1016597 | I25: =H25/'- 3 -'!$D25*100 -> 0.4881401145
A26: MOUNTAIN VIEW | B26: 0 | C26: =B26/'- 3 -'!$D26*100 -> 0 | D26: 0 | E26: =D26/'- 3 -'!$D26*100 -> 0 | F26: 0 | G26: =F26/'- 3 -'!$D26*100 -> 0 | H26: 94784 | I26: =H26/'- 3 -'!$D26*100 -> 0.2133331893
A27: MYSTERY LAKE | B27: 0 | C27: =B27/'- 3 -'!$D27*100 -> 0 | D27: 0 | E27: =D27/'- 3 -'!$D27*100 -> 0 | F27: 0 | G27: =F27/'- 3 -'!$D27*100 -> 0 | H27: 63098 | I27: =H27/'- 3 -'!$D27*100 -> 0.1420604822
A28: PARK WEST | B28: 0 | C28: =B28/'- 3 -'!$D28*100 -> 0 | D28: 0 | E28: =D28/'- 3 -'!$D28*100 -> 0 | F28: 0 | G28: =F28/'- 3 -'!$D28*100 -> 0 | H28: 111681 | I28: =H28/'- 3 -'!$D28*100 -> 0.365265128
A29: PEMBINA TRAILS | B29: 0 | C29: =B29/'- 3 -'!$D29*100 -> 0 | D29: 0 | E29: =D29/'- 3 -'!$D29*100 -> 0 | F29: 227966 | G29: =F29/'- 3 -'!$D29*100 -> 0.1231579708 | H29: 0 | I29: =H29/'- 3 -'!$D29*100 -> 0
A30: PINE CREEK | B30: 0 | C30: =B30/'- 3 -'!$D30*100 -> 0 | D30: 0 | E30: =D30/'- 3 -'!$D30*100 -> 0 | F30: 0 | G30: =F30/'- 3 -'!$D30*100 -> 0 | H30: 8856 | I30: =H30/'- 3 -'!$D30*100 -> 0.05272460153
A31: PORTAGE LA PRAIRIE | B31: 0 | C31: =B31/'- 3 -'!$D31*100 -> 0 | D31: 0 | E31: =D31/'- 3 -'!$D31*100 -> 0 | F31: 0 | G31: =F31/'- 3 -'!$D31*100 -> 0 | H31: 56019 | I31: =H31/'- 3 -'!$D31*100 -> 0.1290099653
A32: PRAIRIE ROSE | B32: 0 | C32: =B32/'- 3 -'!$D32*100 -> 0 | D32: 0 | E32: =D32/'- 3 -'!$D32*100 -> 0 | F32: 0 | G32: =F32/'- 3 -'!$D32*100 -> 0 | H32: 36015 | I32: =H32/'- 3 -'!$D32*100 -> 0.1071662486
A33: PRAIRIE SPIRIT | B33: 0 | C33: =B33/'- 3 -'!$D33*100 -> 0 | D33: 0 | E33: =D33/'- 3 -'!$D33*100 -> 0 | F33: 0 | G33: =F33/'- 3 -'!$D33*100 -> 0 | H33: 37426 | I33: =H33/'- 3 -'!$D33*100 -> 0.1251179312
A34: RED RIVER VALLEY | B34: 0 | C34: =B34/'- 3 -'!$D34*100 -> 0 | D34: 0 | E34: =D34/'- 3 -'!$D34*100 -> 0 | F34: 0 | G34: =F34/'- 3 -'!$D34*100 -> 0 | H34: 27758 | I34: =H34/'- 3 -'!$D34*100 -> 0.08199564606
A35: RIVER EAST TRANSCONA | B35: 29378 | C35: =B35/'- 3 -'!$D35*100 -> 0.01375139258 | D35: 221847 | E35: =D35/'- 3 -'!$D35*100 -> 0.1038431884 | F35: 564515 | G35: =F35/'- 3 -'!$D35*100 -> 0.2642408395 | H35: 296693 | I35: =H35/'- 3 -'!$D35*100 -> 0.1388774566
A36: ROLLING RIVER | B36: 0 | C36: =B36/'- 3 -'!$D36*100 -> 0 | D36: 0 | E36: =D36/'- 3 -'!$D36*100 -> 0 | F36: 0 | G36: =F36/'- 3 -'!$D36*100 -> 0 | H36: 33742 | I36: =H36/'- 3 -'!$D36*100 -> 0.1297990588
A37: SEINE RIVER | B37: 0 | C37: =B37/'- 3 -'!$D37*100 -> 0 | D37: 0 | E37: =D37/'- 3 -'!$D37*100 -> 0 | F37: 0 | G37: =F37/'- 3 -'!$D37*100 -> 0 | H37: 610973 | I37: =H37/'- 3 -'!$D37*100 -> 1.047199451
A38: SEVEN OAKS | B38: 238261 | C38: =B38/'- 3 -'!$D38*100 -> 0.1466915674 | D38: 597978 | E38: =D38/'- 3 -'!$D38*100 -> 0.3681606729 | F38: 1692258 | G38: =F38/'- 3 -'!$D38*100 -> 1.041882551 | H38: 521709 | I38: =H38/'- 3 -'!$D38*100 -> 0.3212036839
A39: SOUTHWEST HORIZON | B39: 0 | C39: =B39/'- 3 -'!$D39*100 -> 0 | D39: 0 | E39: =D39/'- 3 -'!$D39*100 -> 0 | F39: 40 | G39: =F39/'- 3 -'!$D39*100 -> 0.0001659725832 | H39: 166923 | I39: =H39/'- 3 -'!$D39*100 -> 0.6926160374
A40: ST. JAMES-ASSINIBOIA | B40: 408216 | C40: =B40/'- 3 -'!$D40*100 -> 0.3500970804 | D40: 0 | E40: =D40/'- 3 -'!$D40*100 -> 0 | F40: 357298 | G40: =F40/'- 3 -'!$D40*100 -> 0.3064284267 | H40: 109623 | I40: =H40/'- 3 -'!$D40*100 -> 0.09401564917
A41: SUNRISE | B41: 0 | C41: =B41/'- 3 -'!$D41*100 -> 0 | D41: 0 | E41: =D41/'- 3 -'!$D41*100 -> 0 | F41: 0 | G41: =F41/'- 3 -'!$D41*100 -> 0 | H41: 69596 | I41: =H41/'- 3 -'!$D41*100 -> 0.09633517976
A42: SWAN VALLEY | B42: 0 | C42: =B42/'- 3 -'!$D42*100 -> 0 | D42: 0 | E42: =D42/'- 3 -'!$D42*100 -> 0 | F42: 0 | G42: =F42/'- 3 -'!$D42*100 -> 0 | H42: 71165 | I42: =H42/'- 3 -'!$D42*100 -> 0.3252339946
A43: TURTLE MOUNTAIN | B43: 0 | C43: =B43/'- 3 -'!$D43*100 -> 0 | D43: 0 | E43: =D43/'- 3 -'!$D43*100 -> 0 | F43: 0 | G43: =F43/'- 3 -'!$D43*100 -> 0 | H43: 1240 | I43: =H43/'- 3 -'!$D43*100 -> 0.008609034182
A44: TURTLE RIVER | B44: 0 | C44: =B44/'- 3 -'!$D44*100 -> 0 | D44: 0 | E44: =D44/'- 3 -'!$D44*100 -> 0 | F44: 0 | G44: =F44/'- 3 -'!$D44*100 -> 0 | H44: 27179 | I44: =H44/'- 3 -'!$D44*100 -> 0.2266428752
A45: WESTERN | B45: 0 | C45: =B45/'- 3 -'!$D45*100 -> 0 | D45: 0 | E45: =D45/'- 3 -'!$D45*100 -> 0 | F45: 100 | G45: =F45/'- 3 -'!$D45*100 -> 0.000416098969 | H45: 44796 | I45: =H45/'- 3 -'!$D45*100 -> 0.1863956941
A46: WINNIPEG | B46: 0 | C46: =B46/'- 3 -'!$D46*100 -> 0 | D46: 3168102 | E46: =D46/'- 3 -'!$D46*100 -> 0.7511881871 | F46: 105579 | G46: =F46/'- 3 -'!$D46*100 -> 0.02503382076 | H46: 4086703 | I46: =H46/'- 3 -'!$D46*100 -> 0.9689975316
A48: PROVINCE | B48: =SUM(B11:B46) -> 984598 | C48: =B48/'- 3 -'!$D48*100 -> 0.03776069169 | D48: =SUM(D11:D46) -> 4199464 | E48: =D48/'- 3 -'!$D48*100 -> 0.1610552381 | F48: =SUM(F11:F46) -> 5360875 | G48: =F48/'- 3 -'!$D48*100 -> 0.2055969523 | H48: =SUM(H11:H46) -> 10811540 | I48: =H48/'- 3 -'!$D48*100 -> 0.414637475
A50: WHITESHELL | B50: 0 | C50: =B50/'- 3 -'!$D50*100 -> 0 | D50: 0 | E50: =D50/'- 3 -'!$D50*100 -> 0 | F50: 4828 | G50: =F50/'- 3 -'!$D50*100 -> 0.13743079 | H50: 77378 | I50: =H50/'- 3 -'!$D50*100 -> 2.202593138
A51: MITT | B51: 1528047 | C51: =B51/'- 3 -'!$D51*100 -> 4.295549933 | D51: 1429301 | E51: =D51/'- 3 -'!$D51*100 -> 4.017961368 | F51: 9168272 | G51: =F51/'- 3 -'!$D51*100 -> 25.77327149 | H51: 0 | I51: =H51/'- 3 -'!$D51*100 -> 0

Sheet - 25 -
B2: ANALYSIS OF EXPENSE BY PROGRAM | J2: PAGE 8 OF 16
B3: =OPYEAR -> OPERATING FUND 2021/2022 ACTUAL
B5: FUNCTION 500: DIVISIONAL ADMINISTRATION
E6: INSTRUCTIONAL MGMT. AND ADMINISTRATION | H6: BUSINESS AND ADMIN. SERVICES
B7: BOARD OF TRUSTEES
D8: PER PUPIL | G8: PER PUPIL | J8: PER PUPIL
A9: DIVISION / DISTRICT | B9: AMOUNT | C9: % | E9: AMOUNT | F9: % | H9: AMOUNT | I9: %
A11: BEAUTIFUL PLAINS | B11: 103266 | C11: =B11/'- 3 -'!$D11*100 -> 0.4289535015 | D11: =B11/'- 7 -'!$E11 -> 54.43647865 | E11: 160330 | F11: =E11/'- 3 -'!$D11*100 -> 0.6659899182 | G11: =E11/'- 7 -'!$E11 -> 84.51765946 | H11: 406958 | I11: =H11/'- 3 -'!$D11*100 -> 1.690450478 | J11: =H11/'- 7 -'!$E11 -> 214.5271481
A12: BORDER LAND | B12: 141032 | C12: =B12/'- 3 -'!$D12*100 -> 0.397430734 | D12: =B12/'- 7 -'!$E12 -> 72.90886908 | E12: 170382 | F12: =E12/'- 3 -'!$D12*100 -> 0.4801395663 | G12: =E12/'- 7 -'!$E12 -> 88.08184619 | H12: 649803 | I12: =H12/'- 3 -'!$D12*100 -> 1.83115664 | J12: =H12/'- 7 -'!$E12 -> 335.9266114
A13: BRANDON | B13: 307900 | C13: =B13/'- 3 -'!$D13*100 -> 0.2733932329 | D13: =B13/'- 7 -'!$E13 -> 35.47235023 | E13: 608836 | F13: =E13/'- 3 -'!$D13*100 -> 0.5406029307 | G13: =E13/'- 7 -'!$E13 -> 70.14239631 | H13: 1612283 | I13: =H13/'- 3 -'!$D13*100 -> 1.431592276 | J13: =H13/'- 7 -'!$E13 -> 185.7468894
A14: DSFM | B14: 533843 | C14: =B14/'- 3 -'!$D14*100 -> 0.5355984185 | D14: =B14/'- 7 -'!$E14 -> 91.95802449 | E14: 1533027 | F14: =E14/'- 3 -'!$D14*100 -> 1.538068002 | G14: =E14/'- 7 -'!$E14 -> 264.0741462 | H14: 935951 | I14: =H14/'- 3 -'!$D14*100 -> 0.939028657 | J14: =H14/'- 7 -'!$E14 -> 161.2238148
A15: EVERGREEN | B15: 128788 | C15: =B15/'- 3 -'!$D15*100 -> 0.5899029707 | D15: =B15/'- 7 -'!$E15 -> 89.5605007 | E15: 444279 | F15: =E15/'- 3 -'!$D15*100 -> 2.034983864 | G15: =E15/'- 7 -'!$E15 -> 308.9561892 | H15: 353903 | I15: =H15/'- 3 -'!$D15*100 -> 1.621023939 | J15: =H15/'- 7 -'!$E15 -> 246.1077886
A16: FLIN FLON | B16: 97852 | C16: =B16/'- 3 -'!$D16*100 -> 0.6082657303 | D16: =B16/'- 7 -'!$E16 -> 103.4923321 | E16: 105746 | F16: =E16/'- 3 -'!$D16*100 -> 0.6573362621 | G16: =E16/'- 7 -'!$E16 -> 111.8413538 | H16: 383942 | I16: =H16/'- 3 -'!$D16*100 -> 2.386652915 | J16: =H16/'- 7 -'!$E16 -> 406.0729773
A17: FORT LA BOSSE | B17: 110549 | C17: =B17/'- 3 -'!$D17*100 -> 0.5412058685 | D17: =B17/'- 7 -'!$E17 -> 77.41526611 | E17: 193589 | F17: =E17/'- 3 -'!$D17*100 -> 0.9477381331 | G17: =E17/'- 7 -'!$E17 -> 135.5665266 | H17: 376000 | I17: =H17/'- 3 -'!$D17*100 -> 1.840753029 | J17: =H17/'- 7 -'!$E17 -> 263.3053221
A18: FRONTIER | B18: 970915 | C18: =B18/'- 3 -'!$D18*100 -> 0.6638047182 | D18: =B18/'- 7 -'!$E18 -> 157.3351159 | E18: 2422844 | F18: =E18/'- 3 -'!$D18*100 -> 1.65647382 | G18: =E18/'- 7 -'!$E18 -> 392.6177281 | H18: 3434900 | I18: =H18/'- 3 -'!$D18*100 -> 2.348406222 | J18: =H18/'- 7 -'!$E18 -> 556.6196727
A19: GARDEN VALLEY | B19: 253263 | C19: =B19/'- 3 -'!$D19*100 -> 0.4762645774 | D19: =B19/'- 7 -'!$E19 -> 67.26772908 | E19: 177681 | F19: =E19/'- 3 -'!$D19*100 -> 0.3341315801 | G19: =E19/'- 7 -'!$E19 -> 47.19282869 | H19: 626708 | I19: =H19/'- 3 -'!$D19*100 -> 1.178533069 | J19: =H19/'- 7 -'!$E19 -> 166.4563081
A20: HANOVER | B20: 263075 | C20: =B20/'- 3 -'!$D20*100 -> 0.2653929045 | D20: =B20/'- 7 -'!$E20 -> 33.92765025 | E20: 639788 | F20: =E20/'- 3 -'!$D20*100 -> 0.645425052 | G20: =E20/'- 7 -'!$E20 -> 82.51070415 | H20: 1345784 | I20: =H20/'- 3 -'!$D20*100 -> 1.35764145 | J20: =H20/'- 7 -'!$E20 -> 173.559969
A21: INTERLAKE | B21: 158810 | C21: =B21/'- 3 -'!$D21*100 -> 0.3877923524 | D21: =B21/'- 7 -'!$E21 -> 54.39630074 | E21: 469230 | F21: =E21/'- 3 -'!$D21*100 -> 1.14579564 | G21: =E21/'- 7 -'!$E21 -> 160.7227265 | H21: 670609 | I21: =H21/'- 3 -'!$D21*100 -> 1.637535682 | J21: =H21/'- 7 -'!$E21 -> 229.6999486
A22: KELSEY | B22: 86478 | C22: =B22/'- 3 -'!$D22*100 -> 0.4077900836 | D22: =B22/'- 7 -'!$E22 -> 59.68115942 | E22: 97534 | F22: =E22/'- 3 -'!$D22*100 -> 0.4599250447 | G22: =E22/'- 7 -'!$E22 -> 67.31124914 | H22: 581466 | I22: =H22/'- 3 -'!$D22*100 -> 2.741923596 | J22: =H22/'- 7 -'!$E22 -> 401.2877847
A23: LAKESHORE | B23: 85688 | C23: =B23/'- 3 -'!$D23*100 -> 0.5228020599 | D23: =B23/'- 7 -'!$E23 -> 92.88672087 | E23: 139707 | F23: =E23/'- 3 -'!$D23*100 -> 0.8523843174 | G23: =E23/'- 7 -'!$E23 -> 151.4439024 | H23: 332991 | I23: =H23/'- 3 -'!$D23*100 -> 2.031654149 | J23: =H23/'- 7 -'!$E23 -> 360.9658537
A24: LORD SELKIRK | B24: 248818 | C24: =B24/'- 3 -'!$D24*100 -> 0.3988734244 | D24: =B24/'- 7 -'!$E24 -> 67.76089325 | E24: 365986 | F24: =E24/'- 3 -'!$D24*100 -> 0.5867022848 | G24: =E24/'- 7 -'!$E24 -> 99.66938998 | H24: 1113461 | I24: =H24/'- 3 -'!$D24*100 -> 1.784959296 | J24: =H24/'- 7 -'!$E24 -> 303.2301198
A25: LOUIS RIEL | B25: 469195 | C25: =B25/'- 3 -'!$D25*100 -> 0.2252937015 | D25: =B25/'- 7 -'!$E25 -> 31.40108419 | E25: 719928 | F25: =E25/'- 3 -'!$D25*100 -> 0.3456883469 | G25: =E25/'- 7 -'!$E25 -> 48.18150181 | H25: 4431922 | I25: =H25/'- 3 -'!$D25*100 -> 2.128079182 | J25: =H25/'- 7 -'!$E25 -> 296.6083523
A26: MOUNTAIN VIEW | B26: 174488 | C26: =B26/'- 3 -'!$D26*100 -> 0.3927253707 | D26: =B26/'- 7 -'!$E26 -> 58.16286054 | E26: 375722 | F26: =E26/'- 3 -'!$D26*100 -> 0.845648765 | G26: =E26/'- 7 -'!$E26 -> 125.2410841 | H26: 741829 | I26: =H26/'- 3 -'!$D26*100 -> 1.669656761 | J26: =H26/'- 7 -'!$E26 -> 247.2771576
A27: MYSTERY LAKE | B27: 202498 | C27: =B27/'- 3 -'!$D27*100 -> 0.4559092764 | D27: =B27/'- 7 -'!$E27 -> 73.35555153 | E27: 480807 | F27: =E27/'- 3 -'!$D27*100 -> 1.082501415 | G27: =E27/'- 7 -'!$E27 -> 174.1738815 | H27: 773245 | I27: =H27/'- 3 -'!$D27*100 -> 1.740903952 | J27: =H27/'- 7 -'!$E27 -> 280.1104872
A28: PARK WEST | B28: 113789 | C28: =B28/'- 3 -'!$D28*100 -> 0.3721595764 | D28: =B28/'- 7 -'!$E28 -> 56.48498387 | E28: 315457 | F28: =E28/'- 3 -'!$D28*100 -> 1.031737193 | G28: =E28/'- 7 -'!$E28 -> 156.5931993 | H28: 483621 | I28: =H28/'- 3 -'!$D28*100 -> 1.581736253 | J28: =H28/'- 7 -'!$E28 -> 240.0699926
A29: PEMBINA TRAILS | B29: 443203 | C29: =B29/'- 3 -'!$D29*100 -> 0.2394391362 | D29: =B29/'- 7 -'!$E29 -> 30.1525305 | E29: 1985705 | F29: =E29/'- 3 -'!$D29*100 -> 1.072771371 | G29: =E29/'- 7 -'!$E29 -> 135.0939199 | H29: 2039825 | I29: =H29/'- 3 -'!$D29*100 -> 1.102009544 | J29: =H29/'- 7 -'!$E29 -> 138.7758781
A30: PINE CREEK | B30: 96191 | C30: =B30/'- 3 -'!$D30*100 -> 0.5726775233 | D30: =B30/'- 7 -'!$E30 -> 87.05067873 | E30: 106311 | F30: =E30/'- 3 -'!$D30*100 -> 0.6329274067 | G30: =E30/'- 7 -'!$E30 -> 96.20904977 | H30: 333594 | I30: =H30/'- 3 -'!$D30*100 -> 1.986067155 | J30: =H30/'- 7 -'!$E30 -> 301.8950226
A31: PORTAGE LA PRAIRIE | B31: 174775 | C31: =B31/'- 3 -'!$D31*100 -> 0.4025012351 | D31: =B31/'- 7 -'!$E31 -> 53.4153423 | E31: 289768 | F31: =E31/'- 3 -'!$D31*100 -> 0.6673264363 | G31: =E31/'- 7 -'!$E31 -> 88.5599022 | H31: 549241 | I31: =H31/'- 3 -'!$D31*100 -> 1.264884457 | J31: =H31/'- 7 -'!$E31 -> 167.8609413
A32: PRAIRIE ROSE | B32: 164310 | C32: =B32/'- 3 -'!$D32*100 -> 0.4889209024 | D32: =B32/'- 7 -'!$E32 -> 73.10789766 | E32: 178851 | F32: =E32/'- 3 -'!$D32*100 -> 0.5321891079 | G32: =E32/'- 7 -'!$E32 -> 79.57775306 | H32: 596695 | I32: =H32/'- 3 -'!$D32*100 -> 1.775525883 | J32: =H32/'- 7 -'!$E32 -> 265.4927697
A33: PRAIRIE SPIRIT | B33: 142407 | C33: =B33/'- 3 -'!$D33*100 -> 0.4760773051 | D33: =B33/'- 7 -'!$E33 -> 69.87585868 | E33: 218767 | F33: =E33/'- 3 -'!$D33*100 -> 0.7313545248 | G33: =E33/'- 7 -'!$E33 -> 107.3439647 | H33: 426644 | I33: =H33/'- 3 -'!$D33*100 -> 1.426302961 | J33: =H33/'- 7 -'!$E33 -> 209.3444553
A34: RED RIVER VALLEY | B34: 119806 | C34: =B34/'- 3 -'!$D34*100 -> 0.3539005106 | D34: =B34/'- 7 -'!$E34 -> 54.6560219 | E34: 337061 | F34: =E34/'- 3 -'!$D34*100 -> 0.9956601505 | G34: =E34/'- 7 -'!$E34 -> 153.7687044 | H34: 635909 | I34: =H34/'- 3 -'!$D34*100 -> 1.878441145 | J34: =H34/'- 7 -'!$E34 -> 290.1044708
A35: RIVER EAST TRANSCONA | B35: 470444 | C35: =B35/'- 3 -'!$D35*100 -> 0.2202076428 | D35: =B35/'- 7 -'!$E35 -> 28.70223605 | E35: 1737203 | F35: =E35/'- 3 -'!$D35*100 -> 0.8131581607 | G35: =E35/'- 7 -'!$E35 -> 105.9884079 | H35: 2774005 | I35: =H35/'- 3 -'!$D35*100 -> 1.298469323 | J35: =H35/'- 7 -'!$E35 -> 169.2446844
A36: ROLLING RIVER | B36: 106144 | C36: =B36/'- 3 -'!$D36*100 -> 0.4083157874 | D36: =B36/'- 7 -'!$E36 -> 60.61907481 | E36: 198550 | F36: =E36/'- 3 -'!$D36*100 -> 0.7637841007 | G36: =E36/'- 7 -'!$E36 -> 113.3923472 | H36: 627595 | I36: =H36/'- 3 -'!$D36*100 -> 2.414238644 | J36: =H36/'- 7 -'!$E36 -> 358.4209023
A37: SEINE RIVER | B37: 214763 | C37: =B37/'- 3 -'!$D37*100 -> 0.3681008745 | D37: =B37/'- 7 -'!$E37 -> 48.4573556 | E37: 390810 | F37: =E37/'- 3 -'!$D37*100 -> 0.6698430492 | G37: =E37/'- 7 -'!$E37 -> 88.17915162 | H37: 982163 | I37: =H37/'- 3 -'!$D37*100 -> 1.683414086 | J37: =H37/'- 7 -'!$E37 -> 221.6071751
A38: SEVEN OAKS | B38: 401366 | C38: =B38/'- 3 -'!$D38*100 -> 0.2471113931 | D38: =B38/'- 7 -'!$E38 -> 35.35454433 | E38: 1269410 | F38: =E38/'- 3 -'!$D38*100 -> 0.781545207 | G38: =E38/'- 7 -'!$E38 -> 111.8166764 | H38: 1919825 | I38: =H38/'- 3 -'!$D38*100 -> 1.18199008 | J38: =H38/'- 7 -'!$E38 -> 169.1088385
A39: SOUTHWEST HORIZON | B39: 119803 | C39: =B39/'- 3 -'!$D39*100 -> 0.4971003345 | D39: =B39/'- 7 -'!$E39 -> 81.80471151 | E39: 238134 | F39: =E39/'- 3 -'!$D39*100 -> 0.9880928779 | G39: =E39/'- 7 -'!$E39 -> 162.6043018 | H39: 382168 | I39: =H39/'- 3 -'!$D39*100 -> 1.585735254 | J39: =H39/'- 7 -'!$E39 -> 260.954592
A40: ST. JAMES-ASSINIBOIA | B40: 366699 | C40: =B40/'- 3 -'!$D40*100 -> 0.3144909785 | D40: =B40/'- 7 -'!$E40 -> 46.00125447 | E40: 981210 | F40: =E40/'- 3 -'!$D40*100 -> 0.8415122294 | G40: =E40/'- 7 -'!$E40 -> 123.0897573 | H40: 1466979 | I40: =H40/'- 3 -'!$D40*100 -> 1.25812086 | J40: =H40/'- 7 -'!$E40 -> 184.0279747
A41: SUNRISE | B41: 249864 | C41: =B41/'- 3 -'!$D41*100 -> 0.3458631725 | D41: =B41/'- 7 -'!$E41 -> 55.55619789 | E41: 359986 | F41: =E41/'- 3 -'!$D41*100 -> 0.4982946724 | G41: =E41/'- 7 -'!$E41 -> 80.04135631 | H41: 1325108 | I41: =H41/'- 3 -'!$D41*100 -> 1.834222044 | J41: =H41/'- 7 -'!$E41 -> 294.632129
A42: SWAN VALLEY | B42: 113698 | C42: =B42/'- 3 -'!$D42*100 -> 0.5196157481 | D42: =B42/'- 7 -'!$E42 -> 85.92654172 | E42: 198097 | F42: =E42/'- 3 -'!$D42*100 -> 0.905330972 | G42: =E42/'- 7 -'!$E42 -> 149.7105502 | H42: 347233 | I42: =H42/'- 3 -'!$D42*100 -> 1.586903332 | J42: =H42/'- 7 -'!$E42 -> 262.4191354
A43: TURTLE MOUNTAIN | B43: 81785 | C43: =B43/'- 3 -'!$D43*100 -> 0.5678144037 | D43: =B43/'- 7 -'!$E43 -> 79.67364832 | E43: 145725 | F43: =E43/'- 3 -'!$D43*100 -> 1.011735086 | G43: =E43/'- 7 -'!$E43 -> 141.962981 | H43: 234072 | I43: =H43/'- 3 -'!$D43*100 -> 1.625107943 | J43: =H43/'- 7 -'!$E43 -> 228.0292255
A44: TURTLE RIVER | B44: 87130 | C44: =B44/'- 3 -'!$D44*100 -> 0.7265680753 | D44: =B44/'- 7 -'!$E44 -> 135.0852713 | E44: 43545 | F44: =E44/'- 3 -'!$D44*100 -> 0.3631172597 | G44: =E44/'- 7 -'!$E44 -> 67.51162791 | H44: 251356 | I44: =H44/'- 3 -'!$D44*100 -> 2.096031736 | J44: =H44/'- 7 -'!$E44 -> 389.6992248
A45: WESTERN | B45: 119077 | C45: =B45/'- 3 -'!$D45*100 -> 0.4954781693 | D45: =B45/'- 7 -'!$E45 -> 66.24589708 | E45: 210540 | F45: =E45/'- 3 -'!$D45*100 -> 0.8760547693 | G45: =E45/'- 7 -'!$E45 -> 117.1293463 | H45: 439840 | I45: =H45/'- 3 -'!$D45*100 -> 1.830169705 | J45: =H45/'- 7 -'!$E45 -> 244.6954103
A46: WINNIPEG | B46: 656027 | C46: =B46/'- 3 -'!$D46*100 -> 0.155550463 | D46: =B46/'- 7 -'!$E46 -> 23.99381892 | E46: 2787626 | F46: =E46/'- 3 -'!$D46*100 -> 0.6609735802 | G46: =E46/'- 7 -'!$E46 -> 101.9558547 | H46: 6049520 | I46: =H46/'- 3 -'!$D46*100 -> 1.434400774 | J46: =H46/'- 7 -'!$E46 -> 221.2577949
A48: PROVINCE | B48: =SUM(B11:B46) -> 8577739 | C48: =B48/'- 3 -'!$D48*100 -> 0.3289681248 | D48: =B48/'- 7 -'!$E48 -> 48.44958311 | E48: =SUM(E11:E46) -> 21098172 | F48: =E48/'- 3 -'!$D48*100 -> 0.8091440041 | G48: =E48/'- 7 -'!$E48 -> 119.1686571 | H48: =SUM(H11:H46) -> 40637148 | I48: =H48/'- 3 -'!$D48*100 -> 1.55849069 | J48: =H48/'- 7 -'!$E48 -> 229.5305184
A50: WHITESHELL | B50: 31113 | C50: =B50/'- 3 -'!$D50*100 -> 0.8856429515 | D50: =B50/'- 7 -'!$E50 -> 157.9340102 | E50: 58856 | F50: =E50/'- 3 -'!$D50*100 -> 1.675357618 | G50: =E50/'- 7 -'!$E50 -> 298.7614213 | H50: 66327 | I50: =H50/'- 3 -'!$D50*100 -> 1.888022372 | J50: =H50/'- 7 -'!$E50 -> 336.6852792
A51: MITT | B51: 87967 | C51: =B51/'- 3 -'!$D51*100 -> 0.2472873157 | D51: =B51/'- 7 -'!$E51 -> 41.0485301 | E51: 492421 | F51: =E51/'- 3 -'!$D51*100 -> 1.384263045 | G51: =E51/'- 7 -'!$E51 -> 229.7811479 | H51: 3915453 | I51: =H51/'- 3 -'!$D51*100 -> 11.00687601 | J51: =H51/'- 7 -'!$E51 -> 1827.089594

Sheet - 26 -
B2: ANALYSIS OF EXPENSE BY PROGRAM | E2: PAGE 9 OF 16
B3: =OPYEAR -> OPERATING FUND 2021/2022 ACTUAL
B5: FUNCTION 500: DIVISIONAL ADMINISTRATION
B6: MANAGEMENT INFORMATION SERVICES
D8: PER PUPIL
A9: DIVISION / DISTRICT | B9: AMOUNT | C9: %
A11: BEAUTIFUL PLAINS | B11: 8850 | C11: =B11/'- 3 -'!$D11*100 -> 0.03676174625 | D11: =B11/'- 7 -'!$E11 -> 4.665260938
A12: BORDER LAND | B12: 84174 | C12: =B12/'- 3 -'!$D12*100 -> 0.2372038587 | D12: =B12/'- 7 -'!$E12 -> 43.51516781
A13: BRANDON | B13: 287526 | C13: =B13/'- 3 -'!$D13*100 -> 0.2553025745 | D13: =B13/'- 7 -'!$E13 -> 33.12511521
A14: DSFM | B14: 112124 | C14: =B14/'- 3 -'!$D14*100 -> 0.1124926937 | D14: =B14/'- 7 -'!$E14 -> 19.31410834
A15: EVERGREEN | B15: 40000 | C15: =B15/'- 3 -'!$D15*100 -> 0.1832167502 | D15: =B15/'- 7 -'!$E15 -> 27.81641168
A16: FLIN FLON | B16: 36572 | C16: =B16/'- 3 -'!$D16*100 -> 0.2273381667 | D16: =B16/'- 7 -'!$E16 -> 38.68006346
A17: FORT LA BOSSE | B17: 90615 | C17: =B17/'- 3 -'!$D17*100 -> 0.4436165843 | D17: =B17/'- 7 -'!$E17 -> 63.45588235
A18: FRONTIER | B18: 801727 | C18: =B18/'- 3 -'!$D18*100 -> 0.5481326021 | D18: =B18/'- 7 -'!$E18 -> 129.9184897
A19: GARDEN VALLEY | B19: 124948 | C19: =B19/'- 3 -'!$D19*100 -> 0.2349664436 | D19: =B19/'- 7 -'!$E19 -> 33.18671979
A20: HANOVER | B20: 123473 | C20: =B20/'- 3 -'!$D20*100 -> 0.1245608974 | D20: =B20/'- 7 -'!$E20 -> 15.92378127
A21: INTERLAKE | B21: 44323 | C21: =B21/'- 3 -'!$D21*100 -> 0.1082307187 | D21: =B21/'- 7 -'!$E21 -> 15.1817092
A22: KELSEY | B22: 51876 | C22: =B22/'- 3 -'!$D22*100 -> 0.2446231224 | D22: =B22/'- 7 -'!$E22 -> 35.80124224
A23: LAKESHORE | B23: 18205 | C23: =B23/'- 3 -'!$D23*100 -> 0.1110728632 | D23: =B23/'- 7 -'!$E23 -> 19.73441734
A24: LORD SELKIRK | B24: 171880 | C24: =B24/'- 3 -'!$D24*100 -> 0.2755361919 | D24: =B24/'- 7 -'!$E24 -> 46.80827887
A25: LOUIS RIEL | B25: 1040831 | C25: =B25/'- 3 -'!$D25*100 -> 0.4997765718 | D25: =B25/'- 7 -'!$E25 -> 69.6580779
A26: MOUNTAIN VIEW | B26: 30642 | C26: =B26/'- 3 -'!$D26*100 -> 0.06896686768 | D26: =B26/'- 7 -'!$E26 -> 10.21403405
A27: MYSTERY LAKE | B27: 242511 | C27: =B27/'- 3 -'!$D27*100 -> 0.5459955877 | D27: =B27/'- 7 -'!$E27 -> 87.85038942
A28: PARK WEST | B28: 84238 | C28: =B28/'- 3 -'!$D28*100 -> 0.2755097452 | D28: =B28/'- 7 -'!$E28 -> 41.81583519
A29: PEMBINA TRAILS | B29: 1084206 | C29: =B29/'- 3 -'!$D29*100 -> 0.5857391491 | D29: =B29/'- 7 -'!$E29 -> 73.76203338
A30: PINE CREEK | B30: 46077 | C30: =B30/'- 3 -'!$D30*100 -> 0.2743215295 | D30: =B30/'- 7 -'!$E30 -> 41.69864253
A31: PORTAGE LA PRAIRIE | B31: 79496 | C31: =B31/'- 3 -'!$D31*100 -> 0.1830767455 | D31: =B31/'- 7 -'!$E31 -> 24.29584352
A32: PRAIRIE ROSE | B32: 61197 | C32: =B32/'- 3 -'!$D32*100 -> 0.1820978179 | D32: =B32/'- 7 -'!$E32 -> 27.22892102
A33: PRAIRIE SPIRIT | B33: 39058 | C33: =B33/'- 3 -'!$D33*100 -> 0.1305738298 | D33: =B33/'- 7 -'!$E33 -> 19.16486752
A34: RED RIVER VALLEY | B34: 44030 | C34: =B34/'- 3 -'!$D34*100 -> 0.130062263 | D34: =B34/'- 7 -'!$E34 -> 20.08667883
A35: RIVER EAST TRANSCONA | B35: 1472614 | C35: =B35/'- 3 -'!$D35*100 -> 0.6893080957 | D35: =B35/'- 7 -'!$E35 -> 89.84558128
A36: ROLLING RIVER | B36: 26084 | C36: =B36/'- 3 -'!$D36*100 -> 0.1003401888 | D36: =B36/'- 7 -'!$E36 -> 14.8966305
A37: SEINE RIVER | B37: 109794 | C37: =B37/'- 3 -'!$D37*100 -> 0.1881854296 | D37: =B37/'- 7 -'!$E37 -> 24.77301444
A38: SEVEN OAKS | B38: 699908 | C38: =B38/'- 3 -'!$D38*100 -> 0.4309165224 | D38: =B38/'- 7 -'!$E38 -> 61.65178021
A39: SOUTHWEST HORIZON | B39: 58520 | C39: =B39/'- 3 -'!$D39*100 -> 0.2428178892 | D39: =B39/'- 7 -'!$E39 -> 39.95903039
A40: ST. JAMES-ASSINIBOIA | B40: 473151 | C40: =B40/'- 3 -'!$D40*100 -> 0.4057870923 | D40: =B40/'- 7 -'!$E40 -> 59.35532836
A41: SUNRISE | B41: 151380 | C41: =B41/'- 3 -'!$D41*100 -> 0.2095410586 | D41: =B41/'- 7 -'!$E41 -> 33.65869928
A42: SWAN VALLEY | B42: 14662 | C42: =B42/'- 3 -'!$D42*100 -> 0.06700738886 | D42: =B42/'- 7 -'!$E42 -> 11.08071342
A43: TURTLE MOUNTAIN | B43: 24295 | C43: =B43/'- 3 -'!$D43*100 -> 0.168674585 | D43: =B43/'- 7 -'!$E43 -> 23.66780321
A44: TURTLE RIVER | B44: 7728 | C44: =B44/'- 3 -'!$D44*100 -> 0.06444299422 | D44: =B44/'- 7 -'!$E44 -> 11.98139535
A45: WESTERN | B45: 55246 | C45: =B45/'- 3 -'!$D45*100 -> 0.2298780364 | D45: =B45/'- 7 -'!$E45 -> 30.7349096
A46: WINNIPEG | B46: 895081 | C46: =B46/'- 3 -'!$D46*100 -> 0.2122325208 | D46: =B46/'- 7 -'!$E46 -> 32.73708465
A48: PROVINCE | B48: =SUM(B11:B46) -> 8737042 | C48: =B48/'- 3 -'!$D48*100 -> 0.3350776147 | D48: =B48/'- 7 -'!$E48 -> 49.34937313
A50: WHITESHELL | B50: 0 | C50: =B50/'- 3 -'!$D50*100 -> 0 | D50: =B50/'- 7 -'!$E50 -> 0
A51: MITT | B51: 3240211 | C51: =B51/'- 3 -'!$D51*100 -> 9.108678034 | D51: =B51/'- 7 -'!$E51 -> 1511.997667

Sheet - 27 -
B2: ANALYSIS OF EXPENSE BY PROGRAM | J2: PAGE 10 OF 16
B3: =OPYEAR -> OPERATING FUND 2021/2022 ACTUAL
B5: FUNCTION 600: INSTRUCTIONAL & OTHER SUPPORT SERVICES
B6: CURRICULUM CONSULTING AND DEVELOPMENT ADMIN. | E6: CURRICULUM CONSULTING AND DEVELOPMENT | H6: LIBRARY / MEDIA CENTRE
D8: PER PUPIL | G8: PER PUPIL | J8: PER PUPIL
A9: DIVISION / DISTRICT | B9: AMOUNT | C9: % | E9: AMOUNT | F9: % | H9: AMOUNT | I9: %
A11: BEAUTIFUL PLAINS | B11: 0 | C11: =B11/'- 3 -'!$D11*100 -> 0 | D11: =B11/'- 7 -'!$E11 -> 0 | E11: 131446 | F11: =E11/'- 3 -'!$D11*100 -> 0.5460095478 | G11: =E11/'- 7 -'!$E11 -> 69.29151292 | H11: 244252 | I11: =H11/'- 3 -'!$D11*100 -> 1.014590966 | J11: =H11/'- 7 -'!$E11 -> 128.7569847
A12: BORDER LAND | B12: 0 | C12: =B12/'- 3 -'!$D12*100 -> 0 | D12: =B12/'- 7 -'!$E12 -> 0 | E12: 0 | F12: =E12/'- 3 -'!$D12*100 -> 0 | G12: =E12/'- 7 -'!$E12 -> 0 | H12: 268569 | I12: =H12/'- 3 -'!$D12*100 -> 0.7568323132 | J12: =H12/'- 7 -'!$E12 -> 138.8412705
A13: BRANDON | B13: 112123 | C13: =B13/'- 3 -'!$D13*100 -> 0.09955722461 | D13: =B13/'- 7 -'!$E13 -> 12.91739631 | E13: 350933 | F13: =E13/'- 3 -'!$D13*100 -> 0.3116034668 | G13: =E13/'- 7 -'!$E13 -> 40.43006912 | H13: 700267 | I13: =H13/'- 3 -'!$D13*100 -> 0.6217871356 | J13: =H13/'- 7 -'!$E13 -> 80.67592166
A14: DSFM | B14: 307768 | C14: =B14/'- 3 -'!$D14*100 -> 0.3087800234 | D14: =B14/'- 7 -'!$E14 -> 53.01509485 | E14: 2024803 | F14: =E14/'- 3 -'!$D14*100 -> 2.031461093 | G14: =E14/'- 7 -'!$E14 -> 348.7858488 | H14: 695169 | I14: =H14/'- 3 -'!$D14*100 -> 0.6974549015 | J14: =H14/'- 7 -'!$E14 -> 119.7475062
A15: EVERGREEN | B15: 116256 | C15: =B15/'- 3 -'!$D15*100 -> 0.5325011629 | D15: =B15/'- 7 -'!$E15 -> 80.84561892 | E15: 59449 | F15: =E15/'- 3 -'!$D15*100 -> 0.2723013146 | G15: =E15/'- 7 -'!$E15 -> 41.34144645 | H15: 172762 | I15: =H15/'- 3 -'!$D15*100 -> 0.7913223051 | J15: =H15/'- 7 -'!$E15 -> 120.1404729
A16: FLIN FLON | B16: 0 | C16: =B16/'- 3 -'!$D16*100 -> 0 | D16: =B16/'- 7 -'!$E16 -> 0 | E16: 0 | F16: =E16/'- 3 -'!$D16*100 -> 0 | G16: =E16/'- 7 -'!$E16 -> 0 | H16: 115009 | I16: =H16/'- 3 -'!$D16*100 -> 0.7149167454 | J16: =H16/'- 7 -'!$E16 -> 121.6382866
A17: FORT LA BOSSE | B17: 0 | C17: =B17/'- 3 -'!$D17*100 -> 0 | D17: =B17/'- 7 -'!$E17 -> 0 | E17: 60791 | F17: =E17/'- 3 -'!$D17*100 -> 0.2976096206 | G17: =E17/'- 7 -'!$E17 -> 42.57072829 | H17: 254810 | I17: =H17/'- 3 -'!$D17*100 -> 1.24745287 | J17: =H17/'- 7 -'!$E17 -> 178.4383754
A18: FRONTIER | B18: 0 | C18: =B18/'- 3 -'!$D18*100 -> 0 | D18: =B18/'- 7 -'!$E18 -> 0 | E18: 3331889 | F18: =E18/'- 3 -'!$D18*100 -> 2.277978648 | G18: =E18/'- 7 -'!$E18 -> 539.9269162 | H18: 1759517 | I18: =H18/'- 3 -'!$D18*100 -> 1.202963891 | J18: =H18/'- 7 -'!$E18 -> 285.1267218
A19: GARDEN VALLEY | B19: 81369 | C19: =B19/'- 3 -'!$D19*100 -> 0.1530155309 | D19: =B19/'- 7 -'!$E19 -> 21.61195219 | E19: 306405 | F19: =E19/'- 3 -'!$D19*100 -> 0.576198844 | G19: =E19/'- 7 -'!$E19 -> 81.38247012 | H19: 464268 | I19: =H19/'- 3 -'!$D19*100 -> 0.8730624008 | J19: =H19/'- 7 -'!$E19 -> 123.3115538
A20: HANOVER | B20: 0 | C20: =B20/'- 3 -'!$D20*100 -> 0 | D20: =B20/'- 7 -'!$E20 -> 0 | E20: 134658 | F20: =E20/'- 3 -'!$D20*100 -> 0.1358444464 | G20: =E20/'- 7 -'!$E20 -> 17.36626257 | H20: 978079 | I20: =H20/'- 3 -'!$D20*100 -> 0.9866966706 | J20: =H20/'- 7 -'!$E20 -> 126.1386381
A21: INTERLAKE | B21: 0 | C21: =B21/'- 3 -'!$D21*100 -> 0 | D21: =B21/'- 7 -'!$E21 -> 0 | E21: 0 | F21: =E21/'- 3 -'!$D21*100 -> 0 | G21: =E21/'- 7 -'!$E21 -> 0 | H21: 512828 | I21: =H21/'- 3 -'!$D21*100 -> 1.252256007 | J21: =H21/'- 7 -'!$E21 -> 175.6561055
A22: KELSEY | B22: 23522 | C22: =B22/'- 3 -'!$D22*100 -> 0.1109188273 | D22: =B22/'- 7 -'!$E22 -> 16.23326432 | E22: 79557 | F22: =E22/'- 3 -'!$D22*100 -> 0.375153862 | G22: =E22/'- 7 -'!$E22 -> 54.9047619 | H22: 179731 | I22: =H22/'- 3 -'!$D22*100 -> 0.8475279206 | J22: =H22/'- 7 -'!$E22 -> 124.0379572
A23: LAKESHORE | B23: 0 | C23: =B23/'- 3 -'!$D23*100 -> 0 | D23: =B23/'- 7 -'!$E23 -> 0 | E23: 0 | F23: =E23/'- 3 -'!$D23*100 -> 0 | G23: =E23/'- 7 -'!$E23 -> 0 | H23: 135380 | I23: =H23/'- 3 -'!$D23*100 -> 0.825984302 | J23: =H23/'- 7 -'!$E23 -> 146.7533875
A24: LORD SELKIRK | B24: 0 | C24: =B24/'- 3 -'!$D24*100 -> 0 | D24: =B24/'- 7 -'!$E24 -> 0 | E24: 0 | F24: =E24/'- 3 -'!$D24*100 -> 0 | G24: =E24/'- 7 -'!$E24 -> 0 | H24: 574953 | I24: =H24/'- 3 -'!$D24*100 -> 0.921691646 | J24: =H24/'- 7 -'!$E24 -> 156.5776144
A25: LOUIS RIEL | B25: 219625 | C25: =B25/'- 3 -'!$D25*100 -> 0.1054574946 | D25: =B25/'- 7 -'!$E25 -> 14.69850087 | E25: 2234500 | F25: =E25/'- 3 -'!$D25*100 -> 1.072941476 | G25: =E25/'- 7 -'!$E25 -> 149.544907 | H25: 4972423 | I25: =H25/'- 3 -'!$D25*100 -> 2.387611937 | J25: =H25/'- 7 -'!$E25 -> 332.7816223
A26: MOUNTAIN VIEW | B26: 23788 | C26: =B26/'- 3 -'!$D26*100 -> 0.05354036448 | D26: =B26/'- 7 -'!$E26 -> 7.929359765 | E26: 361897 | F26: =E26/'- 3 -'!$D26*100 -> 0.8145324232 | G26: =E26/'- 7 -'!$E26 -> 120.6327354 | H26: 518658 | I26: =H26/'- 3 -'!$D26*100 -> 1.167359104 | J26: =H26/'- 7 -'!$E26 -> 172.8865763
A27: MYSTERY LAKE | B27: 0 | C27: =B27/'- 3 -'!$D27*100 -> 0 | D27: =B27/'- 7 -'!$E27 -> 0 | E27: 656509 | F27: =E27/'- 3 -'!$D27*100 -> 1.478081478 | G27: =E27/'- 7 -'!$E27 -> 237.8224959 | H27: 868683 | I27: =H27/'- 3 -'!$D27*100 -> 1.955775553 | J27: =H27/'- 7 -'!$E27 -> 314.6832096
A28: PARK WEST | B28: 36570 | C28: =B28/'- 3 -'!$D28*100 -> 0.1196062511 | D28: =B28/'- 7 -'!$E28 -> 18.15338794 | E28: 26 | F28: =E28/'- 3 -'!$D28*100 -> 8.503589087e-05 | G28: =E28/'- 7 -'!$E28 -> 0.01290642839 | H28: 305956 | I28: =H28/'- 3 -'!$D28*100 -> 1.000663116 | J28: =H28/'- 7 -'!$E28 -> 151.8768925
A29: PEMBINA TRAILS | B29: 261988 | C29: =B29/'- 3 -'!$D29*100 -> 0.1415382577 | D29: =B29/'- 7 -'!$E29 -> 17.82388919 | E29: 363728 | F29: =E29/'- 3 -'!$D29*100 -> 0.1965029978 | G29: =E29/'- 7 -'!$E29 -> 24.74558975 | H29: 4198058 | I29: =H29/'- 3 -'!$D29*100 -> 2.267988667 | J29: =H29/'- 7 -'!$E29 -> 285.6074347
A30: PINE CREEK | B30: 0 | C30: =B30/'- 3 -'!$D30*100 -> 0 | D30: =B30/'- 7 -'!$E30 -> 0 | E30: 0 | F30: =E30/'- 3 -'!$D30*100 -> 0 | G30: =E30/'- 7 -'!$E30 -> 0 | H30: 254686 | I30: =H30/'- 3 -'!$D30*100 -> 1.516284764 | J30: =H30/'- 7 -'!$E30 -> 230.4850679
A31: PORTAGE LA PRAIRIE | B31: 98724 | C31: =B31/'- 3 -'!$D31*100 -> 0.2273582145 | D31: =B31/'- 7 -'!$E31 -> 30.17237164 | E31: 102861 | F31: =E31/'- 3 -'!$D31*100 -> 0.2368855932 | G31: =E31/'- 7 -'!$E31 -> 31.43673594 | H31: 407908 | I31: =H31/'- 3 -'!$D31*100 -> 0.9393990778 | J31: =H31/'- 7 -'!$E31 -> 124.6662592
A32: PRAIRIE ROSE | B32: 144742 | C32: =B32/'- 3 -'!$D32*100 -> 0.4306943537 | D32: =B32/'- 7 -'!$E32 -> 64.40133482 | E32: 0 | F32: =E32/'- 3 -'!$D32*100 -> 0 | G32: =E32/'- 7 -'!$E32 -> 0 | H32: 354632 | I32: =H32/'- 3 -'!$D32*100 -> 1.055243122 | J32: =H32/'- 7 -'!$E32 -> 157.7895439
A33: PRAIRIE SPIRIT | B33: 0 | C33: =B33/'- 3 -'!$D33*100 -> 0 | D33: =B33/'- 7 -'!$E33 -> 0 | E33: 82688 | F33: =E33/'- 3 -'!$D33*100 -> 0.2764321993 | G33: =E33/'- 7 -'!$E33 -> 40.57311089 | H33: 414051 | I33: =H33/'- 3 -'!$D33*100 -> 1.384203615 | J33: =H33/'- 7 -'!$E33 -> 203.1653582
A34: RED RIVER VALLEY | B34: 9173 | C34: =B34/'- 3 -'!$D34*100 -> 0.02709655095 | D34: =B34/'- 7 -'!$E34 -> 4.184762774 | E34: 118216 | F34: =E34/'- 3 -'!$D34*100 -> 0.3492037357 | G34: =E34/'- 7 -'!$E34 -> 53.93065693 | H34: 188844 | I34: =H34/'- 3 -'!$D34*100 -> 0.5578350668 | J34: =H34/'- 7 -'!$E34 -> 86.15145985
A35: RIVER EAST TRANSCONA | B35: 492411 | C35: =B35/'- 3 -'!$D35*100 -> 0.2304900596 | D35: =B35/'- 7 -'!$E35 -> 30.04246362 | E35: 978093 | F35: =E35/'- 3 -'!$D35*100 -> 0.4578303773 | G35: =E35/'- 7 -'!$E35 -> 59.67438455 | H35: 4744937 | I35: =H35/'- 3 -'!$D35*100 -> 2.221032455 | J35: =H35/'- 7 -'!$E35 -> 289.493121
A36: ROLLING RIVER | B36: 21275 | C36: =B36/'- 3 -'!$D36*100 -> 0.08184088009 | D36: =B36/'- 7 -'!$E36 -> 12.15019989 | E36: 74890 | F36: =E36/'- 3 -'!$D36*100 -> 0.2880875916 | G36: =E36/'- 7 -'!$E36 -> 42.7698458 | H36: 225122 | I36: =H36/'- 3 -'!$D36*100 -> 0.8660015327 | J36: =H36/'- 7 -'!$E36 -> 128.5676756
A37: SEINE RIVER | B37: 39802 | C37: =B37/'- 3 -'!$D37*100 -> 0.06822008916 | D37: =B37/'- 7 -'!$E37 -> 8.980595668 | E37: 655739 | F37: =E37/'- 3 -'!$D37*100 -> 1.123927769 | G37: =E37/'- 7 -'!$E37 -> 147.9555505 | H37: 501717 | I37: =H37/'- 3 -'!$D37*100 -> 0.8599361458 | J37: =H37/'- 7 -'!$E37 -> 113.2032942
A38: SEVEN OAKS | B38: 86596 | C38: =B38/'- 3 -'!$D38*100 -> 0.05331507452 | D38: =B38/'- 7 -'!$E38 -> 7.627856174 | E38: 389361 | F38: =E38/'- 3 -'!$D38*100 -> 0.2397202034 | G38: =E38/'- 7 -'!$E38 -> 34.29707732 | H38: 1887512 | I38: =H38/'- 3 -'!$D38*100 -> 1.162095743 | J38: =H38/'- 7 -'!$E38 -> 166.2625302
A39: SOUTHWEST HORIZON | B39: 0 | C39: =B39/'- 3 -'!$D39*100 -> 0 | D39: =B39/'- 7 -'!$E39 -> 0 | E39: 126485 | F39: =E39/'- 3 -'!$D39*100 -> 0.5248260545 | G39: =E39/'- 7 -'!$E39 -> 86.36736087 | H39: 196888 | I39: =H39/'- 3 -'!$D39*100 -> 0.8169502488 | J39: =H39/'- 7 -'!$E39 -> 134.4404234
A40: ST. JAMES-ASSINIBOIA | B40: 60572 | C40: =B40/'- 3 -'!$D40*100 -> 0.05194818516 | D40: =B40/'- 7 -'!$E40 -> 7.598569905 | E40: 725538 | F40: =E40/'- 3 -'!$D40*100 -> 0.6222410084 | G40: =E40/'- 7 -'!$E40 -> 91.01649627 | H40: 1298374 | I40: =H40/'- 3 -'!$D40*100 -> 1.113520652 | J40: =H40/'- 7 -'!$E40 -> 162.8769993
A41: SUNRISE | B41: 0 | C41: =B41/'- 3 -'!$D41*100 -> 0 | D41: =B41/'- 7 -'!$E41 -> 0 | E41: 521906 | F41: =E41/'- 3 -'!$D41*100 -> 0.7224252591 | G41: =E41/'- 7 -'!$E41 -> 116.0435798 | H41: 648031 | I41: =H41/'- 3 -'!$D41*100 -> 0.8970082027 | J41: =H41/'- 7 -'!$E41 -> 144.0869372
A42: SWAN VALLEY | B42: 19171 | C42: =B42/'- 3 -'!$D42*100 -> 0.08761414895 | D42: =B42/'- 7 -'!$E42 -> 14.48836155 | E42: 0 | F42: =E42/'- 3 -'!$D42*100 -> 0 | G42: =E42/'- 7 -'!$E42 -> 0 | H42: 202641 | I42: =H42/'- 3 -'!$D42*100 -> 0.926097687 | J42: =H42/'- 7 -'!$E42 -> 153.1446493
A43: TURTLE MOUNTAIN | B43: 0 | C43: =B43/'- 3 -'!$D43*100 -> 0 | D43: =B43/'- 7 -'!$E43 -> 0 | E43: 52278 | F43: =E43/'- 3 -'!$D43*100 -> 0.362954104 | G43: =E43/'- 7 -'!$E43 -> 50.92839747 | H43: 140173 | I43: =H43/'- 3 -'!$D43*100 -> 0.9731888293 | J43: =H43/'- 7 -'!$E43 -> 136.5543108
A44: TURTLE RIVER | B44: 0 | C44: =B44/'- 3 -'!$D44*100 -> 0 | D44: =B44/'- 7 -'!$E44 -> 0 | E44: 0 | F44: =E44/'- 3 -'!$D44*100 -> 0 | G44: =E44/'- 7 -'!$E44 -> 0 | H44: 108098 | I44: =H44/'- 3 -'!$D44*100 -> 0.9014180628 | J44: =H44/'- 7 -'!$E44 -> 167.5937984
A45: WESTERN | B45: 0 | C45: =B45/'- 3 -'!$D45*100 -> 0 | D45: =B45/'- 7 -'!$E45 -> 0 | E45: 0 | F45: =E45/'- 3 -'!$D45*100 -> 0 | G45: =E45/'- 7 -'!$E45 -> 0 | H45: 238705 | I45: =H45/'- 3 -'!$D45*100 -> 0.9932490439 | J45: =H45/'- 7 -'!$E45 -> 132.798331
A46: WINNIPEG | B46: 965767 | C46: =B46/'- 3 -'!$D46*100 -> 0.2289928676 | D46: =B46/'- 7 -'!$E46 -> 35.32238538 | E46: 1541705 | F46: =E46/'- 3 -'!$D46*100 -> 0.3655534399 | G46: =E46/'- 7 -'!$E46 -> 56.38699413 | H46: 2464575 | I46: =H46/'- 3 -'!$D46*100 -> 0.5843750063 | J46: =H46/'- 7 -'!$E46 -> 90.14044584
A48: PROVINCE | B48: =SUM(B11:B46) -> 3121242 | C48: =B48/'- 3 -'!$D48*100 -> 0.1197039369 | D48: =B48/'- 7 -'!$E48 -> 17.62968933 | E48: =SUM(E11:E46) -> 15466351 | F48: =E48/'- 3 -'!$D48*100 -> 0.5931558988 | G48: =E48/'- 7 -'!$E48 -> 87.35848202 | H48: =SUM(H11:H46) -> 32196266 | I48: =H48/'- 3 -'!$D48*100 -> 1.23477122 | J48: =H48/'- 7 -'!$E48 -> 181.8539437
A50: WHITESHELL | B50: 0 | C50: =B50/'- 3 -'!$D50*100 -> 0 | D50: =B50/'- 7 -'!$E50 -> 0 | E50: 6421 | F50: =E50/'- 3 -'!$D50*100 -> 0.182776119 | G50: =E50/'- 7 -'!$E50 -> 32.59390863 | H50: 11701 | I50: =H50/'- 3 -'!$D50*100 -> 0.3330732548 | J50: =H50/'- 7 -'!$E50 -> 59.39593909
A51: MITT | B51: 0 | C51: =B51/'- 3 -'!$D51*100 -> 0 | D51: =B51/'- 7 -'!$E51 -> 0 | E51: 461508 | F51: =E51/'- 3 -'!$D51*100 -> 1.297362358 | G51: =E51/'- 7 -'!$E51 -> 215.3560429 | H51: 0 | I51: =H51/'- 3 -'!$D51*100 -> 0 | J51: =H51/'- 7 -'!$E51 -> 0

Sheet - 28 -
B2: ANALYSIS OF EXPENSE BY PROGRAM | J2: PAGE 11 OF 16
B3: =OPYEAR -> OPERATING FUND 2021/2022 ACTUAL
B5: FUNCTION 600: INSTRUCTIONAL & OTHER SUPPORT SERVICES
B6: PROFESSIONAL AND STAFF DEVELOPMENT
E7: OTHER (1)
D8: PER PUPIL | G8: PER PUPIL
A9: DIVISION / DISTRICT | B9: AMOUNT | C9: % | E9: AMOUNT | F9: %
A11: BEAUTIFUL PLAINS | B11: 90631 | C11: =B11/'- 3 -'!$D11*100 -> 0.3764693587 | D11: =B11/'- 7 -'!$E11 -> 47.77596205 | E11: 16079 | F11: =E11/'- 3 -'!$D11*100 -> 0.06679006983 | G11: =E11/'- 7 -'!$E11 -> 8.47601476
A12: BORDER LAND | B12: 299306 | C12: =B12/'- 3 -'!$D12*100 -> 0.8434497366 | D12: =B12/'- 7 -'!$E12 -> 154.7312806 | E12: 130781 | F12: =E12/'- 3 -'!$D12*100 -> 0.36854323 | G12: =E12/'- 7 -'!$E12 -> 67.60944188
A13: BRANDON | B13: 911103 | C13: =B13/'- 3 -'!$D13*100 -> 0.8089944616 | D13: =B13/'- 7 -'!$E13 -> 104.9657834 | E13: 96994 | F13: =E13/'- 3 -'!$D13*100 -> 0.08612375198 | G13: =E13/'- 7 -'!$E13 -> 11.17442396
A14: DSFM | B14: 146852 | C14: =B14/'- 3 -'!$D14*100 -> 0.1473348886 | D14: =B14/'- 7 -'!$E14 -> 25.29623843 | E14: 155353 | F14: =E14/'- 3 -'!$D14*100 -> 0.1558638422 | G14: =E14/'- 7 -'!$E14 -> 26.76059249
A15: EVERGREEN | B15: 102816 | C15: =B15/'- 3 -'!$D15*100 -> 0.4709403348 | D15: =B15/'- 7 -'!$E15 -> 71.49930459 | E15: 4514 | F15: =E15/'- 3 -'!$D15*100 -> 0.02067601026 | G15: =E15/'- 7 -'!$E15 -> 3.139082058
A16: FLIN FLON | B16: 54491 | C16: =B16/'- 3 -'!$D16*100 -> 0.3387259117 | D16: =B16/'- 7 -'!$E16 -> 57.63194077 | E16: 25601 | F16: =E16/'- 3 -'!$D16*100 -> 0.1591404464 | G16: =E16/'- 7 -'!$E16 -> 27.07667901
A17: FORT LA BOSSE | B17: 57031 | C17: =B17/'- 3 -'!$D17*100 -> 0.2792020904 | D17: =B17/'- 7 -'!$E17 -> 39.93767507 | E17: 1500 | F17: =E17/'- 3 -'!$D17*100 -> 0.007343429635 | G17: =E17/'- 7 -'!$E17 -> 1.050420168
A18: FRONTIER | B18: 1047928 | C18: =B18/'- 3 -'!$D18*100 -> 0.7164577236 | D18: =B18/'- 7 -'!$E18 -> 169.8149409 | E18: 1946970 | F18: =E18/'- 3 -'!$D18*100 -> 1.331123602 | G18: =E18/'- 7 -'!$E18 -> 315.5031599
A19: GARDEN VALLEY | B19: 474586 | C19: =B19/'- 3 -'!$D19*100 -> 0.8924655426 | D19: =B19/'- 7 -'!$E19 -> 126.0520584 | E19: 295286 | F19: =E19/'- 3 -'!$D19*100 -> 0.5552894106 | G19: =E19/'- 7 -'!$E19 -> 78.42921647
A20: HANOVER | B20: 346564 | C20: =B20/'- 3 -'!$D20*100 -> 0.3496175104 | D20: =B20/'- 7 -'!$E20 -> 44.69486717 | E20: 213067 | F20: =E20/'- 3 -'!$D20*100 -> 0.2149442934 | G20: =E20/'- 7 -'!$E20 -> 27.47833376
A21: INTERLAKE | B21: 364884 | C21: =B21/'- 3 -'!$D21*100 -> 0.8909969443 | D21: =B21/'- 7 -'!$E21 -> 124.9816749 | E21: 113711 | F21: =E21/'- 3 -'!$D21*100 -> 0.2776667476 | G21: =E21/'- 7 -'!$E21 -> 38.9487926
A22: KELSEY | B22: 51898 | C22: =B22/'- 3 -'!$D22*100 -> 0.2447268642 | D22: =B22/'- 7 -'!$E22 -> 35.81642512 | E22: 0 | F22: =E22/'- 3 -'!$D22*100 -> 0 | G22: =E22/'- 7 -'!$E22 -> 0
A23: LAKESHORE | B23: 183310 | C23: =B23/'- 3 -'!$D23*100 -> 1.11841618 | D23: =B23/'- 7 -'!$E23 -> 198.7100271 | E23: 9685 | F23: =E23/'- 3 -'!$D23*100 -> 0.05909039714 | G23: =E23/'- 7 -'!$E23 -> 10.49864499
A24: LORD SELKIRK | B24: 163997 | C24: =B24/'- 3 -'!$D24*100 -> 0.2628991672 | D24: =B24/'- 7 -'!$E24 -> 44.66149237 | E24: 135373 | F24: =E24/'- 3 -'!$D24*100 -> 0.2170128049 | G24: =E24/'- 7 -'!$E24 -> 36.8662854
A25: LOUIS RIEL | B25: 878600 | C25: =B25/'- 3 -'!$D25*100 -> 0.4218779955 | D25: =B25/'- 7 -'!$E25 -> 58.80069602 | E25: 437024 | F25: =E25/'- 3 -'!$D25*100 -> 0.2098461292 | G25: =E25/'- 7 -'!$E25 -> 29.2480257
A26: MOUNTAIN VIEW | B26: 221632 | C26: =B26/'- 3 -'!$D26*100 -> 0.4988337843 | D26: =B26/'- 7 -'!$E26 -> 73.87757959 | E26: 259805 | F26: =E26/'- 3 -'!$D26*100 -> 0.5847508993 | G26: =E26/'- 7 -'!$E26 -> 86.60195534
A27: MYSTERY LAKE | B27: 87588 | C27: =B27/'- 3 -'!$D27*100 -> 0.1971979066 | D27: =B27/'- 7 -'!$E27 -> 31.7290346 | E27: 0 | F27: =E27/'- 3 -'!$D27*100 -> 0 | G27: =E27/'- 7 -'!$E27 -> 0
A28: PARK WEST | B28: 265870 | C28: =B28/'- 3 -'!$D28*100 -> 0.8695573964 | D28: =B28/'- 7 -'!$E28 -> 131.9781584 | E28: 0 | F28: =E28/'- 3 -'!$D28*100 -> 0 | G28: =E28/'- 7 -'!$E28 -> 0
A29: PEMBINA TRAILS | B29: 853565 | C29: =B29/'- 3 -'!$D29*100 -> 0.4611360173 | D29: =B29/'- 7 -'!$E29 -> 58.07078177 | E29: 578115 | F29: =E29/'- 3 -'!$D29*100 -> 0.3123249532 | G29: =E29/'- 7 -'!$E29 -> 39.33102927
A30: PINE CREEK | B30: 90622 | C30: =B30/'- 3 -'!$D30*100 -> 0.5395222268 | D30: =B30/'- 7 -'!$E30 -> 82.01085973 | E30: 2458 | F30: =E30/'- 3 -'!$D30*100 -> 0.01463381556 | G30: =E30/'- 7 -'!$E30 -> 2.224434389
A31: PORTAGE LA PRAIRIE | B31: 378662 | C31: =B31/'- 3 -'!$D31*100 -> 0.8720464752 | D31: =B31/'- 7 -'!$E31 -> 115.7279951 | E31: 769984 | F31: =E31/'- 3 -'!$D31*100 -> 1.773248525 | G31: =E31/'- 7 -'!$E31 -> 235.3251834
A32: PRAIRIE ROSE | B32: 189215 | C32: =B32/'- 3 -'!$D32*100 -> 0.5630282304 | D32: =B32/'- 7 -'!$E32 -> 84.189099 | E32: 1537 | F32: =E32/'- 3 -'!$D32*100 -> 0.004573497821 | G32: =E32/'- 7 -'!$E32 -> 0.6838709677
A33: PRAIRIE SPIRIT | B33: 114561 | C33: =B33/'- 3 -'!$D33*100 -> 0.3829860341 | D33: =B33/'- 7 -'!$E33 -> 56.2124632 | E33: 7796 | F33: =E33/'- 3 -'!$D33*100 -> 0.02606261399 | G33: =E33/'- 7 -'!$E33 -> 3.82531894
A34: RED RIVER VALLEY | B34: 188087 | C34: =B34/'- 3 -'!$D34*100 -> 0.5555989293 | D34: =B34/'- 7 -'!$E34 -> 85.80611314 | E34: 101170 | F34: =E34/'- 3 -'!$D34*100 -> 0.2988507642 | G34: =E34/'- 7 -'!$E34 -> 46.15419708
A35: RIVER EAST TRANSCONA | B35: 1335645 | C35: =B35/'- 3 -'!$D35*100 -> 0.6251950012 | D35: =B35/'- 7 -'!$E35 -> 81.48897227 | E35: 656045 | F35: =E35/'- 3 -'!$D35*100 -> 0.3070846329 | G35: =E35/'- 7 -'!$E35 -> 40.02592965
A36: ROLLING RIVER | B36: 86571 | C36: =B36/'- 3 -'!$D36*100 -> 0.3330221777 | D36: =B36/'- 7 -'!$E36 -> 49.44089092 | E36: 30307 | F36: =E36/'- 3 -'!$D36*100 -> 0.1165852669 | G36: =E36/'- 7 -'!$E36 -> 17.3083952
A37: SEINE RIVER | B37: 273924 | C37: =B37/'- 3 -'!$D37*100 -> 0.4695020276 | D37: =B37/'- 7 -'!$E37 -> 61.80595668 | E37: 99448 | F37: =E37/'- 3 -'!$D37*100 -> 0.1704525257 | G37: =E37/'- 7 -'!$E37 -> 22.43862816
A38: SEVEN OAKS | B38: 564940 | C38: =B38/'- 3 -'!$D38*100 -> 0.3478199709 | D38: =B38/'- 7 -'!$E38 -> 49.76304987 | E38: 1913307 | F38: =E38/'- 3 -'!$D38*100 -> 1.177977104 | G38: =E38/'- 7 -'!$E38 -> 168.5346969
A39: SOUTHWEST HORIZON | B39: 71713 | C39: =B39/'- 3 -'!$D39*100 -> 0.2975597964 | D39: =B39/'- 7 -'!$E39 -> 48.96756572 | E39: 29504 | F39: =E39/'- 3 -'!$D39*100 -> 0.1224213773 | G39: =E39/'- 7 -'!$E39 -> 20.14612496
A40: ST. JAMES-ASSINIBOIA | B40: 1415525 | C40: =B40/'- 3 -'!$D40*100 -> 1.213992518 | D40: =B40/'- 7 -'!$E40 -> 177.5732296 | E40: 339443 | F40: =E40/'- 3 -'!$D40*100 -> 0.2911154959 | G40: =E40/'- 7 -'!$E40 -> 42.58207364
A41: SUNRISE | B41: 235804 | C41: =B41/'- 3 -'!$D41*100 -> 0.3264012404 | D41: =B41/'- 7 -'!$E41 -> 52.43001668 | E41: 125047 | F41: =E41/'- 3 -'!$D41*100 -> 0.1730907699 | G41: =E41/'- 7 -'!$E41 -> 27.8036687
A42: SWAN VALLEY | B42: 69377 | C42: =B42/'- 3 -'!$D42*100 -> 0.3170625847 | D42: =B42/'- 7 -'!$E42 -> 52.43122733 | E42: 25602 | F42: =E42/'- 3 -'!$D42*100 -> 0.1170047176 | G42: =E42/'- 7 -'!$E42 -> 19.34854897
A43: TURTLE MOUNTAIN | B43: 72219 | C43: =B43/'- 3 -'!$D43*100 -> 0.5013998706 | D43: =B43/'- 7 -'!$E43 -> 70.35460302 | E43: 22866 | F43: =E43/'- 3 -'!$D43*100 -> 0.1587533674 | G43: =E43/'- 7 -'!$E43 -> 22.27569411
A44: TURTLE RIVER | B44: 20172 | C44: =B44/'- 3 -'!$D44*100 -> 0.1682122256 | D44: =B44/'- 7 -'!$E44 -> 31.2744186 | E44: 76180 | F44: =E44/'- 3 -'!$D44*100 -> 0.6352571557 | G44: =E44/'- 7 -'!$E44 -> 118.1085271
A45: WESTERN | B45: 43274 | C45: =B45/'- 3 -'!$D45*100 -> 0.1800626678 | D45: =B45/'- 7 -'!$E45 -> 24.07454798 | E45: 41248 | F45: =E45/'- 3 -'!$D45*100 -> 0.1716325027 | G45: =E45/'- 7 -'!$E45 -> 22.94742698
A46: WINNIPEG | B46: 1540405 | C46: =B46/'- 3 -'!$D46*100 -> 0.3652451971 | D46: =B46/'- 7 -'!$E46 -> 56.33944736 | E46: 2140403 | F46: =E46/'- 3 -'!$D46*100 -> 0.5075106323 | G46: =E46/'- 7 -'!$E46 -> 78.28403709
A48: PROVINCE | B48: =SUM(B11:B46) -> 13293368 | C48: =B48/'- 3 -'!$D48*100 -> 0.5098190029 | D48: =B48/'- 7 -'!$E48 -> 75.08483736 | E48: =SUM(E11:E46) -> 10802203 | F48: =E48/'- 3 -'!$D48*100 -> 0.4142793882 | G48: =E48/'- 7 -'!$E48 -> 61.01400754
A50: WHITESHELL | B50: 32560 | C50: =B50/'- 3 -'!$D50*100 -> 0.926832337 | D50: =B50/'- 7 -'!$E50 -> 165.2791878 | E50: 51428 | F50: =E50/'- 3 -'!$D50*100 -> 1.463916874 | G50: =E50/'- 7 -'!$E50 -> 261.0558376
A51: MITT | B51: 0 | C51: =B51/'- 3 -'!$D51*100 -> 0 | D51: =B51/'- 7 -'!$E51 -> 0 | E51: 10615 | F51: =E51/'- 3 -'!$D51*100 -> 0.02984022255 | G51: =E51/'- 7 -'!$E51 -> 4.953336444
A53: (1) Includes food services, health services, and other activities related to instructional and other support not included in previous programs.

Sheet - 29 -
B2: ANALYSIS OF EXPENSE BY PROGRAM | G2: PAGE 12 OF 16
B3: =OPYEAR -> OPERATING FUND 2021/2022 ACTUAL
B6: FUNCTION 700: TRANSPORTATION OF PUPILS
F7: ALLOWANCES IN LIEU OF TRANSPORTATION
B8: ADMINISTRATION | D8: REGULAR
A9: DIVISION / DISTRICT | B9: AMOUNT | C9: % | D9: AMOUNT | E9: % | F9: AMOUNT | G9: %
A11: BEAUTIFUL PLAINS | B11: 93722 | C11: =B11/'- 3 -'!$D11*100 -> 0.3893089697 | D11: 1171696 | E11: =D11/'- 3 -'!$D11*100 -> 4.867072433 | F11: 6411 | G11: =F11/'- 3 -'!$D11*100 -> 0.02663045822
A12: BORDER LAND | B12: 139551 | C12: =B12/'- 3 -'!$D12*100 -> 0.3932572491 | D12: 2098547 | E12: =D12/'- 3 -'!$D12*100 -> 5.913743508 | F12: 0 | G12: =F12/'- 3 -'!$D12*100 -> 0
A13: BRANDON | B13: 223041 | C13: =B13/'- 3 -'!$D13*100 -> 0.1980444952 | D13: 2165274 | E13: =D13/'- 3 -'!$D13*100 -> 1.922608831 | F13: 490 | G13: =F13/'- 3 -'!$D13*100 -> 0.0004350850411
A14: DSFM | B14: 308761 | C14: =B14/'- 3 -'!$D14*100 -> 0.3097762887 | D14: 9559970 | E14: =D14/'- 3 -'!$D14*100 -> 9.591405736 | F14: 234927 | G14: =F14/'- 3 -'!$D14*100 -> 0.2356995028
A15: EVERGREEN | B15: 194624 | C15: =B15/'- 3 -'!$D15*100 -> 0.8914594199 | D15: 1438545 | E15: =D15/'- 3 -'!$D15*100 -> 6.589138499 | F15: 875 | G15: =F15/'- 3 -'!$D15*100 -> 0.004007866411
A16: FLIN FLON | B16: 0 | C16: =B16/'- 3 -'!$D16*100 -> 0 | D16: 387640 | E16: =D16/'- 3 -'!$D16*100 -> 2.409640352 | F16: 0 | G16: =F16/'- 3 -'!$D16*100 -> 0
A17: FORT LA BOSSE | B17: 73344 | C17: =B17/'- 3 -'!$D17*100 -> 0.3590643354 | D17: 1704136 | E17: =D17/'- 3 -'!$D17*100 -> 8.34280187 | F17: 0 | G17: =F17/'- 3 -'!$D17*100 -> 0
A18: FRONTIER | B18: 396005 | C18: =B18/'- 3 -'!$D18*100 -> 0.270744594 | D18: 7875326 | E18: =D18/'- 3 -'!$D18*100 -> 5.38428035 | F18: 62392 | G18: =F18/'- 3 -'!$D18*100 -> 0.04265677632
A19: GARDEN VALLEY | B19: 120551 | C19: =B19/'- 3 -'!$D19*100 -> 0.2266978243 | D19: 2491514 | E19: =D19/'- 3 -'!$D19*100 -> 4.685326567 | F19: 15641 | G19: =F19/'- 3 -'!$D19*100 -> 0.02941311702
A20: HANOVER | B20: 303590 | C20: =B20/'- 3 -'!$D20*100 -> 0.3062648745 | D20: 3437878 | E20: =D20/'- 3 -'!$D20*100 -> 3.468168498 | F20: 870 | G20: =F20/'- 3 -'!$D20*100 -> 0.0008776654068
A21: INTERLAKE | B21: 132466 | C21: =B21/'- 3 -'!$D21*100 -> 0.3234638987 | D21: 2204675 | E21: =D21/'- 3 -'!$D21*100 -> 5.38351555 | F21: 0 | G21: =F21/'- 3 -'!$D21*100 -> 0
A22: KELSEY | B22: 96201 | C22: =B22/'- 3 -'!$D22*100 -> 0.4536392358 | D22: 398385 | E22: =D22/'- 3 -'!$D22*100 -> 1.878598631 | F22: 558 | G22: =F22/'- 3 -'!$D22*100 -> 0.002631268839
A23: LAKESHORE | B23: 92905 | C23: =B23/'- 3 -'!$D23*100 -> 0.5668346253 | D23: 1543254 | E23: =D23/'- 3 -'!$D23*100 -> 9.415745147 | F23: 0 | G23: =F23/'- 3 -'!$D23*100 -> 0
A24: LORD SELKIRK | B24: 197906 | C24: =B24/'- 3 -'!$D24*100 -> 0.3172577705 | D24: 2522718 | E24: =D24/'- 3 -'!$D24*100 -> 4.04410118 | F24: 4643 | G24: =F24/'- 3 -'!$D24*100 -> 0.007443068064
A25: LOUIS RIEL | B25: 464408 | C25: =B25/'- 3 -'!$D25*100 -> 0.2229951242 | D25: 4755779 | E25: =D25/'- 3 -'!$D25*100 -> 2.283585832 | F25: 0 | G25: =F25/'- 3 -'!$D25*100 -> 0
A26: MOUNTAIN VIEW | B26: 223776 | C26: =B26/'- 3 -'!$D26*100 -> 0.5036593493 | D26: 2584394 | E26: =D26/'- 3 -'!$D26*100 -> 5.816773025 | F26: 8148 | G26: =F26/'- 3 -'!$D26*100 -> 0.01833894778
A27: MYSTERY LAKE | B27: 0 | C27: =B27/'- 3 -'!$D27*100 -> 0 | D27: 50000 | E27: =D27/'- 3 -'!$D27*100 -> 0.1125713035 | F27: 199878 | G27: =F27/'- 3 -'!$D27*100 -> 0.4500105401
A28: PARK WEST | B28: 55098 | C28: =B28/'- 3 -'!$D28*100 -> 0.1802041352 | D28: 1858963 | E28: =D28/'- 3 -'!$D28*100 -> 6.079945185 | F28: 1346 | G28: =F28/'- 3 -'!$D28*100 -> 0.004402242658
A29: PEMBINA TRAILS | B29: 357694 | C29: =B29/'- 3 -'!$D29*100 -> 0.1932431468 | D29: 2966425 | E29: =D29/'- 3 -'!$D29*100 -> 1.602602509 | F29: 20034 | G29: =F29/'- 3 -'!$D29*100 -> 0.01082331043
A30: PINE CREEK | B30: 133345 | C30: =B30/'- 3 -'!$D30*100 -> 0.7938755636 | D30: 1280710 | E30: =D30/'- 3 -'!$D30*100 -> 7.624765631 | F30: 0 | G30: =F30/'- 3 -'!$D30*100 -> 0
A31: PORTAGE LA PRAIRIE | B31: 135952 | C31: =B31/'- 3 -'!$D31*100 -> 0.3130931078 | D31: 1056681 | E31: =D31/'- 3 -'!$D31*100 -> 2.433502547 | F31: 0 | G31: =F31/'- 3 -'!$D31*100 -> 0
A32: PRAIRIE ROSE | B32: 168157 | C32: =B32/'- 3 -'!$D32*100 -> 0.5003680371 | D32: 2166098 | E32: =D32/'- 3 -'!$D32*100 -> 6.445442084 | F32: 375 | G32: =F32/'- 3 -'!$D32*100 -> 0.001115850152
A33: PRAIRIE SPIRIT | B33: 127220 | C33: =B33/'- 3 -'!$D33*100 -> 0.4253060226 | D33: 2392010 | E33: =D33/'- 3 -'!$D33*100 -> 7.996669227 | F33: 0 | G33: =F33/'- 3 -'!$D33*100 -> 0
A34: RED RIVER VALLEY | B34: 203003 | C34: =B34/'- 3 -'!$D34*100 -> 0.5996599949 | D34: 2607887 | E34: =D34/'- 3 -'!$D34*100 -> 7.703558593 | F34: 20660 | G34: =F34/'- 3 -'!$D34*100 -> 0.06102853403
A35: RIVER EAST TRANSCONA | B35: 363898 | C35: =B35/'- 3 -'!$D35*100 -> 0.1703350894 | D35: 4558527 | E35: =D35/'- 3 -'!$D35*100 -> 2.133776784 | F35: 2030 | G35: =F35/'- 3 -'!$D35*100 -> 0.0009502119593
A36: ROLLING RIVER | B36: 61587 | C36: =B36/'- 3 -'!$D36*100 -> 0.2369134798 | D36: 1699748 | E36: =D36/'- 3 -'!$D36*100 -> 6.538607392 | F36: 3975 | G36: =F36/'- 3 -'!$D36*100 -> 0.01529106925
A37: SEINE RIVER | B37: 354792 | C37: =B37/'- 3 -'!$D37*100 -> 0.6081086848 | D37: 3511231 | E37: =D37/'- 3 -'!$D37*100 -> 6.018202399 | F37: 2733 | G37: =F37/'- 3 -'!$D37*100 -> 0.004684325001
A38: SEVEN OAKS | B38: 369777 | C38: =B38/'- 3 -'!$D38*100 -> 0.2276628056 | D38: 3824172 | E38: =D38/'- 3 -'!$D38*100 -> 2.354450727 | F38: 0 | G38: =F38/'- 3 -'!$D38*100 -> 0
A39: SOUTHWEST HORIZON | B39: 118308 | C39: =B39/'- 3 -'!$D39*100 -> 0.4908971092 | D39: 1999515 | E39: =D39/'- 3 -'!$D39*100 -> 8.29661674 | F39: 0 | G39: =F39/'- 3 -'!$D39*100 -> 0
A40: ST. JAMES-ASSINIBOIA | B40: 160375 | C40: =B40/'- 3 -'!$D40*100 -> 0.1375419368 | D40: 2682199 | E40: =D40/'- 3 -'!$D40*100 -> 2.300326393 | F40: 0 | G40: =F40/'- 3 -'!$D40*100 -> 0
A41: SUNRISE | B41: 508490 | C41: =B41/'- 3 -'!$D41*100 -> 0.7038547554 | D41: 4822329 | E41: =D41/'- 3 -'!$D41*100 -> 6.67509528 | F41: 6988 | G41: =F41/'- 3 -'!$D41*100 -> 0.009672829418
A42: SWAN VALLEY | B42: 122593 | C42: =B42/'- 3 -'!$D42*100 -> 0.5602671411 | D42: 1533956 | E42: =D42/'- 3 -'!$D42*100 -> 7.010393275 | F42: 0 | G42: =F42/'- 3 -'!$D42*100 -> 0
A43: TURTLE MOUNTAIN | B43: 70611 | C43: =B43/'- 3 -'!$D43*100 -> 0.4902358973 | D43: 1069805 | E43: =D43/'- 3 -'!$D43*100 -> 7.427409526 | F43: 0 | G43: =F43/'- 3 -'!$D43*100 -> 0
A44: TURTLE RIVER | B44: 57033 | C44: =B44/'- 3 -'!$D44*100 -> 0.4755922993 | D44: 1117459 | E44: =D44/'- 3 -'!$D44*100 -> 9.318375243 | F44: 0 | G44: =F44/'- 3 -'!$D44*100 -> 0
A45: WESTERN | B45: 56351 | C45: =B45/'- 3 -'!$D45*100 -> 0.23447593 | D45: 829218 | E45: =D45/'- 3 -'!$D45*100 -> 3.450367549 | F45: 12070 | G45: =F45/'- 3 -'!$D45*100 -> 0.05022314556
A46: WINNIPEG | B46: 564037 | C46: =B46/'- 3 -'!$D46*100 -> 0.1337387279 | D46: 6818895 | E46: =D46/'- 3 -'!$D46*100 -> 1.616827164 | F46: 0 | G46: =F46/'- 3 -'!$D46*100 -> 0
A48: PROVINCE | B48: =SUM(B11:B46) -> 7049172 | C48: =B48/'- 3 -'!$D48*100 -> 0.2703454715 | D48: =SUM(D11:D46) -> 95185559 | E48: =D48/'- 3 -'!$D48*100 -> 3.650497509 | F48: =SUM(F11:F46) -> 605044 | G48: =F48/'- 3 -'!$D48*100 -> 0.02320427214
A50: WHITESHELL | B50: 0 | C50: =B50/'- 3 -'!$D50*100 -> 0 | D50: 0 | E50: =D50/'- 3 -'!$D50*100 -> 0 | F50: 10240 | G50: =F50/'- 3 -'!$D50*100 -> 0.2914853541
A51: MITT | B51: 0 | C51: =B51/'- 3 -'!$D51*100 -> 0 | D51: 0 | E51: =D51/'- 3 -'!$D51*100 -> 0 | F51: 0 | G51: =F51/'- 3 -'!$D51*100 -> 0

Sheet - 30 -
B2: ANALYSIS OF EXPENSE BY PROGRAM | G2: PAGE 13 OF 16
B3: =OPYEAR -> OPERATING FUND 2021/2022 ACTUAL
B6: FUNCTION 700: TRANSPORTATION OF PUPILS
B7: BOARDING OF STUDENTS | D7: FIELD TRIPS AND OTHER
A9: DIVISION / DISTRICT | B9: AMOUNT | C9: % | D9: AMOUNT | E9: %
A11: BEAUTIFUL PLAINS | B11: 0 | C11: =B11/'- 3 -'!$D11*100 -> 0 | D11: 88833 | E11: =D11/'- 3 -'!$D11*100 -> 0.3690007011
A12: BORDER LAND | B12: 5472 | C12: =B12/'- 3 -'!$D12*100 -> 0.01542019525 | D12: 130729 | E12: =D12/'- 3 -'!$D12*100 -> 0.3683966931
A13: BRANDON | B13: 0 | C13: =B13/'- 3 -'!$D13*100 -> 0 | D13: 60912 | E13: =D13/'- 3 -'!$D13*100 -> 0.05408551025
A14: DSFM | B14: 0 | C14: =B14/'- 3 -'!$D14*100 -> 0 | D14: 386826 | E14: =D14/'- 3 -'!$D14*100 -> 0.3880979873
A15: EVERGREEN | B15: 0 | C15: =B15/'- 3 -'!$D15*100 -> 0 | D15: 40760 | E15: =D15/'- 3 -'!$D15*100 -> 0.1866978685
A16: FLIN FLON | B16: 0 | C16: =B16/'- 3 -'!$D16*100 -> 0 | D16: 68000 | E16: =D16/'- 3 -'!$D16*100 -> 0.422700299
A17: FORT LA BOSSE | B17: 0 | C17: =B17/'- 3 -'!$D17*100 -> 0 | D17: 15114 | E17: =D17/'- 3 -'!$D17*100 -> 0.073992397
A18: FRONTIER | B18: 2776295 | C18: =B18/'- 3 -'!$D18*100 -> 1.898124676 | D18: 644576 | E18: =D18/'- 3 -'!$D18*100 -> 0.4406900605
A19: GARDEN VALLEY | B19: 0 | C19: =B19/'- 3 -'!$D19*100 -> 0 | D19: 89163 | E19: =D19/'- 3 -'!$D19*100 -> 0.1676722558
A20: HANOVER | B20: 0 | C20: =B20/'- 3 -'!$D20*100 -> 0 | D20: 348205 | E20: =D20/'- 3 -'!$D20*100 -> 0.3512729689
A21: INTERLAKE | B21: 0 | C21: =B21/'- 3 -'!$D21*100 -> 0 | D21: 128542 | E21: =D21/'- 3 -'!$D21*100 -> 0.3138820261
A22: KELSEY | B22: 0 | C22: =B22/'- 3 -'!$D22*100 -> 0 | D22: 32914 | E22: =D22/'- 3 -'!$D22*100 -> 0.1552071372
A23: LAKESHORE | B23: 0 | C23: =B23/'- 3 -'!$D23*100 -> 0 | D23: 0 | E23: =D23/'- 3 -'!$D23*100 -> 0
A24: LORD SELKIRK | B24: 0 | C24: =B24/'- 3 -'!$D24*100 -> 0 | D24: 10997 | E24: =D24/'- 3 -'!$D24*100 -> 0.01762899408
A25: LOUIS RIEL | B25: 0 | C25: =B25/'- 3 -'!$D25*100 -> 0 | D25: 49884 | E25: =D25/'- 3 -'!$D25*100 -> 0.02395283625
A26: MOUNTAIN VIEW | B26: 0 | C26: =B26/'- 3 -'!$D26*100 -> 0 | D26: 129232 | E26: =D26/'- 3 -'!$D26*100 -> 0.2908663352
A27: MYSTERY LAKE | B27: 0 | C27: =B27/'- 3 -'!$D27*100 -> 0 | D27: 57576 | E27: =D27/'- 3 -'!$D27*100 -> 0.1296281074
A28: PARK WEST | B28: 0 | C28: =B28/'- 3 -'!$D28*100 -> 0 | D28: 0 | E28: =D28/'- 3 -'!$D28*100 -> 0
A29: PEMBINA TRAILS | B29: 0 | C29: =B29/'- 3 -'!$D29*100 -> 0 | D29: 307836 | E29: =D29/'- 3 -'!$D29*100 -> 0.1663075068
A30: PINE CREEK | B30: 0 | C30: =B30/'- 3 -'!$D30*100 -> 0 | D30: 16364 | E30: =D30/'- 3 -'!$D30*100 -> 0.09742382334
A31: PORTAGE LA PRAIRIE | B31: 0 | C31: =B31/'- 3 -'!$D31*100 -> 0 | D31: 25883 | E31: =D31/'- 3 -'!$D31*100 -> 0.05960772118
A32: PRAIRIE ROSE | B32: 0 | C32: =B32/'- 3 -'!$D32*100 -> 0 | D32: 44129 | E32: =D32/'- 3 -'!$D32*100 -> 0.1313102702
A33: PRAIRIE SPIRIT | B33: 0 | C33: =B33/'- 3 -'!$D33*100 -> 0 | D33: 76016 | E33: =D33/'- 3 -'!$D33*100 -> 0.2541272018
A34: RED RIVER VALLEY | B34: 0 | C34: =B34/'- 3 -'!$D34*100 -> 0 | D34: 115816 | E34: =D34/'- 3 -'!$D34*100 -> 0.3421142641
A35: RIVER EAST TRANSCONA | B35: 0 | C35: =B35/'- 3 -'!$D35*100 -> 0 | D35: 140999 | E35: =D35/'- 3 -'!$D35*100 -> 0.06599947589
A36: ROLLING RIVER | B36: 0 | C36: =B36/'- 3 -'!$D36*100 -> 0 | D36: 57643 | E36: =D36/'- 3 -'!$D36*100 -> 0.2217416616
A37: SEINE RIVER | B37: 0 | C37: =B37/'- 3 -'!$D37*100 -> 0 | D37: 56418 | E37: =D37/'- 3 -'!$D37*100 -> 0.09669968822
A38: SEVEN OAKS | B38: 0 | C38: =B38/'- 3 -'!$D38*100 -> 0 | D38: 334954 | E38: =D38/'- 3 -'!$D38*100 -> 0.206223122
A39: SOUTHWEST HORIZON | B39: 0 | C39: =B39/'- 3 -'!$D39*100 -> 0 | D39: 20079 | E39: =D39/'- 3 -'!$D39*100 -> 0.08331408743
A40: ST. JAMES-ASSINIBOIA | B40: 0 | C40: =B40/'- 3 -'!$D40*100 -> 0 | D40: 54520 | E40: =D40/'- 3 -'!$D40*100 -> 0.0467578263
A41: SUNRISE | B41: 0 | C41: =B41/'- 3 -'!$D41*100 -> 0 | D41: 119300 | E41: =D41/'- 3 -'!$D41*100 -> 0.1651357398
A42: SWAN VALLEY | B42: 0 | C42: =B42/'- 3 -'!$D42*100 -> 0 | D42: 55445 | E42: =D42/'- 3 -'!$D42*100 -> 0.2533913979
A43: TURTLE MOUNTAIN | B43: 0 | C43: =B43/'- 3 -'!$D43*100 -> 0 | D43: 43901 | E43: =D43/'- 3 -'!$D43*100 -> 0.3047945239
A44: TURTLE RIVER | B44: 0 | C44: =B44/'- 3 -'!$D44*100 -> 0 | D44: 33703 | E44: =D44/'- 3 -'!$D44*100 -> 0.2810458377
A45: WESTERN | B45: 0 | C45: =B45/'- 3 -'!$D45*100 -> 0 | D45: 42941 | E45: =D45/'- 3 -'!$D45*100 -> 0.1786770583
A46: WINNIPEG | B46: 0 | C46: =B46/'- 3 -'!$D46*100 -> 0 | D46: 296526 | E46: =D46/'- 3 -'!$D46*100 -> 0.07030923511
A48: PROVINCE | B48: =SUM(B11:B46) -> 2781767 | C48: =B48/'- 3 -'!$D48*100 -> 0.1066846023 | D48: =SUM(D11:D46) -> 4124736 | E48: =D48/'- 3 -'!$D48*100 -> 0.1581893163
A50: WHITESHELL | B50: 0 | C50: =B50/'- 3 -'!$D50*100 -> 0 | D50: 56147 | E50: =D50/'- 3 -'!$D50*100 -> 1.598244939
A51: MITT | B51: 0 | C51: =B51/'- 3 -'!$D51*100 -> 0 | D51: 0 | E51: =D51/'- 3 -'!$D51*100 -> 0

Sheet - 31 -
B2: ANALYSIS OF EXPENSE BY PROGRAM | G2: PAGE 14 OF 16
B3: =OPYEAR -> OPERATING FUND 2021/2022 ACTUAL
B6: FUNCTION 800: OPERATIONS AND MAINTENANCE
D7: SCHOOL BUILDINGS
B8: ADMINISTRATION | D8: MAINTENANCE | F8: REPAIRS
A9: DIVISION / DISTRICT | B9: AMOUNT | C9: % | D9: AMOUNT | E9: % | F9: AMOUNT | G9: %
A11: BEAUTIFUL PLAINS | B11: 91590 | C11: =B11/'- 3 -'!$D11*100 -> 0.3804529197 | D11: 1827853 | E11: =D11/'- 3 -'!$D11*100 -> 7.59266307 | F11: 176076 | G11: =F11/'- 3 -'!$D11*100 -> 0.7313967495
A12: BORDER LAND | B12: 124309 | C12: =B12/'- 3 -'!$D12*100 -> 0.3503050166 | D12: 2785898 | E12: =D12/'- 3 -'!$D12*100 -> 7.850711093 | F12: 323684 | G12: =F12/'- 3 -'!$D12*100 -> 0.9121473828
A13: BRANDON | B13: 282233 | C13: =B13/'- 3 -'!$D13*100 -> 0.2506027681 | D13: 8441580 | E13: =D13/'- 3 -'!$D13*100 -> 7.495520777 | F13: 556176 | G13: =F13/'- 3 -'!$D13*100 -> 0.4938446077
A14: DSFM | B14: 756295 | C14: =B14/'- 3 -'!$D14*100 -> 0.7587819001 | D14: 9742533 | E14: =D14/'- 3 -'!$D14*100 -> 9.774569052 | F14: 281311 | G14: =F14/'- 3 -'!$D14*100 -> 0.2822360258
A15: EVERGREEN | B15: 42540 | C15: =B15/'- 3 -'!$D15*100 -> 0.1948510139 | D15: 2474677 | E15: =D15/'- 3 -'!$D15*100 -> 11.33505694 | F15: 251748 | G15: =F15/'- 3 -'!$D15*100 -> 1.153111261
A16: FLIN FLON | B16: 117646 | C16: =B16/'- 3 -'!$D16*100 -> 0.7313088144 | D16: 2184537 | E16: =D16/'- 3 -'!$D16*100 -> 13.5794771 | F16: 119997 | G16: =F16/'- 3 -'!$D16*100 -> 0.7459230556
A17: FORT LA BOSSE | B17: 72622 | C17: =B17/'- 3 -'!$D17*100 -> 0.355529698 | D17: 1847539 | E17: =D17/'- 3 -'!$D17*100 -> 9.04484843 | F17: 46060 | G17: =F17/'- 3 -'!$D17*100 -> 0.225492246
A18: FRONTIER | B18: 983662 | C18: =B18/'- 3 -'!$D18*100 -> 0.6725197126 | D18: 20767493 | E18: =D18/'- 3 -'!$D18*100 -> 14.19852391 | F18: 1991957 | G18: =F18/'- 3 -'!$D18*100 -> 1.361880757
A19: GARDEN VALLEY | B19: 132614 | C19: =B19/'- 3 -'!$D19*100 -> 0.2493824628 | D19: 4394355 | E19: =D19/'- 3 -'!$D19*100 -> 8.263645408 | F19: 298585 | G19: =F19/'- 3 -'!$D19*100 -> 0.5614932258
A20: HANOVER | B20: 261382 | C20: =B20/'- 3 -'!$D20*100 -> 0.2636849878 | D20: 8170023 | E20: =D20/'- 3 -'!$D20*100 -> 8.24200754 | F20: 1488633 | G20: =F20/'- 3 -'!$D20*100 -> 1.501749066
A21: INTERLAKE | B21: 152970 | C21: =B21/'- 3 -'!$D21*100 -> 0.3735318692 | D21: 3359108 | E21: =D21/'- 3 -'!$D21*100 -> 8.202483429 | F21: 189654 | G21: =F21/'- 3 -'!$D21*100 -> 0.4631091922
A22: KELSEY | B22: 103245 | C22: =B22/'- 3 -'!$D22*100 -> 0.4868554682 | D22: 2422912 | E22: =D22/'- 3 -'!$D22*100 -> 11.42532768 | F22: 62892 | G22: =F22/'- 3 -'!$D22*100 -> 0.296569462
A23: LAKESHORE | B23: 73503 | C23: =B23/'- 3 -'!$D23*100 -> 0.4484585918 | D23: 1387847 | E23: =D23/'- 3 -'!$D23*100 -> 8.467571544 | F23: 79106 | G23: =F23/'- 3 -'!$D23*100 -> 0.4826437745
A24: LORD SELKIRK | B24: 150054 | C24: =B24/'- 3 -'!$D24*100 -> 0.24054752 | D24: 6034844 | E24: =D24/'- 3 -'!$D24*100 -> 9.674295638 | F24: 426915 | G24: =F24/'- 3 -'!$D24*100 -> 0.6843759213
A25: LOUIS RIEL | B25: 881176 | C25: =B25/'- 3 -'!$D25*100 -> 0.4231149153 | D25: 21395202 | E25: =D25/'- 3 -'!$D25*100 -> 10.27334957 | F25: 319334 | G25: =F25/'- 3 -'!$D25*100 -> 0.153334837
A26: MOUNTAIN VIEW | B26: 149237 | C26: =B26/'- 3 -'!$D26*100 -> 0.3358921882 | D26: 5352424 | E26: =D26/'- 3 -'!$D26*100 -> 12.0468611 | F26: 208907 | G26: =F26/'- 3 -'!$D26*100 -> 0.4701932454
A27: MYSTERY LAKE | B27: 202469 | C27: =B27/'- 3 -'!$D27*100 -> 0.455843985 | D27: 4916817 | E27: =D27/'- 3 -'!$D27*100 -> 11.06984998 | F27: 292949 | G27: =F27/'- 3 -'!$D27*100 -> 0.6595530158
A28: PARK WEST | B28: 51072 | C28: =B28/'- 3 -'!$D28*100 -> 0.1670366546 | D28: 3461455 | E28: =D28/'- 3 -'!$D28*100 -> 11.32107345 | F28: 139514 | G28: =F28/'- 3 -'!$D28*100 -> 0.4562960492
A29: PEMBINA TRAILS | B29: 1102739 | C29: =B29/'- 3 -'!$D29*100 -> 0.5957515487 | D29: 17422939 | E29: =D29/'- 3 -'!$D29*100 -> 9.412692297 | F29: 1459801 | G29: =F29/'- 3 -'!$D29*100 -> 0.7886532593
A30: PINE CREEK | B30: 128389 | C30: =B30/'- 3 -'!$D30*100 -> 0.7643697907 | D30: 1389944 | E30: =D30/'- 3 -'!$D30*100 -> 8.275095252 | F30: 90402 | G30: =F30/'- 3 -'!$D30*100 -> 0.5382124467
A31: PORTAGE LA PRAIRIE | B31: 116686 | C31: =B31/'- 3 -'!$D31*100 -> 0.268724126 | D31: 3627281 | E31: =D31/'- 3 -'!$D31*100 -> 8.353512131 | F31: 151313 | G31: =F31/'- 3 -'!$D31*100 -> 0.3484689995
A32: PRAIRIE ROSE | B32: 174220 | C32: =B32/'- 3 -'!$D32*100 -> 0.5184091024 | D32: 2843081 | E32: =D32/'- 3 -'!$D32*100 -> 8.459872972 | F32: 146287 | G32: =F32/'- 3 -'!$D32*100 -> 0.4352916563
A33: PRAIRIE SPIRIT | B33: 60841 | C33: =B33/'- 3 -'!$D33*100 -> 0.2033960362 | D33: 2965100 | E33: =D33/'- 3 -'!$D33*100 -> 9.912552174 | F33: 244004 | G33: =F33/'- 3 -'!$D33*100 -> 0.8157237128
A34: RED RIVER VALLEY | B34: 95716 | C34: =B34/'- 3 -'!$D34*100 -> 0.2827399401 | D34: 2441207 | E34: =D34/'- 3 -'!$D34*100 -> 7.211194795 | F34: 328740 | G34: =F34/'- 3 -'!$D34*100 -> 0.9710803619
A35: RIVER EAST TRANSCONA | B35: 1153575 | C35: =B35/'- 3 -'!$D35*100 -> 0.5399708182 | D35: 20603762 | E35: =D35/'- 3 -'!$D35*100 -> 9.64430594 | F35: 394802 | G35: =F35/'- 3 -'!$D35*100 -> 0.1848007793
A36: ROLLING RIVER | B36: 67194 | C36: =B36/'- 3 -'!$D36*100 -> 0.2584825428 | D36: 2661745 | E36: =D36/'- 3 -'!$D36*100 -> 10.23922695 | F36: 127351 | G36: =F36/'- 3 -'!$D36*100 -> 0.4898950844
A37: SEINE RIVER | B37: 158907 | C37: =B37/'- 3 -'!$D37*100 -> 0.2723644467 | D37: 4578052 | E37: =D37/'- 3 -'!$D37*100 -> 7.846719151 | F37: 497535 | G37: =F37/'- 3 -'!$D37*100 -> 0.8527682544
A38: SEVEN OAKS | B38: 675994 | C38: =B38/'- 3 -'!$D38*100 -> 0.4161932478 | D38: 12244116 | E38: =D38/'- 3 -'!$D38*100 -> 7.538407744 | F38: 758984 | G38: =F38/'- 3 -'!$D38*100 -> 0.4672881948
A39: SOUTHWEST HORIZON | B39: 113411 | C39: =B39/'- 3 -'!$D39*100 -> 0.4705779157 | D39: 2093028 | E39: =D39/'- 3 -'!$D39*100 -> 8.684631594 | F39: 99240 | G39: =F39/'- 3 -'!$D39*100 -> 0.4117779788
A40: ST. JAMES-ASSINIBOIA | B40: 493183 | C40: =B40/'- 3 -'!$D40*100 -> 0.4229670772 | D40: 8593981 | E40: =D40/'- 3 -'!$D40*100 -> 7.3704305 | F40: 1086250 | G40: =F40/'- 3 -'!$D40*100 -> 0.9315973738
A41: SUNRISE | B41: 189278 | C41: =B41/'- 3 -'!$D41*100 -> 0.2619996861 | D41: 5620687 | E41: =D41/'- 3 -'!$D41*100 -> 7.780186972 | F41: 326834 | G41: =F41/'- 3 -'!$D41*100 -> 0.4524054851
A42: SWAN VALLEY | B42: 112414 | C42: =B42/'- 3 -'!$D42*100 -> 0.5137476887 | D42: 1769100 | E42: =D42/'- 3 -'!$D42*100 -> 8.085034214 | F42: 142975 | G42: =F42/'- 3 -'!$D42*100 -> 0.6534157293
A43: TURTLE MOUNTAIN | B43: 44834 | C43: =B43/'- 3 -'!$D43*100 -> 0.3112721278 | D43: 860253 | E43: =D43/'- 3 -'!$D43*100 -> 5.972538292 | F43: 104078 | G43: =F43/'- 3 -'!$D43*100 -> 0.7225895642
A44: TURTLE RIVER | B44: 40669 | C44: =B44/'- 3 -'!$D44*100 -> 0.3391345926 | D44: 1078702 | E44: =D44/'- 3 -'!$D44*100 -> 8.995184621 | F44: 99836 | G44: =F44/'- 3 -'!$D44*100 -> 0.8325220977
A45: WESTERN | B45: 56294 | C45: =B45/'- 3 -'!$D45*100 -> 0.2342387536 | D45: 1963856 | E45: =D45/'- 3 -'!$D45*100 -> 8.171584568 | F45: 157594 | G45: =F45/'- 3 -'!$D45*100 -> 0.6557470092
A46: WINNIPEG | B46: 1173982 | C46: =B46/'- 3 -'!$D46*100 -> 0.2783626948 | D46: 44195369 | E46: =D46/'- 3 -'!$D46*100 -> 10.47915727 | F46: 5470046 | G46: =F46/'- 3 -'!$D46*100 -> 1.297001782
A48: PROVINCE | B48: =SUM(B11:B46) -> 10586945 | C48: =B48/'- 3 -'!$D48*100 -> 0.4060239469 | D48: =SUM(D11:D46) -> 247919300 | E48: =D48/'- 3 -'!$D48*100 -> 9.508047194 | F48: =SUM(F11:F46) -> 18939570 | G48: =F48/'- 3 -'!$D48*100 -> 0.7263586393
A50: WHITESHELL | B50: 30280 | C50: =B50/'- 3 -'!$D50*100 -> 0.8619313011 | D50: 513872 | E50: =D50/'- 3 -'!$D50*100 -> 14.62755487 | F50: 0 | G50: =F50/'- 3 -'!$D50*100 -> 0
A51: MITT | B51: 136190 | C51: =B51/'- 3 -'!$D51*100 -> 0.3828487902 | D51: 4040853 | E51: =D51/'- 3 -'!$D51*100 -> 11.35939263 | F51: 217596 | G51: =F51/'- 3 -'!$D51*100 -> 0.6116922341

Sheet - 32 -
B2: ANALYSIS OF EXPENSE BY PROGRAM | F2: PAGE 15 OF 16
B3: =OPYEAR -> OPERATING FUND 2021/2022 ACTUAL
B6: FUNCTION 800: OPERATIONS AND MAINTENANCE
B8: OTHER BUILDINGS | D8: GROUNDS
A9: DIVISION / DISTRICT | B9: AMOUNT | C9: % | D9: AMOUNT | E9: %
A11: BEAUTIFUL PLAINS | B11: 81608 | C11: =B11/'- 3 -'!$D11*100 -> 0.338988993 | D11: 148659 | E11: =D11/'- 3 -'!$D11*100 -> 0.6175101057
A12: BORDER LAND | B12: 274390 | C12: =B12/'- 3 -'!$D12*100 -> 0.7732359967 | D12: 217676 | E12: =D12/'- 3 -'!$D12*100 -> 0.6134149161
A13: BRANDON | B13: 387342 | C13: =B13/'- 3 -'!$D13*100 -> 0.3439320612 | D13: 267329 | E13: =D13/'- 3 -'!$D13*100 -> 0.2373690795
A14: DSFM | B14: 380129 | C14: =B14/'- 3 -'!$D14*100 -> 0.3813789657 | D14: 902635 | E14: =D14/'- 3 -'!$D14*100 -> 0.9056031051
A15: EVERGREEN | B15: 178455 | C15: =B15/'- 3 -'!$D15*100 -> 0.817398629 | D15: 124100 | E15: =D15/'- 3 -'!$D15*100 -> 0.5684299676
A16: FLIN FLON | B16: 59401 | C16: =B16/'- 3 -'!$D16*100 -> 0.3692473597 | D16: 173204 | E16: =D16/'- 3 -'!$D16*100 -> 1.076667391
A17: FORT LA BOSSE | B17: 103240 | C17: =B17/'- 3 -'!$D17*100 -> 0.5054237837 | D17: 39341 | E17: =D17/'- 3 -'!$D17*100 -> 0.1925985769
A18: FRONTIER | B18: 4365602 | C18: =B18/'- 3 -'!$D18*100 -> 2.98471772 | D18: 75986 | E18: =D18/'- 3 -'!$D18*100 -> 0.05195085596
A19: GARDEN VALLEY | B19: 139785 | C19: =B19/'- 3 -'!$D19*100 -> 0.2628676275 | D19: 171911 | E19: =D19/'- 3 -'!$D19*100 -> 0.3232810152
A20: HANOVER | B20: 205442 | C20: =B20/'- 3 -'!$D20*100 -> 0.2072521109 | D20: 522630 | E20: =D20/'- 3 -'!$D20*100 -> 0.5272347949
A21: INTERLAKE | B21: 170030 | C21: =B21/'- 3 -'!$D21*100 -> 0.4151900616 | D21: 196012 | E21: =D21/'- 3 -'!$D21*100 -> 0.4786345607
A22: KELSEY | B22: 55052 | C22: =B22/'- 3 -'!$D22*100 -> 0.2595996633 | D22: 5624 | E22: =D22/'- 3 -'!$D22*100 -> 0.02652017195
A23: LAKESHORE | B23: 77284 | C23: =B23/'- 3 -'!$D23*100 -> 0.4715273364 | D23: 43943 | E23: =D23/'- 3 -'!$D23*100 -> 0.26810628
A24: LORD SELKIRK | B24: 90895 | C24: =B24/'- 3 -'!$D24*100 -> 0.1457113228 | D24: 86104 | E24: =D24/'- 3 -'!$D24*100 -> 0.1380309999
A25: LOUIS RIEL | B25: 588378 | C25: =B25/'- 3 -'!$D25*100 -> 0.2825218885 | D25: 728865 | E25: =D25/'- 3 -'!$D25*100 -> 0.3499796326
A26: MOUNTAIN VIEW | B26: 161791 | C26: =B26/'- 3 -'!$D26*100 -> 0.3641478523 | D26: 142853 | E26: =D26/'- 3 -'!$D26*100 -> 0.3215235281
A27: MYSTERY LAKE | B27: 125407 | C27: =B27/'- 3 -'!$D27*100 -> 0.2823445892 | D27: 80635 | E27: =D27/'- 3 -'!$D27*100 -> 0.1815437412
A28: PARK WEST | B28: 74353 | C28: =B28/'- 3 -'!$D28*100 -> 0.2431797536 | D28: 114971 | E28: =D28/'- 3 -'!$D28*100 -> 0.3760254388
A29: PEMBINA TRAILS | B29: 441007 | C29: =B29/'- 3 -'!$D29*100 -> 0.2382527536 | D29: 1134307 | E29: =D29/'- 3 -'!$D29*100 -> 0.6128060692
A30: PINE CREEK | B30: 47979 | C30: =B30/'- 3 -'!$D30*100 -> 0.2856451736 | D30: 82224 | E30: =D30/'- 3 -'!$D30*100 -> 0.4895243492
A31: PORTAGE LA PRAIRIE | B31: 113002 | C31: =B31/'- 3 -'!$D31*100 -> 0.2602399918 | D31: 227067 | E31: =D31/'- 3 -'!$D31*100 -> 0.5229280387
A32: PRAIRIE ROSE | B32: 138016 | C32: =B32/'- 3 -'!$D32*100 -> 0.4106804654 | D32: 118054 | E32: =D32/'- 3 -'!$D32*100 -> 0.3512815301
A33: PRAIRIE SPIRIT | B33: 140340 | C33: =B33/'- 3 -'!$D33*100 -> 0.4691671688 | D33: 47282 | E33: =D33/'- 3 -'!$D33*100 -> 0.15806728
A34: RED RIVER VALLEY | B34: 136189 | C34: =B34/'- 3 -'!$D34*100 -> 0.4022950155 | D34: 231809 | E34: =D34/'- 3 -'!$D34*100 -> 0.6847513768
A35: RIVER EAST TRANSCONA | B35: 463744 | C35: =B35/'- 3 -'!$D35*100 -> 0.2170714753 | D35: 650226 | E35: =D35/'- 3 -'!$D35*100 -> 0.304360848
A36: ROLLING RIVER | B36: 325402 | C36: =B36/'- 3 -'!$D36*100 -> 1.251759627 | D36: 82448 | E36: =D36/'- 3 -'!$D36*100 -> 0.3171617806
A37: SEINE RIVER | B37: 128852 | C37: =B37/'- 3 -'!$D37*100 -> 0.2208505836 | D37: 236784 | E37: =D37/'- 3 -'!$D37*100 -> 0.4058445704
A38: SEVEN OAKS | B38: 750368 | C38: =B38/'- 3 -'!$D38*100 -> 0.4619835308 | D38: 652867 | E38: =D38/'- 3 -'!$D38*100 -> 0.4019545101
A39: SOUTHWEST HORIZON | B39: 89977 | C39: =B39/'- 3 -'!$D39*100 -> 0.3733428779 | D39: 81714 | E39: =D39/'- 3 -'!$D39*100 -> 0.3390570915
A40: ST. JAMES-ASSINIBOIA | B40: 515380 | C40: =B40/'- 3 -'!$D40*100 -> 0.4420038247 | D40: 513388 | E40: =D40/'- 3 -'!$D40*100 -> 0.4402954316
A41: SUNRISE | B41: 392836 | C41: =B41/'- 3 -'!$D41*100 -> 0.5437658296 | D41: 581850 | E41: =D41/'- 3 -'!$D41*100 -> 0.8054000854
A42: SWAN VALLEY | B42: 146654 | C42: =B42/'- 3 -'!$D42*100 -> 0.6702292734 | D42: 149522 | E42: =D42/'- 3 -'!$D42*100 -> 0.6833364342
A43: TURTLE MOUNTAIN | B43: 143258 | C43: =B43/'- 3 -'!$D43*100 -> 0.9946072732 | D43: 4012 | E43: =D43/'- 3 -'!$D43*100 -> 0.02785439124
A44: TURTLE RIVER | B44: 48269 | C44: =B44/'- 3 -'!$D44*100 -> 0.4025102081 | D44: 48687 | E44: =D44/'- 3 -'!$D44*100 -> 0.4059958669
A45: WESTERN | B45: 45033 | C45: =B45/'- 3 -'!$D45*100 -> 0.1873818487 | D45: 89608 | E45: =D45/'- 3 -'!$D45*100 -> 0.3728579641
A46: WINNIPEG | B46: 2167329 | C46: =B46/'- 3 -'!$D46*100 -> 0.5138950521 | D46: 1494650 | E46: =D46/'- 3 -'!$D46*100 -> 0.3543962359
A48: PROVINCE | B48: =SUM(B11:B46) -> 13752219 | C48: =B48/'- 3 -'!$D48*100 -> 0.5274165718 | D48: =SUM(D11:D46) -> 10468977 | E48: =D48/'- 3 -'!$D48*100 -> 0.4014997114
A50: WHITESHELL | B50: 0 | C50: =B50/'- 3 -'!$D50*100 -> 0 | D50: 16561 | E50: =D50/'- 3 -'!$D50*100 -> 0.4714149365
A51: MITT | B51: 32518 | C51: =B51/'- 3 -'!$D51*100 -> 0.09141256305 | D51: 15123 | E51: =D51/'- 3 -'!$D51*100 -> 0.04251282954

Sheet - 33 -
B2: ANALYSIS OF EXPENSE BY PROGRAM | G2: PAGE 16 OF 16
B3: =OPYEAR -> OPERATING FUND 2021/2022 ACTUAL
B6: FUNCTION 900: FISCAL
B7: INTEREST AND BANK CHARGES | D7: BAD DEBT | F7: HEALTH AND EDUCATION LEVY
A9: DIVISION / DISTRICT | B9: AMOUNT | C9: % | D9: AMOUNT | E9: % | F9: AMOUNT | G9: %
A11: BEAUTIFUL PLAINS | B11: 4661 | C11: =B11/'- 3 -'!$D11*100 -> 0.01936118636 | D11: 0 | E11: =D11/'- 3 -'!$D11*100 -> 0 | F11: 397620 | G11: =F11/'- 3 -'!$D11*100 -> 1.651661643
A12: BORDER LAND | B12: 37077 | C12: =B12/'- 3 -'!$D12*100 -> 0.1044836585 | D12: 0 | E12: =D12/'- 3 -'!$D12*100 -> 0 | F12: 566828 | G12: =F12/'- 3 -'!$D12*100 -> 1.597331585
A13: BRANDON | B13: 3782 | C13: =B13/'- 3 -'!$D13*100 -> 0.003358146174 | D13: 3308 | E13: =D13/'- 3 -'!$D13*100 -> 0.002937267991 | F13: 1920605 | G13: =F13/'- 3 -'!$D13*100 -> 1.705360215
A14: DSFM | B14: 28424 | C14: =B14/'- 3 -'!$D14*100 -> 0.02851746571 | D14: 1633 | E14: =D14/'- 3 -'!$D14*100 -> 0.00163836974 | F14: 1476256 | G14: =F14/'- 3 -'!$D14*100 -> 1.481110324
A15: EVERGREEN | B15: 22887 | C15: =B15/'- 3 -'!$D15*100 -> 0.1048320441 | D15: 264018 | E15: =D15/'- 3 -'!$D15*100 -> 1.209312999 | F15: 333321 | G15: =F15/'- 3 -'!$D15*100 -> 1.52674976
A16: FLIN FLON | B16: 15685 | C16: =B16/'- 3 -'!$D16*100 -> 0.09750079691 | D16: 0 | E16: =D16/'- 3 -'!$D16*100 -> 0 | F16: 248833 | G16: =F16/'- 3 -'!$D16*100 -> 1.546790934
A17: FORT LA BOSSE | B17: 41914 | C17: =B17/'- 3 -'!$D17*100 -> 0.2051950065 | D17: 0 | E17: =D17/'- 3 -'!$D17*100 -> 0 | F17: 341236 | G17: =F17/'- 3 -'!$D17*100 -> 1.670561703
A18: FRONTIER | B18: 183203 | C18: =B18/'- 3 -'!$D18*100 -> 0.1252540292 | D18: 0 | E18: =D18/'- 3 -'!$D18*100 -> 0 | F18: 1335257 | G18: =F18/'- 3 -'!$D18*100 -> 0.9129016409
A19: GARDEN VALLEY | B19: 35092 | C19: =B19/'- 3 -'!$D19*100 -> 0.06599099177 | D19: 204 | E19: =D19/'- 3 -'!$D19*100 -> 0.0003836248239 | F19: 856660 | G19: =F19/'- 3 -'!$D19*100 -> 1.610960989
A20: HANOVER | B20: 125717 | C20: =B20/'- 3 -'!$D20*100 -> 0.1268246689 | D20: 0 | E20: =D20/'- 3 -'!$D20*100 -> 0 | F20: 1604659 | G20: =F20/'- 3 -'!$D20*100 -> 1.618797349
A21: INTERLAKE | B21: 23043 | C21: =B21/'- 3 -'!$D21*100 -> 0.05626786208 | D21: 0 | E21: =D21/'- 3 -'!$D21*100 -> 0 | F21: 685065 | G21: =F21/'- 3 -'!$D21*100 -> 1.672835262
A22: KELSEY | B22: 2108 | C22: =B22/'- 3 -'!$D22*100 -> 0.009940348947 | D22: 11366 | E22: =D22/'- 3 -'!$D22*100 -> 0.0535967771 | F22: 366285 | G22: =F22/'- 3 -'!$D22*100 -> 1.72722994
A23: LAKESHORE | B23: 3519 | C23: =B23/'- 3 -'!$D23*100 -> 0.02147022277 | D23: 0 | E23: =D23/'- 3 -'!$D23*100 -> 0 | F23: 256166 | G23: =F23/'- 3 -'!$D23*100 -> 1.562927277
A24: LORD SELKIRK | B24: 65813 | C24: =B24/'- 3 -'!$D24*100 -> 0.1055030451 | D24: 0 | E24: =D24/'- 3 -'!$D24*100 -> 0 | F24: 1024841 | G24: =F24/'- 3 -'!$D24*100 -> 1.642894964
A25: LOUIS RIEL | B25: 140664 | C25: =B25/'- 3 -'!$D25*100 -> 0.06754273431 | D25: 0 | E25: =D25/'- 3 -'!$D25*100 -> 0 | F25: 3486220 | G25: =F25/'- 3 -'!$D25*100 -> 1.673980771
A26: MOUNTAIN VIEW | B26: 62404 | C26: =B26/'- 3 -'!$D26*100 -> 0.1404545529 | D26: 0 | E26: =D26/'- 3 -'!$D26*100 -> 0 | F26: 707075 | G26: =F26/'- 3 -'!$D26*100 -> 1.591434892
A27: MYSTERY LAKE | B27: 2810 | C27: =B27/'- 3 -'!$D27*100 -> 0.006326507257 | D27: 1553 | E27: =D27/'- 3 -'!$D27*100 -> 0.003496464687 | F27: 763099 | G27: =F27/'- 3 -'!$D27*100 -> 1.718060983
A28: PARK WEST | B28: 37545 | C28: =B28/'- 3 -'!$D28*100 -> 0.122795097 | D28: 0 | E28: =D28/'- 3 -'!$D28*100 -> 0 | F28: 445933 | G28: =F28/'- 3 -'!$D28*100 -> 1.458473459
A29: PEMBINA TRAILS | B29: 208517 | C29: =B29/'- 3 -'!$D29*100 -> 0.1126507049 | D29: 0 | E29: =D29/'- 3 -'!$D29*100 -> 0 | F29: 3206584 | G29: =F29/'- 3 -'!$D29*100 -> 1.732347712
A30: PINE CREEK | B30: 9044 | C30: =B30/'- 3 -'!$D30*100 -> 0.05384386814 | D30: 0 | E30: =D30/'- 3 -'!$D30*100 -> 0 | F30: 284130 | G30: =F30/'- 3 -'!$D30*100 -> 1.691580966
A31: PORTAGE LA PRAIRIE | B31: 1861 | C31: =B31/'- 3 -'!$D31*100 -> 0.004285823479 | D31: 0 | E31: =D31/'- 3 -'!$D31*100 -> 0 | F31: 749851 | G31: =F31/'- 3 -'!$D31*100 -> 1.72688287
A32: PRAIRIE ROSE | B32: 41826 | C32: =B32/'- 3 -'!$D32*100 -> 0.1244574625 | D32: 0 | E32: =D32/'- 3 -'!$D32*100 -> 0 | F32: 562503 | G32: =F32/'- 3 -'!$D32*100 -> 1.673784154
A33: PRAIRIE SPIRIT | B33: 34966 | C33: =B33/'- 3 -'!$D33*100 -> 0.1168939662 | D33: 0 | E33: =D33/'- 3 -'!$D33*100 -> 0 | F33: 476819 | G33: =F33/'- 3 -'!$D33*100 -> 1.594041757
A34: RED RIVER VALLEY | B34: 81249 | C34: =B34/'- 3 -'!$D34*100 -> 0.2400051966 | D34: 544 | E34: =D34/'- 3 -'!$D34*100 -> 0.001606946879 | F34: 549622 | G34: =F34/'- 3 -'!$D34*100 -> 1.623553966
A35: RIVER EAST TRANSCONA | B35: 89154 | C35: =B35/'- 3 -'!$D35*100 -> 0.04173162415 | D35: 0 | E35: =D35/'- 3 -'!$D35*100 -> 0 | F35: 3655177 | G35: =F35/'- 3 -'!$D35*100 -> 1.710932462
A36: ROLLING RIVER | B36: 53730 | C36: =B36/'- 3 -'!$D36*100 -> 0.2066890946 | D36: 0 | E36: =D36/'- 3 -'!$D36*100 -> 0 | F36: 408683 | G36: =F36/'- 3 -'!$D36*100 -> 1.5721258
A37: SEINE RIVER | B37: -54861 | C37: =B37/'- 3 -'!$D37*100 -> -0.09403101129 | D37: 0 | E37: =D37/'- 3 -'!$D37*100 -> 0 | F37: 748557 | G37: =F37/'- 3 -'!$D37*100 -> 1.283016564
A38: SEVEN OAKS | B38: 128187 | C38: =B38/'- 3 -'!$D38*100 -> 0.07892165293 | D38: 3347 | E38: =D38/'- 3 -'!$D38*100 -> 0.002060667403 | F38: 2716425 | G38: =F38/'- 3 -'!$D38*100 -> 1.672437541
A39: SOUTHWEST HORIZON | B39: 4607 | C39: =B39/'- 3 -'!$D39*100 -> 0.01911589226 | D39: 0 | E39: =D39/'- 3 -'!$D39*100 -> 0 | F39: 388981 | G39: =F39/'- 3 -'!$D39*100 -> 1.614004534
A40: ST. JAMES-ASSINIBOIA | B40: 39330 | C40: =B40/'- 3 -'!$D40*100 -> 0.03373047154 | D40: 0 | E40: =D40/'- 3 -'!$D40*100 -> 0 | F40: 2491469 | G40: =F40/'- 3 -'!$D40*100 -> 2.136751187
A41: SUNRISE | B41: 179523 | C41: =B41/'- 3 -'!$D41*100 -> 0.2484967595 | D41: 0 | E41: =D41/'- 3 -'!$D41*100 -> 0 | F41: 1177413 | G41: =F41/'- 3 -'!$D41*100 -> 1.629781784
A42: SWAN VALLEY | B42: 3514 | C42: =B42/'- 3 -'!$D42*100 -> 0.01605947105 | D42: 0 | E42: =D42/'- 3 -'!$D42*100 -> 0 | F42: 350633 | G42: =F42/'- 3 -'!$D42*100 -> 1.602441807
A43: TURTLE MOUNTAIN | B43: 24391 | C43: =B43/'- 3 -'!$D43*100 -> 0.1693410909 | D43: 0 | E43: =D43/'- 3 -'!$D43*100 -> 0 | F43: 236076 | G43: =F43/'- 3 -'!$D43*100 -> 1.639021253
A44: TURTLE RIVER | B44: 2148 | C44: =B44/'- 3 -'!$D44*100 -> 0.01791195026 | D44: 0 | E44: =D44/'- 3 -'!$D44*100 -> 0 | F44: 184481 | G44: =F44/'- 3 -'!$D44*100 -> 1.538368015
A45: WESTERN | B45: 32559 | C45: =B45/'- 3 -'!$D45*100 -> 0.1354776633 | D45: 0 | E45: =D45/'- 3 -'!$D45*100 -> 0 | F45: 406665 | G45: =F45/'- 3 -'!$D45*100 -> 1.692128872
A46: WINNIPEG | B46: 146979 | C46: =B46/'- 3 -'!$D46*100 -> 0.03485016851 | D46: 0 | E46: =D46/'- 3 -'!$D46*100 -> 0 | F46: 7231677 | G46: =F46/'- 3 -'!$D46*100 -> 1.714701842
A48: PROVINCE | B48: =SUM(B11:B46) -> 1863072 | C48: =B48/'- 3 -'!$D48*100 -> 0.07145138157 | D48: =SUM(D11:D46) -> 285973 | E48: =D48/'- 3 -'!$F48*100 -> 0.01111130553 | F48: =SUM(F11:F46) -> 42641705 | G48: =F48/'- 3 -'!$D48*100 -> 1.635368217
A50: WHITESHELL | B50: 1558 | C50: =B50/'- 3 -'!$D50*100 -> 0.04434904119 | D50: 0 | E50: =D50/'- 3 -'!$D50*100 -> 0 | F50: 42927 | G50: =F50/'- 3 -'!$D50*100 -> 1.221932793
A51: MITT | B51: 155345 | C51: =B51/'- 3 -'!$D51*100 -> 0.4366961254 | D51: 36568 | E51: =D51/'- 3 -'!$D51*100 -> 0.1027976692 | F51: 450257 | G51: =F51/'- 3 -'!$D51*100 -> 1.265734252

Sheet - 34 -
B2: ANALYSIS OF TRANSPORTATION EXPENSES
B3: =OPYEAR -> OPERATING FUND 2021/2022 ACTUAL
B6: REGULAR TRANSPORTATION
B7: (PROGRAM 720)
C8: TRANSPORTED PUPILS | D8: PER PUPIL | E8: TOTAL KM. (ROUTES) | F8: COST PER KM. | G8: LOADED KM. | H8: COST PER KM.
A9: DIVISION / DISTRICT | B9: AMOUNT
A11: BEAUTIFUL PLAINS | B11: ='- 29 -'!$D11 -> 1171696 | C11: 653 | D11: =IF(AND(CELL("type",C11)="v",C11>0),B11/C11,"") -> 1794.327718 | E11: 589443 | F11: =IF(AND(CELL("type",E11)="v",E11>0),B11/E11,"") -> 1.987802044 | G11: 404227 | H11: =IF(AND(CELL("type",G11)="v",G11>0),B11/G11,"") -> 2.89860895
A12: BORDER LAND | B12: ='- 29 -'!$D12 -> 2098547 | C12: 1532 | D12: =IF(AND(CELL("type",C12)="v",C12>0),B12/C12,"") -> 1369.808747 | E12: 1000716 | F12: =IF(AND(CELL("type",E12)="v",E12>0),B12/E12,"") -> 2.097045515 | G12: 590604 | H12: =IF(AND(CELL("type",G12)="v",G12>0),B12/G12,"") -> 3.553221787
A13: BRANDON | B13: ='- 29 -'!$D13 -> 2165274 | C13: 2995 | D13: 722.9629382 | E13: 819549 | F13: 2.642031166 | G13: 530133 | H13: 4.084397689
A14: DSFM | B14: ='- 29 -'!$D14 -> 9559970 | C14: 4298 | D14: 2224.283388 | E14: 3276364 | F14: 2.917859554 | G14: 1710800 | H14: 5.588011457
A15: EVERGREEN | B15: ='- 29 -'!$D15 -> 1438545 | C15: 874 | D15: 1645.932494 | E15: 778134 | F15: 1.848711147 | G15: 441240 | H15: 3.260232527
A16: FLIN FLON | B16: ='- 29 -'!$D16 -> 387640 | C16: 182 | D16: 2129.89011 | E16: 57985 | F16: 6.685177201 | G16: 36436 | H16: 10.63892853
A17: FORT LA BOSSE | B17: ='- 29 -'!$D17 -> 1704136 | C17: 720 | D17: 2366.855556 | E17: 943997.6 | F17: 1.805233403 | G17: 615960.8 | H17: 2.766630604
A18: FRONTIER | B18: ='- 29 -'!$D18 -> 7875326 | C18: 4882 | D18: 1613.13519 | E18: 1307000 | F18: 6.025498087 | G18: 802964 | H18: 9.807819529
A19: GARDEN VALLEY | B19: ='- 29 -'!$D19 -> 2491514 | C19: 1913 | D19: 1302.411918 | E19: 804380 | F19: 3.097434049 | G19: 451215 | H19: 5.521788948
A20: HANOVER | B20: ='- 29 -'!$D20 -> 3437878 | C20: 4194 | D20: 819.7134001 | E20: 1345364 | F20: 2.555351563 | G20: 759533 | H20: 4.52630498
A21: INTERLAKE | B21: ='- 29 -'!$D21 -> 2204675 | C21: 1798 | D21: 1226.181869 | E21: 905252 | F21: 2.43542682 | G21: 489288 | H21: 4.50588406
A22: KELSEY | B22: ='- 29 -'!$D22 -> 398385 | C22: 389 | D22: 1024.125964 | E22: 159952 | F22: 2.490653446 | G22: 108087.54 | H22: 3.685762485
A23: LAKESHORE | B23: ='- 29 -'!$D23 -> 1543254 | C23: 619 | D23: 2493.140549 | E23: 836217 | F23: 1.845518568 | G23: 507962 | H23: 3.038128836
A24: LORD SELKIRK | B24: ='- 29 -'!$D24 -> 2522718 | C24: 2450 | D24: 1029.680816 | E24: 941024 | F24: 2.680822168 | G24: 631548 | H24: 3.99449923
A25: LOUIS RIEL | B25: ='- 29 -'!$D25 -> 4755779 | C25: 3068 | D25: 1550.123533 | E25: 1051930 | F25: 4.521003299 | G25: 504981 | H25: 9.417738489
A26: MOUNTAIN VIEW | B26: ='- 29 -'!$D26 -> 2584394 | C26: 1498 | D26: 1725.22964 | E26: 1254018 | F26: 2.060890673 | G26: 921015 | H26: 2.806028132
A27: MYSTERY LAKE | B27: ='- 29 -'!$D27 -> 50000 | D27: =IF(AND(CELL("type",C27)="v",C27>0),B27/C27,"") ->  | F27: =IF(AND(CELL("type",E27)="v",E27>0),B27/E27,"") ->  | H27: =IF(AND(CELL("type",G27)="v",G27>0),B27/G27,"") ->  | K27: Mystery lake - Reports NIL - transported pupil, total km & loaded km - No Formulas
A28: PARK WEST | B28: ='- 29 -'!$D28 -> 1858963 | C28: 798 | D28: 2329.527569 | E28: 1056852 | F28: 1.758962466 | G28: 702336 | H28: 2.646828583
A29: PEMBINA TRAILS | B29: ='- 29 -'!$D29 -> 2966425 | C29: 3004 | D29: 987.4916778 | E29: 609760 | F29: 4.864905865 | G29: 333370 | H29: 8.898296187
A30: PINE CREEK | B30: ='- 29 -'!$D30 -> 1280710 | C30: 552 | D30: 2320.126812 | E30: 488111 | F30: 2.623808929 | G30: 311752 | H30: 4.108105161
A31: PORTAGE LA PRAIRIE | B31: ='- 29 -'!$D31 -> 1056681 | C31: 1051 | D31: 1005.405328 | E31: 591444 | F31: 1.786612088 | G31: 380520 | H31: 2.776939451
A32: PRAIRIE ROSE | B32: ='- 29 -'!$D32 -> 2166098 | C32: 1457 | D32: 1486.683596 | E32: 1155991 | F32: 1.873801786 | G32: 732696 | H32: 2.956339328
A33: PRAIRIE SPIRIT | B33: ='- 29 -'!$D33 -> 2392010 | C33: 1105 | D33: 2164.714932 | E33: 1481298 | F33: 1.614806744 | G33: 892892 | H33: 2.678946614
A34: RED RIVER VALLEY | B34: ='- 29 -'!$D34 -> 2607887 | C34: 1226 | D34: 2127.150897 | E34: 1307142.4 | F34: 1.995105506 | G34: 803971.4 | H34: 3.243755935
A35: RIVER EAST TRANSCONA | B35: ='- 29 -'!$D35 -> 4558527 | C35: 2725 | D35: 1672.853945 | E35: 1105770 | F35: 4.122491115 | G35: 502572 | H35: 9.070395884
A36: ROLLING RIVER | B36: ='- 29 -'!$D36 -> 1699748 | C36: 913 | D36: 1861.717415 | E36: 805932 | F36: 2.109046421 | G36: 514962 | H36: 3.300725102
A37: SEINE RIVER | B37: ='- 29 -'!$D37 -> 3511231 | C37: 1880 | D37: 1867.676064 | E37: 1504316 | F37: 2.334104669 | G37: 857768 | H37: 4.093450677
A38: SEVEN OAKS | B38: ='- 29 -'!$D38 -> 3824172 | C38: 2558 | D38: 1494.985145 | E38: 737282 | F38: 5.186851164 | G38: 394758 | H38: 9.687383156
A39: SOUTHWEST HORIZON | B39: ='- 29 -'!$D39 -> 1999515 | C39: 707 | D39: 2828.168317 | E39: 953172 | F39: 2.09774836 | G39: 574200 | H39: 3.482262278
A40: ST. JAMES-ASSINIBOIA | B40: ='- 29 -'!$D40 -> 2682199 | C40: 1590 | D40: 1686.91761 | E40: 556000 | F40: 4.824098921 | G40: 291000 | H40: 9.217178694
A41: SUNRISE | B41: ='- 29 -'!$D41 -> 4822329 | C41: 3533 | D41: 1364.938862 | E41: 2043106 | F41: 2.360293103 | G41: 1266067 | H41: 3.808905058
A42: SWAN VALLEY | B42: ='- 29 -'!$D42 -> 1533956 | C42: 930 | D42: 1649.415054 | E42: 716422 | F42: 2.141134694 | G42: 617139 | H42: 2.485592387
A43: TURTLE MOUNTAIN | B43: ='- 29 -'!$D43 -> 1069805 | C43: 533 | D43: 2007.138837 | E43: 495676 | F43: 2.15827476 | G43: 337478 | H43: 3.16999923
A44: TURTLE RIVER | B44: ='- 29 -'!$D44 -> 1117459 | C44: 417 | D44: 2679.757794 | E44: 666486 | F44: 1.67664287 | G44: 455853 | H44: 2.451358223
A45: WESTERN | B45: ='- 29 -'!$D45 -> 829218 | C45: 901 | D45: 920.3307436 | E45: 255867 | F45: 3.240816518 | G45: 148676 | H45: 5.577349404
A46: WINNIPEG | B46: ='- 29 -'!$D46 -> 6818895 | C46: 1654 | D46: 4122.669287 | E46: 814888 | F46: 8.367892275 | G46: 476412 | H46: 14.31302108
A48: PROVINCE | B48: =SUM(B11:B46) -> 95185559 | C48: =SUM(C11:C46) -> 59599 | D48: =B48/C48 -> 1597.099935 | E48: =SUM(E11:E46) -> 33416841 | F48: =B48/E48 -> 2.848430796 | G48: =SUM(G11:G46) -> 20100416.74 | H48: =B48/G48 -> 4.735501768
A50: WHITESHELL | B50: ='- 29 -'!$D50 -> 0 | C50: N/A | D50: =IF(AND(CELL("type",C50)="v",C50>0),B50/C50,"") ->  | E50: N/A | F50: =IF(AND(CELL("type",E50)="v",E50>0),B50/E50,"") ->  | G50: N/A | H50: =IF(AND(CELL("type",G50)="v",G50>0),B50/G50,"") -> 
A51: MITT | B51: ='- 29 -'!$D51 -> 0 | C51: 0 | D51: =IF(AND(CELL("type",C51)="v",C51>0),B51/C51,"") ->  | E51: 0 | F51: =IF(AND(CELL("type",E51)="v",E51>0),B51/E51,"") ->  | G51: 0 | H51: =IF(AND(CELL("type",G51)="v",G51>0),B51/G51,"") -> 

Sheet - 35 -
B2: ANALYSIS OF TRANSPORTATION EXPENSES (CONT'D)
B3: =OPYEAR -> OPERATING FUND 2021/2022 ACTUAL
B6: ADMINISTRATION, REGULAR AND OTHER (PROGRAMS 710, 720 AND 790)
C8: TOTAL KM. (LOG BOOK) | D8: COST PER KM.
A9: DIVISION / DISTRICT | B9: AMOUNT
A11: BEAUTIFUL PLAINS | B11: =SUM('- 29 -'!$B11,'- 29 -'!$D11,'- 30 -'!$D11) -> 1354251 | C11: 622545 | D11: =IF(AND(CELL("type",C11)="v",C11>0),B11/C11,"") -> 2.175346361
A12: BORDER LAND | B12: =SUM('- 29 -'!$B12,'- 29 -'!$D12,'- 30 -'!$D12) -> 2368827 | C12: 942000 | D12: =IF(AND(CELL("type",C12)="v",C12>0),B12/C12,"") -> 2.514678344
A13: BRANDON | B13: =SUM('- 29 -'!$B13,'- 29 -'!$D13,'- 30 -'!$D13) -> 2449227 | C13: 823502 | D13: 2.974160354
A14: DSFM | B14: =SUM('- 29 -'!$B14,'- 29 -'!$D14,'- 30 -'!$D14) -> 10255557 | C14: N/A
A15: EVERGREEN | B15: =SUM('- 29 -'!$B15,'- 29 -'!$D15,'- 30 -'!$D15) -> 1673929 | C15: 1252165 | D15: 1.336827814
A16: FLIN FLON | B16: =SUM('- 29 -'!$B16,'- 29 -'!$D16,'- 30 -'!$D16) -> 455640 | C16: 72026 | D16: 6.326048927
A17: FORT LA BOSSE | B17: =SUM('- 29 -'!$B17,'- 29 -'!$D17,'- 30 -'!$D17) -> 1792594 | C17: 991074.0157 | D17: 1.808738774
A18: FRONTIER | B18: =SUM('- 29 -'!$B18,'- 29 -'!$D18,'- 30 -'!$D18) -> 8915907 | C18: 1414000 | D18: 6.305450495
A19: GARDEN VALLEY | B19: =SUM('- 29 -'!$B19,'- 29 -'!$D19,'- 30 -'!$D19) -> 2701228 | C19: 731173 | D19: 3.694376023
A20: HANOVER | B20: =SUM('- 29 -'!$B20,'- 29 -'!$D20,'- 30 -'!$D20) -> 4089673 | C20: 1710385 | D20: 2.391083294
A21: INTERLAKE | B21: =SUM('- 29 -'!$B21,'- 29 -'!$D21,'- 30 -'!$D21) -> 2465683 | C21: 868229 | D21: 2.839899381
A22: KELSEY | B22: =SUM('- 29 -'!$B22,'- 29 -'!$D22,'- 30 -'!$D22) -> 527500 | C22: 135844 | D22: 3.88313065
A23: LAKESHORE | B23: =SUM('- 29 -'!$B23,'- 29 -'!$D23,'- 30 -'!$D23) -> 1636159 | C23: 732359 | D23: 2.234094208
A24: LORD SELKIRK | B24: =SUM('- 29 -'!$B24,'- 29 -'!$D24,'- 30 -'!$D24) -> 2731621 | C24: 959007 | D24: 2.84838484
A25: LOUIS RIEL | B25: =SUM('- 29 -'!$B25,'- 29 -'!$D25,'- 30 -'!$D25) -> 5270071 | C25: 1406366 | D25: 3.747296934
A26: MOUNTAIN VIEW | B26: =SUM('- 29 -'!$B26,'- 29 -'!$D26,'- 30 -'!$D26) -> 2937402 | C26: 1329018 | D26: 2.210204828
A27: MYSTERY LAKE | B27: =SUM('- 29 -'!$B27,'- 29 -'!$D27,'- 30 -'!$D27) -> 107576 | C27: N/A
A28: PARK WEST | B28: =SUM('- 29 -'!$B28,'- 29 -'!$D28,'- 30 -'!$D28) -> 1914061 | C28: 934030 | D28: 2.049250024
A29: PEMBINA TRAILS | B29: =SUM('- 29 -'!$B29,'- 29 -'!$D29,'- 30 -'!$D29) -> 3631955 | C29: 711267 | D29: 5.106317318
A30: PINE CREEK | B30: =SUM('- 29 -'!$B30,'- 29 -'!$D30,'- 30 -'!$D30) -> 1430419 | C30: 496877 | D30: 2.878819104
A31: PORTAGE LA PRAIRIE | B31: =SUM('- 29 -'!$B31,'- 29 -'!$D31,'- 30 -'!$D31) -> 1218516 | C31: 472470 | D31: 2.579033589
A32: PRAIRIE ROSE | B32: =SUM('- 29 -'!$B32,'- 29 -'!$D32,'- 30 -'!$D32) -> 2378384 | C32: 930927 | D32: 2.554855536
A33: PRAIRIE SPIRIT | B33: =SUM('- 29 -'!$B33,'- 29 -'!$D33,'- 30 -'!$D33) -> 2595246 | C33: 1392638 | D33: 1.863546736
A34: RED RIVER VALLEY | B34: =SUM('- 29 -'!$B34,'- 29 -'!$D34,'- 30 -'!$D34) -> 2926706 | C34: 1170263 | D34: 2.500895952
A35: RIVER EAST TRANSCONA | B35: =SUM('- 29 -'!$B35,'- 29 -'!$D35,'- 30 -'!$D35) -> 5063424 | C35: 1151858.5 | D35: 4.395873278
A36: ROLLING RIVER | B36: =SUM('- 29 -'!$B36,'- 29 -'!$D36,'- 30 -'!$D36) -> 1818978 | C36: 729360 | D36: 2.49393715
A37: SEINE RIVER | B37: =SUM('- 29 -'!$B37,'- 29 -'!$D37,'- 30 -'!$D37) -> 3922441 | C37: 1321067 | D37: 2.969146152
A38: SEVEN OAKS | B38: =SUM('- 29 -'!$B38,'- 29 -'!$D38,'- 30 -'!$D38) -> 4528903 | C38: 950142 | D38: 4.766553841
A39: SOUTHWEST HORIZON | B39: =SUM('- 29 -'!$B39,'- 29 -'!$D39,'- 30 -'!$D39) -> 2137902 | C39: 865873 | D39: 2.469071099
A40: ST. JAMES-ASSINIBOIA | B40: =SUM('- 29 -'!$B40,'- 29 -'!$D40,'- 30 -'!$D40) -> 2897094 | C40: 630000 | D40: 4.598561905
A41: SUNRISE | B41: =SUM('- 29 -'!$B41,'- 29 -'!$D41,'- 30 -'!$D41) -> 5450119 | C41: 1929887 | D41: 2.824061202
A42: SWAN VALLEY | B42: =SUM('- 29 -'!$B42,'- 29 -'!$D42,'- 30 -'!$D42) -> 1711994 | C42: 584249.6 | D42: 2.930244197
A43: TURTLE MOUNTAIN | B43: =SUM('- 29 -'!$B43,'- 29 -'!$D43,'- 30 -'!$D43) -> 1184317 | C43: 408032 | D43: 2.902510097
A44: TURTLE RIVER | B44: =SUM('- 29 -'!$B44,'- 29 -'!$D44,'- 30 -'!$D44) -> 1208195 | C44: 672799 | D44: 1.795774072
A45: WESTERN | B45: =SUM('- 29 -'!$B45,'- 29 -'!$D45,'- 30 -'!$D45) -> 928510 | C45: 287493 | D45: 3.229678636
A46: WINNIPEG | B46: =SUM('- 29 -'!$B46,'- 29 -'!$D46,'- 30 -'!$D46) -> 7679458 | C46: 1151114 | D46: 6.67132708
A48: PROVINCE | B48: =SUM(B11:B46) -> 106359467 | C48: =SUM(C11:C46) -> 30780040.12 | D48: =B48/C48 -> 3.455468758
A50: WHITESHELL | B50: =SUM('- 29 -'!$B50,'- 29 -'!$D50,'- 30 -'!$D50) -> 56147 | C50: N/A | D50: =IF(AND(CELL("type",C50)="v",C50>0),B50/C50,"") -> 
A51: MITT | B51: =SUM('- 29 -'!$B51,'- 29 -'!$D51,'- 30 -'!$D51) -> 0 | C51: 0 | D51: =IF(AND(CELL("type",C51)="v",C51>0),B51/C51,"") -> 

Sheet - 36 -
A2: ANALYSIS OF OPERATIONS AND MAINTENANCE EXPENSES FOR SCHOOL BUILDINGS
A3: =OPYEAR -> OPERATING FUND 2021/2022 ACTUAL
F6: REPAIRS AND REPLACEMENTS
B7: MAINTENANCE | I7: TOTAL
C8: COST PER PUPIL | D8: COST PER SQ. FT. (1) | E8: SQ. FT. PER PUPIL (2) | G8: COST PER SQ. FT. (1) | I8: AREA
A9: DIVISION / DISTRICT | B9: AMOUNT | F9: AMOUNT | I9: =+Data!AB9 -> at September 30, 2021
A11: BEAUTIFUL PLAINS | B11: ='- 31 -'!D11 -> 1827853 | C11: =B11/'- 7 -'!E11 -> 963.5492884 | D11: =B11/I11 -> 5.859367086 | E11: =I11/'- 7 -'!E11 -> 164.4459673 | F11: ='- 31 -'!F11 -> 176076 | G11: =F11/I11 -> 0.564429371 | I11: =+Data!AB11 -> 311954
A12: BORDER LAND | B12: ='- 31 -'!D12 -> 2785898 | C12: =B12/'- 7 -'!E12 -> 1440.216919 | D12: =B12/I12 -> 6.534374743 | E12: =I12/'- 7 -'!E12 -> 220.4062326 | F12: ='- 31 -'!F12 -> 323684 | G12: =F12/I12 -> 0.7592067457 | I12: =+Data!AB12 -> 426345
A13: BRANDON | B13: ='- 31 -'!D13 -> 8441580 | C13: =B13/'- 7 -'!E13 -> 972.5322581 | D13: 7.523153429 | E13: =I13/'- 7 -'!E13 -> 129.2718894 | F13: ='- 31 -'!F13 -> 556176 | G13: 0.4956651932 | I13: =+Data!AB13 -> 1122080
A14: DSFM | B14: ='- 31 -'!D14 -> 9742533 | C14: =B14/'- 7 -'!E14 -> 1678.21642 | D14: 9.020103862 | E14: =I14/'- 7 -'!E14 -> 186.0528931 | F14: ='- 31 -'!F14 -> 281311 | G14: 0.2604512027 | I14: =+Data!AB14 -> 1080091
A15: EVERGREEN | B15: ='- 31 -'!D15 -> 2474677 | C15: =B15/'- 7 -'!E15 -> 1720.915855 | D15: 8.496628372 | E15: =I15/'- 7 -'!E15 -> 202.5410292 | F15: ='- 31 -'!F15 -> 251748 | G15: 0.8643589444 | I15: =+Data!AB15 -> 291254
A16: FLIN FLON | B16: ='- 31 -'!D16 -> 2184537 | C16: =B16/'- 7 -'!E16 -> 2310.456901 | D16: 10.41520418 | E16: =I16/'- 7 -'!E16 -> 221.8350079 | F16: ='- 31 -'!F16 -> 119997 | G16: 0.5721089895 | I16: =+Data!AB16 -> 209745
A17: FORT LA BOSSE | B17: ='- 31 -'!D17 -> 1847539 | C17: =B17/'- 7 -'!E17 -> 1293.794818 | D17: 6.996796122 | E17: =I17/'- 7 -'!E17 -> 184.912465 | F17: ='- 31 -'!F17 -> 46060 | G17: 0.1744333567 | I17: =+Data!AB17 -> 264055
A18: FRONTIER | B18: ='- 31 -'!D18 -> 20767493 | C18: =B18/'- 7 -'!E18 -> 3365.336736 | D18: =B18/I18 -> 14.47769977 | E18: =I18/'- 7 -'!E18 -> 232.449684 | F18: ='- 31 -'!F18 -> 1991957 | G18: =F18/I18 -> 1.388658487 | I18: =+Data!AB18 -> 1434447
A19: GARDEN VALLEY | B19: ='- 31 -'!D19 -> 4394355 | C19: =B19/'- 7 -'!E19 -> 1167.159363 | D19: 6.157637642 | E19: =I19/'- 7 -'!E19 -> 189.5466135 | F19: ='- 31 -'!F19 -> 298585 | G19: 0.4183954722 | I19: =+Data!AB19 -> 713643
A20: HANOVER | B20: ='- 31 -'!D20 -> 8170023 | C20: =B20/'- 7 -'!E20 -> 1053.652695 | D20: 7.259525991 | E20: =I20/'- 7 -'!E20 -> 145.1407016 | F20: ='- 31 -'!F20 -> 1488633 | G20: 1.322734337 | I20: =+Data!AB20 -> 1125421
A21: INTERLAKE | B21: ='- 31 -'!D21 -> 3359108 | C21: =B21/'- 7 -'!E21 -> 1150.576469 | D21: 7.353580021 | E21: =I21/'- 7 -'!E21 -> 156.4648056 | F21: ='- 31 -'!F21 -> 189654 | G21: 0.4151804185 | I21: =+Data!AB21 -> 456799
A22: KELSEY | B22: ='- 31 -'!D22 -> 2422912 | C22: =B22/'- 7 -'!E22 -> 1672.126984 | D22: 7.10764826 | E22: =I22/'- 7 -'!E22 -> 235.2574189 | F22: ='- 31 -'!F22 -> 62892 | G22: 0.1844946141 | I22: =+Data!AB22 -> 340888
A23: LAKESHORE | B23: ='- 31 -'!D23 -> 1387847 | C23: =B23/'- 7 -'!E23 -> 1504.441192 | D23: 5.949887677 | E23: =I23/'- 7 -'!E23 -> 252.8520325 | F23: ='- 31 -'!F23 -> 79106 | G23: 0.3391381143 | I23: =+Data!AB23 -> 233256
A24: LORD SELKIRK | B24: ='- 31 -'!D24 -> 6034844 | C24: =B24/'- 7 -'!E24 -> 1643.476035 | D24: 8.488852379 | E24: =I24/'- 7 -'!E24 -> 193.6040305 | F24: ='- 31 -'!F24 -> 426915 | G24: 0.6005156742 | I24: =+Data!AB24 -> 710914
A25: LOUIS RIEL | B25: ='- 31 -'!D25 -> 21395202 | C25: =B25/'- 7 -'!E25 -> 1431.883416 | D25: 9.232886632 | E25: =I25/'- 7 -'!E25 -> 155.0851292 | F25: ='- 31 -'!F25 -> 319334 | G25: 0.1378054117 | I25: =+Data!AB25 -> 2317282
A26: MOUNTAIN VIEW | B26: ='- 31 -'!D26 -> 5352424 | C26: =B26/'- 7 -'!E26 -> 1784.14728 | D26: 6.952978879 | E26: =I26/'- 7 -'!E26 -> 256.6018553 | F26: ='- 31 -'!F26 -> 208907 | G26: 0.2713772225 | I26: =+Data!AB26 -> 769803
A27: MYSTERY LAKE | B27: ='- 31 -'!D27 -> 4916817 | C27: =B27/'- 7 -'!E27 -> 1781.132766 | D27: 10.50891592 | E27: =I27/'- 7 -'!E27 -> 169.487774 | F27: ='- 31 -'!F27 -> 292949 | G27: 0.6261319894 | I27: =+Data!AB27 -> 467871
A28: PARK WEST | B28: ='- 31 -'!D28 -> 3461455 | C28: =B28/'- 7 -'!E28 -> 1718.270042 | D28: 7.808891175 | E28: =I28/'- 7 -'!E28 -> 220.0402085 | F28: ='- 31 -'!F28 -> 139514 | G28: 0.3147374856 | I28: =+Data!AB28+Data!AC28 -> 443271
A29: PEMBINA TRAILS | B29: ='- 31 -'!D29 -> 17422939 | C29: =B29/'- 7 -'!E29 -> 1185.338771 | D29: 9.433469523 | E29: =I29/'- 7 -'!E29 -> 125.6524727 | F29: ='- 31 -'!F29 -> 1459801 | G29: 0.7903941031 | I29: =+Data!AB29 -> 1846928
A30: PINE CREEK | B30: ='- 31 -'!D30 -> 1389944 | C30: =B30/'- 7 -'!E30 -> 1257.867873 | D30: 6.627459769 | E30: =I30/'- 7 -'!E30 -> 189.7963801 | F30: ='- 31 -'!F30 -> 90402 | G30: 0.4310501848 | I30: =+Data!AB30 -> 209725
A31: PORTAGE LA PRAIRIE | B31: ='- 31 -'!D31 -> 3627281 | C31: =B31/'- 7 -'!E31 -> 1108.582213 | D31: 6.124225878 | E31: =I31/'- 7 -'!E31 -> 181.0158924 | F31: ='- 31 -'!F31 -> 151313 | G31: 0.2554737254 | I31: =+Data!AB31 -> 592284
A32: PRAIRIE ROSE | B32: ='- 31 -'!D32 -> 2843081 | C32: =B32/'- 7 -'!E32 -> 1264.997108 | D32: 7.300883888 | E32: =I32/'- 7 -'!E32 -> 173.2662959 | F32: ='- 31 -'!F32 -> 146287 | G32: 0.3756573947 | I32: =+Data!AB32 -> 389416
A33: PRAIRIE SPIRIT | B33: ='- 31 -'!D33 -> 2965100 | C33: =B33/'- 7 -'!E33 -> 1454.906771 | D33: 6.125796688 | E33: =I33/'- 7 -'!E33 -> 237.5049068 | F33: ='- 31 -'!F33 -> 244004 | G33: 0.5041040421 | I33: =+Data!AB33 -> 484035
A34: RED RIVER VALLEY | B34: ='- 31 -'!D34 -> 2441207 | C34: =B34/'- 7 -'!E34 -> 1113.689325 | D34: 6.421998148 | E34: =I34/'- 7 -'!E34 -> 173.4178832 | F34: ='- 31 -'!F34 -> 328740 | G34: 0.8648048573 | I34: =+Data!AB34 -> 380132
A35: RIVER EAST TRANSCONA | B35: ='- 31 -'!D35 -> 20603762 | C35: =B35/'- 7 -'!E35 -> 1257.055123 | D35: 8.355727596 | E35: =I35/'- 7 -'!E35 -> 150.4423294 | F35: ='- 31 -'!F35 -> 394802 | G35: 0.1601094968 | I35: =+Data!AB35 -> 2465825
A36: ROLLING RIVER | B36: ='- 31 -'!D36 -> 2661745 | C36: =B36/'- 7 -'!E36 -> 1520.128498 | D36: 8.268882476 | E36: =I36/'- 7 -'!E36 -> 183.8372359 | F36: ='- 31 -'!F36 -> 127351 | G36: 0.3956240933 | I36: =+Data!AB36 -> 321899
A37: SEINE RIVER | B37: ='- 31 -'!D37 -> 4578052 | C37: =B37/'- 7 -'!E37 -> 1032.953971 | D37: 7.820075398 | E37: =I37/'- 7 -'!E37 -> 132.0900271 | F37: ='- 31 -'!F37 -> 497535 | G37: 0.8498726562 | I37: =+Data!AB37 -> 585423
A38: SEVEN OAKS | B38: ='- 31 -'!D38 -> 12244116 | C38: =B38/'- 7 -'!E38 -> 1078.529676 | D38: 8.462713337 | E38: =I38/'- 7 -'!E38 -> 127.4449025 | F38: ='- 31 -'!F38 -> 758984 | G38: 0.5245837282 | I38: =+Data!AB38 -> 1446831
A39: SOUTHWEST HORIZON | B39: ='- 31 -'!D39 -> 2093028 | C39: =B39/'- 7 -'!E39 -> 1429.175828 | D39: 6.59132149 | E39: =I39/'- 7 -'!E39 -> 216.8269034 | F39: ='- 31 -'!F39 -> 99240 | G39: 0.312524603 | I39: =+Data!AB39 -> 317543
A40: ST. JAMES-ASSINIBOIA | B40: ='- 31 -'!D40 -> 8593981 | C40: =B40/'- 7 -'!E40 -> 1078.088315 | D40: 5.890120969 | E40: =I40/'- 7 -'!E40 -> 183.0333062 | F40: ='- 31 -'!F40 -> 1086250 | G40: 0.7444912786 | I40: =+Data!AB40 -> 1459050
A41: SUNRISE | B41: ='- 31 -'!D41 -> 5620687 | C41: =B41/'- 7 -'!E41 -> 1249.735853 | D41: 7.444648124 | E41: =I41/'- 7 -'!E41 -> 167.8703724 | F41: ='- 31 -'!F41 -> 326834 | G41: 0.4328944353 | I41: =+Data!AB41 -> 754997
A42: SWAN VALLEY | B42: ='- 31 -'!D42 -> 1769100 | C42: =B42/'- 7 -'!E42 -> 1336.986094 | D42: 6.085508777 | E42: =I42/'- 7 -'!E42 -> 219.6999698 | F42: ='- 31 -'!F42 -> 142975 | G42: 0.4918182225 | I42: =+Data!AB42 -> 290707
A43: TURTLE MOUNTAIN | B43: ='- 31 -'!D43 -> 860253 | C43: =B43/'- 7 -'!E43 -> 838.0448125 | D43: 4.711185227 | E43: =I43/'- 7 -'!E43 -> 177.8840721 | F43: ='- 31 -'!F43 -> 104078 | G43: 0.5699843372 | I43: =+Data!AB43 -> 182598
A44: TURTLE RIVER | B44: ='- 31 -'!D44 -> 1078702 | C44: =B44/'- 7 -'!E44 -> 1672.406202 | D44: 5.969342638 | E44: =I44/'- 7 -'!E44 -> 280.1658915 | F44: ='- 31 -'!F44 -> 99836 | G44: 0.5524744476 | I44: =+Data!AB44 -> 180707
A45: WESTERN | B45: ='- 31 -'!D45 -> 1963856 | C45: =B45/'- 7 -'!E45 -> 1092.54854 | D45: 8.90326734 | E45: =I45/'- 7 -'!E45 -> 122.7132128 | F45: ='- 31 -'!F45 -> 157594 | G45: 0.7144625233 | I45: =+Data!AB45 -> 220577
A46: WINNIPEG | B46: ='- 31 -'!D46 -> 44195369 | C46: =B46/'- 7 -'!E46 -> 1616.420789 | D46: 8.633319353 | E46: =I46/'- 7 -'!E46 -> 187.2305104 | F46: ='- 31 -'!F46 -> 5470046 | G46: 1.068543041 | I46: =+Data!AB46 -> 5119163
A48: PROVINCE | B48: =SUM(B11:B46) -> 247919300 | C48: =B48/'- 7 -'!E48 -> 1400.320846 | D48: =B48/I48 -> 8.286915124 | E48: =I48/'- 7 -'!E48 -> 168.97975 | F48: =SUM(F11:F46) -> 18939570 | G48: 0.6330713626 | I48: =+Data!AB48 -> 29916959
A50: WHITESHELL | B50: ='- 31 -'!D50 -> 513872 | C50: =B50/'- 7 -'!E50 -> 2608.48731 | D50: =B50/I50 -> 7.033946562 | E50: =I50/'- 7 -'!E50 -> 370.8426396 | F50: ='- 31 -'!F50 -> 0 | G50: =F50/I50 -> 0 | I50: =+Data!AB50 -> 73056
A51: MITT | B51: ='- 31 -'!D51 -> 4040853 | C51: =B51/'- 7 -'!E51 -> 1885.605693 | D51: N/A | E51: =I51/'- 7 -'!E51 -> 0 | F51: ='- 31 -'!F51 -> 217596 | G51: N/A
A53: (1) Based on area (square footage) of active school buildings as at September 30, 2021. Includes rented and leased space.
A54: (2) Square footage (as per note above) divided by total F.T.E. enrolment (from page 7).

Sheet - 37 -
B2: ANALYSIS OF INFORMATION TECHNOLOGY EXPENSES
B3: =OPYEAR -> OPERATING FUND 2021/2022 ACTUAL
B6: INFORMATION TECHNOLOGY EXPENSES (1)
B7: SALARIES | E7: SERVICES | H7: EQUIPMENT (2)
D8: PER PUPIL | G8: PER PUPIL | J8: PER PUPIL
A9: DIVISION / DISTRICT | B9: AMOUNT | C9: % | E9: AMOUNT | F9: % | H9: AMOUNT | I9: %
A11: BEAUTIFUL PLAINS | B11: 189997 | C11: =B11/'- 3 -'!$D11*100 -> 0.7892227686 | D11: =B11/'- 7 -'!$E11 -> 100.156563 | E11: 237675 | F11: =E11/'- 3 -'!$D11*100 -> 0.987270965 | G11: =E11/'- 7 -'!$E11 -> 125.2899315 | H11: 426906 | I11: =H11/'- 3 -'!$D11*100 -> 1.773311869 | J11: =H11/'- 7 -'!$E11 -> 225.042699
A12: BORDER LAND | B12: 288761 | C12: =B12/'- 3 -'!$D12*100 -> 0.8137337354 | D12: =B12/'- 7 -'!$E12 -> 149.2798652 | E12: 114664 | F12: =E12/'- 3 -'!$D12*100 -> 0.3231252317 | G12: =E12/'- 7 -'!$E12 -> 59.27748713 | H12: 614444 | I12: =H12/'- 3 -'!$D12*100 -> 1.731514336 | J12: =H12/'- 7 -'!$E12 -> 317.6471805
A13: BRANDON | B13: 553011 | C13: =B13/'- 3 -'!$D13*100 -> 0.4910343136 | D13: =B13/'- 7 -'!$E13 -> 63.7109447 | E13: 717942 | F13: =E13/'- 3 -'!$D13*100 -> 0.6374812746 | G13: =E13/'- 7 -'!$E13 -> 82.71221198 | H13: 1354778 | I13: =H13/'- 3 -'!$D13*100 -> 1.202946208 | J13: =H13/'- 7 -'!$E13 -> 156.0804147
A14: DSFM | B14: 382896 | C14: =B14/'- 3 -'!$D14*100 -> 0.3841550644 | D14: =B14/'- 7 -'!$E14 -> 65.95639494 | E14: 611409 | F14: =E14/'- 3 -'!$D14*100 -> 0.6134194762 | G14: =E14/'- 7 -'!$E14 -> 105.3192864 | H14: 508700 | I14: =H14/'- 3 -'!$D14*100 -> 0.5103727416 | J14: =H14/'- 7 -'!$E14 -> 87.62697471
A15: EVERGREEN | B15: 139953 | C15: =B15/'- 3 -'!$D15*100 -> 0.6410433461 | D15: =B15/'- 7 -'!$E15 -> 97.32475661 | E15: 163365 | F15: =E15/'- 3 -'!$D15*100 -> 0.74828011 | G15: =E15/'- 7 -'!$E15 -> 113.6057024 | H15: 167097 | I15: =H15/'- 3 -'!$D15*100 -> 0.7653742328 | J15: =H15/'- 7 -'!$E15 -> 116.2009736
A16: FLIN FLON | B16: 0 | C16: =B16/'- 3 -'!$D16*100 -> 0 | D16: =B16/'- 7 -'!$E16 -> 0 | E16: 176374 | F16: =E16/'- 3 -'!$D16*100 -> 1.096372684 | G16: =E16/'- 7 -'!$E16 -> 186.5404548 | H16: 71648 | I16: =H16/'- 3 -'!$D16*100 -> 0.4453769268 | J16: =H16/'- 7 -'!$E16 -> 75.77789529
A17: FORT LA BOSSE | B17: 156011 | C17: =B17/'- 3 -'!$D17*100 -> 0.7637705339 | D17: =B17/'- 7 -'!$E17 -> 109.2514006 | E17: 139106 | F17: =E17/'- 3 -'!$D17*100 -> 0.6810100819 | G17: =E17/'- 7 -'!$E17 -> 97.41316527 | H17: 126219 | I17: =H17/'- 3 -'!$D17*100 -> 0.6179202301 | J17: =H17/'- 7 -'!$E17 -> 88.38865546
A18: FRONTIER | B18: 392673 | C18: =B18/'- 3 -'!$D18*100 -> 0.2684665394 | D18: =B18/'- 7 -'!$E18 -> 63.63198833 | E18: 0 | F18: =E18/'- 3 -'!$D18*100 -> 0 | G18: =E18/'- 7 -'!$E18 -> 0 | H18: 2345146 | I18: =H18/'- 3 -'!$D18*100 -> 1.603352487 | J18: =H18/'- 7 -'!$E18 -> 380.0269
A19: GARDEN VALLEY | B19: 480825 | C19: =B19/'- 3 -'!$D19*100 -> 0.9041980685 | D19: =B19/'- 7 -'!$E19 -> 127.7091633 | E19: 249045 | F19: =E19/'- 3 -'!$D19*100 -> 0.46833257 | G19: =E19/'- 7 -'!$E19 -> 66.14741036 | H19: 1061782 | I19: =H19/'- 3 -'!$D19*100 -> 1.996695749 | J19: =H19/'- 7 -'!$E19 -> 282.0138114
A20: HANOVER | B20: 710508 | C20: =B20/'- 3 -'!$D20*100 -> 0.7167681527 | D20: =B20/'- 7 -'!$E20 -> 91.63115811 | E20: 345050 | F20: =E20/'- 3 -'!$D20*100 -> 0.3480901708 | G20: =E20/'- 7 -'!$E20 -> 44.4996131 | H20: 3234429 | I20: =H20/'- 3 -'!$D20*100 -> 3.262926947 | J20: =H20/'- 7 -'!$E20 -> 417.1303843
A21: INTERLAKE | B21: 375606 | C21: =B21/'- 3 -'!$D21*100 -> 0.9171786054 | D21: =B21/'- 7 -'!$E21 -> 128.6542216 | E21: 179342 | F21: =E21/'- 3 -'!$D21*100 -> 0.4379286951 | G21: =E21/'- 7 -'!$E21 -> 61.42901182 | H21: 423001 | I21: =H21/'- 3 -'!$D21*100 -> 1.032910729 | J21: =H21/'- 7 -'!$E21 -> 144.8881658
A22: KELSEY | B22: 119742 | C22: =B22/'- 3 -'!$D22*100 -> 0.5646476582 | D22: =B22/'- 7 -'!$E22 -> 82.63768116 | E22: 2457 | F22: =E22/'- 3 -'!$D22*100 -> 0.01158607085 | G22: =E22/'- 7 -'!$E22 -> 1.695652174 | H22: 271272 | I22: =H22/'- 3 -'!$D22*100 -> 1.279192761 | J22: =H22/'- 7 -'!$E22 -> 187.2132505
A23: LAKESHORE | B23: 127432 | C23: =B23/'- 3 -'!$D23*100 -> 0.7774917386 | D23: =B23/'- 7 -'!$E23 -> 138.1376694 | E23: 45420 | F23: =E23/'- 3 -'!$D23*100 -> 0.2771177943 | G23: =E23/'- 7 -'!$E23 -> 49.23577236 | H23: 431723 | I23: =H23/'- 3 -'!$D23*100 -> 2.634040632 | J23: =H23/'- 7 -'!$E23 -> 467.9924119
A24: LORD SELKIRK | B24: 595598 | C24: =B24/'- 3 -'!$D24*100 -> 0.9547870887 | D24: =B24/'- 7 -'!$E24 -> 162.1998911 | E24: 564240 | F24: =E24/'- 3 -'!$D24*100 -> 0.9045179247 | G24: =E24/'- 7 -'!$E24 -> 153.6601307 | H24: 834368 | I24: =H24/'- 3 -'!$D24*100 -> 1.337552835 | J24: =H24/'- 7 -'!$E24 -> 227.2244009
A25: LOUIS RIEL | B25: 1044490 | C25: =B25/'- 3 -'!$D25*100 -> 0.5015335164 | D25: =B25/'- 7 -'!$E25 -> 69.9029581 | E25: 1720546 | F25: =E25/'- 3 -'!$D25*100 -> 0.8261558134 | G25: =E25/'- 7 -'!$E25 -> 115.1483068 | H25: 1144547 | I25: =H25/'- 3 -'!$D25*100 -> 0.5495779583 | J25: =H25/'- 7 -'!$E25 -> 76.59931736
A26: MOUNTAIN VIEW | B26: 403746 | C26: =B26/'- 3 -'!$D26*100 -> 0.9087232217 | D26: =B26/'- 7 -'!$E26 -> 134.5824486 | E26: 597064 | F26: =E26/'- 3 -'!$D26*100 -> 1.343829838 | G26: =E26/'- 7 -'!$E26 -> 199.0219967 | H26: 308675 | I26: =H26/'- 3 -'!$D26*100 -> 0.6947440729 | J26: =H26/'- 7 -'!$E26 -> 102.8920096
A27: MYSTERY LAKE | B27: 165154 | C27: =B27/'- 3 -'!$D27*100 -> 0.3718320212 | D27: =B27/'- 7 -'!$E27 -> 59.82756747 | E27: 231378 | F27: =E27/'- 3 -'!$D27*100 -> 0.5209304613 | G27: =E27/'- 7 -'!$E27 -> 83.81742438 | H27: 209083 | I27: =H27/'- 3 -'!$D27*100 -> 0.470734917 | J27: =H27/'- 7 -'!$E27 -> 75.74098895
A28: PARK WEST | B28: 255565 | C28: =B28/'- 3 -'!$D28*100 -> 0.8358537481 | D28: =B28/'- 7 -'!$E28 -> 126.8627451 | E28: 121074 | F28: =E28/'- 3 -'!$D28*100 -> 0.3959859789 | G28: =E28/'- 7 -'!$E28 -> 60.10126582 | H28: 314626 | I28: =H28/'- 3 -'!$D28*100 -> 1.029019315 | J28: =H28/'- 7 -'!$E28 -> 156.18069
A29: PEMBINA TRAILS | B29: 1473386 | C29: =B29/'- 3 -'!$D29*100 -> 0.7959925162 | D29: =B29/'- 7 -'!$E29 -> 100.2392048 | E29: 1304266 | F29: =E29/'- 3 -'!$D29*100 -> 0.7046259263 | G29: =E29/'- 7 -'!$E29 -> 88.7334254 | H29: 1606081 | I29: =H29/'- 3 -'!$D29*100 -> 0.8676806053 | J29: =H29/'- 7 -'!$E29 -> 109.2668739
A30: PINE CREEK | B30: 173657 | C30: =B30/'- 3 -'!$D30*100 -> 1.033874902 | D30: =B30/'- 7 -'!$E30 -> 157.1556561 | E30: 164632 | F30: =E30/'- 3 -'!$D30*100 -> 0.9801441508 | G30: =E30/'- 7 -'!$E30 -> 148.9882353 | H30: 293317 | I30: =H30/'- 3 -'!$D30*100 -> 1.746276191 | J30: =H30/'- 7 -'!$E30 -> 265.4452489
A31: PORTAGE LA PRAIRIE | B31: 318198 | C31: =B31/'- 3 -'!$D31*100 -> 0.732799817 | D31: =B31/'- 7 -'!$E31 -> 97.24877751 | E31: 302448 | F31: =E31/'- 3 -'!$D31*100 -> 0.6965280708 | G31: =E31/'- 7 -'!$E31 -> 92.43520782 | H31: 372914 | I31: =H31/'- 3 -'!$D31*100 -> 0.858809015 | J31: =H31/'- 7 -'!$E31 -> 113.9712714
A32: PRAIRIE ROSE | B32: 270619 | C32: =B32/'- 3 -'!$D32*100 -> 0.8052540057 | D32: =B32/'- 7 -'!$E32 -> 120.4088988 | E32: 174138 | F32: =E32/'- 3 -'!$D32*100 -> 0.5181651032 | G32: =E32/'- 7 -'!$E32 -> 77.4807564 | H32: 285410 | I32: =H32/'- 3 -'!$D32*100 -> 0.8492661113 | J32: =H32/'- 7 -'!$E32 -> 126.9899889
A33: PRAIRIE SPIRIT | B33: 326593 | C33: =B33/'- 3 -'!$D33*100 -> 1.091824948 | D33: =B33/'- 7 -'!$E33 -> 160.2517174 | E33: 307886 | F33: =E33/'- 3 -'!$D33*100 -> 1.02928604 | G33: =E33/'- 7 -'!$E33 -> 151.0726202 | H33: 217099 | I33: =H33/'- 3 -'!$D33*100 -> 0.7257782754 | J33: =H33/'- 7 -'!$E33 -> 106.5255152
A34: RED RIVER VALLEY | B34: 233514 | C34: =B34/'- 3 -'!$D34*100 -> 0.6897878555 | D34: =B34/'- 7 -'!$E34 -> 106.5301095 | E34: 302656 | F34: =E34/'- 3 -'!$D34*100 -> 0.8940296222 | G34: =E34/'- 7 -'!$E34 -> 138.0729927 | H34: 287333 | I34: =H34/'- 3 -'!$D34*100 -> 0.8487663005 | J34: =H34/'- 7 -'!$E34 -> 131.082573
A35: RIVER EAST TRANSCONA | B35: 1046626 | C35: =B35/'- 3 -'!$D35*100 -> 0.4899096267 | D35: =B35/'- 7 -'!$E35 -> 63.85564809 | E35: 1065160 | F35: =E35/'- 3 -'!$D35*100 -> 0.4985851086 | G35: =E35/'- 7 -'!$E35 -> 64.98642506 | H35: 1275680 | I35: =H35/'- 3 -'!$D35*100 -> 0.5971263016 | J35: =H35/'- 7 -'!$E35 -> 77.83045057
A36: ROLLING RIVER | B36: 206605 | C36: =B36/'- 3 -'!$D36*100 -> 0.7947701543 | D36: =B36/'- 7 -'!$E36 -> 117.9925757 | E36: 328545 | F36: =E36/'- 3 -'!$D36*100 -> 1.26385015 | G36: =E36/'- 7 -'!$E36 -> 187.6327813 | H36: 287520 | I36: =H36/'- 3 -'!$D36*100 -> 1.106034775 | J36: =H36/'- 7 -'!$E36 -> 164.2033124
A37: SEINE RIVER | B37: 298728 | C37: =B37/'- 3 -'!$D37*100 -> 0.5120157478 | D37: =B37/'- 7 -'!$E37 -> 67.40252708 | E37: 872832 | F37: =E37/'- 3 -'!$D37*100 -> 1.496022232 | G37: =E37/'- 7 -'!$E37 -> 196.9386282 | H37: 759458 | I37: =H37/'- 3 -'!$D37*100 -> 1.30170073 | J37: =H37/'- 7 -'!$E37 -> 171.357852
A38: SEVEN OAKS | B38: 308667 | C38: =B38/'- 3 -'!$D38*100 -> 0.1900388483 | D38: =B38/'- 7 -'!$E38 -> 27.18910206 | E38: 667421 | F38: =E38/'- 3 -'!$D38*100 -> 0.4109150579 | G38: =E38/'- 7 -'!$E38 -> 58.79014499 | H38: 1477985 | I38: =H38/'- 3 -'!$D38*100 -> 0.9099598182 | J38: =H38/'- 7 -'!$E38 -> 130.1891197
A39: SOUTHWEST HORIZON | B39: 171604 | C39: =B39/'- 3 -'!$D39*100 -> 0.712038979 | D39: =B39/'- 7 -'!$E39 -> 117.1758279 | E39: 134532 | F39: =E39/'- 3 -'!$D39*100 -> 0.5582155889 | G39: =E39/'- 7 -'!$E39 -> 91.86206897 | H39: 55920 | I39: =H39/'- 3 -'!$D39*100 -> 0.2320296713 | J39: =H39/'- 7 -'!$E39 -> 38.18368044
A40: ST. JAMES-ASSINIBOIA | B40: 724589 | C40: =B40/'- 3 -'!$D40*100 -> 0.6214271204 | D40: =B40/'- 7 -'!$E40 -> 90.89744716 | E40: 573525 | F40: =E40/'- 3 -'!$D40*100 -> 0.491870549 | G40: =E40/'- 7 -'!$E40 -> 71.94693596 | H40: 862238 | I40: =H40/'- 3 -'!$D40*100 -> 0.739478625 | J40: =H40/'- 7 -'!$E40 -> 108.1650881
A41: SUNRISE | B41: 458114 | C41: =B41/'- 3 -'!$D41*100 -> 0.6341240092 | D41: =B41/'- 7 -'!$E41 -> 101.8596998 | E41: 169992 | F41: =E41/'- 3 -'!$D41*100 -> 0.235303895 | G41: =E41/'- 7 -'!$E41 -> 37.79699833 | H41: 661141 | I41: =H41/'- 3 -'!$D41*100 -> 0.9151551394 | J41: =H41/'- 7 -'!$E41 -> 147.0018899
A42: SWAN VALLEY | B42: 243228 | C42: =B42/'- 3 -'!$D42*100 -> 1.111585949 | D42: =B42/'- 7 -'!$E42 -> 183.8180169 | E42: 168490 | F42: =E42/'- 3 -'!$D42*100 -> 0.7700228448 | G42: =E42/'- 7 -'!$E42 -> 127.3352479 | H42: 105591 | I42: =H42/'- 3 -'!$D42*100 -> 0.4825656253 | J42: =H42/'- 7 -'!$E42 -> 79.79972793
A43: TURTLE MOUNTAIN | B43: 67455 | C43: =B43/'- 3 -'!$D43*100 -> 0.4683245167 | D43: =B43/'- 7 -'!$E43 -> 65.71358987 | E43: 107067 | F43: =E43/'- 3 -'!$D43*100 -> 0.7433415022 | G43: =E43/'- 7 -'!$E43 -> 104.3029713 | H43: 177722 | I43: =H43/'- 3 -'!$D43*100 -> 1.233882881 | J43: =H43/'- 7 -'!$E43 -> 173.1339503
A44: TURTLE RIVER | B44: 127343 | C44: =B44/'- 3 -'!$D44*100 -> 1.061900131 | D44: =B44/'- 7 -'!$E44 -> 197.4310078 | E44: 72922 | F44: =E44/'- 3 -'!$D44*100 -> 0.6080890301 | G44: =E44/'- 7 -'!$E44 -> 113.0573643 | H44: 176640 | I44: =H44/'- 3 -'!$D44*100 -> 1.472982725 | J44: =H44/'- 7 -'!$E44 -> 273.8604651
